Workbook

Sheet airport-progress
D4: OFFROAD Method | E4: CARB Factors Method | F4: FOR INTERNAL USE ONLY | G4: MOU Fleet Performance
A5: Survey Year | B5: Count of Equipment [1] | C5: Percent Electric [1] | D5: NOX [2][3] (short tons) | E5: NOX [2][4] (short tons) | F5: NOX + HC [1] [4] (g/bhp-hr) | G5: NOX + HC [1][5] (g/bhp-hr)
A6: 2017 | B6: 2592 | C6: 0.4043209877 | D6: 184.93 | E6: 181.8636856 | F6: 2.814817317 | G6: 2.244140895
A7: =A6+1 -> 2018
A8: =A7+1 -> 2019
A9: 2020 | B9: 3029 | C9: 0.3416969297 | D9: 179.97 | E9: 150.252429 | F9: 1.841576252 | G9: 1.516183899
A10: 2021 | B10: ='equipment-summary'!F7 -> 3156 | C10: ='equipment-summary'!E8 -> 0.3168567807 | D10: -- | E10: ='equipment-summary'!M7 -> 156.6243139 | G10: ='fleet-calculator'!E2 -> 1.516344555
A11: 2022
A12: 2023
A13: 2023 | E13: Performance Target: | F13: =F6*G13/G6 -> 2.257733096 | G13: 1.8
A14: =A12+1 -> 2024
A15: 2025
A16: 2026
A17: 2027
A18: 2028
A19: 2029
A20: 2030
A21: 2031
A22: =A20+1 -> 2031 | E22: Performance Target: | F22: =F6*G22/G6 -> 1.254296165 | G22: 1
A23: 2032
A24: Notes:
A25: [1] Low-use and <25 horsepower non-electric equipment excluded
A26: [2] All reported equipment, including low-use and <25 hp equipment included
A27: [3] Emission factors back-calculated from OFFROAD2017 outputs (outdated LSI emission factors).
A28: [4] Emission factors provided by CARB July 2021 based on certified engine standards (LSI) and 2017 ORDAS model (ORD).
A29: [5] Calculated as an engine standard-based horsepower-weighted factor consistent with the methodology employed throughout
A30: [5] the development of the SCAQMD and City of Los Angeles Department of Airports 2019 MOU.

Sheet equipment-summary
A2: CONFIDENTIAL - THIS TAB FOR USE BY AIRPORT AND AIRPORT'S PARTNERS AT AIRPORT'S SOLE DISCRETION
B5: Count of Equipment [excluding <25hp non-electric and low-use equipment] | G5: Fleet Inventory Equipment Count [including <25hp non-electric and low-use equipment] | K5: Fleet Inventory Annual Emissions [including <25hp non-electric and low-use equipment]
B6: Diesel | C6: Gasoline | D6: LPG | E6: Electric | F6: Total | G6: In-Use (any fuel) | H6: Low-Use (any fuel) | I6: Total (any fuel) | J6: Electric | K6: ROG (short tons) | L6: CO (short tons) | M6: NOX (short tons) | N6: PM10 (short tons) | O6: PM2.5 (short tons) | P6: CO2e (metric tons) | Q6: SOX (short tons)
A7: Overall Fleet | B7: =SUM(_xlfn.ANCHORARRAY(B9)) -> 755 | C7: 898 | D7: 503 | E7: 1000 | F7: 3156 | G7: 3228 | H7: 201 | I7: =SUM(_xlfn.ANCHORARRAY(I9)) -> 3429 | J7: =SUM(_xlfn.ANCHORARRAY(J9)) -> 1046 | K7: 50.58338364 | L7: 773.587199 | M7: 156.6243139 | N7: 5.7685626 | O7: 4.974328193 | P7: 52252.73889 | Q7: 0.1585661681
A8: Overall Fleet Percent | B8: =B$7/$F$7 -> 0.2392268695 | C8: =C$7/$F$7 -> 0.2845373891 | D8: =D$7/$F$7 -> 0.1593789607 | E8: =E$7/$F$7 -> 0.3168567807 | F8: -- | G8: =G$7/($G$7+$H$7) -> 0.9413823272 | H8: =H$7/($G$7+$H$7) -> 0.05861767279 | I8: -- | J8: =J7/I7 -> 0.3050452027 | K8: -- | L8: -- | M8: -- | N8: -- | O8: -- | P8: -- | Q8: --
A9: =_xlfn._xlws.SORT(_xlfn._xlws.FILTER(_xlfn.UNIQUE('fleet-calculator'!$S$6:$S$4986),_xlfn.UNIQUE('fleet-calculator'!$S$6:$S$4986)<>"")) -> A/C Tug Narrow Body | B9: =COUNTIFS('fleet-calculator'!$S$6:$S$9857,_xlfn.ANCHORARRAY($A$9),_xlfn.ANCHORARRAY('fleet-calculator'!$V$6),B$6,_xlfn.ANCHORARRAY('fleet-calculator'!$AK$6),"In-Use",'fleet-calculator'!$X$6:$X$9857,">=25") -> 149 | C9: =COUNTIFS('fleet-calculator'!$S$6:$S$9857,_xlfn.ANCHORARRAY($A$9),_xlfn.ANCHORARRAY('fleet-calculator'!$V$6),C$6,_xlfn.ANCHORARRAY('fleet-calculator'!$AK$6),"In-Use",'fleet-calculator'!$X$6:$X$9857,">=25") -> 0 | D9: =COUNTIFS('fleet-calculator'!$S$6:$S$9857,_xlfn.ANCHORARRAY($A$9),_xlfn.ANCHORARRAY('fleet-calculator'!$V$6),D$6,_xlfn.ANCHORARRAY('fleet-calculator'!$AK$6),"In-Use",'fleet-calculator'!$X$6:$X$9857,">=25") -> 5 | E9: =COUNTIFS('fleet-calculator'!$S$6:$S$9857,_xlfn.ANCHORARRAY($A$9),_xlfn.ANCHORARRAY('fleet-calculator'!$V$6),E$6,_xlfn.ANCHORARRAY('fleet-calculator'!$AK$6),"In-Use") -> 87 | F9: =_xlfn.ANCHORARRAY($B$9)+_xlfn.ANCHORARRAY($C$9)+_xlfn.ANCHORARRAY($D$9)+_xlfn.ANCHORARRAY($E$9) -> 241 | G9: =COUNTIFS('fleet-calculator'!$S$6:$S$9857,_xlfn.ANCHORARRAY($A$9),_xlfn.ANCHORARRAY('fleet-calculator'!$AK$6),"In-Use") -> 241 | H9: =COUNTIFS('fleet-calculator'!$S$6:$S$9857,_xlfn.ANCHORARRAY($A$9),_xlfn.ANCHORARRAY('fleet-calculator'!$AK$6),"Low-Use") -> 12 | I9: =COUNTIFS('fleet-calculator'!$S$6:$S$9857,_xlfn.ANCHORARRAY($A$9)) -> 253 | J9: =COUNTIFS('fleet-calculator'!$S$6:$S$9857,_xlfn.ANCHORARRAY($A$9),_xlfn.ANCHORARRAY('fleet-calculator'!$V$6),J$6) -> 87 | K9: =CONVERT(1,"g","ton")*SUMIFS(_xlfn.ANCHORARRAY('fleet-calculator'!$AU$6),'fleet-calculator'!$S$6:$S$9857,_xlfn.ANCHORARRAY($A$9)) -> 1.410594699 | L9: =CONVERT(1,"g","ton")*SUMIFS(_xlfn.ANCHORARRAY('fleet-calculator'!$AV$6),'fleet-calculator'!$S$6:$S$9857,_xlfn.ANCHORARRAY($A$9)) -> 11.31587883 | M9: =CONVERT(1,"g","ton")*SUMIFS(_xlfn.ANCHORARRAY('fleet-calculator'!$AW$6),'fleet-calculator'!$S$6:$S$9857,_xlfn.ANCHORARRAY($A$9)) -> 13.30193068 | N9: =CONVERT(1,"g","ton")*SUMIFS(_xlfn.ANCHORARRAY('fleet-calculator'!$AX$6),'fleet-calculator'!$S$6:$S$9857,_xlfn.ANCHORARRAY($A$9)) -> 0.5079160086 | O9: =CONVERT(1,"g","ton")*SUMIFS(_xlfn.ANCHORARRAY('fleet-calculator'!$AY$6),'fleet-calculator'!$S$6:$S$9857,_xlfn.ANCHORARRAY($A$9)) -> 0.4680225922 | P9: =CONVERT(1,"g","ton")*SUMIFS(_xlfn.ANCHORARRAY('fleet-calculator'!$BC$6),'fleet-calculator'!$S$6:$S$9857,_xlfn.ANCHORARRAY($A$9)) -> 3872.067904 | Q9: =CONVERT(1,"g","ton")*SUMIFS(_xlfn.ANCHORARRAY('fleet-calculator'!$BE$6),'fleet-calculator'!$S$6:$S$9857,_xlfn.ANCHORARRAY($A$9)) -> 0.01822627242
A10: Air Conditioner | B10: 24 | C10: 13 | D10: 0 | E10: 12 | F10: 49 | G10: 49 | H10: 0 | I10: 49 | J10: 12 | K10: 0.2267542838 | L10: 6.413335879 | M10: 1.269525861 | N10: 0.1015803636 | O10: 0.08400047128 | P10: 1201.369121 | Q10: 0.004555598683
A11: Air Start Unit | B11: 26 | C11: 0 | D11: 0 | E11: 0 | F11: 26 | G11: 26 | H11: 6 | I11: 32 | J11: 0 | K11: 0.0499255459 | L11: 0.4316361997 | M11: 0.6443334324 | N11: 0.0225306048 | O11: 0.02072815641 | P11: 234.5665392 | Q11: 0.001135323099
A12: Baggage Tug | B12: 41 | C12: 247 | D12: 142 | E12: 297 | F12: 727 | G12: 727 | H12: 30 | I12: 757 | J12: 301 | K12: 18.4904673 | L12: 292.1453228 | M12: 46.37473359 | N12: 1.468478738 | O12: 1.278179033 | P12: 13501.54141 | Q12: 0.02882511043
A13: Belt Loader | B13: 27 | C13: 102 | D13: 2 | E13: 172 | F13: 303 | G13: 333 | H13: 16 | I13: 349 | J13: 173 | K13: 4.63989657 | L13: 57.22074022 | M13: 10.47473401 | N13: 0.3405957129 | O13: 0.2790314851 | P13: 3121.452051 | Q13: 0.01016155232
A14: Bobtail | B14: 12 | C14: 58 | D14: 0 | E14: 0 | F14: 70 | G14: 70 | H14: 1 | I14: 71 | J14: 0 | K14: 1.235813188 | L14: 28.66166543 | M14: 3.810645248 | N14: 0.3072822965 | O14: 0.2400698263 | P14: 3671.267397 | Q14: 0.0122975876
A15: Cargo Loader | B15: 163 | C15: 0 | D15: 0 | E15: 12 | F15: 175 | G15: 175 | H15: 13 | I15: 188 | J15: 12 | K15: 0.9004199721 | L15: 10.85067245 | M15: 8.756584803 | N15: 0.3705658267 | O15: 0.3409205606 | P15: 1988.546808 | Q15: 0.009624744999
A16: Cargo Tractor | B16: 6 | C16: 140 | D16: 18 | E16: 134 | F16: 298 | G16: 298 | H16: 0 | I16: 298 | J16: 134 | K16: 12.00689739 | L16: 205.30896 | M16: 27.42885031 | N16: 0.6702977527 | O16: 0.5360963155 | P16: 7818.709666 | Q16: 0.02184854076
A17: Cart | B17: 7 | C17: 10 | D17: 0 | E17: 155 | F17: 172 | G17: 194 | H17: 5 | I17: 199 | J17: 160 | K17: 0.1752547806 | L17: 0.6466547386 | M17: 0.1804318685 | N17: 0.005311481361 | O17: 0.004292247153 | P17: 56.64188258 | Q17: 0.0001921836919
A18: Catering Truck | B18: 51 | C18: 35 | D18: 0 | E18: 0 | F18: 86 | G18: 86 | H18: 4 | I18: 90 | J18: 0 | K18: 0.3708212667 | L18: 4.987837126 | M18: 3.727668684 | N18: 0.1560317785 | O18: 0.1334475995 | P18: 1063.546662 | Q18: 0.004077507098
A19: Forklift | B19: 20 | C19: 36 | D19: 317 | E19: 58 | F19: 431 | G19: 431 | H19: 21 | I19: 452 | J19: 58 | K19: 3.302773319 | L19: 48.48300105 | M19: 6.030718092 | N19: 0.3701641694 | O19: 0.3537232192 | P19: 3738.165391 | Q19: 0.002821718836
A20: Fuel Truck | B20: 22 | C20: 1 | D20: 0 | E20: 0 | F20: 23 | G20: 23 | H20: 55 | I20: 78 | J20: 35 | K20: 0.01140636702 | L20: 0.112532931 | M20: 0.1908237296 | N20: 0.008739963131 | O20: 0.007959069968 | P20: 61.37489251 | Q20: 0.0002861786324
A21: Generator | B21: 3 | C21: 1 | D21: 0 | E21: 0 | F21: 4 | G21: 23 | H21: 0 | I21: 23 | J21: 0 | K21: 0.2309099316 | L21: 1.355224039 | M21: 0.6375828555 | N21: 0.02506853655 | O21: 0.02273774964 | P21: 121.8818717 | Q21: 0.0005448624356
A22: Ground Power Unit | B22: 107 | C22: 1 | D22: 0 | E22: 15 | F22: 123 | G22: 123 | H22: 9 | I22: 132 | J22: 15 | K22: 1.312544038 | L22: 13.51698984 | M22: 10.38129509 | N22: 0.4742363254 | O22: 0.4348067739 | P22: 3454.569482 | Q22: 0.01652188267
A23: Hydrant Truck | B23: 14 | C23: 10 | D23: 0 | E23: 0 | F23: 24 | G23: 24 | H23: 0 | I23: 24 | J23: 0 | K23: 0.8214607364 | L23: 40.37070111 | M23: 5.481317569 | N23: 0.2683670925 | O23: 0.2113004313 | P23: 2971.319579 | Q23: 0.009640141003
A24: Lav Cart | B24: 2 | C24: 2 | D24: 0 | E24: 6 | F24: 10 | G24: 11 | H24: 2 | I24: 13 | J24: 6 | K24: 0.01767842637 | L24: 0.0842074234 | M24: 0.02183317617 | N24: 0.0005248095824 | O24: 0.0004314350625 | P24: 5.922881589 | Q24: 2.154945666e-05
A25: Lav Truck | B25: 14 | C25: 24 | D25: 0 | E25: 0 | F25: 38 | G25: 38 | H25: 2 | I25: 40 | J25: 0 | K25: 0.6619452136 | L25: 11.90143226 | M25: 3.633849604 | N25: 0.1978759478 | O25: 0.1700961202 | P25: 1291.16421 | Q25: 0.004757636084
A26: Lift | B26: 40 | C26: 28 | D26: 14 | E26: 50 | F26: 132 | G26: 132 | H26: 10 | I26: 142 | J26: 51 | K26: 2.384509212 | L26: 20.39288028 | M26: 6.868571387 | N26: 0.1366876358 | O26: 0.121040538 | P26: 894.7782406 | Q26: 0.00263881419
A27: Passenger Stand | B27: 9 | C27: 12 | D27: 0 | E27: 1 | F27: 22 | G27: 22 | H27: 4 | I27: 26 | J27: 1 | K27: 0.06696392759 | L27: 0.5542291008 | M27: 0.2077652623 | N27: 0.01269450375 | O27: 0.01071772324 | P27: 90.0004722 | Q27: 0.0003173854323
A28: Service Truck | B28: 17 | C28: 166 | D28: 1 | E28: 0 | F28: 184 | G28: 184 | H28: 9 | I28: 193 | J28: 0 | K28: 1.973270667 | L28: 16.81379612 | M28: 6.627155989 | N28: 0.311147209 | O28: 0.2465572119 | P28: 2944.537975 | Q28: 0.009672959886
A29: Sweeper | B29: 1 | C29: 2 | D29: 4 | E29: 1 | F29: 8 | G29: 8 | H29: 1 | I29: 9 | J29: 1 | K29: 0.253287172 | L29: 1.364614493 | M29: 0.3953398116 | N29: 0.004467220494 | O29: 0.004126229691 | P29: 58.44704521 | Q29: 0.0001148748041
A30: Water Truck | B30: 0 | C30: 10 | D30: 0 | E30: 0 | F30: 10 | G30: 10 | H30: 1 | I30: 11 | J30: 0 | K30: 0.03978963895 | L30: 0.6548867152 | M30: 0.1786228226 | N30: 0.007998623139 | O30: 0.00604340415 | P30: 90.86740242 | Q30: 0.0002837435912

Sheet fuel-summary
A2: CONFIDENTIAL - THIS TAB FOR USE BY AIRPORT AND AIRPORT'S PARTNERS AT AIRPORT'S SOLE DISCRETION
B5: Fleet Inventory Equipment Count (including <25hp non-electric and low-use equipment) | E5: Fleet Inventory Annual Emissions (including <25hp non-electric and low-use equipment)
B6: In-Use (any fuel) | C6: Low-Use (any fuel) | D6: Total (any fuel) | E6: ROG (short tons) | F6: CO (short tons) | G6: NOX (short tons) | H6: PM10 (short tons) | I6: PM2.5 (short tons) | J6: CO2e (metric tons) | K6: SOX (short tons)
A7: Overall Fleet | B7: =SUM(B10,B19,B23,B27) -> 3228 | C7: =SUM(C10,C19,C23,C27) -> 201 | D7: =SUM(D10,D19,D23,D27) -> 3429 | E7: =SUM(E10,E19,E23) -> 50.58338364 | F7: 773.587199 | G7: 156.6243139 | H7: 5.7685626 | I7: 4.974328193 | J7: 52252.73889 | K7: 0.1585661681
A8: Overall Fleet Percent | B8: =B$7/($B$7+$C$7) -> 0.9413823272 | C8: =C$7/($B$7+$C$7) -> 0.05861767279 | D8: -- | E8: -- | F8: -- | G8: -- | H8: -- | I8: -- | J8: -- | K8: --
A10: Diesel | B10: =COUNTIFS('fleet-calculator'!$V$6:$V$9857,$A10,_xlfn.ANCHORARRAY('fleet-calculator'!$AK$6),"In-Use") -> 783 | C10: =COUNTIFS('fleet-calculator'!$V$6:$V$9857,$A10,_xlfn.ANCHORARRAY('fleet-calculator'!$AK$6),"Low-Use") -> 79 | D10: =COUNTIFS('fleet-calculator'!$V$6:$V$9857,$A10) -> 862 | E10: =CONVERT(1,"g","ton")*SUMIFS(_xlfn.ANCHORARRAY('fleet-calculator'!$AU$6),'fleet-calculator'!$V$6:$V$9857,$A10) -> 7.070773585 | F10: =CONVERT(1,"g","ton")*SUMIFS(_xlfn.ANCHORARRAY('fleet-calculator'!$AV$6),'fleet-calculator'!$V$6:$V$9857,$A10) -> 49.33270847 | G10: =CONVERT(1,"g","ton")*SUMIFS(_xlfn.ANCHORARRAY('fleet-calculator'!$AW$6),'fleet-calculator'!$V$6:$V$9857,$A10) -> 58.62691379 | H10: =CONVERT(1,"g","ton")*SUMIFS(_xlfn.ANCHORARRAY('fleet-calculator'!$AX$6),'fleet-calculator'!$V$6:$V$9857,$A10) -> 2.606650257 | I10: =CONVERT(1,"g","ton")*SUMIFS(_xlfn.ANCHORARRAY('fleet-calculator'!$AY$6),'fleet-calculator'!$V$6:$V$9857,$A10) -> 2.398118237 | J10: =CONVERT(1,"g","ton")*SUMIFS(_xlfn.ANCHORARRAY('fleet-calculator'!$BC$6),'fleet-calculator'!$V$6:$V$9857,$A10) -> 13338.85211 | K10: =CONVERT(1,"g","ton")*SUMIFS(_xlfn.ANCHORARRAY('fleet-calculator'!$BE$6),'fleet-calculator'!$V$6:$V$9857,$A10) -> 0.06456124118
A11: Tier 4 | B11: =COUNTIFS(_xlfn.ANCHORARRAY('fleet-calculator'!$W$6),$A11,_xlfn.ANCHORARRAY('fleet-calculator'!$AK$6),"In-Use") -> 362 | C11: =COUNTIFS(_xlfn.ANCHORARRAY('fleet-calculator'!$W$6),$A11,_xlfn.ANCHORARRAY('fleet-calculator'!$AK$6),"Low-Use") -> 30 | D11: =COUNTIFS(_xlfn.ANCHORARRAY('fleet-calculator'!$W$6),$A11) -> 392 | E11: =CONVERT(1,"g","ton")*SUMIFS(_xlfn.ANCHORARRAY('fleet-calculator'!$AU$6),_xlfn.ANCHORARRAY('fleet-calculator'!$W$6),$A11) -> 1.209944941 | F11: =CONVERT(1,"g","ton")*SUMIFS(_xlfn.ANCHORARRAY('fleet-calculator'!$AV$6),_xlfn.ANCHORARRAY('fleet-calculator'!$W$6),$A11) -> 22.48222756 | G11: =CONVERT(1,"g","ton")*SUMIFS(_xlfn.ANCHORARRAY('fleet-calculator'!$AW$6),_xlfn.ANCHORARRAY('fleet-calculator'!$W$6),$A11) -> 11.52107365 | H11: =CONVERT(1,"g","ton")*SUMIFS(_xlfn.ANCHORARRAY('fleet-calculator'!$AX$6),_xlfn.ANCHORARRAY('fleet-calculator'!$W$6),$A11) -> 0.3800259346 | I11: =CONVERT(1,"g","ton")*SUMIFS(_xlfn.ANCHORARRAY('fleet-calculator'!$AY$6),_xlfn.ANCHORARRAY('fleet-calculator'!$W$6),$A11) -> 0.3496238598 | J11: =CONVERT(1,"g","ton")*SUMIFS(_xlfn.ANCHORARRAY('fleet-calculator'!$BC$6),_xlfn.ANCHORARRAY('fleet-calculator'!$W$6),$A11) -> 6767.510465 | K11: =CONVERT(1,"g","ton")*SUMIFS(_xlfn.ANCHORARRAY('fleet-calculator'!$BE$6),_xlfn.ANCHORARRAY('fleet-calculator'!$W$6),$A11) -> 0.03275535795
A12: Tier 4i | B12: =COUNTIFS(_xlfn.ANCHORARRAY('fleet-calculator'!$W$6),$A12,_xlfn.ANCHORARRAY('fleet-calculator'!$AK$6),"In-Use") -> 67 | C12: =COUNTIFS(_xlfn.ANCHORARRAY('fleet-calculator'!$W$6),$A12,_xlfn.ANCHORARRAY('fleet-calculator'!$AK$6),"Low-Use") -> 2 | D12: =COUNTIFS(_xlfn.ANCHORARRAY('fleet-calculator'!$W$6),$A12) -> 69 | E12: =CONVERT(1,"g","ton")*SUMIFS(_xlfn.ANCHORARRAY('fleet-calculator'!$AU$6),_xlfn.ANCHORARRAY('fleet-calculator'!$W$6),$A12) -> 0.5607571727 | F12: =CONVERT(1,"g","ton")*SUMIFS(_xlfn.ANCHORARRAY('fleet-calculator'!$AV$6),_xlfn.ANCHORARRAY('fleet-calculator'!$W$6),$A12) -> 5.588380655 | G12: =CONVERT(1,"g","ton")*SUMIFS(_xlfn.ANCHORARRAY('fleet-calculator'!$AW$6),_xlfn.ANCHORARRAY('fleet-calculator'!$W$6),$A12) -> 5.182483836 | H12: =CONVERT(1,"g","ton")*SUMIFS(_xlfn.ANCHORARRAY('fleet-calculator'!$AX$6),_xlfn.ANCHORARRAY('fleet-calculator'!$W$6),$A12) -> 0.2045471171 | I12: =CONVERT(1,"g","ton")*SUMIFS(_xlfn.ANCHORARRAY('fleet-calculator'!$AY$6),_xlfn.ANCHORARRAY('fleet-calculator'!$W$6),$A12) -> 0.1881833477 | J12: =CONVERT(1,"g","ton")*SUMIFS(_xlfn.ANCHORARRAY('fleet-calculator'!$BC$6),_xlfn.ANCHORARRAY('fleet-calculator'!$W$6),$A12) -> 1553.005626 | K12: =CONVERT(1,"g","ton")*SUMIFS(_xlfn.ANCHORARRAY('fleet-calculator'!$BE$6),_xlfn.ANCHORARRAY('fleet-calculator'!$W$6),$A12) -> 0.007516686591
A13: Tier 3 | B13: =COUNTIFS(_xlfn.ANCHORARRAY('fleet-calculator'!$W$6),$A13,_xlfn.ANCHORARRAY('fleet-calculator'!$AK$6),"In-Use") -> 85 | C13: =COUNTIFS(_xlfn.ANCHORARRAY('fleet-calculator'!$W$6),$A13,_xlfn.ANCHORARRAY('fleet-calculator'!$AK$6),"Low-Use") -> 3 | D13: =COUNTIFS(_xlfn.ANCHORARRAY('fleet-calculator'!$W$6),$A13) -> 88 | E13: =CONVERT(1,"g","ton")*SUMIFS(_xlfn.ANCHORARRAY('fleet-calculator'!$AU$6),_xlfn.ANCHORARRAY('fleet-calculator'!$W$6),$A13) -> 1.084329552 | F13: =CONVERT(1,"g","ton")*SUMIFS(_xlfn.ANCHORARRAY('fleet-calculator'!$AV$6),_xlfn.ANCHORARRAY('fleet-calculator'!$W$6),$A13) -> 7.187689208 | G13: =CONVERT(1,"g","ton")*SUMIFS(_xlfn.ANCHORARRAY('fleet-calculator'!$AW$6),_xlfn.ANCHORARRAY('fleet-calculator'!$W$6),$A13) -> 9.97467381 | H13: =CONVERT(1,"g","ton")*SUMIFS(_xlfn.ANCHORARRAY('fleet-calculator'!$AX$6),_xlfn.ANCHORARRAY('fleet-calculator'!$W$6),$A13) -> 0.534583161 | I13: =CONVERT(1,"g","ton")*SUMIFS(_xlfn.ANCHORARRAY('fleet-calculator'!$AY$6),_xlfn.ANCHORARRAY('fleet-calculator'!$W$6),$A13) -> 0.4918165081 | J13: =CONVERT(1,"g","ton")*SUMIFS(_xlfn.ANCHORARRAY('fleet-calculator'!$BC$6),_xlfn.ANCHORARRAY('fleet-calculator'!$W$6),$A13) -> 1822.929994 | K13: =CONVERT(1,"g","ton")*SUMIFS(_xlfn.ANCHORARRAY('fleet-calculator'!$BE$6),_xlfn.ANCHORARRAY('fleet-calculator'!$W$6),$A13) -> 0.008823144754
A14: Tier 2 | B14: =COUNTIFS(_xlfn.ANCHORARRAY('fleet-calculator'!$W$6),$A14,_xlfn.ANCHORARRAY('fleet-calculator'!$AK$6),"In-Use") -> 47 | C14: =COUNTIFS(_xlfn.ANCHORARRAY('fleet-calculator'!$W$6),$A14,_xlfn.ANCHORARRAY('fleet-calculator'!$AK$6),"Low-Use") -> 7 | D14: =COUNTIFS(_xlfn.ANCHORARRAY('fleet-calculator'!$W$6),$A14) -> 54 | E14: =CONVERT(1,"g","ton")*SUMIFS(_xlfn.ANCHORARRAY('fleet-calculator'!$AU$6),_xlfn.ANCHORARRAY('fleet-calculator'!$W$6),$A14) -> 0.6150377074 | F14: =CONVERT(1,"g","ton")*SUMIFS(_xlfn.ANCHORARRAY('fleet-calculator'!$AV$6),_xlfn.ANCHORARRAY('fleet-calculator'!$W$6),$A14) -> 3.460770552 | G14: =CONVERT(1,"g","ton")*SUMIFS(_xlfn.ANCHORARRAY('fleet-calculator'!$AW$6),_xlfn.ANCHORARRAY('fleet-calculator'!$W$6),$A14) -> 6.454059838 | H14: =CONVERT(1,"g","ton")*SUMIFS(_xlfn.ANCHORARRAY('fleet-calculator'!$AX$6),_xlfn.ANCHORARRAY('fleet-calculator'!$W$6),$A14) -> 0.2591155816 | I14: =CONVERT(1,"g","ton")*SUMIFS(_xlfn.ANCHORARRAY('fleet-calculator'!$AY$6),_xlfn.ANCHORARRAY('fleet-calculator'!$W$6),$A14) -> 0.2383863351 | J14: =CONVERT(1,"g","ton")*SUMIFS(_xlfn.ANCHORARRAY('fleet-calculator'!$BC$6),_xlfn.ANCHORARRAY('fleet-calculator'!$W$6),$A14) -> 787.613053 | K14: =CONVERT(1,"g","ton")*SUMIFS(_xlfn.ANCHORARRAY('fleet-calculator'!$BE$6),_xlfn.ANCHORARRAY('fleet-calculator'!$W$6),$A14) -> 0.003812117855
A15: Tier 1 | B15: =COUNTIFS(_xlfn.ANCHORARRAY('fleet-calculator'!$W$6),$A15,_xlfn.ANCHORARRAY('fleet-calculator'!$AK$6),"In-Use") -> 99 | C15: =COUNTIFS(_xlfn.ANCHORARRAY('fleet-calculator'!$W$6),$A15,_xlfn.ANCHORARRAY('fleet-calculator'!$AK$6),"Low-Use") -> 6 | D15: =COUNTIFS(_xlfn.ANCHORARRAY('fleet-calculator'!$W$6),$A15) -> 105 | E15: =CONVERT(1,"g","ton")*SUMIFS(_xlfn.ANCHORARRAY('fleet-calculator'!$AU$6),_xlfn.ANCHORARRAY('fleet-calculator'!$W$6),$A15) -> 2.830119779 | F15: =CONVERT(1,"g","ton")*SUMIFS(_xlfn.ANCHORARRAY('fleet-calculator'!$AV$6),_xlfn.ANCHORARRAY('fleet-calculator'!$W$6),$A15) -> 7.83092503 | G15: =CONVERT(1,"g","ton")*SUMIFS(_xlfn.ANCHORARRAY('fleet-calculator'!$AW$6),_xlfn.ANCHORARRAY('fleet-calculator'!$W$6),$A15) -> 15.73533829 | H15: =CONVERT(1,"g","ton")*SUMIFS(_xlfn.ANCHORARRAY('fleet-calculator'!$AX$6),_xlfn.ANCHORARRAY('fleet-calculator'!$W$6),$A15) -> 0.7690488853 | I15: =CONVERT(1,"g","ton")*SUMIFS(_xlfn.ANCHORARRAY('fleet-calculator'!$AY$6),_xlfn.ANCHORARRAY('fleet-calculator'!$W$6),$A15) -> 0.7075249745 | J15: =CONVERT(1,"g","ton")*SUMIFS(_xlfn.ANCHORARRAY('fleet-calculator'!$BC$6),_xlfn.ANCHORARRAY('fleet-calculator'!$W$6),$A15) -> 1310.340057 | K15: =CONVERT(1,"g","ton")*SUMIFS(_xlfn.ANCHORARRAY('fleet-calculator'!$BE$6),_xlfn.ANCHORARRAY('fleet-calculator'!$W$6),$A15) -> 0.006342163461
A16: Tier 0 | B16: =COUNTIFS(_xlfn.ANCHORARRAY('fleet-calculator'!$W$6),$A16,_xlfn.ANCHORARRAY('fleet-calculator'!$AK$6),"In-Use") -> 12 | C16: =COUNTIFS(_xlfn.ANCHORARRAY('fleet-calculator'!$W$6),$A16,_xlfn.ANCHORARRAY('fleet-calculator'!$AK$6),"Low-Use") -> 5 | D16: =COUNTIFS(_xlfn.ANCHORARRAY('fleet-calculator'!$W$6),$A16) -> 17 | E16: =CONVERT(1,"g","ton")*SUMIFS(_xlfn.ANCHORARRAY('fleet-calculator'!$AU$6),_xlfn.ANCHORARRAY('fleet-calculator'!$W$6),$A16) -> 0.478381661 | F16: =CONVERT(1,"g","ton")*SUMIFS(_xlfn.ANCHORARRAY('fleet-calculator'!$AV$6),_xlfn.ANCHORARRAY('fleet-calculator'!$W$6),$A16) -> 1.377339159 | G16: =CONVERT(1,"g","ton")*SUMIFS(_xlfn.ANCHORARRAY('fleet-calculator'!$AW$6),_xlfn.ANCHORARRAY('fleet-calculator'!$W$6),$A16) -> 3.201003764 | H16: =CONVERT(1,"g","ton")*SUMIFS(_xlfn.ANCHORARRAY('fleet-calculator'!$AX$6),_xlfn.ANCHORARRAY('fleet-calculator'!$W$6),$A16) -> 0.2096963752 | I16: =CONVERT(1,"g","ton")*SUMIFS(_xlfn.ANCHORARRAY('fleet-calculator'!$AY$6),_xlfn.ANCHORARRAY('fleet-calculator'!$W$6),$A16) -> 0.1929206651 | J16: =CONVERT(1,"g","ton")*SUMIFS(_xlfn.ANCHORARRAY('fleet-calculator'!$BC$6),_xlfn.ANCHORARRAY('fleet-calculator'!$W$6),$A16) -> 182.9049629 | K16: =CONVERT(1,"g","ton")*SUMIFS(_xlfn.ANCHORARRAY('fleet-calculator'!$BE$6),_xlfn.ANCHORARRAY('fleet-calculator'!$W$6),$A16) -> 0.0008852764339
A17: On-Road | B17: =B10-SUM(B11:B16) -> 111 | C17: 26 | D17: 137 | E17: 0.2922027704 | F17: 1.4053763 | G17: 6.558280596 | H17: 0.2496332024 | I17: 0.2296625462 | J17: 914.5479488 | K17: 0.004426494141
A19: Gasoline | B19: =COUNTIFS('fleet-calculator'!$V$6:$V$9857,$A19,_xlfn.ANCHORARRAY('fleet-calculator'!$AK$6),"In-Use") -> 942 | C19: =COUNTIFS('fleet-calculator'!$V$6:$V$9857,$A19,_xlfn.ANCHORARRAY('fleet-calculator'!$AK$6),"Low-Use") -> 50 | D19: =COUNTIFS('fleet-calculator'!$V$6:$V$9857,$A19) -> 992 | E19: =CONVERT(1,"g","ton")*SUMIFS(_xlfn.ANCHORARRAY('fleet-calculator'!$AU$6),_xlfn.ANCHORARRAY('fleet-calculator'!$V$6),$A19) -> 31.78832485 | F19: =CONVERT(1,"g","ton")*SUMIFS(_xlfn.ANCHORARRAY('fleet-calculator'!$AV$6),'fleet-calculator'!$V$6:$V$9857,$A19) -> 542.3761233 | G19: =CONVERT(1,"g","ton")*SUMIFS(_xlfn.ANCHORARRAY('fleet-calculator'!$AW$6),_xlfn.ANCHORARRAY('fleet-calculator'!$V$6),$A19) -> 64.66267055 | H19: =CONVERT(1,"g","ton")*SUMIFS(_xlfn.ANCHORARRAY('fleet-calculator'!$AX$6),'fleet-calculator'!$V$6:$V$9857,$A19) -> 2.396055217 | I19: =CONVERT(1,"g","ton")*SUMIFS(_xlfn.ANCHORARRAY('fleet-calculator'!$AY$6),'fleet-calculator'!$V$6:$V$9857,$A19) -> 1.810352831 | J19: =CONVERT(1,"g","ton")*SUMIFS(_xlfn.ANCHORARRAY('fleet-calculator'!$BC$6),'fleet-calculator'!$V$6:$V$9857,$A19) -> 30104.58664 | K19: =CONVERT(1,"g","ton")*SUMIFS(_xlfn.ANCHORARRAY('fleet-calculator'!$BE$6),'fleet-calculator'!$V$6:$V$9857,$A19) -> 0.09400492693
A20: Pre-2010 | B20: =COUNTIFS('fleet-calculator'!$V$6:$V$9857,$A19,_xlfn.ANCHORARRAY('fleet-calculator'!$AK$6),"In-Use",_xlfn.ANCHORARRAY('fleet-calculator'!$Z$6),"<2010") -> 253 | C20: =COUNTIFS('fleet-calculator'!$V$6:$V$9857,$A19,_xlfn.ANCHORARRAY('fleet-calculator'!$AK$6),"Low-Use",_xlfn.ANCHORARRAY('fleet-calculator'!$Z$6),"<2010") -> 19 | D20: =COUNTIFS('fleet-calculator'!$V$6:$V$9857,$A19,_xlfn.ANCHORARRAY('fleet-calculator'!$Z$6),"<2010") -> 272 | E20: =CONVERT(1,"g","ton")*SUMIFS(_xlfn.ANCHORARRAY('fleet-calculator'!$AU$6),_xlfn.ANCHORARRAY('fleet-calculator'!$V$6),$A19,_xlfn.ANCHORARRAY('fleet-calculator'!$Z$6),"<2010") -> 25.03989679 | F20: =CONVERT(1,"g","ton")*SUMIFS(_xlfn.ANCHORARRAY('fleet-calculator'!$AV$6),'fleet-calculator'!$V$6:$V$9857,$A19,_xlfn.ANCHORARRAY('fleet-calculator'!$Z$6),"<2010") -> 237.5874684 | G20: =CONVERT(1,"g","ton")*SUMIFS(_xlfn.ANCHORARRAY('fleet-calculator'!$AW$6),'fleet-calculator'!$V$6:$V$9857,$A19,_xlfn.ANCHORARRAY('fleet-calculator'!$Z$6),"<2010") -> 52.22917339 | H20: =CONVERT(1,"g","ton")*SUMIFS(_xlfn.ANCHORARRAY('fleet-calculator'!$AX$6),'fleet-calculator'!$V$6:$V$9857,$A19,_xlfn.ANCHORARRAY('fleet-calculator'!$Z$6),"<2010") -> 0.6078174214 | I20: =CONVERT(1,"g","ton")*SUMIFS(_xlfn.ANCHORARRAY('fleet-calculator'!$AY$6),'fleet-calculator'!$V$6:$V$9857,$A19,_xlfn.ANCHORARRAY('fleet-calculator'!$Z$6),"<2010") -> 0.4592398295 | J20: =CONVERT(1,"g","ton")*SUMIFS(_xlfn.ANCHORARRAY('fleet-calculator'!$BC$6),'fleet-calculator'!$V$6:$V$9857,$A19,_xlfn.ANCHORARRAY('fleet-calculator'!$Z$6),"<2010") -> 7648.590595 | K20: =CONVERT(1,"g","ton")*SUMIFS(_xlfn.ANCHORARRAY('fleet-calculator'!$BE$6),'fleet-calculator'!$V$6:$V$9857,$A19,_xlfn.ANCHORARRAY('fleet-calculator'!$Z$6),"<2010") -> 0.02388357657
A21: 2010 and Newer | B21: =COUNTIFS('fleet-calculator'!$V$6:$V$9857,$A19,_xlfn.ANCHORARRAY('fleet-calculator'!$AK$6),"In-Use",_xlfn.ANCHORARRAY('fleet-calculator'!$Z$6),">=2010") -> 689 | C21: =COUNTIFS('fleet-calculator'!$V$6:$V$9857,$A19,_xlfn.ANCHORARRAY('fleet-calculator'!$AK$6),"Low-Use",_xlfn.ANCHORARRAY('fleet-calculator'!$Z$6),">=2010") -> 31 | D21: =COUNTIFS('fleet-calculator'!$V$6:$V$9857,$A19,_xlfn.ANCHORARRAY('fleet-calculator'!$Z$6),">=2010") -> 720 | E21: =CONVERT(1,"g","ton")*SUMIFS(_xlfn.ANCHORARRAY('fleet-calculator'!$AU$6),_xlfn.ANCHORARRAY('fleet-calculator'!$V$6),$A19,_xlfn.ANCHORARRAY('fleet-calculator'!$Z$6),">=2010") -> 6.748428058 | F21: =CONVERT(1,"g","ton")*SUMIFS(_xlfn.ANCHORARRAY('fleet-calculator'!$AV$6),'fleet-calculator'!$V$6:$V$9857,$A19,_xlfn.ANCHORARRAY('fleet-calculator'!$Z$6),">=2010") -> 304.7886549 | G21: =CONVERT(1,"g","ton")*SUMIFS(_xlfn.ANCHORARRAY('fleet-calculator'!$AW$6),'fleet-calculator'!$V$6:$V$9857,$A19,_xlfn.ANCHORARRAY('fleet-calculator'!$Z$6),">=2010") -> 12.43349715 | H21: =CONVERT(1,"g","ton")*SUMIFS(_xlfn.ANCHORARRAY('fleet-calculator'!$AX$6),'fleet-calculator'!$V$6:$V$9857,$A19,_xlfn.ANCHORARRAY('fleet-calculator'!$Z$6),">=2010") -> 1.788237796 | I21: =CONVERT(1,"g","ton")*SUMIFS(_xlfn.ANCHORARRAY('fleet-calculator'!$AY$6),'fleet-calculator'!$V$6:$V$9857,$A19,_xlfn.ANCHORARRAY('fleet-calculator'!$Z$6),">=2010") -> 1.351113001 | J21: =CONVERT(1,"g","ton")*SUMIFS(_xlfn.ANCHORARRAY('fleet-calculator'!$BC$6),'fleet-calculator'!$V$6:$V$9857,$A19,_xlfn.ANCHORARRAY('fleet-calculator'!$Z$6),">=2010") -> 22455.99605 | K21: =CONVERT(1,"g","ton")*SUMIFS(_xlfn.ANCHORARRAY('fleet-calculator'!$BE$6),'fleet-calculator'!$V$6:$V$9857,$A19,_xlfn.ANCHORARRAY('fleet-calculator'!$Z$6),">=2010") -> 0.07012135037
A23: LPG | B23: =COUNTIFS('fleet-calculator'!$V$6:$V$9857,$A23,_xlfn.ANCHORARRAY('fleet-calculator'!$AK$6),"In-Use") -> 503 | C23: =COUNTIFS('fleet-calculator'!$V$6:$V$9857,$A23,_xlfn.ANCHORARRAY('fleet-calculator'!$AK$6),"Low-Use") -> 26 | D23: =COUNTIFS('fleet-calculator'!$V$6:$V$9857,$A23) -> 529 | E23: =CONVERT(1,"g","ton")*SUMIFS(_xlfn.ANCHORARRAY('fleet-calculator'!$AU$6),'fleet-calculator'!$V$6:$V$9857,$A23) -> 11.72428521 | F23: =CONVERT(1,"g","ton")*SUMIFS(_xlfn.ANCHORARRAY('fleet-calculator'!$AV$6),'fleet-calculator'!$V$6:$V$9857,$A23) -> 181.8783673 | G23: =CONVERT(1,"g","ton")*SUMIFS(_xlfn.ANCHORARRAY('fleet-calculator'!$AW$6),'fleet-calculator'!$V$6:$V$9857,$A23) -> 33.33472956 | H23: =CONVERT(1,"g","ton")*SUMIFS(_xlfn.ANCHORARRAY('fleet-calculator'!$AX$6),'fleet-calculator'!$V$6:$V$9857,$A23) -> 0.7658571259 | I23: =CONVERT(1,"g","ton")*SUMIFS(_xlfn.ANCHORARRAY('fleet-calculator'!$AY$6),'fleet-calculator'!$V$6:$V$9857,$A23) -> 0.7658571259 | J23: =CONVERT(1,"g","ton")*SUMIFS(_xlfn.ANCHORARRAY('fleet-calculator'!$BC$6),'fleet-calculator'!$V$6:$V$9857,$A23) -> 8809.300139 | K23: =CONVERT(1,"g","ton")*SUMIFS(_xlfn.ANCHORARRAY('fleet-calculator'!$BE$6),'fleet-calculator'!$V$6:$V$9857,$A23) -> 0
A24: Pre-2010 | B24: =COUNTIFS('fleet-calculator'!$V$6:$V$9857,$A23,_xlfn.ANCHORARRAY('fleet-calculator'!$AK$6),"In-Use",_xlfn.ANCHORARRAY('fleet-calculator'!$Z$6),"<2010") -> 100 | C24: =COUNTIFS('fleet-calculator'!$V$6:$V$9857,$A23,_xlfn.ANCHORARRAY('fleet-calculator'!$AK$6),"Low-Use",_xlfn.ANCHORARRAY('fleet-calculator'!$Z$6),"<2010") -> 23 | D24: =COUNTIFS('fleet-calculator'!$V$6:$V$9857,$A23,_xlfn.ANCHORARRAY('fleet-calculator'!$Z$6),"<2010") -> 123 | E24: =CONVERT(1,"g","ton")*SUMIFS(_xlfn.ANCHORARRAY('fleet-calculator'!$AU$6),'fleet-calculator'!$V$6:$V$9857,$A23,_xlfn.ANCHORARRAY('fleet-calculator'!$Z$6),"<2010") -> 7.740639006 | F24: =CONVERT(1,"g","ton")*SUMIFS(_xlfn.ANCHORARRAY('fleet-calculator'!$AV$6),'fleet-calculator'!$V$6:$V$9857,$A23,_xlfn.ANCHORARRAY('fleet-calculator'!$Z$6),"<2010") -> 72.72234926 | G24: =CONVERT(1,"g","ton")*SUMIFS(_xlfn.ANCHORARRAY('fleet-calculator'!$AW$6),'fleet-calculator'!$V$6:$V$9857,$A23,_xlfn.ANCHORARRAY('fleet-calculator'!$Z$6),"<2010") -> 30.68775603 | H24: =CONVERT(1,"g","ton")*SUMIFS(_xlfn.ANCHORARRAY('fleet-calculator'!$AX$6),'fleet-calculator'!$V$6:$V$9857,$A23,_xlfn.ANCHORARRAY('fleet-calculator'!$Z$6),"<2010") -> 0.2269624831 | I24: =CONVERT(1,"g","ton")*SUMIFS(_xlfn.ANCHORARRAY('fleet-calculator'!$AY$6),'fleet-calculator'!$V$6:$V$9857,$A23,_xlfn.ANCHORARRAY('fleet-calculator'!$Z$6),"<2010") -> 0.2269624831 | J24: =CONVERT(1,"g","ton")*SUMIFS(_xlfn.ANCHORARRAY('fleet-calculator'!$BC$6),'fleet-calculator'!$V$6:$V$9857,$A23,_xlfn.ANCHORARRAY('fleet-calculator'!$Z$6),"<2010") -> 2610.644422 | K24: =CONVERT(1,"g","ton")*SUMIFS(_xlfn.ANCHORARRAY('fleet-calculator'!$BE$6),'fleet-calculator'!$V$6:$V$9857,$A23,_xlfn.ANCHORARRAY('fleet-calculator'!$Z$6),"<2010") -> 0
A25: 2010 and Newer | B25: =COUNTIFS('fleet-calculator'!$V$6:$V$9857,$A23,_xlfn.ANCHORARRAY('fleet-calculator'!$AK$6),"In-Use",_xlfn.ANCHORARRAY('fleet-calculator'!$Z$6),">=2010") -> 403 | C25: =COUNTIFS('fleet-calculator'!$V$6:$V$9857,$A23,_xlfn.ANCHORARRAY('fleet-calculator'!$AK$6),"Low-Use",_xlfn.ANCHORARRAY('fleet-calculator'!$Z$6),">=2010") -> 3 | D25: =COUNTIFS('fleet-calculator'!$V$6:$V$9857,$A23,_xlfn.ANCHORARRAY('fleet-calculator'!$Z$6),">=2010") -> 406 | E25: =CONVERT(1,"g","ton")*SUMIFS(_xlfn.ANCHORARRAY('fleet-calculator'!$AU$6),'fleet-calculator'!$V$6:$V$9857,$A23,_xlfn.ANCHORARRAY('fleet-calculator'!$Z$6),">=2010") -> 3.983646205 | F25: =CONVERT(1,"g","ton")*SUMIFS(_xlfn.ANCHORARRAY('fleet-calculator'!$AV$6),'fleet-calculator'!$V$6:$V$9857,$A23,_xlfn.ANCHORARRAY('fleet-calculator'!$Z$6),">=2010") -> 109.156018 | G25: =CONVERT(1,"g","ton")*SUMIFS(_xlfn.ANCHORARRAY('fleet-calculator'!$AW$6),'fleet-calculator'!$V$6:$V$9857,$A23,_xlfn.ANCHORARRAY('fleet-calculator'!$Z$6),">=2010") -> 2.646973523 | H25: =CONVERT(1,"g","ton")*SUMIFS(_xlfn.ANCHORARRAY('fleet-calculator'!$AX$6),'fleet-calculator'!$V$6:$V$9857,$A23,_xlfn.ANCHORARRAY('fleet-calculator'!$Z$6),">=2010") -> 0.5388946428 | I25: =CONVERT(1,"g","ton")*SUMIFS(_xlfn.ANCHORARRAY('fleet-calculator'!$AY$6),'fleet-calculator'!$V$6:$V$9857,$A23,_xlfn.ANCHORARRAY('fleet-calculator'!$Z$6),">=2010") -> 0.5388946428 | J25: =CONVERT(1,"g","ton")*SUMIFS(_xlfn.ANCHORARRAY('fleet-calculator'!$BC$6),'fleet-calculator'!$V$6:$V$9857,$A23,_xlfn.ANCHORARRAY('fleet-calculator'!$Z$6),">=2010") -> 6198.655717 | K25: =CONVERT(1,"g","ton")*SUMIFS(_xlfn.ANCHORARRAY('fleet-calculator'!$BE$6),'fleet-calculator'!$V$6:$V$9857,$A23,_xlfn.ANCHORARRAY('fleet-calculator'!$Z$6),">=2010") -> 0
A27: Electric | B27: =COUNTIFS('fleet-calculator'!$V$6:$V$9857,$A27,_xlfn.ANCHORARRAY('fleet-calculator'!$AK$6),"In-Use") -> 1000 | C27: =COUNTIFS('fleet-calculator'!$V$6:$V$9857,$A27,_xlfn.ANCHORARRAY('fleet-calculator'!$AK$6),"Low-Use") -> 46 | D27: =COUNTIFS('fleet-calculator'!$V$6:$V$9857,$A27) -> 1046 | E27: 0 | F27: 0 | G27: 0 | H27: 0 | I27: 0 | J27: 0 | K27: 0

Sheet tier-comparison
A5: Comparison of Enginer Tier & Horsepower by Reporting Year (Diesel-Fueled Equipment) | M5: Comparison of Enginer Model Year & Fuel Type by Reporting Year
A6: Low-use, <25 horsepower non-electric, and on-road designated equipment excluded in equipment counts. | M6: Low-use and <25 horsepower non-electric equipment excluded in equipment counts.
A9: 2021 Fleet (difference as compared to 2020) | M9: 2021 Fleet (difference as compared to 2020)
C10: Horsepower Bin | N10: Fuel Type
A11: Tier | B11: Model Year | C11: 25 - 49 | D11: 50 - 74 | E11: 75 - 99 | F11: 100 - 174 | G11: 175 - 299 | H11: 300 - 599 | I11: 600 - 749 | J11: ≥ 750 | K11: Total | M11: Model Year | N11: Gasoline | O11: LPG | P11: Electric | Q11: Diesel | R11: Total
A12: ≤ Tier 1 | B12: ≤ 1999 | C12: =TEXT(C36,"??0 ")&TEXT(C36-C47,"(+#);(-#);(‒)") -> 1 (‒) | D12: 4 (-1) | E12: 1 (-1) | F12: 0 (-7) | G12: 5 (+1) | H12: 0 (-1) | I12: 0 (‒) | J12: 0 (‒) | K12: 11 (-9) | M12: ≤ 2007 | N12: =TEXT(N36,"????0 ")&TEXT(N36-N47,"(+#);(-#);(‒)") -> 193 (+3) | O12: 81 (-12) | P12: 340 (-38) | Q12: 211 (-26) | R12: 825 (-73)
A13: Tier 1 | B13: 1996 - 2005 | C13: =TEXT(C37,"??0 ")&TEXT(C37-C48,"(+#);(-#);(‒)") -> 3 (+1) | D13: 56 (+43) | E13: 12 (-37) | F13: 15 (-15) | G13: 11 (+2) | H13: 2 (+2) | I13: 0 (-1) | J13: 0 (‒) | K13: 99 (-5) | M13: 2008 - 2009 | N13: 52 (+5) | O13: 19 (+2) | P13: 74 (-20) | Q13: 54 (+1) | R13: 199 (-12)
A14: Tier 2 | B14: 2001 - 2010 | C14: =TEXT(C38,"??0 ")&TEXT(C38-C49,"(+#);(-#);(‒)") -> 3 (+1) | D14: 10 (‒) | E14: 6 (-1) | F14: 14 (‒) | G14: 6 (+1) | H14: 3 (-2) | I14: 1 (‒) | J14: 0 (‒) | K14: 43 (-1) | M14: 2010 - 2015 | N14: 197 (+30) | O14: 184 (+3) | P14: 277 (-4) | Q14: 190 (-7) | R14: 848 (+22)
A15: Tier 3 | B15: 2006 - 2011 | C15: =TEXT(C39,"??0 ")&TEXT(C39-C50,"(+#);(-#);(‒)") -> 0 (‒) | D15: 0 (‒) | E15: 5 (-1) | F15: 49 (+2) | G15: 24 (+2) | H15: 6 (-4) | I15: 1 (-1) | J15: 0 (‒) | K15: 85 (-2) | M15: 2016 - 2020 | N15: 447 (+12) | O15: 196 (-15) | P15: 257 (-42) | Q15: 291 (+6) | R15: 1191 (-39)
A16: Tier 4i | B16: 2008 - 2014 | C16: =TEXT(C40,"??0 ")&TEXT(C40-C51,"(+#);(-#);(‒)") -> 2 (‒) | D16: 6 (+1) | E16: 2 (-2) | F16: 36 (-1) | G16: 12 (-5) | H16: 9 (+3) | I16: 0 (‒) | J16: 0 (‒) | K16: 67 (-4) | M16: ≥ 2021 | N16: 9 (+9) | O16: 23 (+23) | P16: 52 (+52) | Q16: 9 (+8) | R16: 93 (+92)
A17: Tier 4 | B17: ≥ 2013 | C17: =TEXT(C41,"??0 ")&TEXT(C41-C52,"(+#);(-#);(‒)") -> 17 (+5) | D17: 87 (-2) | E17: 23 (-1) | F17: 90 (+4) | G17: 38 (+1) | H17: 79 (+13) | I17: 5 (-1) | J17: 0 (‒) | K17: 339 (+19) | R17: =TEXT(R41,"????0 ")&TEXT(R41-R52,"(+#);(-#);(‒)") -> 3156 (-10)
A20: 2021 Fleet (difference as compared to 2019 reporting year [based on 2017 fleet]) | M20: 2021 Fleet (difference as compared to 2019 reporting year [based on 2017 fleet])
C21: Horsepower Bin | N21: Fuel Type
A22: Tier | B22: Model Year | C22: 25 - 49 | D22: 50 - 74 | E22: 75 - 99 | F22: 100 - 174 | G22: 175 - 299 | H22: 300 - 599 | I22: 600 - 749 | J22: ≥ 750 | K22: Total | M22: Model Year | N22: Gasoline | O22: LPG | P22: Electric | Q22: Diesel | R22: Total
A23: ≤ Tier 1 | B23: ≤ 1999 | C23: =TEXT(C36,"??0 ")&TEXT(C36-C58,"(+#);(-#);(‒)") -> 1 (‒) | D23: 4 (+3) | E23: 1 (-10) | F23: 0 (-11) | G23: 5 (-6) | H23: 0 (‒) | I23: 0 (‒) | J23: 0 (‒) | K23: 11 (-24) | M23: ≤ 2007 | N23: =TEXT(N36,"????0 ")&TEXT(N36-N58,"(+#);(-#);(‒)") -> 193 (-66) | O23: 81 (-73) | P23: 340 (-237) | Q23: 211 (-101) | R23: 825 (-477)
A24: Tier 1 | B24: 1996 - 2005 | C24: =TEXT(C37,"??0 ")&TEXT(C37-C59,"(+#);(-#);(‒)") -> 3 (+1) | D24: 56 (+49) | E24: 12 (-69) | F24: 15 (-23) | G24: 11 (-14) | H24: 2 (+1) | I24: 0 (‒) | J24: 0 (‒) | K24: 99 (-55) | M24: 2008 - 2009 | N24: 52 (-18) | O24: 19 (-22) | P24: 74 (-44) | Q24: 54 (-9) | R24: 199 (-93)
A25: Tier 2 | B25: 2001 - 2010 | C25: =TEXT(C38,"??0 ")&TEXT(C38-C60,"(+#);(-#);(‒)") -> 3 (-2) | D25: 10 (-2) | E25: 6 (-5) | F25: 14 (-12) | G25: 6 (-10) | H25: 3 (-1) | I25: 1 (+1) | J25: 0 (‒) | K25: 43 (-31) | M25: 2010 - 2015 | N25: 197 (+70) | O25: 184 (+57) | P25: 277 (+58) | Q25: 190 (+18) | R25: 848 (+203)
A26: Tier 3 | B26: 2006 - 2011 | C26: =TEXT(C39,"??0 ")&TEXT(C39-C61,"(+#);(-#);(‒)") -> 0 (‒) | D26: 0 (‒) | E26: 5 (-2) | F26: 49 (-29) | G26: 24 (-15) | H26: 6 (-2) | I26: 1 (-2) | J26: 0 (‒) | K26: 85 (-50) | M26: 2016 - 2020 | N26: 447 (+293) | O26: 196 (+117) | P26: 257 (+123) | Q26: 291 (+178) | R26: 1191 (+711)
A27: Tier 4i | B27: 2008 - 2014 | C27: =TEXT(C40,"??0 ")&TEXT(C40-C62,"(+#);(-#);(‒)") -> 2 (-1) | D27: 6 (+2) | E27: 2 (-6) | F27: 36 (+2) | G27: 12 (-4) | H27: 9 (+3) | I27: 0 (‒) | J27: 0 (‒) | K27: 67 (-4) | M27: ≥ 2021 | N27: 9 (+9) | O27: 23 (+23) | P27: 52 (+52) | Q27: 9 (+9) | R27: 93 (+93)
A28: Tier 4 | B28: ≥ 2013 | C28: =TEXT(C41,"??0 ")&TEXT(C41-C63,"(+#);(-#);(‒)") -> 17 (+12) | D28: 87 (+53) | E28: 23 (+9) | F28: 90 (+42) | G28: 38 (+9) | H28: 79 (+40) | I28: 5 (+1) | J28: 0 (‒) | K28: 339 (+166) | R28: =TEXT(R41,"????0 ")&TEXT(R41-R63,"(+#);(-#);(‒)") -> 3156 (+437)
A33: 2021 (reporting year) | M33: 2021 (reporting year)
C34: Horsepower Bin | N34: Fuel Type
A35: Tier | B35: Model Year | C35: 25 - 49 | D35: 50 - 74 | E35: 75 - 99 | F35: 100 - 174 | G35: 175 - 299 | H35: 300 - 599 | I35: 600 - 749 | J35: ≥ 750 | K35: Total | M35: Model Year | N35: Gasoline | O35: LPG | P35: Electric | Q35: Diesel | R35: Total
A36: Tier 0 | B36: ≤ 1999 | C36: =COUNTIFS('fleet-calculator'!$V:$V,"Diesel",'fleet-calculator'!$AK:$AK,"In-Use",'fleet-calculator'!$X:$X,">=25",'fleet-calculator'!$W:$W,$A36,'fleet-calculator'!$X:$X,"<50") -> 1 | D36: =COUNTIFS('fleet-calculator'!$V:$V,"Diesel",'fleet-calculator'!$AK:$AK,"In-Use",'fleet-calculator'!$X:$X,">=50",'fleet-calculator'!$W:$W,$A36,'fleet-calculator'!$X:$X,"<75") -> 4 | E36: =COUNTIFS('fleet-calculator'!$V:$V,"Diesel",'fleet-calculator'!$AK:$AK,"In-Use",'fleet-calculator'!$X:$X,">=75",'fleet-calculator'!$W:$W,$A36,'fleet-calculator'!$X:$X,"<100") -> 1 | F36: =COUNTIFS('fleet-calculator'!$V:$V,"Diesel",'fleet-calculator'!$AK:$AK,"In-Use",'fleet-calculator'!$X:$X,">=100",'fleet-calculator'!$W:$W,$A36,'fleet-calculator'!$X:$X,"<175") -> 0 | G36: =COUNTIFS('fleet-calculator'!$V:$V,"Diesel",'fleet-calculator'!$AK:$AK,"In-Use",'fleet-calculator'!$X:$X,">=175",'fleet-calculator'!$W:$W,$A36,'fleet-calculator'!$X:$X,"<300") -> 5 | H36: =COUNTIFS('fleet-calculator'!$V:$V,"Diesel",'fleet-calculator'!$AK:$AK,"In-Use",'fleet-calculator'!$X:$X,">=300",'fleet-calculator'!$W:$W,$A36,'fleet-calculator'!$X:$X,"<600") -> 0 | I36: =COUNTIFS('fleet-calculator'!$V:$V,"Diesel",'fleet-calculator'!$AK:$AK,"In-Use",'fleet-calculator'!$X:$X,">=600",'fleet-calculator'!$W:$W,$A36,'fleet-calculator'!$X:$X,"<750") -> 0 | J36: =COUNTIFS('fleet-calculator'!$V:$V,"Diesel",'fleet-calculator'!$AK:$AK,"In-Use",'fleet-calculator'!$X:$X,">=750",'fleet-calculator'!$W:$W,$A36,'fleet-calculator'!$X:$X,"<9999") -> 0 | K36: =SUM(C36:J36) -> 11 | M36: ≤ 2007 | N36: =COUNTIFS('fleet-calculator'!$V:$V,N$35,'fleet-calculator'!$AK:$AK,"In-Use",'fleet-calculator'!$X:$X,">=25",'fleet-calculator'!$Z:$Z,"<=2007") -> 193 | O36: =COUNTIFS('fleet-calculator'!$V:$V,O$35,'fleet-calculator'!$AK:$AK,"In-Use",'fleet-calculator'!$X:$X,">=25",'fleet-calculator'!$Z:$Z,"<=2007") -> 81 | P36: =COUNTIFS('fleet-calculator'!$V:$V,P$35,'fleet-calculator'!$AK:$AK,"In-Use",'fleet-calculator'!$Z:$Z,"<=2007") -> 340 | Q36: =COUNTIFS('fleet-calculator'!$V:$V,Q$35,'fleet-calculator'!$AK:$AK,"In-Use",'fleet-calculator'!$X:$X,">=25",'fleet-calculator'!$Z:$Z,"<=2007") -> 211 | R36: =SUM(N36:Q36) -> 825
A37: Tier 1 | B37: 1996 - 2005 | C37: =COUNTIFS('fleet-calculator'!$V:$V,"Diesel",'fleet-calculator'!$AK:$AK,"In-Use",'fleet-calculator'!$X:$X,">=25",'fleet-calculator'!$W:$W,$A37,'fleet-calculator'!$X:$X,"<50") -> 3 | D37: =COUNTIFS('fleet-calculator'!$V:$V,"Diesel",'fleet-calculator'!$AK:$AK,"In-Use",'fleet-calculator'!$X:$X,">=50",'fleet-calculator'!$W:$W,$A37,'fleet-calculator'!$X:$X,"<75") -> 56 | E37: =COUNTIFS('fleet-calculator'!$V:$V,"Diesel",'fleet-calculator'!$AK:$AK,"In-Use",'fleet-calculator'!$X:$X,">=75",'fleet-calculator'!$W:$W,$A37,'fleet-calculator'!$X:$X,"<100") -> 12 | F37: =COUNTIFS('fleet-calculator'!$V:$V,"Diesel",'fleet-calculator'!$AK:$AK,"In-Use",'fleet-calculator'!$X:$X,">=100",'fleet-calculator'!$W:$W,$A37,'fleet-calculator'!$X:$X,"<175") -> 15 | G37: =COUNTIFS('fleet-calculator'!$V:$V,"Diesel",'fleet-calculator'!$AK:$AK,"In-Use",'fleet-calculator'!$X:$X,">=175",'fleet-calculator'!$W:$W,$A37,'fleet-calculator'!$X:$X,"<300") -> 11 | H37: =COUNTIFS('fleet-calculator'!$V:$V,"Diesel",'fleet-calculator'!$AK:$AK,"In-Use",'fleet-calculator'!$X:$X,">=300",'fleet-calculator'!$W:$W,$A37,'fleet-calculator'!$X:$X,"<600") -> 2 | I37: =COUNTIFS('fleet-calculator'!$V:$V,"Diesel",'fleet-calculator'!$AK:$AK,"In-Use",'fleet-calculator'!$X:$X,">=600",'fleet-calculator'!$W:$W,$A37,'fleet-calculator'!$X:$X,"<750") -> 0 | J37: =COUNTIFS('fleet-calculator'!$V:$V,"Diesel",'fleet-calculator'!$AK:$AK,"In-Use",'fleet-calculator'!$X:$X,">=750",'fleet-calculator'!$W:$W,$A37,'fleet-calculator'!$X:$X,"<9999") -> 0 | K37: 99 | M37: 2008 - 2009 | N37: =COUNTIFS('fleet-calculator'!$V:$V,N$35,'fleet-calculator'!$AK:$AK,"In-Use",'fleet-calculator'!$X:$X,">=25",'fleet-calculator'!$Z:$Z,"<=2009",'fleet-calculator'!$Z:$Z,">2007") -> 52 | O37: =COUNTIFS('fleet-calculator'!$V:$V,O$35,'fleet-calculator'!$AK:$AK,"In-Use",'fleet-calculator'!$X:$X,">=25",'fleet-calculator'!$Z:$Z,"<=2009",'fleet-calculator'!$Z:$Z,">2007") -> 19 | P37: =COUNTIFS('fleet-calculator'!$V:$V,P$35,'fleet-calculator'!$AK:$AK,"In-Use",'fleet-calculator'!$Z:$Z,"<=2009",'fleet-calculator'!$Z:$Z,">2007") -> 74 | Q37: =COUNTIFS('fleet-calculator'!$V:$V,Q$35,'fleet-calculator'!$AK:$AK,"In-Use",'fleet-calculator'!$X:$X,">=25",'fleet-calculator'!$Z:$Z,"<=2009",'fleet-calculator'!$Z:$Z,">2007") -> 54 | R37: =SUM(N37:Q37) -> 199
A38: Tier 2 | B38: 2001 - 2010 | C38: =COUNTIFS('fleet-calculator'!$V:$V,"Diesel",'fleet-calculator'!$AK:$AK,"In-Use",'fleet-calculator'!$X:$X,">=25",'fleet-calculator'!$W:$W,$A38,'fleet-calculator'!$X:$X,"<50") -> 3 | D38: =COUNTIFS('fleet-calculator'!$V:$V,"Diesel",'fleet-calculator'!$AK:$AK,"In-Use",'fleet-calculator'!$X:$X,">=50",'fleet-calculator'!$W:$W,$A38,'fleet-calculator'!$X:$X,"<75") -> 10 | E38: =COUNTIFS('fleet-calculator'!$V:$V,"Diesel",'fleet-calculator'!$AK:$AK,"In-Use",'fleet-calculator'!$X:$X,">=75",'fleet-calculator'!$W:$W,$A38,'fleet-calculator'!$X:$X,"<100") -> 6 | F38: =COUNTIFS('fleet-calculator'!$V:$V,"Diesel",'fleet-calculator'!$AK:$AK,"In-Use",'fleet-calculator'!$X:$X,">=100",'fleet-calculator'!$W:$W,$A38,'fleet-calculator'!$X:$X,"<175") -> 14 | G38: =COUNTIFS('fleet-calculator'!$V:$V,"Diesel",'fleet-calculator'!$AK:$AK,"In-Use",'fleet-calculator'!$X:$X,">=175",'fleet-calculator'!$W:$W,$A38,'fleet-calculator'!$X:$X,"<300") -> 6 | H38: =COUNTIFS('fleet-calculator'!$V:$V,"Diesel",'fleet-calculator'!$AK:$AK,"In-Use",'fleet-calculator'!$X:$X,">=300",'fleet-calculator'!$W:$W,$A38,'fleet-calculator'!$X:$X,"<600") -> 3 | I38: =COUNTIFS('fleet-calculator'!$V:$V,"Diesel",'fleet-calculator'!$AK:$AK,"In-Use",'fleet-calculator'!$X:$X,">=600",'fleet-calculator'!$W:$W,$A38,'fleet-calculator'!$X:$X,"<750") -> 1 | J38: =COUNTIFS('fleet-calculator'!$V:$V,"Diesel",'fleet-calculator'!$AK:$AK,"In-Use",'fleet-calculator'!$X:$X,">=750",'fleet-calculator'!$W:$W,$A38,'fleet-calculator'!$X:$X,"<9999") -> 0 | K38: 43 | M38: 2010 - 2015 | N38: =COUNTIFS('fleet-calculator'!$V:$V,N$35,'fleet-calculator'!$AK:$AK,"In-Use",'fleet-calculator'!$X:$X,">=25",'fleet-calculator'!$Z:$Z,"<=2015",'fleet-calculator'!$Z:$Z,">2009") -> 197 | O38: =COUNTIFS('fleet-calculator'!$V:$V,O$35,'fleet-calculator'!$AK:$AK,"In-Use",'fleet-calculator'!$X:$X,">=25",'fleet-calculator'!$Z:$Z,"<=2015",'fleet-calculator'!$Z:$Z,">2009") -> 184 | P38: =COUNTIFS('fleet-calculator'!$V:$V,P$35,'fleet-calculator'!$AK:$AK,"In-Use",'fleet-calculator'!$Z:$Z,"<=2015",'fleet-calculator'!$Z:$Z,">2009") -> 277 | Q38: =COUNTIFS('fleet-calculator'!$V:$V,Q$35,'fleet-calculator'!$AK:$AK,"In-Use",'fleet-calculator'!$X:$X,">=25",'fleet-calculator'!$Z:$Z,"<=2015",'fleet-calculator'!$Z:$Z,">2009") -> 190 | R38: =SUM(N38:Q38) -> 848
A39: Tier 3 | B39: 2006 - 2011 | C39: =COUNTIFS('fleet-calculator'!$V:$V,"Diesel",'fleet-calculator'!$AK:$AK,"In-Use",'fleet-calculator'!$X:$X,">=25",'fleet-calculator'!$W:$W,$A39,'fleet-calculator'!$X:$X,"<50") -> 0 | D39: =COUNTIFS('fleet-calculator'!$V:$V,"Diesel",'fleet-calculator'!$AK:$AK,"In-Use",'fleet-calculator'!$X:$X,">=50",'fleet-calculator'!$W:$W,$A39,'fleet-calculator'!$X:$X,"<75") -> 0 | E39: =COUNTIFS('fleet-calculator'!$V:$V,"Diesel",'fleet-calculator'!$AK:$AK,"In-Use",'fleet-calculator'!$X:$X,">=75",'fleet-calculator'!$W:$W,$A39,'fleet-calculator'!$X:$X,"<100") -> 5 | F39: =COUNTIFS('fleet-calculator'!$V:$V,"Diesel",'fleet-calculator'!$AK:$AK,"In-Use",'fleet-calculator'!$X:$X,">=100",'fleet-calculator'!$W:$W,$A39,'fleet-calculator'!$X:$X,"<175") -> 49 | G39: =COUNTIFS('fleet-calculator'!$V:$V,"Diesel",'fleet-calculator'!$AK:$AK,"In-Use",'fleet-calculator'!$X:$X,">=175",'fleet-calculator'!$W:$W,$A39,'fleet-calculator'!$X:$X,"<300") -> 24 | H39: =COUNTIFS('fleet-calculator'!$V:$V,"Diesel",'fleet-calculator'!$AK:$AK,"In-Use",'fleet-calculator'!$X:$X,">=300",'fleet-calculator'!$W:$W,$A39,'fleet-calculator'!$X:$X,"<600") -> 6 | I39: =COUNTIFS('fleet-calculator'!$V:$V,"Diesel",'fleet-calculator'!$AK:$AK,"In-Use",'fleet-calculator'!$X:$X,">=600",'fleet-calculator'!$W:$W,$A39,'fleet-calculator'!$X:$X,"<750") -> 1 | J39: =COUNTIFS('fleet-calculator'!$V:$V,"Diesel",'fleet-calculator'!$AK:$AK,"In-Use",'fleet-calculator'!$X:$X,">=750",'fleet-calculator'!$W:$W,$A39,'fleet-calculator'!$X:$X,"<9999") -> 0 | K39: 85 | M39: 2016 - 2020 | N39: =COUNTIFS('fleet-calculator'!$V:$V,N$35,'fleet-calculator'!$AK:$AK,"In-Use",'fleet-calculator'!$X:$X,">=25",'fleet-calculator'!$Z:$Z,"<=2020",'fleet-calculator'!$Z:$Z,">2015") -> 447 | O39: =COUNTIFS('fleet-calculator'!$V:$V,O$35,'fleet-calculator'!$AK:$AK,"In-Use",'fleet-calculator'!$X:$X,">=25",'fleet-calculator'!$Z:$Z,"<=2020",'fleet-calculator'!$Z:$Z,">2015") -> 196 | P39: =COUNTIFS('fleet-calculator'!$V:$V,P$35,'fleet-calculator'!$AK:$AK,"In-Use",'fleet-calculator'!$Z:$Z,"<=2020",'fleet-calculator'!$Z:$Z,">2015") -> 257 | Q39: =COUNTIFS('fleet-calculator'!$V:$V,Q$35,'fleet-calculator'!$AK:$AK,"In-Use",'fleet-calculator'!$X:$X,">=25",'fleet-calculator'!$Z:$Z,"<=2020",'fleet-calculator'!$Z:$Z,">2015") -> 291 | R39: =SUM(N39:Q39) -> 1191
A40: Tier 4i | B40: 2008 - 2014 | C40: =COUNTIFS('fleet-calculator'!$V:$V,"Diesel",'fleet-calculator'!$AK:$AK,"In-Use",'fleet-calculator'!$X:$X,">=25",'fleet-calculator'!$W:$W,$A40,'fleet-calculator'!$X:$X,"<50") -> 2 | D40: =COUNTIFS('fleet-calculator'!$V:$V,"Diesel",'fleet-calculator'!$AK:$AK,"In-Use",'fleet-calculator'!$X:$X,">=50",'fleet-calculator'!$W:$W,$A40,'fleet-calculator'!$X:$X,"<75") -> 6 | E40: =COUNTIFS('fleet-calculator'!$V:$V,"Diesel",'fleet-calculator'!$AK:$AK,"In-Use",'fleet-calculator'!$X:$X,">=75",'fleet-calculator'!$W:$W,$A40,'fleet-calculator'!$X:$X,"<100") -> 2 | F40: =COUNTIFS('fleet-calculator'!$V:$V,"Diesel",'fleet-calculator'!$AK:$AK,"In-Use",'fleet-calculator'!$X:$X,">=100",'fleet-calculator'!$W:$W,$A40,'fleet-calculator'!$X:$X,"<175") -> 36 | G40: =COUNTIFS('fleet-calculator'!$V:$V,"Diesel",'fleet-calculator'!$AK:$AK,"In-Use",'fleet-calculator'!$X:$X,">=175",'fleet-calculator'!$W:$W,$A40,'fleet-calculator'!$X:$X,"<300") -> 12 | H40: =COUNTIFS('fleet-calculator'!$V:$V,"Diesel",'fleet-calculator'!$AK:$AK,"In-Use",'fleet-calculator'!$X:$X,">=300",'fleet-calculator'!$W:$W,$A40,'fleet-calculator'!$X:$X,"<600") -> 9 | I40: =COUNTIFS('fleet-calculator'!$V:$V,"Diesel",'fleet-calculator'!$AK:$AK,"In-Use",'fleet-calculator'!$X:$X,">=600",'fleet-calculator'!$W:$W,$A40,'fleet-calculator'!$X:$X,"<750") -> 0 | J40: =COUNTIFS('fleet-calculator'!$V:$V,"Diesel",'fleet-calculator'!$AK:$AK,"In-Use",'fleet-calculator'!$X:$X,">=750",'fleet-calculator'!$W:$W,$A40,'fleet-calculator'!$X:$X,"<9999") -> 0 | K40: 67 | M40: ≥ 2021 | N40: =COUNTIFS('fleet-calculator'!$V:$V,N$35,'fleet-calculator'!$AK:$AK,"In-Use",'fleet-calculator'!$X:$X,">=25",'fleet-calculator'!$Z:$Z,"<=9999",'fleet-calculator'!$Z:$Z,">2020") -> 9 | O40: =COUNTIFS('fleet-calculator'!$V:$V,O$35,'fleet-calculator'!$AK:$AK,"In-Use",'fleet-calculator'!$X:$X,">=25",'fleet-calculator'!$Z:$Z,"<=9999",'fleet-calculator'!$Z:$Z,">2020") -> 23 | P40: =COUNTIFS('fleet-calculator'!$V:$V,P$35,'fleet-calculator'!$AK:$AK,"In-Use",'fleet-calculator'!$Z:$Z,"<=9999",'fleet-calculator'!$Z:$Z,">2020") -> 52 | Q40: =COUNTIFS('fleet-calculator'!$V:$V,Q$35,'fleet-calculator'!$AK:$AK,"In-Use",'fleet-calculator'!$X:$X,">=25",'fleet-calculator'!$Z:$Z,"<=9999",'fleet-calculator'!$Z:$Z,">2020") -> 9 | R40: =SUM(N40:Q40) -> 93
A41: Tier 4 | B41: ≥ 2013 | C41: =COUNTIFS('fleet-calculator'!$V:$V,"Diesel",'fleet-calculator'!$AK:$AK,"In-Use",'fleet-calculator'!$X:$X,">=25",'fleet-calculator'!$W:$W,$A41,'fleet-calculator'!$X:$X,"<50") -> 17 | D41: =COUNTIFS('fleet-calculator'!$V:$V,"Diesel",'fleet-calculator'!$AK:$AK,"In-Use",'fleet-calculator'!$X:$X,">=50",'fleet-calculator'!$W:$W,$A41,'fleet-calculator'!$X:$X,"<75") -> 87 | E41: =COUNTIFS('fleet-calculator'!$V:$V,"Diesel",'fleet-calculator'!$AK:$AK,"In-Use",'fleet-calculator'!$X:$X,">=75",'fleet-calculator'!$W:$W,$A41,'fleet-calculator'!$X:$X,"<100") -> 23 | F41: =COUNTIFS('fleet-calculator'!$V:$V,"Diesel",'fleet-calculator'!$AK:$AK,"In-Use",'fleet-calculator'!$X:$X,">=100",'fleet-calculator'!$W:$W,$A41,'fleet-calculator'!$X:$X,"<175") -> 90 | G41: =COUNTIFS('fleet-calculator'!$V:$V,"Diesel",'fleet-calculator'!$AK:$AK,"In-Use",'fleet-calculator'!$X:$X,">=175",'fleet-calculator'!$W:$W,$A41,'fleet-calculator'!$X:$X,"<300") -> 38 | H41: =COUNTIFS('fleet-calculator'!$V:$V,"Diesel",'fleet-calculator'!$AK:$AK,"In-Use",'fleet-calculator'!$X:$X,">=300",'fleet-calculator'!$W:$W,$A41,'fleet-calculator'!$X:$X,"<600") -> 79 | I41: =COUNTIFS('fleet-calculator'!$V:$V,"Diesel",'fleet-calculator'!$AK:$AK,"In-Use",'fleet-calculator'!$X:$X,">=600",'fleet-calculator'!$W:$W,$A41,'fleet-calculator'!$X:$X,"<750") -> 5 | J41: =COUNTIFS('fleet-calculator'!$V:$V,"Diesel",'fleet-calculator'!$AK:$AK,"In-Use",'fleet-calculator'!$X:$X,">=750",'fleet-calculator'!$W:$W,$A41,'fleet-calculator'!$X:$X,"<9999") -> 0 | K41: 339 | R41: =SUM(R36:R40) -> 3156
K42: =SUM(K36:K41) -> 644
A44: 2020 (reporting year) | M44: 2020 (reporting year)
C45: Horsepower Bin | N45: Fuel Type
A46: Tier | B46: Model Year | C46: 25 - 49 | D46: 50 - 74 | E46: 75 - 99 | F46: 100 - 174 | G46: 175 - 299 | H46: 300 - 599 | I46: 600 - 749 | J46: ≥ 750 | K46: Total | M46: Model Year | N46: Gasoline | O46: LPG | P46: Electric | Q46: Diesel | R46: Total
A47: Tier 0 | B47: ≤ 1999 | C47: 1 | D47: 5 | E47: 2 | F47: 7 | G47: 4 | H47: 1 | I47: 0 | J47: 0 | K47: =SUM(C47:J47) -> 20 | M47: ≤ 2007 | N47: 190 | O47: 93 | P47: 378 | Q47: 237 | R47: =SUM(N47:Q47) -> 898
A48: Tier 1 | B48: 1996 - 2005 | C48: 2 | D48: 13 | E48: 49 | F48: 30 | G48: 9 | H48: 0 | I48: 1 | J48: 0 | K48: 104 | M48: 2008 - 2009 | N48: 47 | O48: 17 | P48: 94 | Q48: 53 | R48: =SUM(N48:Q48) -> 211
A49: Tier 2 | B49: 2001 - 2010 | C49: 2 | D49: 10 | E49: 7 | F49: 14 | G49: 5 | H49: 5 | I49: 1 | J49: 0 | K49: 44 | M49: 2010 - 2015 | N49: 167 | O49: 181 | P49: 281 | Q49: 197 | R49: =SUM(N49:Q49) -> 826
A50: Tier 3 | B50: 2006 - 2011 | C50: 0 | D50: 0 | E50: 6 | F50: 47 | G50: 22 | H50: 10 | I50: 2 | J50: 0 | K50: 87 | M50: 2016 - 2020 | N50: 435 | O50: 211 | P50: 299 | Q50: 285 | R50: =SUM(N50:Q50) -> 1230
A51: Tier 4i | B51: 2008 - 2014 | C51: 2 | D51: 5 | E51: 4 | F51: 37 | G51: 17 | H51: 6 | I51: 0 | J51: 0 | K51: 71 | M51: ≥ 2021 | N51: 0 | O51: 0 | P51: 0 | Q51: 1 | R51: =SUM(N51:Q51) -> 1
A52: Tier 4 | B52: ≥ 2013 | C52: 12 | D52: 89 | E52: 24 | F52: 86 | G52: 37 | H52: 66 | I52: 6 | J52: 0 | K52: 320 | R52: =SUM(R47:R51) -> 3166
K53: =SUM(K47:K52) -> 646
A55: 2019 (reporting year - based on calendar year 2017 fleet data) | M55: 2019 (reporting year - based on calendar year 2017 fleet data)
C56: Horsepower Bin | N56: Fuel Type
A57: Tier | B57: Model Year | C57: 25 - 49 | D57: 50 - 74 | E57: 75 - 99 | F57: 100 - 174 | G57: 175 - 299 | H57: 300 - 599 | I57: 600 - 749 | J57: ≥ 750 | K57: Total | M57: Model Year | N57: Gasoline | O57: LPG | P57: Electric | Q57: Diesel | R57: Total
A58: Tier 0 | B58: ≤ 1999 | C58: 1 | D58: 1 | E58: 11 | F58: 11 | G58: 11 | H58: 0 | I58: 0 | J58: 0 | K58: =SUM(C58:J58) -> 35 | M58: ≤ 2007 | N58: 259 | O58: 154 | P58: 577 | Q58: 312 | R58: =SUM(N58:Q58) -> 1302
A59: Tier 1 | B59: 1996 - 2005 | C59: 2 | D59: 7 | E59: 81 | F59: 38 | G59: 25 | H59: 1 | I59: 0 | J59: 0 | K59: 154 | M59: 2008 - 2009 | N59: 70 | O59: 41 | P59: 118 | Q59: 63 | R59: =SUM(N59:Q59) -> 292
A60: Tier 2 | B60: 2001 - 2010 | C60: 5 | D60: 12 | E60: 11 | F60: 26 | G60: 16 | H60: 4 | I60: 0 | J60: 0 | K60: 74 | M60: 2010 - 2015 | N60: 127 | O60: 127 | P60: 219 | Q60: 172 | R60: =SUM(N60:Q60) -> 645
A61: Tier 3 | B61: 2006 - 2011 | C61: 0 | D61: 0 | E61: 7 | F61: 78 | G61: 39 | H61: 8 | I61: 3 | J61: 0 | K61: 135 | M61: 2016 - 2020 | N61: 154 | O61: 79 | P61: 134 | Q61: 113 | R61: =SUM(N61:Q61) -> 480
A62: Tier 4i | B62: 2008 - 2014 | C62: 3 | D62: 4 | E62: 8 | F62: 34 | G62: 16 | H62: 6 | I62: 0 | J62: 0 | K62: 71 | M62: ≥ 2021 | N62: 0 | O62: 0 | P62: 0 | Q62: 0 | R62: =SUM(N62:Q62) -> 0
A63: Tier 4 | B63: ≥ 2013 | C63: 5 | D63: 34 | E63: 14 | F63: 48 | G63: 29 | H63: 39 | I63: 4 | J63: 0 | K63: 173 | R63: =SUM(R58:R62) -> 2719
K64: =SUM(K58:K63) -> 642

Sheet fuel-summary2
A1: Counts | B1: 2017 | F1: 2020 | J1: 2021 | Q1: 2017 Fleet Inventory Equipment Count (including <25hp non-electric and low-use equipment) | T1: 2020 Fleet Inventory Equipment Count (including <25hp non-electric and low-use equipment) | W1: 2021 Fleet Inventory Equipment Count (including <25hp non-electric and low-use equipment)
B2: Gasoline | C2: LPG/Propane | D2: Electric | E2: Diesel | F2: Gasoline | G2: LPG/Propane | H2: Electric | I2: Diesel | J2: Gasoline | K2: LPG/Propane | L2: Electric | M2: Diesel
A3: 2007 or older | B3: 251 | C3: 175 | D3: 578 | E3: 329 | F3: 178 | G3: 108 | H3: 420 | I3: 246 | J3: =COUNTIFS('fleet-calculator'!M6:M9980, "Gasoline", 'fleet-calculator'!G6:G9980, "<=2007") -> 216 | K3: =COUNTIFS('fleet-calculator'!M6:M9980, "LPG/Propane", 'fleet-calculator'!G6:G9980, "<=2007") -> 103 | L3: =COUNTIFS('fleet-calculator'!M6:M9980, "Electric", 'fleet-calculator'!G6:G9980, "<=2007") -> 357 | M3: =COUNTIFS('fleet-calculator'!M6:M9980, "Gasoline", 'fleet-calculator'!G6:G9980, "<=2007") -> 216 | Q3: In-Use (any fuel) | R3: Low-Use (any fuel) | S3: Total (any fuel) | T3: In-Use (any fuel) | U3: Low-Use (any fuel) | V3: Total (any fuel) | W3: In-Use (any fuel) | X3: Low-Use (any fuel) | Y3: Total (any fuel)
A4: 2008-2009 | B4: 70 | C4: 42 | D4: 117 | E4: 60 | F4: 46 | G4: 16 | H4: 94 | I4: 53 | J4: =COUNTIFS('fleet-calculator'!M6:M9980, "Gasoline", 'fleet-calculator'!G6:G9980, "<=2009", 'fleet-calculator'!G6:G9980, ">=2008") -> 56 | K4: =COUNTIFS('fleet-calculator'!M6:M9980, "LPG/Propane", 'fleet-calculator'!G6:G9980, "<=2009", 'fleet-calculator'!G6:G9980, ">=2008") -> 20 | L4: =COUNTIFS('fleet-calculator'!M6:M9980, "Electric", 'fleet-calculator'!G6:G9980, "<=2009", 'fleet-calculator'!G6:G9980, ">=2008") -> 76 | M4: =COUNTIFS('fleet-calculator'!M6:M9980, "Gasoline", 'fleet-calculator'!G6:G9980, "<=2009", 'fleet-calculator'!G6:G9980, ">=2008") -> 56 | P4: Overall Fleet | Q4: 2611 | R4: 106 | S4: 2717 | T4: 3084 | U4: 81 | V4: 3165 | W4: ='fuel-summary'!B7 -> 3228 | X4: ='fuel-summary'!C7 -> 201 | Y4: ='fuel-summary'!D7 -> 3429
A5: 2010-2015 | B5: 127 | C5: 107 | D5: 220 | E5: 180 | F5: 162 | G5: 171 | H5: 237 | I5: 186 | J5: =COUNTIFS('fleet-calculator'!M6:M9980, "Gasoline", 'fleet-calculator'!G6:G9980, "<=2015", 'fleet-calculator'!G6:G9980, ">=2010") -> 229 | K5: =COUNTIFS('fleet-calculator'!M6:M9980, "LPG/Propane", 'fleet-calculator'!G6:G9980, "<=2015", 'fleet-calculator'!G6:G9980, ">=2010") -> 186 | L5: =COUNTIFS('fleet-calculator'!M6:M9980, "Electric", 'fleet-calculator'!G6:G9980, "<=2015", 'fleet-calculator'!G6:G9980, ">=2010") -> 235 | M5: =COUNTIFS('fleet-calculator'!M6:M9980, "Gasoline", 'fleet-calculator'!G6:G9980, "<=2015", 'fleet-calculator'!G6:G9980, ">=2010") -> 229 | P5: Overall Fleet Percent | Q5: 0.960986382 | R5: 0.03901361796 | S5: -- | T5: 0.9744075829 | U5: 0.02559241706 | V5: -- | W5: ='fuel-summary'!B8 -> 0.9413823272 | X5: ='fuel-summary'!C8 -> 0.05861767279 | Y5: --
A6: 2016 to present | B6: 143 | C6: 68 | D6: 134 | E6: 111 | F6: 434 | G6: 201 | H6: 285 | I6: 288 | J6: =COUNTIFS('fleet-calculator'!M6:M9980, "Gasoline", 'fleet-calculator'!G6:G9980, ">=2016") -> 491 | K6: =COUNTIFS('fleet-calculator'!M6:M9980, "LPG/Propane", 'fleet-calculator'!G6:G9980, ">=2016") -> 220 | L6: =COUNTIFS('fleet-calculator'!M6:M9980, "Electric", 'fleet-calculator'!G6:G9980, ">=2016") -> 326 | M6: =COUNTIFS('fleet-calculator'!M6:M9980, "Gasoline", 'fleet-calculator'!G6:G9980, ">=2016") -> 491 | P6: Diesel | Q6: 633 | R6: 49 | S6: 682 | T6: 748 | U6: 36 | V6: 784 | W6: ='fuel-summary'!B10 -> 783 | X6: ='fuel-summary'!C10 -> 79 | Y6: ='fuel-summary'!D10 -> 862
A7: Total | B7: 591 | C7: 392 | D7: 1052 | E7: 680 | F7: 820 | G7: 496 | H7: 1036 | I7: 773 | J7: =COUNTIF('fleet-calculator'!M6:M9980, "Gasoline") -> 992 | K7: =COUNTIF('fleet-calculator'!M6:M9980, "LPG/Propane") -> 529 | L7: =COUNTIF('fleet-calculator'!M6:M9980, "Electric") -> 1046 | M7: =COUNTIF('fleet-calculator'!M6:M9980, "Diesel") -> 862 | P7: Tier 4 | Q7: 164 | R7: 2 | S7: 166 | T7: 312 | U7: 13 | V7: 325 | W7: ='fuel-summary'!B11 -> 362 | X7: ='fuel-summary'!C11 -> 30 | Y7: ='fuel-summary'!D11 -> 392
P8: Tier 4i | Q8: 63 | R8: 2 | S8: 65 | T8: 62 | U8: 1 | V8: 63 | W8: ='fuel-summary'!B12 -> 67 | X8: ='fuel-summary'!C12 -> 2 | Y8: ='fuel-summary'!D12 -> 69
A9: Change | B9: From 2017 to 2021 | F9: From 2020 to 2021 | P9: Tier 3 | Q9: 130 | R9: 17 | S9: 147 | T9: 82 | U9: 1 | V9: 83 | W9: ='fuel-summary'!B13 -> 85 | X9: ='fuel-summary'!C13 -> 3 | Y9: ='fuel-summary'!D13 -> 88
B10: Gasoline | C10: LPG/Propane | D10: Electric | E10: Diesel | F10: Gasoline | G10: LPG/Propane | H10: Electric | I10: Diesel | P10: Tier 2 | Q10: 71 | R10: 1 | S10: 72 | T10: 41 | U10: 4 | V10: 45 | W10: ='fuel-summary'!B14 -> 47 | X10: ='fuel-summary'!C14 -> 7 | Y10: ='fuel-summary'!D14 -> 54
A11: 2007 or older | B11: =J3-B3 -> -35 | C11: -72 | D11: -221 | E11: -113 | F11: =J3-F3 -> 38 | G11: -5 | H11: -63 | I11: -30 | P11: Tier 1 | Q11: 154 | R11: 2 | S11: 156 | T11: 104 | U11: 7 | V11: 111 | W11: ='fuel-summary'!B15 -> 99 | X11: ='fuel-summary'!C15 -> 6 | Y11: ='fuel-summary'!D15 -> 105
A12: 2008-2009 | B12: -14 | C12: -22 | D12: -41 | E12: -4 | F12: 10 | G12: 4 | H12: -18 | I12: 3 | P12: Tier 0 | Q12: 33 | R12: 7 | S12: 40 | T12: 20 | U12: 5 | V12: 25 | W12: ='fuel-summary'!B16 -> 12 | X12: ='fuel-summary'!C16 -> 5 | Y12: ='fuel-summary'!D16 -> 17
A13: 2010-2015 | B13: 102 | C13: 79 | D13: 15 | E13: 49 | F13: 67 | G13: 15 | H13: -2 | I13: 43 | P13: On-Road | Q13: 18 | R13: 18 | S13: 36 | T13: 127 | U13: 5 | V13: 132 | W13: ='fuel-summary'!B17 -> 111 | X13: ='fuel-summary'!C17 -> 26 | Y13: ='fuel-summary'!D17 -> 137
A14: 2016 to present | B14: 348 | C14: 152 | D14: 192 | E14: 380 | F14: 57 | G14: 19 | H14: 41 | I14: 203 | P14: Gasoline | Q14: 565 | R14: 26 | S14: 591 | T14: 813 | U14: 19 | V14: 832 | W14: ='fuel-summary'!B19 -> 942 | X14: ='fuel-summary'!C19 -> 50 | Y14: ='fuel-summary'!D19 -> 992
A15: Total | B15: 401 | C15: 137 | D15: -6 | E15: 182 | F15: 172 | G15: 33 | H15: 10 | I15: 89 | P15: Pre-2010 | Q15: 300 | R15: 23 | S15: 323 | T15: 218 | U15: 13 | V15: 231 | W15: ='fuel-summary'!B20 -> 253 | X15: ='fuel-summary'!C20 -> 19 | Y15: ='fuel-summary'!D20 -> 272
J16: These include <25hp non-electric and low-use equipment | P16: 2010 and Newer | Q16: 265 | R16: 3 | S16: 268 | T16: 595 | U16: 6 | V16: 601 | W16: ='fuel-summary'!B21 -> 689 | X16: ='fuel-summary'!C21 -> 31 | Y16: ='fuel-summary'!D21 -> 720
B17: % Electric: | P17: LPG/Propane | Q17: 365 | R17: 27 | S17: 392 | T17: 471 | U17: 25 | V17: 496 | W17: ='fuel-summary'!B23 -> 503 | X17: ='fuel-summary'!C23 -> 26 | Y17: ='fuel-summary'!D23 -> 529
A18: 2017 | B18: =D7/2717*100 -> 38.71917556 | C18: (including Other and Other ORE) | F18: 2017: 3 Electric did not have Engine Years (1049 + 3) = 1052; 2 blanks for fuel type (2715 + 2) = 2717 | P18: Pre-2010 | Q18: 193 | R18: 24 | S18: 217 | T18: 106 | U18: 16 | V18: 122 | W18: ='fuel-summary'!B24 -> 100 | X18: ='fuel-summary'!C24 -> 23 | Y18: ='fuel-summary'!D24 -> 123
A19: 2020 | B19: =H7/3289*100 -> 31.49893585 | C19: (including Other and Other ORE) | P19: 2010 and Newer | Q19: 172 | R19: 3 | S19: 175 | T19: 365 | U19: 9 | V19: 374 | W19: ='fuel-summary'!B25 -> 403 | X19: ='fuel-summary'!C25 -> 3 | Y19: ='fuel-summary'!D25 -> 406
A20: 2020 | B20: 33.152 | C20: (excluding Other and Other ORE) | P20: Electric | Q20: 1048 | R20: 4 | S20: 1052 | T20: 1052 | U20: 1 | V20: 1053 | W20: ='fuel-summary'!B27 -> 1000 | X20: ='fuel-summary'!C27 -> 46 | Y20: ='fuel-summary'!D27 -> 1046
A21: 2021 | B21: =(L7)/3310*100 -> 31.60120846 | C21: (excluding Other and Other ORE) | F21: 2021: 52 Electric did not have Engine Years (994 + 52) = 1046
I22: Totals (all equip.) | J22: yty diff (2017 vs curr)
B23: Other and Other ORE were included in 2017 | I23: 2717
B24: Other and Other ORE were excluded in 2020 (164 pieces of equipment) | I24: =SUM(F7:I7)+164 -> 3289 | J24: =I24-I23 -> 572 | Q24: FORMATTED/USE FOR AQMD DATA REPORT (take snip):
B25: Other (no Other ORE) were excluded in 2021 (0 pieces of equipment) | I25: =SUM(J7:M7) -> 3429 | J25: =I25-I23 -> 712
B27: Takeaways | Q27: Engine Tiers Comparison by Year (Off-Road Diesel only)
B28: 1. (Net) 526 GSEs 2009 and older were removed between 2017 and 2021 (461 removed between 2017 and 2020) | M28: 526 - 65 = | N28: =526-65 -> 461 | Q28: Engine Tier | S28: 2017 | U28: 2021 | W28: Changes between 2017 and 2021
B29: 2. (Net) 1329 GSEs 2010 and newer were added between 2017 and 2021 (874 added between 2017 and 2020)​ | M29: 1329 - 455 = | N29: =1329-455 -> 874
B30: 3. (Net) 728 GSEs added between 2017 and 2021 (410 added between 2017 to 2020)​ | M30: 728 - 318 = | N30: =728-318 -> 410 | Q30: Tier 0 | S30: 40 | U30: =Y12 -> 17 | W30: =U30-S30 -> -23
B31: 4. Other and Other ORE were included in the 2017 inventory but excluded in the 2020 and 2021 inventory | Q31: Tier 1 | S31: 156 | U31: =Y11 -> 105 | W31: -51
B32: 5. Electric count has decreased from 2017 to 2021, however there are fewer pre-2010 electric and more 2010 and newer in the fleet | Q32: Tier 2 | S32: 72 | U32: =Y10 -> 54 | W32: -18
B33: 6. CARB LSI regulation change requiring newer equipment may drive the number of newer equipment up | Q33: Tier 3 | S33: 147 | U33: =Y9 -> 88 | W33: -59
Q34: Tier 4i | S34: 65 | U34: =Y8 -> 69 | W34: 4
Q35: Tier 4 | S35: 166 | U35: =Y7 -> 392 | W35: 226
A36: FORMATTED/USE FOR AQMD DATA REPORT (take snip):
C39: =B1 -> 2017 | D39: 0 | E39: 0 | F39: 0 | G39: =J1 -> 2021 | H39: 0 | I39: 0 | J39: 0 | K39: =B9 -> From 2017 to 2021 | L39: 0 | M39: 0 | N39: 0
C40: Gasoline | D40: LPG/Propane | E40: Electric | F40: Diesel | G40: Gasoline | H40: LPG/Propane | I40: Electric | J40: Diesel | K40: Gasoline | L40: LPG/Propane | M40: Electric | N40: Diesel
B41: =A3 -> 2007 or older | C41: 251 | D41: 175 | E41: 578 | F41: 329 | G41: 216 | H41: 103 | I41: 357 | J41: 216 | K41: -35 | L41: -72 | M41: -221 | N41: -113
B42: =A4 -> 2008-2009 | C42: 70 | D42: 42 | E42: 117 | F42: 60 | G42: 56 | H42: 20 | I42: 76 | J42: 56 | K42: -14 | L42: -22 | M42: -41 | N42: -4
B43: =A5 -> 2010-2015 | C43: 127 | D43: 107 | E43: 220 | F43: 180 | G43: 229 | H43: 186 | I43: 235 | J43: 229 | K43: 102 | L43: 79 | M43: 15 | N43: 49
B44: =A6 -> 2016 to present | C44: 143 | D44: 68 | E44: 134 | F44: 111 | G44: 491 | H44: 220 | I44: 326 | J44: 491 | K44: 348 | L44: 152 | M44: 192 | N44: 380
B45: =A7 -> Total | C45: 591 | D45: 392 | E45: 1052 | F45: 680 | G45: 992 | H45: 529 | I45: 1046 | J45: 862 | K45: 401 | L45: 137 | M45: -6 | N45: 182

Sheet activity
A1: https://arb.ca.gov/emfac/emissions-inventory/d6bae371c7d19e58da451bf2c1a7ec59a0b9d499 | H1: DO NOT UPDATE THIS TAB
K2: Default Value Year: | L2: 2020
A3: *Per Jeremy 4/14/22: do not update A-I with newer years (leave as 2020); AQMD has reviewed these default averages (K-N) and given okay. | L3: ^leave as 2020
A5: Calendar Year | B5: Vehicle Category | C5: Model Year | D5: Total_Activity_hpy | E5: Total_Population | F5: Horsepower_Hours_hhpy | G5: Average Horsepower | H5: =SUBSTITUTE(SUBSTITUTE(SUBSTITUTE(B5:B1788,"OFF - ",""),"AirGrSupp - ","")," "," ") -> Vehicle Category | K5: =_xlfn.UNIQUE(_xlfn.ANCHORARRAY(H5)) -> Vehicle Category | L5: Average Model Year | M5: Average Horsepower | N5: Average Activity | P5: Vehicle Category (sorted)
A6: 2020 | B6: AirGrSupp - A/C Tug Narrow Body | C6: 1969 | D6: 0 | E6: 0 | F6: 0 | G6: =IFERROR(F6:F1788/D6:D1788,0) -> 0 | H6: A/C Tug Narrow Body | K6: A/C Tug Narrow Body | L6: =IFERROR(ROUND(SUM((C$6:C$1788)*($E$6:$E$1788)*--($H$6:$H$1788=$K6)*--($A$6:$A$1788=$L$2))/SUM(($E$6:$E$1788)*--($H$6:$H$1788=$K6)*--($A$6:$A$1788=$L$2)),0),"Average Model Year") -> 2007 | M6: =IFERROR(ROUND(SUM((_xlfn.ANCHORARRAY($G$6))*($E$6:$E$1788)*--($H$6:$H$1788=$K6)*--($A$6:$A$1788=$L$2))/SUM(($E$6:$E$1788)*--($H$6:$H$1788=$K6)*--($A$6:$A$1788=$L$2)),0),"Average Model Year") -> 132 | N6: =IFERROR(ROUND(SUM((D$6:D$1788)*--($H$6:$H$1788=$K6)*--($A$6:$A$1788=$L$2))/SUM(($E$6:$E$1788)*--($H$6:$H$1788=$K6)*--($A$6:$A$1788=$L$2)),0),"Average Model Year") -> 385 | P6: =_xlfn._xlws.SORT(K6:K32) -> A/C Tug Narrow Body
A7: 2020 | B7: AirGrSupp - A/C Tug Narrow Body | C7: 1969 | D7: 331.6422246 | E7: 1.01034436 | F7: 9120.161177 | G7: 27.5 | H7: A/C Tug Narrow Body | K7: A/C Tug Wide Body | L7: =IFERROR(ROUND(SUM((C$6:C$1788)*($E$6:$E$1788)*--($H$6:$H$1788=$K7)*--($A$6:$A$1788=$L$2))/SUM(($E$6:$E$1788)*--($H$6:$H$1788=$K7)*--($A$6:$A$1788=$L$2)),0),"Average Model Year") -> 2009 | M7: =IFERROR(ROUND(SUM((_xlfn.ANCHORARRAY($G$6))*($E$6:$E$1788)*--($H$6:$H$1788=$K7)*--($A$6:$A$1788=$L$2))/SUM(($E$6:$E$1788)*--($H$6:$H$1788=$K7)*--($A$6:$A$1788=$L$2)),0),"Average Model Year") -> 289 | N7: =IFERROR(ROUND(SUM((D$6:D$1788)*--($H$6:$H$1788=$K7)*--($A$6:$A$1788=$L$2))/SUM(($E$6:$E$1788)*--($H$6:$H$1788=$K7)*--($A$6:$A$1788=$L$2)),0),"Average Model Year") -> 411 | P7: A/C Tug Wide Body
A8: 2020 | B8: AirGrSupp - A/C Tug Narrow Body | C8: 1969 | D8: 165.8211123 | E8: 0.5051721801 | F8: 13099.86787 | G8: 79 | H8: A/C Tug Narrow Body | K8: Baggage Tug | L8: =IFERROR(ROUND(SUM((C$6:C$1788)*($E$6:$E$1788)*--($H$6:$H$1788=$K8)*--($A$6:$A$1788=$L$2))/SUM(($E$6:$E$1788)*--($H$6:$H$1788=$K8)*--($A$6:$A$1788=$L$2)),0),"Average Model Year") -> 2014 | M8: =IFERROR(ROUND(SUM((_xlfn.ANCHORARRAY($G$6))*($E$6:$E$1788)*--($H$6:$H$1788=$K8)*--($A$6:$A$1788=$L$2))/SUM(($E$6:$E$1788)*--($H$6:$H$1788=$K8)*--($A$6:$A$1788=$L$2)),0),"Average Model Year") -> 96 | N8: =IFERROR(ROUND(SUM((D$6:D$1788)*--($H$6:$H$1788=$K8)*--($A$6:$A$1788=$L$2))/SUM(($E$6:$E$1788)*--($H$6:$H$1788=$K8)*--($A$6:$A$1788=$L$2)),0),"Average Model Year") -> 846 | P8: Air Conditioner
A9: 2020 | B9: AirGrSupp - A/C Tug Narrow Body | C9: 1981 | D9: 110.1801411 | E9: 0.5051721801 | F9: 15425.21975 | G9: 140 | H9: A/C Tug Narrow Body | K9: Belt Loader | L9: =IFERROR(ROUND(SUM((C$6:C$1788)*($E$6:$E$1788)*--($H$6:$H$1788=$K9)*--($A$6:$A$1788=$L$2))/SUM(($E$6:$E$1788)*--($H$6:$H$1788=$K9)*--($A$6:$A$1788=$L$2)),0),"Average Model Year") -> 2013 | M9: =IFERROR(ROUND(SUM((_xlfn.ANCHORARRAY($G$6))*($E$6:$E$1788)*--($H$6:$H$1788=$K9)*--($A$6:$A$1788=$L$2))/SUM(($E$6:$E$1788)*--($H$6:$H$1788=$K9)*--($A$6:$A$1788=$L$2)),0),"Average Model Year") -> 64 | N9: =IFERROR(ROUND(SUM((D$6:D$1788)*--($H$6:$H$1788=$K9)*--($A$6:$A$1788=$L$2))/SUM(($E$6:$E$1788)*--($H$6:$H$1788=$K9)*--($A$6:$A$1788=$L$2)),0),"Average Model Year") -> 706 | P9: Air Start Unit
A10: 2020 | B10: AirGrSupp - A/C Tug Narrow Body | C10: 1982 | D10: 165.8211123 | E10: 0.5051721801 | F10: 16582.11123 | G10: 100 | H10: A/C Tug Narrow Body | K10: Bobtail | L10: =IFERROR(ROUND(SUM((C$6:C$1788)*($E$6:$E$1788)*--($H$6:$H$1788=$K10)*--($A$6:$A$1788=$L$2))/SUM(($E$6:$E$1788)*--($H$6:$H$1788=$K10)*--($A$6:$A$1788=$L$2)),0),"Average Model Year") -> 2015 | M10: =IFERROR(ROUND(SUM((_xlfn.ANCHORARRAY($G$6))*($E$6:$E$1788)*--($H$6:$H$1788=$K10)*--($A$6:$A$1788=$L$2))/SUM(($E$6:$E$1788)*--($H$6:$H$1788=$K10)*--($A$6:$A$1788=$L$2)),0),"Average Model Year") -> 111 | N10: =IFERROR(ROUND(SUM((D$6:D$1788)*--($H$6:$H$1788=$K10)*--($A$6:$A$1788=$L$2))/SUM(($E$6:$E$1788)*--($H$6:$H$1788=$K10)*--($A$6:$A$1788=$L$2)),0),"Average Model Year") -> 765 | P10: Baggage Tug
A11: 2020 | B11: AirGrSupp - A/C Tug Narrow Body | C11: 1984 | D11: 0 | E11: 0 | F11: 0 | G11: 0 | H11: A/C Tug Narrow Body | K11: Cargo Loader | L11: =IFERROR(ROUND(SUM((C$6:C$1788)*($E$6:$E$1788)*--($H$6:$H$1788=$K11)*--($A$6:$A$1788=$L$2))/SUM(($E$6:$E$1788)*--($H$6:$H$1788=$K11)*--($A$6:$A$1788=$L$2)),0),"Average Model Year") -> 2014 | M11: =IFERROR(ROUND(SUM((_xlfn.ANCHORARRAY($G$6))*($E$6:$E$1788)*--($H$6:$H$1788=$K11)*--($A$6:$A$1788=$L$2))/SUM(($E$6:$E$1788)*--($H$6:$H$1788=$K11)*--($A$6:$A$1788=$L$2)),0),"Average Model Year") -> 103 | N11: =IFERROR(ROUND(SUM((D$6:D$1788)*--($H$6:$H$1788=$K11)*--($A$6:$A$1788=$L$2))/SUM(($E$6:$E$1788)*--($H$6:$H$1788=$K11)*--($A$6:$A$1788=$L$2)),0),"Average Model Year") -> 556 | P11: Belt Loader
A12: 2020 | B12: AirGrSupp - A/C Tug Narrow Body | C12: 1985 | D12: 165.8211123 | E12: 0.5051721801 | F12: 6632.844492 | G12: 40 | H12: A/C Tug Narrow Body | K12: Cargo Tractor | L12: =IFERROR(ROUND(SUM((C$6:C$1788)*($E$6:$E$1788)*--($H$6:$H$1788=$K12)*--($A$6:$A$1788=$L$2))/SUM(($E$6:$E$1788)*--($H$6:$H$1788=$K12)*--($A$6:$A$1788=$L$2)),0),"Average Model Year") -> 2012 | M12: =IFERROR(ROUND(SUM((_xlfn.ANCHORARRAY($G$6))*($E$6:$E$1788)*--($H$6:$H$1788=$K12)*--($A$6:$A$1788=$L$2))/SUM(($E$6:$E$1788)*--($H$6:$H$1788=$K12)*--($A$6:$A$1788=$L$2)),0),"Average Model Year") -> 99 | N12: =IFERROR(ROUND(SUM((D$6:D$1788)*--($H$6:$H$1788=$K12)*--($A$6:$A$1788=$L$2))/SUM(($E$6:$E$1788)*--($H$6:$H$1788=$K12)*--($A$6:$A$1788=$L$2)),0),"Average Model Year") -> 1114 | P12: Bobtail
A13: 2020 | B13: AirGrSupp - A/C Tug Narrow Body | C13: 1985 | D13: 165.8211123 | E13: 0.5051721801 | F13: 27857.94687 | G13: 168 | H13: A/C Tug Narrow Body | K13: Forklift | L13: =IFERROR(ROUND(SUM((C$6:C$1788)*($E$6:$E$1788)*--($H$6:$H$1788=$K13)*--($A$6:$A$1788=$L$2))/SUM(($E$6:$E$1788)*--($H$6:$H$1788=$K13)*--($A$6:$A$1788=$L$2)),0),"Average Model Year") -> 2012 | M13: =IFERROR(ROUND(SUM((_xlfn.ANCHORARRAY($G$6))*($E$6:$E$1788)*--($H$6:$H$1788=$K13)*--($A$6:$A$1788=$L$2))/SUM(($E$6:$E$1788)*--($H$6:$H$1788=$K13)*--($A$6:$A$1788=$L$2)),0),"Average Model Year") -> 72 | N13: =IFERROR(ROUND(SUM((D$6:D$1788)*--($H$6:$H$1788=$K13)*--($A$6:$A$1788=$L$2))/SUM(($E$6:$E$1788)*--($H$6:$H$1788=$K13)*--($A$6:$A$1788=$L$2)),0),"Average Model Year") -> 591 | P13: Cargo Loader
A14: 2020 | B14: AirGrSupp - A/C Tug Narrow Body | C14: 1986 | D14: 165.8211123 | E14: 0.5051721801 | F14: 14260.61566 | G14: 86 | H14: A/C Tug Narrow Body | K14: Lift | L14: =IFERROR(ROUND(SUM((C$6:C$1788)*($E$6:$E$1788)*--($H$6:$H$1788=$K14)*--($A$6:$A$1788=$L$2))/SUM(($E$6:$E$1788)*--($H$6:$H$1788=$K14)*--($A$6:$A$1788=$L$2)),0),"Average Model Year") -> 2011 | M14: =IFERROR(ROUND(SUM((_xlfn.ANCHORARRAY($G$6))*($E$6:$E$1788)*--($H$6:$H$1788=$K14)*--($A$6:$A$1788=$L$2))/SUM(($E$6:$E$1788)*--($H$6:$H$1788=$K14)*--($A$6:$A$1788=$L$2)),0),"Average Model Year") -> 98 | N14: =IFERROR(ROUND(SUM((D$6:D$1788)*--($H$6:$H$1788=$K14)*--($A$6:$A$1788=$L$2))/SUM(($E$6:$E$1788)*--($H$6:$H$1788=$K14)*--($A$6:$A$1788=$L$2)),0),"Average Model Year") -> 391 | P14: Cargo Tractor
A15: 2020 | B15: AirGrSupp - A/C Tug Narrow Body | C15: 1986 | D15: 110.1801411 | E15: 0.5051721801 | F15: 16747.38144 | G15: 152 | H15: A/C Tug Narrow Body | K15: Other GSE | L15: =IFERROR(ROUND(SUM((C$6:C$1788)*($E$6:$E$1788)*--($H$6:$H$1788=$K15)*--($A$6:$A$1788=$L$2))/SUM(($E$6:$E$1788)*--($H$6:$H$1788=$K15)*--($A$6:$A$1788=$L$2)),0),"Average Model Year") -> 2010 | M15: =IFERROR(ROUND(SUM((_xlfn.ANCHORARRAY($G$6))*($E$6:$E$1788)*--($H$6:$H$1788=$K15)*--($A$6:$A$1788=$L$2))/SUM(($E$6:$E$1788)*--($H$6:$H$1788=$K15)*--($A$6:$A$1788=$L$2)),0),"Average Model Year") -> 96 | N15: =IFERROR(ROUND(SUM((D$6:D$1788)*--($H$6:$H$1788=$K15)*--($A$6:$A$1788=$L$2))/SUM(($E$6:$E$1788)*--($H$6:$H$1788=$K15)*--($A$6:$A$1788=$L$2)),0),"Average Model Year") -> 412 | P15: Cart
A16: 2020 | B16: AirGrSupp - A/C Tug Narrow Body | C16: 1986 | D16: 165.8211123 | E16: 0.5051721801 | F16: 33164.22246 | G16: 200 | H16: A/C Tug Narrow Body | K16: Passenger Stand | L16: =IFERROR(ROUND(SUM((C$6:C$1788)*($E$6:$E$1788)*--($H$6:$H$1788=$K16)*--($A$6:$A$1788=$L$2))/SUM(($E$6:$E$1788)*--($H$6:$H$1788=$K16)*--($A$6:$A$1788=$L$2)),0),"Average Model Year") -> 2012 | M16: =IFERROR(ROUND(SUM((_xlfn.ANCHORARRAY($G$6))*($E$6:$E$1788)*--($H$6:$H$1788=$K16)*--($A$6:$A$1788=$L$2))/SUM(($E$6:$E$1788)*--($H$6:$H$1788=$K16)*--($A$6:$A$1788=$L$2)),0),"Average Model Year") -> 104 | N16: =IFERROR(ROUND(SUM((D$6:D$1788)*--($H$6:$H$1788=$K16)*--($A$6:$A$1788=$L$2))/SUM(($E$6:$E$1788)*--($H$6:$H$1788=$K16)*--($A$6:$A$1788=$L$2)),0),"Average Model Year") -> 137 | P16: Catering Truck
A17: 2020 | B17: AirGrSupp - A/C Tug Narrow Body | C17: 1987 | D17: 165.8211123 | E17: 0.5051721801 | F17: 6632.844492 | G17: 40 | H17: A/C Tug Narrow Body | K17: Air Conditioner | L17: =IFERROR(ROUND(SUM((C$6:C$1788)*($E$6:$E$1788)*--($H$6:$H$1788=$K17)*--($A$6:$A$1788=$L$2))/SUM(($E$6:$E$1788)*--($H$6:$H$1788=$K17)*--($A$6:$A$1788=$L$2)),0),"Average Model Year") -> 2013 | M17: =M15 -> 96 | N17: =N14 -> 391 | P17: Deicer
A18: 2020 | B18: AirGrSupp - A/C Tug Narrow Body | C18: 1987 | D18: 220.3602821 | E18: 1.01034436 | F18: 33494.76289 | G18: 152 | H18: A/C Tug Narrow Body | K18: Air Start Unit | L18: =IFERROR(ROUND(SUM((C$6:C$1788)*($E$6:$E$1788)*--($H$6:$H$1788=$K18)*--($A$6:$A$1788=$L$2))/SUM(($E$6:$E$1788)*--($H$6:$H$1788=$K18)*--($A$6:$A$1788=$L$2)),0),"Average Model Year") -> 2012 | M18: =IFERROR(ROUND(SUM((_xlfn.ANCHORARRAY($G$6))*($E$6:$E$1788)*--($H$6:$H$1788=$K18)*--($A$6:$A$1788=$L$2))/SUM(($E$6:$E$1788)*--($H$6:$H$1788=$K18)*--($A$6:$A$1788=$L$2)),0),"Average Model Year") -> 118 | N18: =IFERROR(ROUND(SUM((D$6:D$1788)*--($H$6:$H$1788=$K18)*--($A$6:$A$1788=$L$2))/SUM(($E$6:$E$1788)*--($H$6:$H$1788=$K18)*--($A$6:$A$1788=$L$2)),0),"Average Model Year") -> 79 | P18: Forklift
A19: 2020 | B19: AirGrSupp - A/C Tug Narrow Body | C19: 1988 | D19: 165.8211123 | E19: 0.5051721801 | F19: 21556.7446 | G19: 130 | H19: A/C Tug Narrow Body | K19: Cart | L19: =IFERROR(ROUND(SUM((C$6:C$1788)*($E$6:$E$1788)*--($H$6:$H$1788=$K19)*--($A$6:$A$1788=$L$2))/SUM(($E$6:$E$1788)*--($H$6:$H$1788=$K19)*--($A$6:$A$1788=$L$2)),0),"Average Model Year") -> 2018 | M19: =IFERROR(ROUND(SUM((_xlfn.ANCHORARRAY($G$6))*($E$6:$E$1788)*--($H$6:$H$1788=$K19)*--($A$6:$A$1788=$L$2))/SUM(($E$6:$E$1788)*--($H$6:$H$1788=$K19)*--($A$6:$A$1788=$L$2)),0),"Average Model Year") -> 12 | N19: =IFERROR(ROUND(SUM((D$6:D$1788)*--($H$6:$H$1788=$K19)*--($A$6:$A$1788=$L$2))/SUM(($E$6:$E$1788)*--($H$6:$H$1788=$K19)*--($A$6:$A$1788=$L$2)),0),"Average Model Year") -> 152 | P19: Fuel Truck
A20: 2020 | B20: AirGrSupp - A/C Tug Narrow Body | C20: 1989 | D20: 165.8211123 | E20: 0.5051721801 | F20: 7130.307829 | G20: 43 | H20: A/C Tug Narrow Body | K20: Catering Truck | L20: =IFERROR(ROUND(SUM((C$6:C$1788)*($E$6:$E$1788)*--($H$6:$H$1788=$K20)*--($A$6:$A$1788=$L$2))/SUM(($E$6:$E$1788)*--($H$6:$H$1788=$K20)*--($A$6:$A$1788=$L$2)),0),"Average Model Year") -> 2011 | M20: =IFERROR(ROUND(SUM((_xlfn.ANCHORARRAY($G$6))*($E$6:$E$1788)*--($H$6:$H$1788=$K20)*--($A$6:$A$1788=$L$2))/SUM(($E$6:$E$1788)*--($H$6:$H$1788=$K20)*--($A$6:$A$1788=$L$2)),0),"Average Model Year") -> 204 | N20: =IFERROR(ROUND(SUM((D$6:D$1788)*--($H$6:$H$1788=$K20)*--($A$6:$A$1788=$L$2))/SUM(($E$6:$E$1788)*--($H$6:$H$1788=$K20)*--($A$6:$A$1788=$L$2)),0),"Average Model Year") -> 928 | P20: Generator
A21: 2020 | B21: AirGrSupp - A/C Tug Narrow Body | C21: 1990 | D21: 0 | E21: 0 | F21: 0 | G21: 0 | H21: A/C Tug Narrow Body | K21: Deicer | L21: =IFERROR(ROUND(SUM((C$6:C$1788)*($E$6:$E$1788)*--($H$6:$H$1788=$K21)*--($A$6:$A$1788=$L$2))/SUM(($E$6:$E$1788)*--($H$6:$H$1788=$K21)*--($A$6:$A$1788=$L$2)),0),"Average Model Year") -> 2011 | M21: =IFERROR(ROUND(SUM((_xlfn.ANCHORARRAY($G$6))*($E$6:$E$1788)*--($H$6:$H$1788=$K21)*--($A$6:$A$1788=$L$2))/SUM(($E$6:$E$1788)*--($H$6:$H$1788=$K21)*--($A$6:$A$1788=$L$2)),0),"Average Model Year") -> 89 | N21: =IFERROR(ROUND(SUM((D$6:D$1788)*--($H$6:$H$1788=$K21)*--($A$6:$A$1788=$L$2))/SUM(($E$6:$E$1788)*--($H$6:$H$1788=$K21)*--($A$6:$A$1788=$L$2)),0),"Average Model Year") -> 21 | P21: Ground Power Unit
A22: 2020 | B22: AirGrSupp - A/C Tug Narrow Body | C22: 1990 | D22: 110.1801411 | E22: 0.5051721801 | F22: 4407.205643 | G22: 40 | H22: A/C Tug Narrow Body | K22: Fuel Truck | L22: =IFERROR(ROUND(SUM((C$6:C$1788)*($E$6:$E$1788)*--($H$6:$H$1788=$K22)*--($A$6:$A$1788=$L$2))/SUM(($E$6:$E$1788)*--($H$6:$H$1788=$K22)*--($A$6:$A$1788=$L$2)),0),"Average Model Year") -> 2011 | M22: =IFERROR(ROUND(SUM((_xlfn.ANCHORARRAY($G$6))*($E$6:$E$1788)*--($H$6:$H$1788=$K22)*--($A$6:$A$1788=$L$2))/SUM(($E$6:$E$1788)*--($H$6:$H$1788=$K22)*--($A$6:$A$1788=$L$2)),0),"Average Model Year") -> 131 | N22: =IFERROR(ROUND(SUM((D$6:D$1788)*--($H$6:$H$1788=$K22)*--($A$6:$A$1788=$L$2))/SUM(($E$6:$E$1788)*--($H$6:$H$1788=$K22)*--($A$6:$A$1788=$L$2)),0),"Average Model Year") -> 83 | P22: Hydrant truck
A23: 2020 | B23: AirGrSupp - A/C Tug Narrow Body | C23: 1991 | D23: 331.6422246 | E23: 1.01034436 | F23: 28023.76798 | G23: 84.5 | H23: A/C Tug Narrow Body | K23: Generator | L23: =IFERROR(ROUND(SUM((C$6:C$1788)*($E$6:$E$1788)*--($H$6:$H$1788=$K23)*--($A$6:$A$1788=$L$2))/SUM(($E$6:$E$1788)*--($H$6:$H$1788=$K23)*--($A$6:$A$1788=$L$2)),0),"Average Model Year") -> 2011 | M23: =IFERROR(ROUND(SUM((_xlfn.ANCHORARRAY($G$6))*($E$6:$E$1788)*--($H$6:$H$1788=$K23)*--($A$6:$A$1788=$L$2))/SUM(($E$6:$E$1788)*--($H$6:$H$1788=$K23)*--($A$6:$A$1788=$L$2)),0),"Average Model Year") -> 107 | N23: =IFERROR(ROUND(SUM((D$6:D$1788)*--($H$6:$H$1788=$K23)*--($A$6:$A$1788=$L$2))/SUM(($E$6:$E$1788)*--($H$6:$H$1788=$K23)*--($A$6:$A$1788=$L$2)),0),"Average Model Year") -> 913 | P23: Lav Cart
A24: 2020 | B24: AirGrSupp - A/C Tug Narrow Body | C24: 1991 | D24: 165.8211123 | E24: 0.5051721801 | F24: 34822.43359 | G24: 210 | H24: A/C Tug Narrow Body | K24: Ground Power Unit | L24: =IFERROR(ROUND(SUM((C$6:C$1788)*($E$6:$E$1788)*--($H$6:$H$1788=$K24)*--($A$6:$A$1788=$L$2))/SUM(($E$6:$E$1788)*--($H$6:$H$1788=$K24)*--($A$6:$A$1788=$L$2)),0),"Average Model Year") -> 2018 | M24: =IFERROR(ROUND(SUM((_xlfn.ANCHORARRAY($G$6))*($E$6:$E$1788)*--($H$6:$H$1788=$K24)*--($A$6:$A$1788=$L$2))/SUM(($E$6:$E$1788)*--($H$6:$H$1788=$K24)*--($A$6:$A$1788=$L$2)),0),"Average Model Year") -> 150 | N24: =IFERROR(ROUND(SUM((D$6:D$1788)*--($H$6:$H$1788=$K24)*--($A$6:$A$1788=$L$2))/SUM(($E$6:$E$1788)*--($H$6:$H$1788=$K24)*--($A$6:$A$1788=$L$2)),0),"Average Model Year") -> 798 | P24: Lav Truck
A25: 2020 | B25: AirGrSupp - A/C Tug Narrow Body | C25: 1993 | D25: 829.1055616 | E25: 2.525860901 | F25: 66328.44492 | G25: 80 | H25: A/C Tug Narrow Body | K25: Hydrant truck | L25: =IFERROR(ROUND(SUM((C$6:C$1788)*($E$6:$E$1788)*--($H$6:$H$1788=$K25)*--($A$6:$A$1788=$L$2))/SUM(($E$6:$E$1788)*--($H$6:$H$1788=$K25)*--($A$6:$A$1788=$L$2)),0),"Average Model Year") -> 2011 | M25: =IFERROR(ROUND(SUM((_xlfn.ANCHORARRAY($G$6))*($E$6:$E$1788)*--($H$6:$H$1788=$K25)*--($A$6:$A$1788=$L$2))/SUM(($E$6:$E$1788)*--($H$6:$H$1788=$K25)*--($A$6:$A$1788=$L$2)),0),"Average Model Year") -> 122 | N25: =IFERROR(ROUND(SUM((D$6:D$1788)*--($H$6:$H$1788=$K25)*--($A$6:$A$1788=$L$2))/SUM(($E$6:$E$1788)*--($H$6:$H$1788=$K25)*--($A$6:$A$1788=$L$2)),0),"Average Model Year") -> 1531 | P25: Lift
A26: 2020 | B26: AirGrSupp - A/C Tug Narrow Body | C26: 1994 | D26: 165.8211123 | E26: 0.5051721801 | F26: 18240.32235 | G26: 110 | H26: A/C Tug Narrow Body | K26: Lav Cart | L26: =IFERROR(ROUND(SUM((C$6:C$1788)*($E$6:$E$1788)*--($H$6:$H$1788=$K26)*--($A$6:$A$1788=$L$2))/SUM(($E$6:$E$1788)*--($H$6:$H$1788=$K26)*--($A$6:$A$1788=$L$2)),0),"Average Model Year") -> 2018 | M26: =IFERROR(ROUND(SUM((_xlfn.ANCHORARRAY($G$6))*($E$6:$E$1788)*--($H$6:$H$1788=$K26)*--($A$6:$A$1788=$L$2))/SUM(($E$6:$E$1788)*--($H$6:$H$1788=$K26)*--($A$6:$A$1788=$L$2)),0),"Average Model Year") -> 12 | N26: =IFERROR(ROUND(SUM((D$6:D$1788)*--($H$6:$H$1788=$K26)*--($A$6:$A$1788=$L$2))/SUM(($E$6:$E$1788)*--($H$6:$H$1788=$K26)*--($A$6:$A$1788=$L$2)),0),"Average Model Year") -> 150 | P26: Maint. Truck
A27: 2020 | B27: AirGrSupp - A/C Tug Narrow Body | C27: 1994 | D27: 165.8211123 | E27: 0.5051721801 | F27: 116074.7786 | G27: 700 | H27: A/C Tug Narrow Body | K27: Lav Truck | L27: =IFERROR(ROUND(SUM((C$6:C$1788)*($E$6:$E$1788)*--($H$6:$H$1788=$K27)*--($A$6:$A$1788=$L$2))/SUM(($E$6:$E$1788)*--($H$6:$H$1788=$K27)*--($A$6:$A$1788=$L$2)),0),"Average Model Year") -> 2015 | M27: =IFERROR(ROUND(SUM((_xlfn.ANCHORARRAY($G$6))*($E$6:$E$1788)*--($H$6:$H$1788=$K27)*--($A$6:$A$1788=$L$2))/SUM(($E$6:$E$1788)*--($H$6:$H$1788=$K27)*--($A$6:$A$1788=$L$2)),0),"Average Model Year") -> 130 | N27: =IFERROR(ROUND(SUM((D$6:D$1788)*--($H$6:$H$1788=$K27)*--($A$6:$A$1788=$L$2))/SUM(($E$6:$E$1788)*--($H$6:$H$1788=$K27)*--($A$6:$A$1788=$L$2)),0),"Average Model Year") -> 1158 | P27: Other
A28: 2020 | B28: AirGrSupp - A/C Tug Narrow Body | C28: 1995 | D28: 497.4633369 | E28: 1.51551654 | F28: 47756.48035 | G28: 96 | H28: A/C Tug Narrow Body | K28: Maint. Truck | L28: =IFERROR(ROUND(SUM((C$6:C$1788)*($E$6:$E$1788)*--($H$6:$H$1788=$K28)*--($A$6:$A$1788=$L$2))/SUM(($E$6:$E$1788)*--($H$6:$H$1788=$K28)*--($A$6:$A$1788=$L$2)),0),"Average Model Year") -> 2013 | M28: =IFERROR(ROUND(SUM((_xlfn.ANCHORARRAY($G$6))*($E$6:$E$1788)*--($H$6:$H$1788=$K28)*--($A$6:$A$1788=$L$2))/SUM(($E$6:$E$1788)*--($H$6:$H$1788=$K28)*--($A$6:$A$1788=$L$2)),0),"Average Model Year") -> 130 | N28: =IFERROR(ROUND(SUM((D$6:D$1788)*--($H$6:$H$1788=$K28)*--($A$6:$A$1788=$L$2))/SUM(($E$6:$E$1788)*--($H$6:$H$1788=$K28)*--($A$6:$A$1788=$L$2)),0),"Average Model Year") -> 450 | P28: Other GSE
A29: 2020 | B29: AirGrSupp - A/C Tug Narrow Body | C29: 1996 | D29: 276.0012534 | E29: 1.01034436 | F29: 27186.12346 | G29: 98.5 | H29: A/C Tug Narrow Body | K29: Other | L29: =IFERROR(ROUND(SUM((C$6:C$1788)*($E$6:$E$1788)*--($H$6:$H$1788=$K29)*--($A$6:$A$1788=$L$2))/SUM(($E$6:$E$1788)*--($H$6:$H$1788=$K29)*--($A$6:$A$1788=$L$2)),0),"Average Model Year") -> 2011 | M29: =IFERROR(ROUND(SUM((_xlfn.ANCHORARRAY($G$6))*($E$6:$E$1788)*--($H$6:$H$1788=$K29)*--($A$6:$A$1788=$L$2))/SUM(($E$6:$E$1788)*--($H$6:$H$1788=$K29)*--($A$6:$A$1788=$L$2)),0),"Average Model Year") -> 50 | N29: =IFERROR(ROUND(SUM((D$6:D$1788)*--($H$6:$H$1788=$K29)*--($A$6:$A$1788=$L$2))/SUM(($E$6:$E$1788)*--($H$6:$H$1788=$K29)*--($A$6:$A$1788=$L$2)),0),"Average Model Year") -> 1020 | P29: Passenger Stand
A30: 2020 | B30: AirGrSupp - A/C Tug Narrow Body | C30: 1996 | D30: 331.6422246 | E30: 1.01034436 | F30: 81086.52392 | G30: 244.5 | H30: A/C Tug Narrow Body | K30: Service Truck | L30: =IFERROR(ROUND(SUM((C$6:C$1788)*($E$6:$E$1788)*--($H$6:$H$1788=$K30)*--($A$6:$A$1788=$L$2))/SUM(($E$6:$E$1788)*--($H$6:$H$1788=$K30)*--($A$6:$A$1788=$L$2)),0),"Average Model Year") -> 2012 | M30: =IFERROR(ROUND(SUM((_xlfn.ANCHORARRAY($G$6))*($E$6:$E$1788)*--($H$6:$H$1788=$K30)*--($A$6:$A$1788=$L$2))/SUM(($E$6:$E$1788)*--($H$6:$H$1788=$K30)*--($A$6:$A$1788=$L$2)),0),"Average Model Year") -> 180 | N30: =IFERROR(ROUND(SUM((D$6:D$1788)*--($H$6:$H$1788=$K30)*--($A$6:$A$1788=$L$2))/SUM(($E$6:$E$1788)*--($H$6:$H$1788=$K30)*--($A$6:$A$1788=$L$2)),0),"Average Model Year") -> 883 | P30: Service Truck
A31: 2020 | B31: AirGrSupp - A/C Tug Narrow Body | C31: 1997 | D31: 276.0012534 | E31: 1.01034436 | F31: 21390.09714 | G31: 77.5 | H31: A/C Tug Narrow Body | K31: Sweeper | L31: =IFERROR(ROUND(SUM((C$6:C$1788)*($E$6:$E$1788)*--($H$6:$H$1788=$K31)*--($A$6:$A$1788=$L$2))/SUM(($E$6:$E$1788)*--($H$6:$H$1788=$K31)*--($A$6:$A$1788=$L$2)),0),"Average Model Year") -> 2012 | M31: =IFERROR(ROUND(SUM((_xlfn.ANCHORARRAY($G$6))*($E$6:$E$1788)*--($H$6:$H$1788=$K31)*--($A$6:$A$1788=$L$2))/SUM(($E$6:$E$1788)*--($H$6:$H$1788=$K31)*--($A$6:$A$1788=$L$2)),0),"Average Model Year") -> 51 | N31: =IFERROR(ROUND(SUM((D$6:D$1788)*--($H$6:$H$1788=$K31)*--($A$6:$A$1788=$L$2))/SUM(($E$6:$E$1788)*--($H$6:$H$1788=$K31)*--($A$6:$A$1788=$L$2)),0),"Average Model Year") -> 339 | P31: Sweeper
A32: 2020 | B32: AirGrSupp - A/C Tug Narrow Body | C32: 1998 | D32: 1326.568898 | E32: 4.041377441 | F32: 145756.7577 | G32: 109.875 | H32: A/C Tug Narrow Body | K32: Water Truck | L32: =IFERROR(ROUND(SUM((C$6:C$1788)*($E$6:$E$1788)*--($H$6:$H$1788=$K32)*--($A$6:$A$1788=$L$2))/SUM(($E$6:$E$1788)*--($H$6:$H$1788=$K32)*--($A$6:$A$1788=$L$2)),0),"Average Model Year") -> 2011 | M32: =IFERROR(ROUND(SUM((_xlfn.ANCHORARRAY($G$6))*($E$6:$E$1788)*--($H$6:$H$1788=$K32)*--($A$6:$A$1788=$L$2))/SUM(($E$6:$E$1788)*--($H$6:$H$1788=$K32)*--($A$6:$A$1788=$L$2)),0),"Average Model Year") -> 150 | N32: =IFERROR(ROUND(SUM((D$6:D$1788)*--($H$6:$H$1788=$K32)*--($A$6:$A$1788=$L$2))/SUM(($E$6:$E$1788)*--($H$6:$H$1788=$K32)*--($A$6:$A$1788=$L$2)),0),"Average Model Year") -> 310 | P32: Water Truck
A33: 2020 | B33: AirGrSupp - A/C Tug Narrow Body | C33: 1998 | D33: 331.6422246 | E33: 1.01034436 | F33: 68815.76161 | G33: 207.5 | H33: A/C Tug Narrow Body
A34: 2020 | B34: AirGrSupp - A/C Tug Narrow Body | C34: 1999 | D34: 497.4633369 | E34: 1.51551654 | F34: 43279.31031 | G34: 87 | H34: A/C Tug Narrow Body
A35: 2020 | B35: AirGrSupp - A/C Tug Narrow Body | C35: 1999 | D35: 331.6422246 | E35: 1.01034436 | F35: 41952.74141 | G35: 126.5 | H35: A/C Tug Narrow Body
A36: 2020 | B36: AirGrSupp - A/C Tug Narrow Body | C36: 1999 | D36: 497.4633369 | E36: 1.51551654 | F36: 97668.63515 | G36: 196.3333333 | H36: A/C Tug Narrow Body
A37: 2020 | B37: AirGrSupp - A/C Tug Narrow Body | C37: 2000 | D37: 165.8211123 | E37: 0.5051721801 | F37: 8125.234503 | G37: 49 | H37: A/C Tug Narrow Body
A38: 2020 | B38: AirGrSupp - A/C Tug Narrow Body | C38: 2000 | D38: 829.1055616 | E38: 2.525860901 | F38: 74287.85831 | G38: 89.6 | H38: A/C Tug Narrow Body
A39: 2020 | B39: AirGrSupp - A/C Tug Narrow Body | C39: 2000 | D39: 331.6422246 | E39: 1.01034436 | F39: 42781.84698 | G39: 129 | H39: A/C Tug Narrow Body
A40: 2020 | B40: AirGrSupp - A/C Tug Narrow Body | C40: 2000 | D40: 1160.747786 | E40: 3.536205261 | F40: 248565.8474 | G40: 214.1428571 | H40: A/C Tug Narrow Body
A41: 2020 | B41: AirGrSupp - A/C Tug Narrow Body | C41: 2001 | D41: 165.8211123 | E41: 0.5051721801 | F41: 7959.413391 | G41: 48 | H41: A/C Tug Narrow Body
A42: 2020 | B42: AirGrSupp - A/C Tug Narrow Body | C42: 2001 | D42: 2155.67446 | E42: 6.567238342 | F42: 244254.4984 | G42: 113.3076923 | H42: A/C Tug Narrow Body
A43: 2020 | B43: AirGrSupp - A/C Tug Narrow Body | C43: 2001 | D43: 165.8211123 | E43: 0.5051721801 | F43: 43113.4892 | G43: 260 | H43: A/C Tug Narrow Body
A44: 2020 | B44: AirGrSupp - A/C Tug Narrow Body | C44: 2002 | D44: 110.1801411 | E44: 0.5051721801 | F44: 5398.826912 | G44: 49 | H44: A/C Tug Narrow Body
A45: 2020 | B45: AirGrSupp - A/C Tug Narrow Body | C45: 2002 | D45: 331.6422246 | E45: 1.01034436 | F45: 42284.38364 | G45: 127.5 | H45: A/C Tug Narrow Body
A46: 2020 | B46: AirGrSupp - A/C Tug Narrow Body | C46: 2003 | D46: 1326.568898 | E46: 4.041377441 | F46: 158856.6256 | G46: 119.75 | H46: A/C Tug Narrow Body
A47: 2020 | B47: AirGrSupp - A/C Tug Narrow Body | C47: 2004 | D47: 165.8211123 | E47: 0.5051721801 | F47: 8125.234503 | G47: 49 | H47: A/C Tug Narrow Body
A48: 2020 | B48: AirGrSupp - A/C Tug Narrow Body | C48: 2004 | D48: 994.9266739 | E48: 3.031033081 | F48: 82744.73504 | G48: 83.16666667 | H48: A/C Tug Narrow Body
A49: 2020 | B49: AirGrSupp - A/C Tug Narrow Body | C49: 2005 | D49: 331.6422246 | E49: 1.01034436 | F49: 14260.61566 | G49: 43 | H49: A/C Tug Narrow Body
A50: 2020 | B50: AirGrSupp - A/C Tug Narrow Body | C50: 2005 | D50: 165.8211123 | E50: 0.5051721801 | F50: 16416.29012 | G50: 99 | H50: A/C Tug Narrow Body
A51: 2020 | B51: AirGrSupp - A/C Tug Narrow Body | C51: 2006 | D51: 165.8211123 | E51: 0.5051721801 | F51: 8291.055616 | G51: 50 | H51: A/C Tug Narrow Body
A52: 2020 | B52: AirGrSupp - A/C Tug Narrow Body | C52: 2006 | D52: 1824.032235 | E52: 5.556893982 | F52: 218552.226 | G52: 119.8181818 | H52: A/C Tug Narrow Body
A53: 2020 | B53: AirGrSupp - A/C Tug Narrow Body | C53: 2006 | D53: 331.6422246 | E53: 1.01034436 | F53: 67986.65605 | G53: 205 | H53: A/C Tug Narrow Body
A54: 2020 | B54: AirGrSupp - A/C Tug Narrow Body | C54: 2007 | D54: 4808.812257 | E54: 14.64999322 | F54: 578218.2186 | G54: 120.2413793 | H54: A/C Tug Narrow Body
A55: 2020 | B55: AirGrSupp - A/C Tug Narrow Body | C55: 2007 | D55: 497.4633369 | E55: 1.51551654 | F55: 114084.9253 | G55: 229.3333333 | H55: A/C Tug Narrow Body
A56: 2020 | B56: AirGrSupp - A/C Tug Narrow Body | C56: 2008 | D56: 1492.390011 | E56: 4.546549621 | F56: 205120.7159 | G56: 137.4444444 | H56: A/C Tug Narrow Body
A57: 2020 | B57: AirGrSupp - A/C Tug Narrow Body | C57: 2008 | D57: 1492.390011 | E57: 4.546549621 | F57: 301794.4244 | G57: 202.2222222 | H57: A/C Tug Narrow Body
A58: 2020 | B58: AirGrSupp - A/C Tug Narrow Body | C58: 2009 | D58: 0 | E58: 0 | F58: 0 | G58: 0 | H58: A/C Tug Narrow Body
A59: 2020 | B59: AirGrSupp - A/C Tug Narrow Body | C59: 2009 | D59: 165.8211123 | E59: 0.5051721801 | F59: 8125.234503 | G59: 49 | H59: A/C Tug Narrow Body
A60: 2020 | B60: AirGrSupp - A/C Tug Narrow Body | C60: 2009 | D60: 2321.495572 | E60: 7.072410522 | F60: 318542.3567 | G60: 137.2142857 | H60: A/C Tug Narrow Body
A61: 2020 | B61: AirGrSupp - A/C Tug Narrow Body | C61: 2010 | D61: 0 | E61: 0 | F61: 0 | G61: 0 | H61: A/C Tug Narrow Body
A62: 2020 | B62: AirGrSupp - A/C Tug Narrow Body | C62: 2010 | D62: 663.2844492 | E62: 2.020688721 | F62: 92859.82289 | G62: 140 | H62: A/C Tug Narrow Body
A63: 2020 | B63: AirGrSupp - A/C Tug Narrow Body | C63: 2010 | D63: 165.8211123 | E63: 0.5051721801 | F63: 45600.80589 | G63: 275 | H63: A/C Tug Narrow Body
A64: 2020 | B64: AirGrSupp - A/C Tug Narrow Body | C64: 2011 | D64: 0 | E64: 0 | F64: 0 | G64: 0 | H64: A/C Tug Narrow Body
A65: 2020 | B65: AirGrSupp - A/C Tug Narrow Body | C65: 2011 | D65: 331.6422246 | E65: 1.01034436 | F65: 19069.42792 | G65: 57.5 | H65: A/C Tug Narrow Body
A66: 2020 | B66: AirGrSupp - A/C Tug Narrow Body | C66: 2012 | D66: 0 | E66: 0 | F66: 0 | G66: 0 | H66: A/C Tug Narrow Body
A67: 2020 | B67: AirGrSupp - A/C Tug Narrow Body | C67: 2012 | D67: 663.2844492 | E67: 2.020688721 | F67: 102974.9107 | G67: 155.25 | H67: A/C Tug Narrow Body
A68: 2020 | B68: AirGrSupp - A/C Tug Narrow Body | C68: 2012 | D68: 331.6422246 | E68: 1.01034436 | F68: 83739.66172 | G68: 252.5 | H68: A/C Tug Narrow Body
A69: 2020 | B69: AirGrSupp - A/C Tug Narrow Body | C69: 2013 | D69: 497.4633369 | E69: 1.51551654 | F69: 46595.73256 | G69: 93.66666667 | H69: A/C Tug Narrow Body
A70: 2020 | B70: AirGrSupp - A/C Tug Narrow Body | C70: 2013 | D70: 829.1055616 | E70: 2.525860901 | F70: 122541.802 | G70: 147.8 | H70: A/C Tug Narrow Body
A71: 2020 | B71: AirGrSupp - A/C Tug Narrow Body | C71: 2013 | D71: 663.2844492 | E71: 2.020688721 | F71: 179915.9069 | G71: 271.25 | H71: A/C Tug Narrow Body
A72: 2020 | B72: AirGrSupp - A/C Tug Narrow Body | C72: 2014 | D72: 165.8211123 | E72: 0.5051721801 | F72: 8291.055616 | G72: 50 | H72: A/C Tug Narrow Body
A73: 2020 | B73: AirGrSupp - A/C Tug Narrow Body | C73: 2014 | D73: 1658.211123 | E73: 5.051721801 | F73: 153550.35 | G73: 92.6 | H73: A/C Tug Narrow Body
A74: 2020 | B74: AirGrSupp - A/C Tug Narrow Body | C74: 2014 | D74: 1160.747786 | E74: 3.536205261 | F74: 173448.8835 | G74: 149.4285714 | H74: A/C Tug Narrow Body
A75: 2020 | B75: AirGrSupp - A/C Tug Narrow Body | C75: 2014 | D75: 331.6422246 | E75: 1.01034436 | F75: 72132.18385 | G75: 217.5 | H75: A/C Tug Narrow Body
A76: 2020 | B76: AirGrSupp - A/C Tug Narrow Body | C76: 2015 | D76: 1326.568898 | E76: 4.041377441 | F76: 111763.4297 | G76: 84.25 | H76: A/C Tug Narrow Body
A77: 2020 | B77: AirGrSupp - A/C Tug Narrow Body | C77: 2015 | D77: 663.2844492 | E77: 2.020688721 | F77: 95347.13958 | G77: 143.75 | H77: A/C Tug Narrow Body
A78: 2020 | B78: AirGrSupp - A/C Tug Narrow Body | C78: 2015 | D78: 829.1055616 | E78: 2.525860901 | F78: 206944.7482 | G78: 249.6 | H78: A/C Tug Narrow Body
A79: 2020 | B79: AirGrSupp - A/C Tug Narrow Body | C79: 2016 | D79: 1326.568898 | E79: 4.041377441 | F79: 113919.1042 | G79: 85.875 | H79: A/C Tug Narrow Body
A80: 2020 | B80: AirGrSupp - A/C Tug Narrow Body | C80: 2016 | D80: 663.2844492 | E80: 2.020688721 | F80: 94849.67624 | G80: 143 | H80: A/C Tug Narrow Body
A81: 2020 | B81: AirGrSupp - A/C Tug Narrow Body | C81: 2017 | D81: 829.1055616 | E81: 2.525860901 | F81: 69810.68828 | G81: 84.2 | H81: A/C Tug Narrow Body
A82: 2020 | B82: AirGrSupp - A/C Tug Narrow Body | C82: 2017 | D82: 2155.67446 | E82: 6.567238342 | F82: 326004.3068 | G82: 151.2307692 | H82: A/C Tug Narrow Body
A83: 2020 | B83: AirGrSupp - A/C Tug Narrow Body | C83: 2017 | D83: 165.8211123 | E83: 0.5051721801 | F83: 30842.72689 | G83: 186 | H83: A/C Tug Narrow Body
A84: 2020 | B84: AirGrSupp - A/C Tug Narrow Body | C84: 2018 | D84: 165.8211123 | E84: 0.5051721801 | F84: 14592.25788 | G84: 88 | H84: A/C Tug Narrow Body
A85: 2020 | B85: AirGrSupp - A/C Tug Narrow Body | C85: 2018 | D85: 994.9266739 | E85: 3.031033081 | F85: 141279.5877 | G85: 142 | H85: A/C Tug Narrow Body
A86: 2020 | B86: AirGrSupp - A/C Tug Narrow Body | C86: 2019 | D86: 331.6422246 | E86: 1.01034436 | F86: 27857.94687 | G86: 84 | H86: A/C Tug Narrow Body
A87: 2020 | B87: AirGrSupp - A/C Tug Narrow Body | C87: 2019 | D87: 663.2844492 | E87: 2.020688721 | F87: 90869.96955 | G87: 137 | H87: A/C Tug Narrow Body
A88: 2020 | B88: AirGrSupp - A/C Tug Narrow Body | C88: 2019 | D88: 165.8211123 | E88: 0.5051721801 | F88: 34822.43359 | G88: 210 | H88: A/C Tug Narrow Body
A89: 2020 | B89: AirGrSupp - A/C Tug Narrow Body | C89: 2020 | D89: 497.4633369 | E89: 1.51551654 | F89: 47590.65923 | G89: 95.66666667 | H89: A/C Tug Narrow Body
A90: 2020 | B90: AirGrSupp - A/C Tug Narrow Body | C90: 2021 | D90: 165.8211123 | E90: 0.5051721801 | F90: 16582.11123 | G90: 100 | H90: A/C Tug Narrow Body
A91: 2020 | B91: AirGrSupp - A/C Tug Wide Body | C91: 1981 | D91: 125.5689754 | E91: 0.5757294593 | F91: 50227.59014 | G91: 400 | H91: A/C Tug Wide Body
A92: 2020 | B92: AirGrSupp - A/C Tug Wide Body | C92: 1985 | D92: 0 | E92: 0 | F92: 0 | G92: 0 | H92: A/C Tug Wide Body
A93: 2020 | B93: AirGrSupp - A/C Tug Wide Body | C93: 1985 | D93: 229.16338 | E93: 0.5757294593 | F93: 14437.29294 | G93: 63 | H93: A/C Tug Wide Body
A94: 2020 | B94: AirGrSupp - A/C Tug Wide Body | C94: 1990 | D94: 0 | E94: 0 | F94: 0 | G94: 0 | H94: A/C Tug Wide Body
A95: 2020 | B95: AirGrSupp - A/C Tug Wide Body | C95: 1990 | D95: 229.16338 | E95: 0.5757294593 | F95: 37811.9577 | G95: 165 | H95: A/C Tug Wide Body
A96: 2020 | B96: AirGrSupp - A/C Tug Wide Body | C96: 1990 | D96: 229.16338 | E96: 0.5757294593 | F96: 43541.0422 | G96: 190 | H96: A/C Tug Wide Body
A97: 2020 | B97: AirGrSupp - A/C Tug Wide Body | C97: 1993 | D97: 229.16338 | E97: 0.5757294593 | F97: 48124.3098 | G97: 210 | H97: A/C Tug Wide Body
A98: 2020 | B98: AirGrSupp - A/C Tug Wide Body | C98: 1994 | D98: 125.5689754 | E98: 0.5757294593 | F98: 62784.48768 | G98: 500 | H98: A/C Tug Wide Body
A99: 2020 | B99: AirGrSupp - A/C Tug Wide Body | C99: 1997 | D99: 229.16338 | E99: 0.5757294593 | F99: 19708.05068 | G99: 86 | H99: A/C Tug Wide Body
A100: 2020 | B100: AirGrSupp - A/C Tug Wide Body | C100: 1997 | D100: 687.4901401 | E100: 1.727188378 | F100: 309370.563 | G100: 450 | H100: A/C Tug Wide Body
A101: 2020 | B101: AirGrSupp - A/C Tug Wide Body | C101: 1998 | D101: 229.16338 | E101: 0.5757294593 | F101: 25207.9718 | G101: 110 | H101: A/C Tug Wide Body
A102: 2020 | B102: AirGrSupp - A/C Tug Wide Body | C102: 1998 | D102: 354.7323554 | E102: 1.151458919 | F102: 80897.81237 | G102: 228.0530973 | H102: A/C Tug Wide Body
A103: 2020 | B103: AirGrSupp - A/C Tug Wide Body | C103: 1999 | D103: 229.16338 | E103: 0.5757294593 | F103: 35291.16052 | G103: 154 | H103: A/C Tug Wide Body
A104: 2020 | B104: AirGrSupp - A/C Tug Wide Body | C104: 1999 | D104: 1145.8169 | E104: 2.878647296 | F104: 233746.6476 | G104: 204 | H104: A/C Tug Wide Body
A105: 2020 | B105: AirGrSupp - A/C Tug Wide Body | C105: 1999 | D105: 125.5689754 | E105: 0.5757294593 | F105: 79108.45447 | G105: 630 | H105: A/C Tug Wide Body
A106: 2020 | B106: AirGrSupp - A/C Tug Wide Body | C106: 2000 | D106: 458.32676 | E106: 1.151458919 | F106: 70123.99429 | G106: 153 | H106: A/C Tug Wide Body
A107: 2020 | B107: AirGrSupp - A/C Tug Wide Body | C107: 2000 | D107: 1145.8169 | E107: 2.878647296 | F107: 306620.6025 | G107: 267.6 | H107: A/C Tug Wide Body
A108: 2020 | B108: AirGrSupp - A/C Tug Wide Body | C108: 2000 | D108: 125.5689754 | E108: 0.5757294593 | F108: 79108.45447 | G108: 630 | H108: A/C Tug Wide Body
A109: 2020 | B109: AirGrSupp - A/C Tug Wide Body | C109: 2001 | D109: 229.16338 | E109: 0.5757294593 | F109: 29791.2394 | G109: 130 | H109: A/C Tug Wide Body
A110: 2020 | B110: AirGrSupp - A/C Tug Wide Body | C110: 2001 | D110: 229.16338 | E110: 0.5757294593 | F110: 45145.18586 | G110: 197 | H110: A/C Tug Wide Body
A111: 2020 | B111: AirGrSupp - A/C Tug Wide Body | C111: 2001 | D111: 1145.8169 | E111: 2.878647296 | F111: 388431.9291 | G111: 339 | H111: A/C Tug Wide Body
A112: 2020 | B112: AirGrSupp - A/C Tug Wide Body | C112: 2002 | D112: 687.4901401 | E112: 1.727188378 | F112: 235809.118 | G112: 343 | H112: A/C Tug Wide Body
A113: 2020 | B113: AirGrSupp - A/C Tug Wide Body | C113: 2003 | D113: 229.16338 | E113: 0.5757294593 | F113: 58665.82529 | G113: 256 | H113: A/C Tug Wide Body
A114: 2020 | B114: AirGrSupp - A/C Tug Wide Body | C114: 2004 | D114: 229.16338 | E114: 0.5757294593 | F114: 14666.45632 | G114: 64 | H114: A/C Tug Wide Body
A115: 2020 | B115: AirGrSupp - A/C Tug Wide Body | C115: 2004 | D115: 458.32676 | E115: 1.151458919 | F115: 148268.7069 | G115: 323.5 | H115: A/C Tug Wide Body
A116: 2020 | B116: AirGrSupp - A/C Tug Wide Body | C116: 2005 | D116: 916.6535201 | E116: 2.302917837 | F116: 78832.20273 | G116: 86 | H116: A/C Tug Wide Body
A117: 2020 | B117: AirGrSupp - A/C Tug Wide Body | C117: 2005 | D117: 458.32676 | E117: 1.151458919 | F117: 182184.8871 | G117: 397.5 | H117: A/C Tug Wide Body
A118: 2020 | B118: AirGrSupp - A/C Tug Wide Body | C118: 2006 | D118: 229.16338 | E118: 0.5757294593 | F118: 34832.83376 | G118: 152 | H118: A/C Tug Wide Body
A119: 2020 | B119: AirGrSupp - A/C Tug Wide Body | C119: 2006 | D119: 1604.14366 | E119: 4.030106215 | F119: 465201.6614 | G119: 290 | H119: A/C Tug Wide Body
A120: 2020 | B120: AirGrSupp - A/C Tug Wide Body | C120: 2006 | D120: 229.16338 | E120: 0.5757294593 | F120: 135206.3942 | G120: 590 | H120: A/C Tug Wide Body
A121: 2020 | B121: AirGrSupp - A/C Tug Wide Body | C121: 2007 | D121: 229.16338 | E121: 0.5757294593 | F121: 43541.0422 | G121: 190 | H121: A/C Tug Wide Body
A122: 2020 | B122: AirGrSupp - A/C Tug Wide Body | C122: 2007 | D122: 229.16338 | E122: 0.5757294593 | F122: 91665.35201 | G122: 400 | H122: A/C Tug Wide Body
A123: 2020 | B123: AirGrSupp - A/C Tug Wide Body | C123: 2008 | D123: 0 | E123: 0 | F123: 0 | G123: 0 | H123: A/C Tug Wide Body
A124: 2020 | B124: AirGrSupp - A/C Tug Wide Body | C124: 2008 | D124: 458.32676 | E124: 1.151458919 | F124: 76540.56893 | G124: 167 | H124: A/C Tug Wide Body
A125: 2020 | B125: AirGrSupp - A/C Tug Wide Body | C125: 2008 | D125: 2291.6338 | E125: 5.757294593 | F125: 446868.591 | G125: 195 | H125: A/C Tug Wide Body
A126: 2020 | B126: AirGrSupp - A/C Tug Wide Body | C126: 2008 | D126: 229.16338 | E126: 0.5757294593 | F126: 69665.66753 | G126: 304 | H126: A/C Tug Wide Body
A127: 2020 | B127: AirGrSupp - A/C Tug Wide Body | C127: 2009 | D127: 458.32676 | E127: 1.151458919 | F127: 112060.8928 | G127: 244.5 | H127: A/C Tug Wide Body
A128: 2020 | B128: AirGrSupp - A/C Tug Wide Body | C128: 2010 | D128: 0 | E128: 0 | F128: 0 | G128: 0 | H128: A/C Tug Wide Body
A129: 2020 | B129: AirGrSupp - A/C Tug Wide Body | C129: 2011 | D129: 0 | E129: 0 | F129: 0 | G129: 0 | H129: A/C Tug Wide Body
A130: 2020 | B130: AirGrSupp - A/C Tug Wide Body | C130: 2011 | D130: 229.16338 | E130: 0.5757294593 | F130: 36666.1408 | G130: 160 | H130: A/C Tug Wide Body
A131: 2020 | B131: AirGrSupp - A/C Tug Wide Body | C131: 2011 | D131: 458.32676 | E131: 1.151458919 | F131: 116873.3238 | G131: 255 | H131: A/C Tug Wide Body
A132: 2020 | B132: AirGrSupp - A/C Tug Wide Body | C132: 2012 | D132: 458.32676 | E132: 1.151458919 | F132: 62790.76613 | G132: 137 | H132: A/C Tug Wide Body
A133: 2020 | B133: AirGrSupp - A/C Tug Wide Body | C133: 2012 | D133: 458.32676 | E133: 1.151458919 | F133: 96248.61961 | G133: 210 | H133: A/C Tug Wide Body
A134: 2020 | B134: AirGrSupp - A/C Tug Wide Body | C134: 2013 | D134: 229.16338 | E134: 0.5757294593 | F134: 10770.67886 | G134: 47 | H134: A/C Tug Wide Body
A135: 2020 | B135: AirGrSupp - A/C Tug Wide Body | C135: 2013 | D135: 229.16338 | E135: 0.5757294593 | F135: 36666.1408 | G135: 160 | H135: A/C Tug Wide Body
A136: 2020 | B136: AirGrSupp - A/C Tug Wide Body | C136: 2013 | D136: 458.32676 | E136: 1.151458919 | F136: 119164.9576 | G136: 260 | H136: A/C Tug Wide Body
A137: 2020 | B137: AirGrSupp - A/C Tug Wide Body | C137: 2014 | D137: 229.16338 | E137: 0.5757294593 | F137: 11458.169 | G137: 50 | H137: A/C Tug Wide Body
A138: 2020 | B138: AirGrSupp - A/C Tug Wide Body | C138: 2014 | D138: 229.16338 | E138: 0.5757294593 | F138: 19708.05068 | G138: 86 | H138: A/C Tug Wide Body
A139: 2020 | B139: AirGrSupp - A/C Tug Wide Body | C139: 2014 | D139: 1604.14366 | E139: 4.030106215 | F139: 375140.4531 | G139: 233.8571429 | H139: A/C Tug Wide Body
A140: 2020 | B140: AirGrSupp - A/C Tug Wide Body | C140: 2015 | D140: 1833.30704 | E140: 4.605835674 | F140: 476888.9938 | G140: 260.125 | H140: A/C Tug Wide Body
A141: 2020 | B141: AirGrSupp - A/C Tug Wide Body | C141: 2016 | D141: 229.16338 | E141: 0.5757294593 | F141: 14437.29294 | G141: 63 | H141: A/C Tug Wide Body
A142: 2020 | B142: AirGrSupp - A/C Tug Wide Body | C142: 2016 | D142: 687.4901401 | E142: 1.727188378 | F142: 156289.4252 | G142: 227.3333333 | H142: A/C Tug Wide Body
A143: 2020 | B143: AirGrSupp - A/C Tug Wide Body | C143: 2017 | D143: 0 | E143: 0 | F143: 0 | G143: 0 | H143: A/C Tug Wide Body
A144: 2020 | B144: AirGrSupp - A/C Tug Wide Body | C144: 2017 | D144: 1374.98028 | E144: 3.454376756 | F144: 388661.0925 | G144: 282.6666667 | H144: A/C Tug Wide Body
A145: 2020 | B145: AirGrSupp - A/C Tug Wide Body | C145: 2018 | D145: 229.16338 | E145: 0.5757294593 | F145: 48124.3098 | G145: 210 | H145: A/C Tug Wide Body
A146: 2020 | B146: AirGrSupp - A/C Tug Wide Body | C146: 2018 | D146: 458.32676 | E146: 1.151458919 | F146: 146664.5632 | G146: 320 | H146: A/C Tug Wide Body
A147: 2020 | B147: AirGrSupp - A/C Tug Wide Body | C147: 2019 | D147: 0 | E147: 0 | F147: 0 | G147: 0 | H147: A/C Tug Wide Body
A148: 2020 | B148: AirGrSupp - A/C Tug Wide Body | C148: 2019 | D148: 1145.8169 | E148: 2.878647296 | F148: 301349.8447 | G148: 263 | H148: A/C Tug Wide Body
A149: 2020 | B149: AirGrSupp - A/C Tug Wide Body | C149: 2020 | D149: 229.16338 | E149: 0.5757294593 | F149: 56603.35487 | G149: 247 | H149: A/C Tug Wide Body
A150: 2020 | B150: AirGrSupp - A/C Tug Wide Body | C150: 2021 | D150: 229.16338 | E150: 0.5757294593 | F150: 68519.85063 | G150: 299 | H150: A/C Tug Wide Body
A151: 2020 | B151: AirGrSupp - Baggage Tug | C151: 1969 | D151: 5694.144117 | E151: 7.804919616 | F151: 529555.4029 | G151: 93 | H151: Baggage Tug
A152: 2020 | B152: AirGrSupp - Baggage Tug | C152: 1985 | D152: 189.8048039 | E152: 0.2601639872 | F152: 8920.825784 | G152: 47 | H152: Baggage Tug
A153: 2020 | B153: AirGrSupp - Baggage Tug | C153: 1987 | D153: 0 | E153: 0 | F153: 0 | G153: 0 | H153: Baggage Tug
A154: 2020 | B154: AirGrSupp - Baggage Tug | C154: 1988 | D154: 0 | E154: 0 | F154: 0 | G154: 0 | H154: Baggage Tug
A155: 2020 | B155: AirGrSupp - Baggage Tug | C155: 1988 | D155: 815.9620569 | E155: 1.300819936 | F155: 26926.74788 | G155: 33 | H155: Baggage Tug
A156: 2020 | B156: AirGrSupp - Baggage Tug | C156: 1990 | D156: 0 | E156: 0 | F156: 0 | G156: 0 | H156: Baggage Tug
A157: 2020 | B157: AirGrSupp - Baggage Tug | C157: 1992 | D157: 56.74284123 | E157: 0.2601639872 | F157: 4425.941616 | G157: 78 | H157: Baggage Tug
A158: 2020 | B158: AirGrSupp - Baggage Tug | C158: 1993 | D158: 189.8048039 | E158: 0.2601639872 | F158: 9300.435392 | G158: 49 | H158: Baggage Tug
A159: 2020 | B159: AirGrSupp - Baggage Tug | C159: 1994 | D159: 759.2192157 | E159: 1.040655949 | F159: 49349.24902 | G159: 65 | H159: Baggage Tug
A160: 2020 | B160: AirGrSupp - Baggage Tug | C160: 1995 | D160: 189.8048039 | E160: 0.2601639872 | F160: 12337.31225 | G160: 65 | H160: Baggage Tug
A161: 2020 | B161: AirGrSupp - Baggage Tug | C161: 1996 | D161: 436.3524491 | E161: 0.7804919616 | F161: 38980.81878 | G161: 89.33333333 | H161: Baggage Tug
A162: 2020 | B162: AirGrSupp - Baggage Tug | C162: 1997 | D162: 0 | E162: 0 | F162: 0 | G162: 0 | H162: Baggage Tug
A163: 2020 | B163: AirGrSupp - Baggage Tug | C163: 1997 | D163: 379.6096078 | E163: 0.5203279744 | F163: 18600.87078 | G163: 49 | H163: Baggage Tug
A164: 2020 | B164: AirGrSupp - Baggage Tug | C164: 1998 | D164: 56.74284123 | E164: 0.2601639872 | F164: 4425.941616 | G164: 78 | H164: Baggage Tug
A165: 2020 | B165: AirGrSupp - Baggage Tug | C165: 1999 | D165: 2277.657647 | E165: 3.121967847 | F165: 136659.4588 | G165: 60 | H165: Baggage Tug
A166: 2020 | B166: AirGrSupp - Baggage Tug | C166: 1999 | D166: 189.8048039 | E166: 0.2601639872 | F166: 23725.60049 | G166: 125 | H166: Baggage Tug
A167: 2020 | B167: AirGrSupp - Baggage Tug | C167: 2000 | D167: 1898.048039 | E167: 2.601639872 | F167: 114831.9064 | G167: 60.5 | H167: Baggage Tug
A168: 2020 | B168: AirGrSupp - Baggage Tug | C168: 2001 | D168: 5314.53451 | E168: 7.284591642 | F168: 318872.0706 | G168: 60 | H168: Baggage Tug
A169: 2020 | B169: AirGrSupp - Baggage Tug | C169: 2001 | D169: 759.2192157 | E169: 1.040655949 | F169: 136659.4588 | G169: 180 | H169: Baggage Tug
A170: 2020 | B170: AirGrSupp - Baggage Tug | C170: 2002 | D170: 3226.681667 | E170: 4.422787783 | F170: 156778.768 | G170: 48.58823529 | H170: Baggage Tug
A171: 2020 | B171: AirGrSupp - Baggage Tug | C171: 2003 | D171: 949.0240196 | E171: 1.300819936 | F171: 56941.44117 | G171: 60 | H171: Baggage Tug
A172: 2020 | B172: AirGrSupp - Baggage Tug | C172: 2004 | D172: 379.6096078 | E172: 0.5203279744 | F172: 18600.87078 | G172: 49 | H172: Baggage Tug
A173: 2020 | B173: AirGrSupp - Baggage Tug | C173: 2004 | D173: 189.8048039 | E173: 0.2601639872 | F173: 11388.28823 | G173: 60 | H173: Baggage Tug
A174: 2020 | B174: AirGrSupp - Baggage Tug | C174: 2005 | D174: 1138.828823 | E174: 1.560983923 | F174: 68329.72941 | G174: 60 | H174: Baggage Tug
A175: 2020 | B175: AirGrSupp - Baggage Tug | C175: 2006 | D175: 6643.168137 | E175: 9.105739552 | F175: 431805.9289 | G175: 65 | H175: Baggage Tug
A176: 2020 | B176: AirGrSupp - Baggage Tug | C176: 2007 | D176: 1898.048039 | E176: 2.601639872 | F176: 79718.01764 | G176: 42 | H176: Baggage Tug
A177: 2020 | B177: AirGrSupp - Baggage Tug | C177: 2007 | D177: 2277.657647 | E177: 3.121967847 | F177: 151654.0383 | G177: 66.58333333 | H177: Baggage Tug
A178: 2020 | B178: AirGrSupp - Baggage Tug | C178: 2008 | D178: 759.2192157 | E178: 1.040655949 | F178: 50108.46823 | G178: 66 | H178: Baggage Tug
A179: 2020 | B179: AirGrSupp - Baggage Tug | C179: 2011 | D179: 3226.681667 | E179: 4.422787783 | F179: 300081.395 | G179: 93 | H179: Baggage Tug
A180: 2020 | B180: AirGrSupp - Baggage Tug | C180: 2012 | D180: 7212.582549 | E180: 9.886231514 | F180: 670770.177 | G180: 93 | H180: Baggage Tug
A181: 2020 | B181: AirGrSupp - Baggage Tug | C181: 2013 | D181: 7212.582549 | E181: 9.886231514 | F181: 670770.177 | G181: 93 | H181: Baggage Tug
A182: 2020 | B182: AirGrSupp - Baggage Tug | C182: 2014 | D182: 0 | E182: 0 | F182: 0 | G182: 0 | H182: Baggage Tug
A183: 2020 | B183: AirGrSupp - Baggage Tug | C183: 2014 | D183: 10059.65461 | E183: 13.78869132 | F183: 846339.6207 | G183: 84.13207547 | H183: Baggage Tug
A184: 2020 | B184: AirGrSupp - Baggage Tug | C184: 2015 | D184: 7402.387353 | E184: 10.1463955 | F184: 449837.3853 | G184: 60.76923077 | H184: Baggage Tug
A185: 2020 | B185: AirGrSupp - Baggage Tug | C185: 2016 | D185: 189.8048039 | E185: 0.2601639872 | F185: 9300.435392 | G185: 49 | H185: Baggage Tug
A186: 2020 | B186: AirGrSupp - Baggage Tug | C186: 2016 | D186: 569.4144117 | E186: 0.7804919616 | F186: 45553.15294 | G186: 80 | H186: Baggage Tug
A187: 2020 | B187: AirGrSupp - Baggage Tug | C187: 2017 | D187: 379.6096078 | E187: 0.5203279744 | F187: 33405.64549 | G187: 88 | H187: Baggage Tug
A188: 2020 | B188: AirGrSupp - Baggage Tug | C188: 2018 | D188: 3606.291274 | E188: 4.943115757 | F188: 217326.5005 | G188: 60.26315789 | H188: Baggage Tug
A189: 2020 | B189: AirGrSupp - Belt Loader | C189: 1974 | D189: 66.26718954 | E189: 0.3038327986 | F189: 5566.443921 | G189: 84 | H189: Belt Loader
A190: 2020 | B190: AirGrSupp - Belt Loader | C190: 1978 | D190: 155.0652235 | E190: 0.3038327986 | F190: 15506.52235 | G190: 100 | H190: Belt Loader
A191: 2020 | B191: AirGrSupp - Belt Loader | C191: 1979 | D191: 0 | E191: 0 | F191: 0 | G191: 0 | H191: Belt Loader
A192: 2020 | B192: AirGrSupp - Belt Loader | C192: 1980 | D192: 0 | E192: 0 | F192: 0 | G192: 0 | H192: Belt Loader
A193: 2020 | B193: AirGrSupp - Belt Loader | C193: 1980 | D193: 155.0652235 | E193: 0.3038327986 | F193: 15506.52235 | G193: 100 | H193: Belt Loader
A194: 2020 | B194: AirGrSupp - Belt Loader | C194: 1982 | D194: 66.26718954 | E194: 0.3038327986 | F194: 5964.047058 | G194: 90 | H194: Belt Loader
A195: 2020 | B195: AirGrSupp - Belt Loader | C195: 1982 | D195: 66.26718954 | E195: 0.3038327986 | F195: 41416.99346 | G195: 625 | H195: Belt Loader
A196: 2020 | B196: AirGrSupp - Belt Loader | C196: 1984 | D196: 155.0652235 | E196: 0.3038327986 | F196: 6977.935058 | G196: 45 | H196: Belt Loader
A197: 2020 | B197: AirGrSupp - Belt Loader | C197: 1987 | D197: 66.26718954 | E197: 0.3038327986 | F197: 6759.253333 | G197: 102 | H197: Belt Loader
A198: 2020 | B198: AirGrSupp - Belt Loader | C198: 1988 | D198: 155.0652235 | E198: 0.3038327986 | F198: 6977.935058 | G198: 45 | H198: Belt Loader
A199: 2020 | B199: AirGrSupp - Belt Loader | C199: 1989 | D199: 155.0652235 | E199: 0.3038327986 | F199: 6977.935058 | G199: 45 | H199: Belt Loader
A200: 2020 | B200: AirGrSupp - Belt Loader | C200: 1990 | D200: 465.1956706 | E200: 0.9114983958 | F200: 25585.76188 | G200: 55 | H200: Belt Loader
A201: 2020 | B201: AirGrSupp - Belt Loader | C201: 1991 | D201: 310.130447 | E201: 0.6076655972 | F201: 17057.17459 | G201: 55 | H201: Belt Loader
... 1587 more rows

Sheet fleet-calculator
A2: CONFIDENTIAL - THIS TAB FOR USE BY AIRPORT ONLY | E2: =IFERROR(SUMPRODUCT($R$6:$R$9857,$N$6:$N$9857)/(SUMPRODUCT(--("NA"<>$R$6:$R$9857),$N$6:$N$9857)), "") -> 1.516344555 | F2: hp-weighted average NOx+HC EF (g/bhp-hr) for entire airport | N2: From LAWA Tenant Reporting sheet - UNUSED | S2: CONFIDENTIAL - THIS TAB FOR USE BY AIRPORT ONLY | V2: Calendar Year | W2: 2021 | Y2: input cell | Z2: formula cell | AA2: Emission Factors and Deterioration Rates (g/bhp-hr [no fuel correction]) | AM2: Fuel Correction Factors | AU2: Annual Emissions
BC4: [1] | BD4: [2] | BE4: [3] | BF4: [4] | BI4: References
A5: AQMD ID | B5: Owner GSE Type Designation | C5: GSE Category | D5: Vehicle Manufacturer | E5: Vehicle Model | F5: Your Vehicle Number | G5: Engine Model Year | H5: Engine Horsepower | I5: Designated Low Use | J5: On-Road Engine | K5: Purchase Year / Type if Electric | L5: Emission Factor (only if non-standard; units of g/bhp-hr) | M5: Fuel Type | N5: Engine HP (Default if Unknown) | O5: HP Bin | P5: Rule (ORD or LSI) | Q5: Type (Off-Road or On-Road) | R5: Engine Standard NOX+HC EF (g/bhp-hr) | S5: Equipment Designation | T5: Off-/On-Road (all LPG as off-road) | U5: EMFAC Engine Surrogate (on-road only) | V5: Fuel | W5: Engine Tier (off-road diesel only) | X5: Horsepower (or default) | Y5: Horsepower Bin | Z5: Model Year (or default) | AA5: THCzh Exh (fully deteriorated for on-road equipment) | AB5: THCdr Exh | AC5: COzh Exh (fully deteriorated for on-road equipment) | AD5: COdr Exh | AE5: NOXzh Exh (fully deteriorated for on-road equipment) | AF5: NOXdr Exh | AG5: PMzh Exh (fully deteriorated for on-road equipment) | AH5: PMdr Exh | AI5: CO2zh Exh (fully deteriorated for on-road equipment) | AJ5: CO2dr Exh | AK5: Low-/In- Use | AL5: Activity (hours per year) | AM5: THC Fuel Correction Factor | AN5: NOX Fuel Correction Factor | AO5: PM Fuel Correction Factor | AP5: CO Fuel Correction Factor | AQ5: Load Factor | AU5: ROG (grams) | AV5: CO (grams) | AW5: NOX (grams) | AX5: PM10 (grams) | AY5: PM2.5 (grams) | AZ5: CO2 (grams) | BA5: CH4 (grams) | BB5: N2O (grams) | BC5: CO2e (grams) | BD5: FUEL (gallons) | BE5: SOX (grams) | BF5: Deterioration Rate Hours | BG5: Prorate (fraction of year at airport) | BH5: noxrank | BI5: [1] https://www.ghgprotocol.org/sites/default/files/ghgp/Global-Warming-Potential-Values%20%28Feb%2016%202016%29_1.pdf [2] https://www.epa.gov/sites/default/files/2021-04/documents/emission-factors_apr2021.pdf [3] https://www.epa.gov/sites/production/files/2014-01/gallonspoundsconversion.xls [4] Deterioration rate caps were provided by SCAQMD by email on August 13, 2020.
A6: G-0006 | B6: Generator (Light Plant, portable unit) | C6: Generator (Light Plant, portable unit) | D6: Onan | E6: MDKBV | F6: 743 | G6: 2008 | H6: 31 | I6: No | J6: No | M6: Diesel | N6: 31 | O6: 25 | P6: ORD | Q6: Off-Road | R6: 5.6 | S6: Generator | T6: =IF($S$6:$S$9857="","",IF($J$6:$J$9857="No","Off-Road",IF(_xlfn.ANCHORARRAY($V$6)="LPG","Off-Road","On-Road"))) -> Off-Road | U6: =IF($S$6:$S$9857="","",IF(_xlfn.ANCHORARRAY($T$6)="Off-Road","--",IF(_xlfn.ANCHORARRAY($V$6)="Diesel",_xlfn.XLOOKUP($S$6:$S$9857,'onroad-factors'!$A$6:$A$32,'onroad-factors'!$C$6:$C$32),_xlfn.XLOOKUP($S$6:$S$9857,'onroad-factors'!$A$6:$A$32,'onroad-factors'!$E$6:$E$32)))) -> -- | V6: =IF($S$6:$S$9857="","",IF($M$6:$M$9857="Electric","Electric",IF($M$6:$M$9857="Gasoline","Gasoline",IF($M$6:$M$9857="Diesel","Diesel","LPG")))) -> Diesel | W6: =IF($S$6:$S$9857="","",IF(_xlfn.ANCHORARRAY($T$6)="On-Road","--",IF(_xlfn.ANCHORARRAY($V$6)<>"Diesel","--",INDEX(tier!$C$6:$K$27,_xlfn.IFNA(MATCH(_xlfn.ANCHORARRAY($Z$6),tier!$B$6:$B$27,1),IF(_xlfn.ANCHORARRAY($Z6)<=tier!$B$6,1,COUNTA(tier!$B$6:$B$27))),MATCH(_xlfn.ANCHORARRAY($Y$6),tier!$C$5:$K$5,0))))) -> Tier 4i | X6: =IF($S$6:$S$9857="","",IF($H$6:$H$9857>0,$H$6:$H$9857,_xlfn.XLOOKUP($S$6:$S$9857,activity!$K$6:$K$32,activity!$M$6:$M$32))) -> 31 | Y6: =IF($S$6:$S$9857="","",IF(_xlfn.ANCHORARRAY($T$6)="On-Road","--",IF(_xlfn.ANCHORARRAY($V$6)="Electric","--",IF(_xlfn.ANCHORARRAY($V$6)="LPG",_xlfn.IFNA(INDEX({300,175,100,75,50},MATCH(_xlfn.ANCHORARRAY($X$6),{299.99,174.99,99.99,74.99,49.99},-1)),300),IF(_xlfn.ANCHORARRAY($V$6)="Gasoline",_xlfn.IFNA(INDEX({300,175,100,75,50,15},MATCH(_xlfn.ANCHORARRAY($X$6),{299.99,174.99,99.99,74.99,49.99,14.99},-1)),300),INDEX({9999,750,600,300,175,100,75,50,25},MATCH(_xlfn.ANCHORARRAY($X$6),{9999,749.99,599.99,299.99,174.99,99.99,74.99,49.99,24.99},-1))))))) -> 50 | Z6: =IF($S$6:$S$9857="","",IF($G$6:$G$9857>0,$G$6:$G$9857,_xlfn.XLOOKUP($S$6:$S$9857,activity!$K$6:$K$32,activity!$L$6:$L$32))) -> 2008 | AA6: =IF($S$6:$S$9857="","",IF(_xlfn.ANCHORARRAY($V$6)="Electric","--",IF(_xlfn.ANCHORARRAY($T$6)="Off-Road",_xlfn.XLOOKUP(_xlfn.ANCHORARRAY($V$6)&"-"&_xlfn.ANCHORARRAY($Y$6)&"-"&_xlfn.ANCHORARRAY($Z$6),'offroad-factors'!$B$1:$B$1465&"-"&'offroad-factors'!$C$1:$C$1465&"-"&'offroad-factors'!$D$1:$D$1465,'offroad-factors'!E$1:E$1465), _xlfn.IFNA(_xlfn.XLOOKUP($W$2&"_"&_xlfn.ANCHORARRAY($U$6)&"_"&_xlfn.ANCHORARRAY($Z$6)&"_"&_xlfn.ANCHORARRAY($V$6),'onroad-factors'!$B$36:$B$13671&"_"&'onroad-factors'!$C$36:$C$13671&"_"&'onroad-factors'!$D$36:$D$13671&"_"&'onroad-factors'!$F$36:$F$13671,'onroad-factors'!$BS$36:$BS$13671), _xlfn.XLOOKUP($W$2&"_"&_xlfn.ANCHORARRAY($U$6)&"_"&_xlfn.MINIFS('onroad-factors'!$D$36:$D$13671,'onroad-factors'!$B$36:$B$13671,$W$2,'onroad-factors'!$C$36:$C$13671,_xlfn.ANCHORARRAY($U$6),'onroad-factors'!$F$36:$F$13671,_xlfn.ANCHORARRAY($V$6))&"_"&_xlfn.ANCHORARRAY($V$6),'onroad-factors'!$B$36:$B$13671&"_"&'onroad-factors'!$C$36:$C$13671&"_"&'onroad-factors'!$D$36:$D$13671&"_"&'onroad-factors'!$F$36:$F$13671,'onroad-factors'!$BS$36:$BS$13671))/_xlfn.ANCHORARRAY($AQ$6)/_xlfn.ANCHORARRAY($AM$6)/_xlfn.ANCHORARRAY($X$6)))) -> 0.1 | AB6: =IF($S$6:$S$9857="","",IF(_xlfn.ANCHORARRAY($V$6)="Electric","--",IF(_xlfn.ANCHORARRAY($T$6)="On-Road",0,_xlfn.XLOOKUP(_xlfn.ANCHORARRAY($V$6)&"-"&_xlfn.ANCHORARRAY($Y$6)&"-"&_xlfn.ANCHORARRAY($Z$6),'offroad-factors'!$B$1:$B$1465&"-"&'offroad-factors'!$C$1:$C$1465&"-"&'offroad-factors'!$D$1:$D$1465,'offroad-factors'!F$1:F$1465)))) -> 4e-05 | AC6: =IF($S$6:$S$9857="","",IF(_xlfn.ANCHORARRAY($V$6)="Electric","--",IF(_xlfn.ANCHORARRAY($T$6)="Off-Road",_xlfn.XLOOKUP(_xlfn.ANCHORARRAY($V$6)&"-"&_xlfn.ANCHORARRAY($Y$6)&"-"&_xlfn.ANCHORARRAY($Z$6),'offroad-factors'!$B$1:$B$1465&"-"&'offroad-factors'!$C$1:$C$1465&"-"&'offroad-factors'!$D$1:$D$1465,'offroad-factors'!G$1:G$1465), _xlfn.IFNA(_xlfn.XLOOKUP($W$2&"_"&_xlfn.ANCHORARRAY($U$6)&"_"&_xlfn.ANCHORARRAY($Z$6)&"_"&_xlfn.ANCHORARRAY($V$6),'onroad-factors'!$B$36:$B$13671&"_"&'onroad-factors'!$C$36:$C$13671&"_"&'onroad-factors'!$D$36:$D$13671&"_"&'onroad-factors'!$F$36:$F$13671,'onroad-factors'!$BT$36:$BT$13671), _xlfn.XLOOKUP($W$2&"_"&_xlfn.ANCHORARRAY($U$6)&"_"&_xlfn.MINIFS('onroad-factors'!$D$36:$D$13671,'onroad-factors'!$B$36:$B$13671,$W$2,'onroad-factors'!$C$36:$C$13671,_xlfn.ANCHORARRAY($U$6),'onroad-factors'!$F$36:$F$13671,_xlfn.ANCHORARRAY($V$6))&"_"&_xlfn.ANCHORARRAY($V$6),'onroad-factors'!$B$36:$B$13671&"_"&'onroad-factors'!$C$36:$C$13671&"_"&'onroad-factors'!$D$36:$D$13671&"_"&'onroad-factors'!$F$36:$F$13671,'onroad-factors'!$BT$36:$BT$13671))/_xlfn.ANCHORARRAY($AQ$6)/_xlfn.ANCHORARRAY(AP6)/_xlfn.ANCHORARRAY($X$6)))) -> 2.72 | AD6: =IF($S$6:$S$9857="","",IF(_xlfn.ANCHORARRAY($V$6)="Electric","--",IF(_xlfn.ANCHORARRAY($T$6)="On-Road",0,_xlfn.XLOOKUP(_xlfn.ANCHORARRAY($V$6)&"-"&_xlfn.ANCHORARRAY($Y$6)&"-"&_xlfn.ANCHORARRAY($Z$6),'offroad-factors'!$B$1:$B$1465&"-"&'offroad-factors'!$C$1:$C$1465&"-"&'offroad-factors'!$D$1:$D$1465,'offroad-factors'!H$1:H$1465)))) -> 0.000276 | AE6: =IF($S$6:$S$9857="","",IF(_xlfn.ANCHORARRAY($V$6)="Electric","--",IF(_xlfn.ANCHORARRAY($T$6)="Off-Road",_xlfn.XLOOKUP(_xlfn.ANCHORARRAY($V$6)&"-"&_xlfn.ANCHORARRAY($Y$6)&"-"&_xlfn.ANCHORARRAY($Z$6),'offroad-factors'!$B$1:$B$1465&"-"&'offroad-factors'!$C$1:$C$1465&"-"&'offroad-factors'!$D$1:$D$1465,'offroad-factors'!I$1:I$1465), _xlfn.IFNA(_xlfn.XLOOKUP($W$2&"_"&_xlfn.ANCHORARRAY($U$6)&"_"&_xlfn.ANCHORARRAY($Z$6)&"_"&_xlfn.ANCHORARRAY($V$6),'onroad-factors'!$B$36:$B$13671&"_"&'onroad-factors'!$C$36:$C$13671&"_"&'onroad-factors'!$D$36:$D$13671&"_"&'onroad-factors'!$F$36:$F$13671,'onroad-factors'!$BP$36:$BP$13671), _xlfn.XLOOKUP($W$2&"_"&_xlfn.ANCHORARRAY($U$6)&"_"&_xlfn.MINIFS('onroad-factors'!$D$36:$D$13671,'onroad-factors'!$B$36:$B$13671,$W$2,'onroad-factors'!$C$36:$C$13671,_xlfn.ANCHORARRAY($U$6),'onroad-factors'!$F$36:$F$13671,_xlfn.ANCHORARRAY($V$6))&"_"&_xlfn.ANCHORARRAY($V$6),'onroad-factors'!$B$36:$B$13671&"_"&'onroad-factors'!$C$36:$C$13671&"_"&'onroad-factors'!$D$36:$D$13671&"_"&'onroad-factors'!$F$36:$F$13671,'onroad-factors'!$BP$36:$BP$13671))/_xlfn.ANCHORARRAY($AQ$6)/_xlfn.ANCHORARRAY(AN6)/_xlfn.ANCHORARRAY($X$6)))) -> 4.47577763 | AF6: =IF($S$6:$S$9857="","",IF(_xlfn.ANCHORARRAY($V$6)="Electric","--",IF(_xlfn.ANCHORARRAY($T$6)="On-Road",0,_xlfn.XLOOKUP(_xlfn.ANCHORARRAY($V$6)&"-"&_xlfn.ANCHORARRAY($Y$6)&"-"&_xlfn.ANCHORARRAY($Z$6),'offroad-factors'!$B$1:$B$1465&"-"&'offroad-factors'!$C$1:$C$1465&"-"&'offroad-factors'!$D$1:$D$1465,'offroad-factors'!J$1:J$1465)))) -> 9.32e-05 | AG6: =IF($S$6:$S$9857="","",IF(_xlfn.ANCHORARRAY($V$6)="Electric","--",IF(_xlfn.ANCHORARRAY($T$6)="Off-Road",_xlfn.XLOOKUP(_xlfn.ANCHORARRAY($V$6)&"-"&_xlfn.ANCHORARRAY($Y$6)&"-"&_xlfn.ANCHORARRAY($Z$6),'offroad-factors'!$B$1:$B$1465&"-"&'offroad-factors'!$C$1:$C$1465&"-"&'offroad-factors'!$D$1:$D$1465,'offroad-factors'!K$1:K$1465), _xlfn.IFNA(_xlfn.XLOOKUP($W$2&"_"&_xlfn.ANCHORARRAY($U$6)&"_"&_xlfn.ANCHORARRAY($Z$6)&"_"&_xlfn.ANCHORARRAY($V$6),'onroad-factors'!$B$36:$B$13671&"_"&'onroad-factors'!$C$36:$C$13671&"_"&'onroad-factors'!$D$36:$D$13671&"_"&'onroad-factors'!$F$36:$F$13671,'onroad-factors'!$BQ$36:$BQ$13671), _xlfn.XLOOKUP($W$2&"_"&_xlfn.ANCHORARRAY($U$6)&"_"&_xlfn.MINIFS('onroad-factors'!$D$36:$D$13671,'onroad-factors'!$B$36:$B$13671,$W$2,'onroad-factors'!$C$36:$C$13671,_xlfn.ANCHORARRAY($U$6),'onroad-factors'!$F$36:$F$13671,_xlfn.ANCHORARRAY($V$6))&"_"&_xlfn.ANCHORARRAY($V$6),'onroad-factors'!$B$36:$B$13671&"_"&'onroad-factors'!$C$36:$C$13671&"_"&'onroad-factors'!$D$36:$D$13671&"_"&'onroad-factors'!$F$36:$F$13671,'onroad-factors'!$BQ$36:$BQ$13671))/_xlfn.ANCHORARRAY($AQ$6)/_xlfn.ANCHORARRAY(AO6)/_xlfn.ANCHORARRAY($X$6)))) -> 0.1732199028 | AH6: =IF($S$6:$S$9857="","",IF(_xlfn.ANCHORARRAY($V$6)="Electric","--",IF(_xlfn.ANCHORARRAY($T$6)="On-Road",0,_xlfn.XLOOKUP(_xlfn.ANCHORARRAY($V$6)&"-"&_xlfn.ANCHORARRAY($Y$6)&"-"&_xlfn.ANCHORARRAY($Z$6),'offroad-factors'!$B$1:$B$1465&"-"&'offroad-factors'!$C$1:$C$1465&"-"&'offroad-factors'!$D$1:$D$1465,'offroad-factors'!L$1:L$1465)))) -> 1.319999998e-05 | AI6: =IF($S$6:$S$9857="","",IF(_xlfn.ANCHORARRAY($V$6)="Electric","--",IF(_xlfn.ANCHORARRAY($T$6)="Off-Road",_xlfn.XLOOKUP(_xlfn.ANCHORARRAY($V$6)&"-"&_xlfn.ANCHORARRAY($Y$6)&"-"&_xlfn.ANCHORARRAY($Z$6),'offroad-factors'!$B$1:$B$1465&"-"&'offroad-factors'!$C$1:$C$1465&"-"&'offroad-factors'!$D$1:$D$1465,'offroad-factors'!M$1:M$1465), _xlfn.IFNA(_xlfn.XLOOKUP($W$2&"_"&_xlfn.ANCHORARRAY($U$6)&"_"&_xlfn.ANCHORARRAY($Z$6)&"_"&_xlfn.ANCHORARRAY($V$6),'onroad-factors'!$B$36:$B$13671&"_"&'onroad-factors'!$C$36:$C$13671&"_"&'onroad-factors'!$D$36:$D$13671&"_"&'onroad-factors'!$F$36:$F$13671,'onroad-factors'!$BR$36:$BR$13671), _xlfn.XLOOKUP($W$2&"_"&_xlfn.ANCHORARRAY($U$6)&"_"&_xlfn.MINIFS('onroad-factors'!$D$36:$D$13671,'onroad-factors'!$B$36:$B$13671,$W$2,'onroad-factors'!$C$36:$C$13671,_xlfn.ANCHORARRAY($U$6),'onroad-factors'!$F$36:$F$13671,_xlfn.ANCHORARRAY($V$6))&"_"&_xlfn.ANCHORARRAY($V$6),'onroad-factors'!$B$36:$B$13671&"_"&'onroad-factors'!$C$36:$C$13671&"_"&'onroad-factors'!$D$36:$D$13671&"_"&'onroad-factors'!$F$36:$F$13671,'onroad-factors'!$BR$36:$BR$13671))/_xlfn.ANCHORARRAY($AQ$6)/_xlfn.ANCHORARRAY($X$6)))) -> 585.9809535 | AJ6: =IF($S$6:$S$9857="","",IF(_xlfn.ANCHORARRAY($V$6)="Electric","--",IF(_xlfn.ANCHORARRAY($T$6)="On-Road",0,_xlfn.XLOOKUP(_xlfn.ANCHORARRAY($V$6)&"-"&_xlfn.ANCHORARRAY($Y$6)&"-"&_xlfn.ANCHORARRAY($Z$6),'offroad-factors'!$B$1:$B$1465&"-"&'offroad-factors'!$C$1:$C$1465&"-"&'offroad-factors'!$D$1:$D$1465,'offroad-factors'!N$1:N$1465)))) -> 0 | AK6: =IF($S$6:$S$9857="","",IF($I$6:$I$9857="Emergency","Emergency-Use",IF($I$6:$I$9857="Yes","Low-Use","In-Use"))) -> In-Use | AL6: =IF($S$6:$S$9857="","", _xlfn.IFNA(_xlfn.XLOOKUP($A$6:$A$9857,'hours-override'!$A$5:$A$1000,'hours-override'!$B$5:$B$1000,NA()), IF($I$6:$I$9857="Emergency",IF(_xlfn.XLOOKUP($S$6:$S$9857,activity!$K$6:$K$32,activity!$N$6:$N$32)>200,200,_xlfn.XLOOKUP($S$6:$S$9857,activity!$K$6:$K$32,activity!$N$6:$N$32)), IF($I$6:$I$9857="Yes",IF(_xlfn.XLOOKUP($S$6:$S$9857,activity!$K$6:$K$32,activity!$N$6:$N$32)>200,200,_xlfn.XLOOKUP($S$6:$S$9857,activity!$K$6:$K$32,activity!$N$6:$N$32)), _xlfn.XLOOKUP($S$6:$S$9857,activity!$K$6:$K$32,activity!$N$6:$N$32))*OFFSET(_xlfn.ANCHORARRAY($AQ$6),0,COLUMN($BG$5)-COLUMN($AQ$5))))) -> 913 | AM6: =IF($S$6:$S$9857="","",IF(_xlfn.ANCHORARRAY($V$6)="Electric","--",IF(_xlfn.ANCHORARRAY($T$6)="On-Road",1,IF(AND(_xlfn.ANCHORARRAY($V$6)<>"Diesel",_xlfn.ANCHORARRAY($V$6)<>"Gasoline"),1,_xlfn.XLOOKUP(_xlfn.ANCHORARRAY($V$6)&_xlfn.ANCHORARRAY($Z$6),'fuel-correction'!$A$6:$A$224&'fuel-correction'!$B$6:$B$224,'fuel-correction'!$E$6:$E$224))))) -> 0.9 | AN6: =IF($S$6:$S$9857="","",IF(_xlfn.ANCHORARRAY($V$6)="Electric","--",IF(_xlfn.ANCHORARRAY($T$6)="On-Road",1,IF(AND(_xlfn.ANCHORARRAY($V$6)<>"Diesel",_xlfn.ANCHORARRAY($V$6)<>"Gasoline"),1,_xlfn.XLOOKUP(_xlfn.ANCHORARRAY($V$6)&_xlfn.ANCHORARRAY($Z$6),'fuel-correction'!$A$6:$A$224&'fuel-correction'!$B$6:$B$224,'fuel-correction'!$D$6:$D$224))))) -> 0.95 | AO6: =IF($S$6:$S$9857="","",IF(_xlfn.ANCHORARRAY($V$6)="Electric","--",IF(_xlfn.ANCHORARRAY($T$6)="On-Road",1,IF(AND(_xlfn.ANCHORARRAY($V$6)<>"Diesel",_xlfn.ANCHORARRAY($V$6)<>"Gasoline"),1,_xlfn.XLOOKUP(_xlfn.ANCHORARRAY($V$6)&_xlfn.ANCHORARRAY($Z$6),'fuel-correction'!$A$6:$A$224&'fuel-correction'!$B$6:$B$224,'fuel-correction'!$C$6:$C$224))))) -> 0.86 | AP6: =IF($S$6:$S$9857="","",IF(_xlfn.ANCHORARRAY($V$6)="Electric","--",IF(_xlfn.ANCHORARRAY($T$6)="On-Road",1,IF(AND(_xlfn.ANCHORARRAY($V$6)<>"Diesel",_xlfn.ANCHORARRAY($V$6)<>"Gasoline"),1,_xlfn.XLOOKUP(_xlfn.ANCHORARRAY($V$6)&_xlfn.ANCHORARRAY($Z$6),'fuel-correction'!$A$6:$A$224&'fuel-correction'!$B$6:$B$224,'fuel-correction'!$F$6:$F$224))))) -> 1 | AQ6: =IF($S$6:$S$9857="","",IF(_xlfn.ANCHORARRAY($V$6)="Electric","--",IF(_xlfn.ANCHORARRAY($V$6)="Diesel",_xlfn.XLOOKUP($S$6:$S$9857,load!$A$6:$A$32,load!$C$6:$C$32,0.335),_xlfn.XLOOKUP($S$6:$S$9857,load!$P$6:$P$32,load!$R$6:$R$32,0.5)))) -> 0.335 | AU6: =IF($S$6:$S$9857="","",IF(_xlfn.ANCHORARRAY($V$6)="Electric",0,((_xlfn.ANCHORARRAY($AA$6))+(_xlfn.ANCHORARRAY($AB$6))*_xlfn.ANCHORARRAY($BF$6))*_xlfn.ANCHORARRAY($AM$6)*_xlfn.ANCHORARRAY($X$6)*_xlfn.ANCHORARRAY($AL$6)*IF(_xlfn.ANCHORARRAY($AQ$6)="--",1,_xlfn.ANCHORARRAY($AQ$6))*IF(_xlfn.ANCHORARRAY($T$6)="On-Road",1,_xlfn.XLOOKUP(_xlfn.ANCHORARRAY($V$6),'pm-thc-split'!$N$1:$N$3,'pm-thc-split'!$P$1:$P$3,1)))) -> 3097.607684 | AV6: =IF($S$6:$S$9857="","",IF(_xlfn.ANCHORARRAY($V$6)="Electric",0,((_xlfn.ANCHORARRAY($AC$6))+(_xlfn.ANCHORARRAY($AD$6))*_xlfn.ANCHORARRAY($BF$6))*1*_xlfn.ANCHORARRAY($AL$6)*_xlfn.ANCHORARRAY($AP$6)*_xlfn.ANCHORARRAY($X$6)*IF(_xlfn.ANCHORARRAY($AQ$6)="--",1,_xlfn.ANCHORARRAY($AQ$6)))) -> 38874.1705 | AW6: =IF($S$6:$S$9857="","",IF(_xlfn.ANCHORARRAY($V$6)="Electric",0,((_xlfn.ANCHORARRAY($AE$6))+(_xlfn.ANCHORARRAY($AF$6))*_xlfn.ANCHORARRAY($BF$6))*_xlfn.ANCHORARRAY($AN$6)*_xlfn.ANCHORARRAY($AL$6)*_xlfn.ANCHORARRAY($X$6)*IF(_xlfn.ANCHORARRAY($AQ$6)="--",1,_xlfn.ANCHORARRAY($AQ$6)))) -> 44512.71484 | AX6: =IF($S$6:$S$9857="","",IF(_xlfn.ANCHORARRAY($V$6)="Electric",0,((_xlfn.ANCHORARRAY($AG$6))+(_xlfn.ANCHORARRAY($AH$6))*_xlfn.ANCHORARRAY($BF$6))*_xlfn.ANCHORARRAY($AO$6)*_xlfn.ANCHORARRAY($AL$6)*_xlfn.ANCHORARRAY($X$6)*IF(_xlfn.ANCHORARRAY($AQ$6)="--",1,_xlfn.ANCHORARRAY($AQ$6)))) -> 1950.621645 | AY6: =IF($S$6:$S$9857="","",IF(_xlfn.ANCHORARRAY($V$6)="Electric",0,_xlfn.ANCHORARRAY($AX$6)*_xlfn.XLOOKUP(_xlfn.ANCHORARRAY($V$6),'pm-thc-split'!$N$1:$N$3,'pm-thc-split'!$O$1:$O$3))) -> 1794.571913 | AZ6: =IF($S$6:$S$9857="","",IF(_xlfn.ANCHORARRAY($V$6)="Electric",0,((_xlfn.ANCHORARRAY($AI$6))+(_xlfn.ANCHORARRAY($AJ$6))*_xlfn.ANCHORARRAY($BF$6))*1*_xlfn.ANCHORARRAY($AL$6)*_xlfn.ANCHORARRAY($X$6)*IF(_xlfn.ANCHORARRAY($AQ$6)="--",1,_xlfn.ANCHORARRAY($AQ$6)))) -> 5555981.34 | BA6: =IF($S$6:$S$9857="","",IF(_xlfn.ANCHORARRAY($V$6)="Electric",0,_xlfn.ANCHORARRAY($BD$6)*_xlfn.XLOOKUP(_xlfn.ANCHORARRAY($V$6),'ghg-factors'!$B$7:$B$9,'ghg-factors'!$C$7:$C$9))) -> 92.50899391 | BB6: =IF($S$6:$S$9857="","",IF(_xlfn.ANCHORARRAY($V$6)="Electric",0,_xlfn.ANCHORARRAY($BD$6)*_xlfn.XLOOKUP(_xlfn.ANCHORARRAY($V$6),'ghg-factors'!$B$7:$B$9,'ghg-factors'!$D$7:$D$9))) -> 266.6435707 | BC6: =IF($S$6:$S$9857="","",IF(_xlfn.ANCHORARRAY($V$6)="Electric",0,_xlfn.ANCHORARRAY($AZ$6)+_xlfn.ANCHORARRAY($BA$6)*25+_xlfn.ANCHORARRAY($BB$6)*298)) -> 5637753.849 | BD6: =IF($S$6:$S$9857="","",IF(_xlfn.ANCHORARRAY($V$6)="Electric",0,_xlfn.ANCHORARRAY($AZ$6)*CONVERT(1,"g","kg")/INDEX({5.68,10.21,8.78},MATCH(_xlfn.ANCHORARRAY($V$6),{"LPG","Diesel","Gasoline"},0)))) -> 544.1705524 | BE6: =IF($S$6:$S$9857="","",IF(_xlfn.ANCHORARRAY($V$6)="Electric",0,_xlfn.ANCHORARRAY($BD$6)*INDEX({4.86,7.37,6.14},MATCH(_xlfn.ANCHORARRAY($V$6),{"LPG","Diesel","Gasoline"},0))*CONVERT(1,"lbm","g")*INDEX({0,0.000015,0.00001},MATCH(_xlfn.ANCHORARRAY($V$6),{"LPG","Diesel","Gasoline"},0)))) -> 27.28723455 | BF6: =IF($S$6:$S$9857="","",IF(_xlfn.ANCHORARRAY($V$6)="Electric","--",IF(($W$2-_xlfn.ANCHORARRAY($Z$6))<=0,IF($S$6:$S$9857="","", _xlfn.XLOOKUP($S$6:$S$9857,activity!$K$6:$K$32,activity!$N$6:$N$32)),IF(IF($S$6:$S$9857="","", _xlfn.XLOOKUP($S$6:$S$9857,activity!$K$6:$K$32,activity!$N$6:$N$32))*($W$2-_xlfn.ANCHORARRAY($Z$6))<IF(_xlfn.ANCHORARRAY($V$6)="Diesel",IF(_xlfn.ANCHORARRAY($X$6)<=50,5000,12000),IF(_xlfn.ANCHORARRAY($Z$6)>2007,10000,7000)),IF($S$6:$S$9857="","", _xlfn.XLOOKUP($S$6:$S$9857,activity!$K$6:$K$32,activity!$N$6:$N$32))*($W$2-_xlfn.ANCHORARRAY($Z$6)),IF(_xlfn.ANCHORARRAY($V$6)="Diesel",IF(_xlfn.ANCHORARRAY($X$6)<=50,5000,12000),IF(_xlfn.ANCHORARRAY($Z$6)>2007,10000,7000)))))) -> 5000 | BG6: 1 | BH6: =RANK(AW6,_xlfn.ANCHORARRAY(AW$6),0) -> 643
A7: G-0007 | B7: Generator (Light Plant, portable unit) | C7: Generator (Light Plant, portable unit) | D7: Onan | E7: MDKBS | F7: 551 | G7: 2007 | H7: 37 | I7: No | J7: No | M7: Diesel | N7: 37 | O7: 25 | P7: ORD | Q7: Off-Road | R7: 5.6 | S7: Generator | T7: Off-Road | U7: -- | V7: Diesel | W7: Tier 2 | X7: 37 | Y7: 50 | Z7: 2007 | AA7: 0.24 | AB7: 5.45e-05 | AC7: 2.86 | AD7: 0.00029 | AE7: 4.514084854 | AF7: 9.09e-05 | AG7: 0.2608927935 | AH7: 2.029999996e-05 | AI7: 585.9809535 | AJ7: 0 | AK7: In-Use | AL7: 913 | AM7: 0.9 | AN7: 0.95 | AO7: 0.86 | AP7: 1 | AQ7: 0.335 | AU7: 6315.955451 | AV7: 48774.69685 | AW7: 53416.27819 | AX7: 3526.917593 | AY7: 3244.764186 | AZ7: 6631332.567 | BA7: 110.4139605 | BB7: 318.2520037 | BC7: 6728932.013 | BD7: 649.4938851 | BE7: 32.56863478 | BF7: 5000 | BG7: 1 | BH7: =RANK(AW7,_xlfn.ANCHORARRAY(AW$6),0) -> 549
A8: BT-0566 | B8: Baggage Tractor (Tug) | C8: Baggage Tractor (Tug) | D8: Tug | E8: M1A30 | F8: 25338 | G8: 2017 | H8: 49 | I8: No | J8: No | M8: Gasoline | N8: 49 | O8: 25 | P8: LSI | Q8: Off-Road | R8: 0.6 | S8: Baggage Tug | T8: Off-Road | U8: -- | V8: Gasoline | W8: -- | X8: 49 | Y8: 50 | Z8: 2017 | AA8: 2.66 | AB8: 0.00076 | AC8: 11.978 | AD8: 0.00278 | AE8: 2.0354 | AF8: 0.0005446 | AG8: 0.06 | AH8: 0 | AI8: 783.3 | AJ8: 0 | AK8: In-Use | AL8: 846 | AM8: 1 | AN8: 0.977 | AO8: 1 | AP8: 1 | AQ8: 0.55 | AU8: 109717.775 | AV8: 487583.4403 | AW8: 86390.91082 | AX8: 1367.982 | AY8: 1033.5864 | AZ8: 17859005.01 | BA8: 5247.86252 | BB8: 508.5138101 | BC8: 18141738.69 | BD8: 2034.05524 | BE8: 56.64960094 | BF8: 3384 | BG8: 1 | BH8: 401
A9: BT-0567 | B9: Baggage Tractor (Tug) | C9: Baggage Tractor (Tug) | D9: Tug | E9: M1A30 | F9: 25339 | G9: 2017 | H9: 49 | I9: No | J9: No | M9: Gasoline | N9: 49 | O9: 25 | P9: LSI | Q9: Off-Road | R9: 0.6 | S9: Baggage Tug | T9: Off-Road | U9: -- | V9: Gasoline | W9: -- | X9: 49 | Y9: 50 | Z9: 2017 | AA9: 2.66 | AB9: 0.00076 | AC9: 11.978 | AD9: 0.00278 | AE9: 2.0354 | AF9: 0.0005446 | AG9: 0.06 | AH9: 0 | AI9: 783.3 | AJ9: 0 | AK9: In-Use | AL9: 846 | AM9: 1 | AN9: 0.977 | AO9: 1 | AP9: 1 | AQ9: 0.55 | AU9: 109717.775 | AV9: 487583.4403 | AW9: 86390.91082 | AX9: 1367.982 | AY9: 1033.5864 | AZ9: 17859005.01 | BA9: 5247.86252 | BB9: 508.5138101 | BC9: 18141738.69 | BD9: 2034.05524 | BE9: 56.64960094 | BF9: 3384 | BG9: 1 | BH9: 401
A10: BT-0396 | B10: Baggage Tractor (Tug) | C10: Baggage Tractor (Tug) | D10: Charlatte | E10: T-137 | F10: 18137 | I10: No | J10: No | M10: Electric | N10: 0 | O10: NA | P10: ORD | Q10: Off-Road | R10: 0 | S10: Baggage Tug | T10: Off-Road | U10: -- | V10: Electric | W10: -- | X10: 96 | Y10: -- | Z10: 2014 | AA10: -- | AB10: -- | AC10: -- | AD10: -- | AE10: -- | AF10: -- | AG10: -- | AH10: -- | AI10: -- | AJ10: -- | AK10: In-Use | AL10: 846 | AM10: -- | AN10: -- | AO10: -- | AP10: -- | AQ10: -- | AU10: 0 | AV10: 0 | AW10: 0 | AX10: 0 | AY10: 0 | AZ10: 0 | BA10: 0 | BB10: 0 | BC10: 0 | BD10: 0 | BE10: 0 | BF10: -- | BG10: 1 | BH10: 2383
A11: BT-0397 | B11: Baggage Tractor (Tug) | C11: Baggage Tractor (Tug) | D11: Charlatte | E11: T-137 | F11: 18138 | I11: No | J11: No | M11: Electric | N11: 0 | O11: NA | P11: ORD | Q11: Off-Road | R11: 0 | S11: Baggage Tug | T11: Off-Road | U11: -- | V11: Electric | W11: -- | X11: 96 | Y11: -- | Z11: 2014 | AA11: -- | AB11: -- | AC11: -- | AD11: -- | AE11: -- | AF11: -- | AG11: -- | AH11: -- | AI11: -- | AJ11: -- | AK11: In-Use | AL11: 846 | AM11: -- | AN11: -- | AO11: -- | AP11: -- | AQ11: -- | AU11: 0 | AV11: 0 | AW11: 0 | AX11: 0 | AY11: 0 | AZ11: 0 | BA11: 0 | BB11: 0 | BC11: 0 | BD11: 0 | BE11: 0 | BF11: -- | BG11: 1 | BH11: 2383
A12: BT-0697 | B12: Baggage Tractor (Tug) | C12: Baggage Tractor (Tug) | D12: Charlatte | E12: T-137 V3 | F12: 28624 | I12: No | J12: No | M12: Electric | N12: 0 | O12: NA | P12: ORD | Q12: Off-Road | R12: 0 | S12: Baggage Tug | T12: Off-Road | U12: -- | V12: Electric | W12: -- | X12: 96 | Y12: -- | Z12: 2014 | AA12: -- | AB12: -- | AC12: -- | AD12: -- | AE12: -- | AF12: -- | AG12: -- | AH12: -- | AI12: -- | AJ12: -- | AK12: In-Use | AL12: 846 | AM12: -- | AN12: -- | AO12: -- | AP12: -- | AQ12: -- | AU12: 0 | AV12: 0 | AW12: 0 | AX12: 0 | AY12: 0 | AZ12: 0 | BA12: 0 | BB12: 0 | BC12: 0 | BD12: 0 | BE12: 0 | BF12: -- | BG12: 1 | BH12: 2383
A13: BT-0698 | B13: Baggage Tractor (Tug) | C13: Baggage Tractor (Tug) | D13: Charlatte | E13: T-137 V3 | F13: 28625 | I13: No | J13: No | M13: Electric | N13: 0 | O13: NA | P13: ORD | Q13: Off-Road | R13: 0 | S13: Baggage Tug | T13: Off-Road | U13: -- | V13: Electric | W13: -- | X13: 96 | Y13: -- | Z13: 2014 | AA13: -- | AB13: -- | AC13: -- | AD13: -- | AE13: -- | AF13: -- | AG13: -- | AH13: -- | AI13: -- | AJ13: -- | AK13: In-Use | AL13: 846 | AM13: -- | AN13: -- | AO13: -- | AP13: -- | AQ13: -- | AU13: 0 | AV13: 0 | AW13: 0 | AX13: 0 | AY13: 0 | AZ13: 0 | BA13: 0 | BB13: 0 | BC13: 0 | BD13: 0 | BE13: 0 | BF13: -- | BG13: 1 | BH13: 2383
A14: BT-0699 | B14: Baggage Tractor (Tug) | C14: Baggage Tractor (Tug) | D14: Tug | E14: M1A30 | F14: 28963 | G14: 2019 | H14: 49 | I14: No | J14: No | M14: Gasoline | N14: 49 | O14: 25 | P14: LSI | Q14: Off-Road | R14: 0.6 | S14: Baggage Tug | T14: Off-Road | U14: -- | V14: Gasoline | W14: -- | X14: 49 | Y14: 50 | Z14: 2019 | AA14: 2.66 | AB14: 0.00076 | AC14: 11.978 | AD14: 0.00278 | AE14: 2.0354 | AF14: 0.0005446 | AG14: 0.06 | AH14: 0 | AI14: 783.3 | AJ14: 0 | AK14: In-Use | AL14: 846 | AM14: 1 | AN14: 0.977 | AO14: 1 | AP14: 1 | AQ14: 0.55 | AU14: 82750.53569 | AV14: 380339.1235 | AW14: 65865.03524 | AX14: 1367.982 | AY14: 1033.5864 | AZ14: 17859005.01 | BA14: 5247.86252 | BB14: 508.5138101 | BC14: 18141738.69 | BD14: 2034.05524 | BE14: 56.64960094 | BF14: 1692 | BG14: 1 | BH14: 495
A15: BT-0700 | B15: Baggage Tractor (Tug) | C15: Baggage Tractor (Tug) | D15: Tug | E15: M1A30 | F15: 28964 | G15: 2019 | H15: 49 | I15: No | J15: No | M15: Gasoline | N15: 49 | O15: 25 | P15: LSI | Q15: Off-Road | R15: 0.6 | S15: Baggage Tug | T15: Off-Road | U15: -- | V15: Gasoline | W15: -- | X15: 49 | Y15: 50 | Z15: 2019 | AA15: 2.66 | AB15: 0.00076 | AC15: 11.978 | AD15: 0.00278 | AE15: 2.0354 | AF15: 0.0005446 | AG15: 0.06 | AH15: 0 | AI15: 783.3 | AJ15: 0 | AK15: In-Use | AL15: 846 | AM15: 1 | AN15: 0.977 | AO15: 1 | AP15: 1 | AQ15: 0.55 | AU15: 82750.53569 | AV15: 380339.1235 | AW15: 65865.03524 | AX15: 1367.982 | AY15: 1033.5864 | AZ15: 17859005.01 | BA15: 5247.86252 | BB15: 508.5138101 | BC15: 18141738.69 | BD15: 2034.05524 | BE15: 56.64960094 | BF15: 1692 | BG15: 1 | BH15: 495
A16: BT-0295 | B16: Baggage Tractor (Tug) | C16: Baggage Tractor (Tug) | D16: Charlatte | E16: T-137 | F16: 13750 | I16: No | J16: No | M16: Electric | N16: 0 | O16: NA | P16: ORD | Q16: Off-Road | R16: 0 | S16: Baggage Tug | T16: Off-Road | U16: -- | V16: Electric | W16: -- | X16: 96 | Y16: -- | Z16: 2014 | AA16: -- | AB16: -- | AC16: -- | AD16: -- | AE16: -- | AF16: -- | AG16: -- | AH16: -- | AI16: -- | AJ16: -- | AK16: In-Use | AL16: 846 | AM16: -- | AN16: -- | AO16: -- | AP16: -- | AQ16: -- | AU16: 0 | AV16: 0 | AW16: 0 | AX16: 0 | AY16: 0 | AZ16: 0 | BA16: 0 | BB16: 0 | BC16: 0 | BD16: 0 | BE16: 0 | BF16: -- | BG16: 1 | BH16: 2383
A17: BT-0296 | B17: Baggage Tractor (Tug) | C17: Baggage Tractor (Tug) | D17: Charlatte | E17: T-137 | F17: 13751 | I17: No | J17: No | M17: Electric | N17: 0 | O17: NA | P17: ORD | Q17: Off-Road | R17: 0 | S17: Baggage Tug | T17: Off-Road | U17: -- | V17: Electric | W17: -- | X17: 96 | Y17: -- | Z17: 2014 | AA17: -- | AB17: -- | AC17: -- | AD17: -- | AE17: -- | AF17: -- | AG17: -- | AH17: -- | AI17: -- | AJ17: -- | AK17: In-Use | AL17: 846 | AM17: -- | AN17: -- | AO17: -- | AP17: -- | AQ17: -- | AU17: 0 | AV17: 0 | AW17: 0 | AX17: 0 | AY17: 0 | AZ17: 0 | BA17: 0 | BB17: 0 | BC17: 0 | BD17: 0 | BE17: 0 | BF17: -- | BG17: 1 | BH17: 2383
A18: BT-0297 | B18: Baggage Tractor (Tug) | C18: Baggage Tractor (Tug) | D18: Charlatte | E18: T-137 | F18: 13752 | I18: No | J18: No | M18: Electric | N18: 0 | O18: NA | P18: ORD | Q18: Off-Road | R18: 0 | S18: Baggage Tug | T18: Off-Road | U18: -- | V18: Electric | W18: -- | X18: 96 | Y18: -- | Z18: 2014 | AA18: -- | AB18: -- | AC18: -- | AD18: -- | AE18: -- | AF18: -- | AG18: -- | AH18: -- | AI18: -- | AJ18: -- | AK18: In-Use | AL18: 846 | AM18: -- | AN18: -- | AO18: -- | AP18: -- | AQ18: -- | AU18: 0 | AV18: 0 | AW18: 0 | AX18: 0 | AY18: 0 | AZ18: 0 | BA18: 0 | BB18: 0 | BC18: 0 | BD18: 0 | BE18: 0 | BF18: -- | BG18: 1 | BH18: 2383
A19: BT-0299 | B19: Baggage Tractor (Tug) | C19: Baggage Tractor (Tug) | D19: Charlatte | E19: T-137 | F19: 13754 | I19: No | J19: No | M19: Electric | N19: 0 | O19: NA | P19: ORD | Q19: Off-Road | R19: 0 | S19: Baggage Tug | T19: Off-Road | U19: -- | V19: Electric | W19: -- | X19: 96 | Y19: -- | Z19: 2014 | AA19: -- | AB19: -- | AC19: -- | AD19: -- | AE19: -- | AF19: -- | AG19: -- | AH19: -- | AI19: -- | AJ19: -- | AK19: In-Use | AL19: 846 | AM19: -- | AN19: -- | AO19: -- | AP19: -- | AQ19: -- | AU19: 0 | AV19: 0 | AW19: 0 | AX19: 0 | AY19: 0 | AZ19: 0 | BA19: 0 | BB19: 0 | BC19: 0 | BD19: 0 | BE19: 0 | BF19: -- | BG19: 1 | BH19: 2383
A20: BT-0302 | B20: Baggage Tractor (Tug) | C20: Baggage Tractor (Tug) | D20: Charlatte | E20: T-137 | F20: 13757 | I20: No | J20: No | M20: Electric | N20: 0 | O20: NA | P20: ORD | Q20: Off-Road | R20: 0 | S20: Baggage Tug | T20: Off-Road | U20: -- | V20: Electric | W20: -- | X20: 96 | Y20: -- | Z20: 2014 | AA20: -- | AB20: -- | AC20: -- | AD20: -- | AE20: -- | AF20: -- | AG20: -- | AH20: -- | AI20: -- | AJ20: -- | AK20: In-Use | AL20: 846 | AM20: -- | AN20: -- | AO20: -- | AP20: -- | AQ20: -- | AU20: 0 | AV20: 0 | AW20: 0 | AX20: 0 | AY20: 0 | AZ20: 0 | BA20: 0 | BB20: 0 | BC20: 0 | BD20: 0 | BE20: 0 | BF20: -- | BG20: 1 | BH20: 2383
A21: BT-0303 | B21: Baggage Tractor (Tug) | C21: Baggage Tractor (Tug) | D21: Charlatte | E21: T-137 | F21: 13758 | I21: No | J21: No | M21: Electric | N21: 0 | O21: NA | P21: ORD | Q21: Off-Road | R21: 0 | S21: Baggage Tug | T21: Off-Road | U21: -- | V21: Electric | W21: -- | X21: 96 | Y21: -- | Z21: 2014 | AA21: -- | AB21: -- | AC21: -- | AD21: -- | AE21: -- | AF21: -- | AG21: -- | AH21: -- | AI21: -- | AJ21: -- | AK21: In-Use | AL21: 846 | AM21: -- | AN21: -- | AO21: -- | AP21: -- | AQ21: -- | AU21: 0 | AV21: 0 | AW21: 0 | AX21: 0 | AY21: 0 | AZ21: 0 | BA21: 0 | BB21: 0 | BC21: 0 | BD21: 0 | BE21: 0 | BF21: -- | BG21: 1 | BH21: 2383
A22: BT-0304 | B22: Baggage Tractor (Tug) | C22: Baggage Tractor (Tug) | D22: Charlatte | E22: T-137 | F22: 13759 | I22: No | J22: No | M22: Electric | N22: 0 | O22: NA | P22: ORD | Q22: Off-Road | R22: 0 | S22: Baggage Tug | T22: Off-Road | U22: -- | V22: Electric | W22: -- | X22: 96 | Y22: -- | Z22: 2014 | AA22: -- | AB22: -- | AC22: -- | AD22: -- | AE22: -- | AF22: -- | AG22: -- | AH22: -- | AI22: -- | AJ22: -- | AK22: In-Use | AL22: 846 | AM22: -- | AN22: -- | AO22: -- | AP22: -- | AQ22: -- | AU22: 0 | AV22: 0 | AW22: 0 | AX22: 0 | AY22: 0 | AZ22: 0 | BA22: 0 | BB22: 0 | BC22: 0 | BD22: 0 | BE22: 0 | BF22: -- | BG22: 1 | BH22: 2383
A23: BT-0305 | B23: Baggage Tractor (Tug) | C23: Baggage Tractor (Tug) | D23: Charlatte | E23: T-137 | F23: 13760 | I23: No | J23: No | M23: Electric | N23: 0 | O23: NA | P23: ORD | Q23: Off-Road | R23: 0 | S23: Baggage Tug | T23: Off-Road | U23: -- | V23: Electric | W23: -- | X23: 96 | Y23: -- | Z23: 2014 | AA23: -- | AB23: -- | AC23: -- | AD23: -- | AE23: -- | AF23: -- | AG23: -- | AH23: -- | AI23: -- | AJ23: -- | AK23: In-Use | AL23: 846 | AM23: -- | AN23: -- | AO23: -- | AP23: -- | AQ23: -- | AU23: 0 | AV23: 0 | AW23: 0 | AX23: 0 | AY23: 0 | AZ23: 0 | BA23: 0 | BB23: 0 | BC23: 0 | BD23: 0 | BE23: 0 | BF23: -- | BG23: 1 | BH23: 2383
A24: BT-0306 | B24: Baggage Tractor (Tug) | C24: Baggage Tractor (Tug) | D24: Charlatte | E24: T-137 | F24: 13761 | I24: No | J24: No | M24: Electric | N24: 0 | O24: NA | P24: ORD | Q24: Off-Road | R24: 0 | S24: Baggage Tug | T24: Off-Road | U24: -- | V24: Electric | W24: -- | X24: 96 | Y24: -- | Z24: 2014 | AA24: -- | AB24: -- | AC24: -- | AD24: -- | AE24: -- | AF24: -- | AG24: -- | AH24: -- | AI24: -- | AJ24: -- | AK24: In-Use | AL24: 846 | AM24: -- | AN24: -- | AO24: -- | AP24: -- | AQ24: -- | AU24: 0 | AV24: 0 | AW24: 0 | AX24: 0 | AY24: 0 | AZ24: 0 | BA24: 0 | BB24: 0 | BC24: 0 | BD24: 0 | BE24: 0 | BF24: -- | BG24: 1 | BH24: 2383
A25: BT-0307 | B25: Baggage Tractor (Tug) | C25: Baggage Tractor (Tug) | D25: Charlatte | E25: T-137 | F25: 13762 | I25: No | J25: No | M25: Electric | N25: 0 | O25: NA | P25: ORD | Q25: Off-Road | R25: 0 | S25: Baggage Tug | T25: Off-Road | U25: -- | V25: Electric | W25: -- | X25: 96 | Y25: -- | Z25: 2014 | AA25: -- | AB25: -- | AC25: -- | AD25: -- | AE25: -- | AF25: -- | AG25: -- | AH25: -- | AI25: -- | AJ25: -- | AK25: In-Use | AL25: 846 | AM25: -- | AN25: -- | AO25: -- | AP25: -- | AQ25: -- | AU25: 0 | AV25: 0 | AW25: 0 | AX25: 0 | AY25: 0 | AZ25: 0 | BA25: 0 | BB25: 0 | BC25: 0 | BD25: 0 | BE25: 0 | BF25: -- | BG25: 1 | BH25: 2383
A26: BT-0308 | B26: Baggage Tractor (Tug) | C26: Baggage Tractor (Tug) | D26: Charlatte | E26: T-137 | F26: 13763 | I26: No | J26: No | M26: Electric | N26: 0 | O26: NA | P26: ORD | Q26: Off-Road | R26: 0 | S26: Baggage Tug | T26: Off-Road | U26: -- | V26: Electric | W26: -- | X26: 96 | Y26: -- | Z26: 2014 | AA26: -- | AB26: -- | AC26: -- | AD26: -- | AE26: -- | AF26: -- | AG26: -- | AH26: -- | AI26: -- | AJ26: -- | AK26: In-Use | AL26: 846 | AM26: -- | AN26: -- | AO26: -- | AP26: -- | AQ26: -- | AU26: 0 | AV26: 0 | AW26: 0 | AX26: 0 | AY26: 0 | AZ26: 0 | BA26: 0 | BB26: 0 | BC26: 0 | BD26: 0 | BE26: 0 | BF26: -- | BG26: 1 | BH26: 2383
A27: BT-0309 | B27: Baggage Tractor (Tug) | C27: Baggage Tractor (Tug) | D27: Charlatte | E27: T-137 | F27: 13764 | I27: No | J27: No | M27: Electric | N27: 0 | O27: NA | P27: ORD | Q27: Off-Road | R27: 0 | S27: Baggage Tug | T27: Off-Road | U27: -- | V27: Electric | W27: -- | X27: 96 | Y27: -- | Z27: 2014 | AA27: -- | AB27: -- | AC27: -- | AD27: -- | AE27: -- | AF27: -- | AG27: -- | AH27: -- | AI27: -- | AJ27: -- | AK27: In-Use | AL27: 846 | AM27: -- | AN27: -- | AO27: -- | AP27: -- | AQ27: -- | AU27: 0 | AV27: 0 | AW27: 0 | AX27: 0 | AY27: 0 | AZ27: 0 | BA27: 0 | BB27: 0 | BC27: 0 | BD27: 0 | BE27: 0 | BF27: -- | BG27: 1 | BH27: 2383
A28: BT-0310 | B28: Baggage Tractor (Tug) | C28: Baggage Tractor (Tug) | D28: Charlatte | E28: T-137 | F28: 13765 | I28: No | J28: No | M28: Electric | N28: 0 | O28: NA | P28: ORD | Q28: Off-Road | R28: 0 | S28: Baggage Tug | T28: Off-Road | U28: -- | V28: Electric | W28: -- | X28: 96 | Y28: -- | Z28: 2014 | AA28: -- | AB28: -- | AC28: -- | AD28: -- | AE28: -- | AF28: -- | AG28: -- | AH28: -- | AI28: -- | AJ28: -- | AK28: In-Use | AL28: 846 | AM28: -- | AN28: -- | AO28: -- | AP28: -- | AQ28: -- | AU28: 0 | AV28: 0 | AW28: 0 | AX28: 0 | AY28: 0 | AZ28: 0 | BA28: 0 | BB28: 0 | BC28: 0 | BD28: 0 | BE28: 0 | BF28: -- | BG28: 1 | BH28: 2383
A29: BT-0311 | B29: Baggage Tractor (Tug) | C29: Baggage Tractor (Tug) | D29: Charlatte | E29: T-137 | F29: 13766 | I29: No | J29: No | M29: Electric | N29: 0 | O29: NA | P29: ORD | Q29: Off-Road | R29: 0 | S29: Baggage Tug | T29: Off-Road | U29: -- | V29: Electric | W29: -- | X29: 96 | Y29: -- | Z29: 2014 | AA29: -- | AB29: -- | AC29: -- | AD29: -- | AE29: -- | AF29: -- | AG29: -- | AH29: -- | AI29: -- | AJ29: -- | AK29: In-Use | AL29: 846 | AM29: -- | AN29: -- | AO29: -- | AP29: -- | AQ29: -- | AU29: 0 | AV29: 0 | AW29: 0 | AX29: 0 | AY29: 0 | AZ29: 0 | BA29: 0 | BB29: 0 | BC29: 0 | BD29: 0 | BE29: 0 | BF29: -- | BG29: 1 | BH29: 2383
A30: BT-0312 | B30: Baggage Tractor (Tug) | C30: Baggage Tractor (Tug) | D30: Charlatte | E30: T-137 | F30: 13767 | I30: No | J30: No | M30: Electric | N30: 0 | O30: NA | P30: ORD | Q30: Off-Road | R30: 0 | S30: Baggage Tug | T30: Off-Road | U30: -- | V30: Electric | W30: -- | X30: 96 | Y30: -- | Z30: 2014 | AA30: -- | AB30: -- | AC30: -- | AD30: -- | AE30: -- | AF30: -- | AG30: -- | AH30: -- | AI30: -- | AJ30: -- | AK30: In-Use | AL30: 846 | AM30: -- | AN30: -- | AO30: -- | AP30: -- | AQ30: -- | AU30: 0 | AV30: 0 | AW30: 0 | AX30: 0 | AY30: 0 | AZ30: 0 | BA30: 0 | BB30: 0 | BC30: 0 | BD30: 0 | BE30: 0 | BF30: -- | BG30: 1 | BH30: 2383
A31: BT-0313 | B31: Baggage Tractor (Tug) | C31: Baggage Tractor (Tug) | D31: Charlatte | E31: T-137 | F31: 13768 | I31: No | J31: No | M31: Electric | N31: 0 | O31: NA | P31: ORD | Q31: Off-Road | R31: 0 | S31: Baggage Tug | T31: Off-Road | U31: -- | V31: Electric | W31: -- | X31: 96 | Y31: -- | Z31: 2014 | AA31: -- | AB31: -- | AC31: -- | AD31: -- | AE31: -- | AF31: -- | AG31: -- | AH31: -- | AI31: -- | AJ31: -- | AK31: In-Use | AL31: 846 | AM31: -- | AN31: -- | AO31: -- | AP31: -- | AQ31: -- | AU31: 0 | AV31: 0 | AW31: 0 | AX31: 0 | AY31: 0 | AZ31: 0 | BA31: 0 | BB31: 0 | BC31: 0 | BD31: 0 | BE31: 0 | BF31: -- | BG31: 1 | BH31: 2383
A32: BT-0314 | B32: Baggage Tractor (Tug) | C32: Baggage Tractor (Tug) | D32: Charlatte | E32: T-137 | F32: 13769 | I32: No | J32: No | M32: Electric | N32: 0 | O32: NA | P32: ORD | Q32: Off-Road | R32: 0 | S32: Baggage Tug | T32: Off-Road | U32: -- | V32: Electric | W32: -- | X32: 96 | Y32: -- | Z32: 2014 | AA32: -- | AB32: -- | AC32: -- | AD32: -- | AE32: -- | AF32: -- | AG32: -- | AH32: -- | AI32: -- | AJ32: -- | AK32: In-Use | AL32: 846 | AM32: -- | AN32: -- | AO32: -- | AP32: -- | AQ32: -- | AU32: 0 | AV32: 0 | AW32: 0 | AX32: 0 | AY32: 0 | AZ32: 0 | BA32: 0 | BB32: 0 | BC32: 0 | BD32: 0 | BE32: 0 | BF32: -- | BG32: 1 | BH32: 2383
A33: BT-0317 | B33: Baggage Tractor (Tug) | C33: Baggage Tractor (Tug) | D33: Charlatte | E33: T-137 | F33: 13772 | I33: No | J33: No | M33: Electric | N33: 0 | O33: NA | P33: ORD | Q33: Off-Road | R33: 0 | S33: Baggage Tug | T33: Off-Road | U33: -- | V33: Electric | W33: -- | X33: 96 | Y33: -- | Z33: 2014 | AA33: -- | AB33: -- | AC33: -- | AD33: -- | AE33: -- | AF33: -- | AG33: -- | AH33: -- | AI33: -- | AJ33: -- | AK33: In-Use | AL33: 846 | AM33: -- | AN33: -- | AO33: -- | AP33: -- | AQ33: -- | AU33: 0 | AV33: 0 | AW33: 0 | AX33: 0 | AY33: 0 | AZ33: 0 | BA33: 0 | BB33: 0 | BC33: 0 | BD33: 0 | BE33: 0 | BF33: -- | BG33: 1 | BH33: 2383
A34: BT-0318 | B34: Baggage Tractor (Tug) | C34: Baggage Tractor (Tug) | D34: Charlatte | E34: T-137 | F34: 13773 | I34: No | J34: No | M34: Electric | N34: 0 | O34: NA | P34: ORD | Q34: Off-Road | R34: 0 | S34: Baggage Tug | T34: Off-Road | U34: -- | V34: Electric | W34: -- | X34: 96 | Y34: -- | Z34: 2014 | AA34: -- | AB34: -- | AC34: -- | AD34: -- | AE34: -- | AF34: -- | AG34: -- | AH34: -- | AI34: -- | AJ34: -- | AK34: In-Use | AL34: 846 | AM34: -- | AN34: -- | AO34: -- | AP34: -- | AQ34: -- | AU34: 0 | AV34: 0 | AW34: 0 | AX34: 0 | AY34: 0 | AZ34: 0 | BA34: 0 | BB34: 0 | BC34: 0 | BD34: 0 | BE34: 0 | BF34: -- | BG34: 1 | BH34: 2383
A35: BT-0393 | B35: Baggage Tractor (Tug) | C35: Baggage Tractor (Tug) | D35: Charlatte | E35: T-137 | F35: 15722 | I35: No | J35: No | M35: Electric | N35: 0 | O35: NA | P35: ORD | Q35: Off-Road | R35: 0 | S35: Baggage Tug | T35: Off-Road | U35: -- | V35: Electric | W35: -- | X35: 96 | Y35: -- | Z35: 2014 | AA35: -- | AB35: -- | AC35: -- | AD35: -- | AE35: -- | AF35: -- | AG35: -- | AH35: -- | AI35: -- | AJ35: -- | AK35: In-Use | AL35: 846 | AM35: -- | AN35: -- | AO35: -- | AP35: -- | AQ35: -- | AU35: 0 | AV35: 0 | AW35: 0 | AX35: 0 | AY35: 0 | AZ35: 0 | BA35: 0 | BB35: 0 | BC35: 0 | BD35: 0 | BE35: 0 | BF35: -- | BG35: 1 | BH35: 2383
A36: BT-0564 | B36: Baggage Tractor (Tug) | C36: Baggage Tractor (Tug) | D36: Tug | E36: M1A30 | F36: 24842 | G36: 2017 | H36: 49 | I36: No | J36: No | M36: Gasoline | N36: 49 | O36: 25 | P36: LSI | Q36: Off-Road | R36: 0.6 | S36: Baggage Tug | T36: Off-Road | U36: -- | V36: Gasoline | W36: -- | X36: 49 | Y36: 50 | Z36: 2017 | AA36: 2.66 | AB36: 0.00076 | AC36: 11.978 | AD36: 0.00278 | AE36: 2.0354 | AF36: 0.0005446 | AG36: 0.06 | AH36: 0 | AI36: 783.3 | AJ36: 0 | AK36: In-Use | AL36: 846 | AM36: 1 | AN36: 0.977 | AO36: 1 | AP36: 1 | AQ36: 0.55 | AU36: 109717.775 | AV36: 487583.4403 | AW36: 86390.91082 | AX36: 1367.982 | AY36: 1033.5864 | AZ36: 17859005.01 | BA36: 5247.86252 | BB36: 508.5138101 | BC36: 18141738.69 | BD36: 2034.05524 | BE36: 56.64960094 | BF36: 3384 | BG36: 1 | BH36: 401
A37: BT-0565 | B37: Baggage Tractor (Tug) | C37: Baggage Tractor (Tug) | D37: Tug | E37: M1A30 | F37: 24843 | G37: 2017 | H37: 49 | I37: No | J37: No | M37: Gasoline | N37: 49 | O37: 25 | P37: LSI | Q37: Off-Road | R37: 0.6 | S37: Baggage Tug | T37: Off-Road | U37: -- | V37: Gasoline | W37: -- | X37: 49 | Y37: 50 | Z37: 2017 | AA37: 2.66 | AB37: 0.00076 | AC37: 11.978 | AD37: 0.00278 | AE37: 2.0354 | AF37: 0.0005446 | AG37: 0.06 | AH37: 0 | AI37: 783.3 | AJ37: 0 | AK37: In-Use | AL37: 846 | AM37: 1 | AN37: 0.977 | AO37: 1 | AP37: 1 | AQ37: 0.55 | AU37: 109717.775 | AV37: 487583.4403 | AW37: 86390.91082 | AX37: 1367.982 | AY37: 1033.5864 | AZ37: 17859005.01 | BA37: 5247.86252 | BB37: 508.5138101 | BC37: 18141738.69 | BD37: 2034.05524 | BE37: 56.64960094 | BF37: 3384 | BG37: 1 | BH37: 401
A38: BT-0563 | B38: Baggage Tractor (Tug) | C38: Baggage Tractor (Tug) | D38: Tug | E38: M1A30 | F38: 24841 | G38: 2017 | H38: 49 | I38: No | J38: No | M38: Gasoline | N38: 49 | O38: 25 | P38: LSI | Q38: Off-Road | R38: 0.6 | S38: Baggage Tug | T38: Off-Road | U38: -- | V38: Gasoline | W38: -- | X38: 49 | Y38: 50 | Z38: 2017 | AA38: 2.66 | AB38: 0.00076 | AC38: 11.978 | AD38: 0.00278 | AE38: 2.0354 | AF38: 0.0005446 | AG38: 0.06 | AH38: 0 | AI38: 783.3 | AJ38: 0 | AK38: In-Use | AL38: 846 | AM38: 1 | AN38: 0.977 | AO38: 1 | AP38: 1 | AQ38: 0.55 | AU38: 109717.775 | AV38: 487583.4403 | AW38: 86390.91082 | AX38: 1367.982 | AY38: 1033.5864 | AZ38: 17859005.01 | BA38: 5247.86252 | BB38: 508.5138101 | BC38: 18141738.69 | BD38: 2034.05524 | BE38: 56.64960094 | BF38: 3384 | BG38: 1 | BH38: 401
A39: BT-0394 | B39: Baggage Tractor (Tug) | C39: Baggage Tractor (Tug) | D39: Charlatte | E39: T-137 | F39: 15723 | I39: No | J39: No | M39: Electric | N39: 0 | O39: NA | P39: ORD | Q39: Off-Road | R39: 0 | S39: Baggage Tug | T39: Off-Road | U39: -- | V39: Electric | W39: -- | X39: 96 | Y39: -- | Z39: 2014 | AA39: -- | AB39: -- | AC39: -- | AD39: -- | AE39: -- | AF39: -- | AG39: -- | AH39: -- | AI39: -- | AJ39: -- | AK39: In-Use | AL39: 846 | AM39: -- | AN39: -- | AO39: -- | AP39: -- | AQ39: -- | AU39: 0 | AV39: 0 | AW39: 0 | AX39: 0 | AY39: 0 | AZ39: 0 | BA39: 0 | BB39: 0 | BC39: 0 | BD39: 0 | BE39: 0 | BF39: -- | BG39: 1 | BH39: 2383
A40: BT-0501 | B40: Baggage Tractor (Tug) | C40: Baggage Tractor (Tug) | D40: Tug | E40: M1A30 | F40: 23270 | G40: 2016 | H40: 49 | I40: No | J40: No | M40: Gasoline | N40: 49 | O40: 25 | P40: LSI | Q40: Off-Road | R40: 0.6 | S40: Baggage Tug | T40: Off-Road | U40: -- | V40: Gasoline | W40: -- | X40: 49 | Y40: 50 | Z40: 2016 | AA40: 2.66 | AB40: 0.00076 | AC40: 11.978 | AD40: 0.00278 | AE40: 2.0354 | AF40: 0.0005446 | AG40: 0.06 | AH40: 0 | AI40: 783.3 | AJ40: 0 | AK40: In-Use | AL40: 846 | AM40: 1 | AN40: 0.977 | AO40: 1 | AP40: 1 | AQ40: 0.55 | AU40: 123201.3946 | AV40: 541205.5988 | AW40: 96653.84861 | AX40: 1367.982 | AY40: 1033.5864 | AZ40: 17859005.01 | BA40: 5247.86252 | BB40: 508.5138101 | BC40: 18141738.69 | BD40: 2034.05524 | BE40: 56.64960094 | BF40: 4230 | BG40: 1 | BH40: 381
A41: BL-0092 | B41: Belt Loader | C41: Belt Loader | D41: Tug | E41: 660 | F41: 17223 | G41: 2016 | H41: 69 | I41: No | J41: No | M41: Gasoline | N41: 69 | O41: 50 | P41: LSI | Q41: Off-Road | R41: 0.6 | S41: Belt Loader | T41: Off-Road | U41: -- | V41: Gasoline | W41: -- | X41: 69 | Y41: 75 | Z41: 2016 | AA41: 0.013 | AB41: 6.688e-05 | AC41: 0.302 | AD41: 0.0026 | AE41: 0.01 | AF41: 4.772e-05 | AG41: 0.06 | AH41: 0 | AI41: 774.5 | AJ41: 0 | AK41: In-Use | AL41: 706 | AM41: 1 | AN41: 0.977 | AO41: 1 | AP41: 1 | AQ41: 0.5 | AU41: 5580.42425 | AV41: 230904.36 | AW41: 4246.575072 | AX41: 1461.42 | AY41: 1104.184 | AZ41: 18864496.5 | BA41: 5543.325851 | BB41: 537.1439778 | BC41: 19163148.55 | BD41: 2148.575911 | BE41: 59.83906708 | BF41: 3530 | BG41: 1 | BH41: 1673
A42: BL-0093 | B42: Belt Loader | C42: Belt Loader | D42: Tug | E42: 660 | F42: 17225 | I42: No | J42: No | M42: Electric | N42: 0 | O42: NA | P42: ORD | Q42: Off-Road | R42: 0 | S42: Belt Loader | T42: Off-Road | U42: -- | V42: Electric | W42: -- | X42: 64 | Y42: -- | Z42: 2013 | AA42: -- | AB42: -- | AC42: -- | AD42: -- | AE42: -- | AF42: -- | AG42: -- | AH42: -- | AI42: -- | AJ42: -- | AK42: In-Use | AL42: 706 | AM42: -- | AN42: -- | AO42: -- | AP42: -- | AQ42: -- | AU42: 0 | AV42: 0 | AW42: 0 | AX42: 0 | AY42: 0 | AZ42: 0 | BA42: 0 | BB42: 0 | BC42: 0 | BD42: 0 | BE42: 0 | BF42: -- | BG42: 1 | BH42: 2383
A43: BL-0108 | B43: Belt Loader | C43: Belt Loader | D43: Tug | E43: 660 | F43: 17200 | G43: 2016 | H43: 69 | I43: No | J43: No | M43: Gasoline | N43: 69 | O43: 50 | P43: LSI | Q43: Off-Road | R43: 0.6 | S43: Belt Loader | T43: Off-Road | U43: -- | V43: Gasoline | W43: -- | X43: 69 | Y43: 75 | Z43: 2016 | AA43: 0.013 | AB43: 6.688e-05 | AC43: 0.302 | AD43: 0.0026 | AE43: 0.01 | AF43: 4.772e-05 | AG43: 0.06 | AH43: 0 | AI43: 774.5 | AJ43: 0 | AK43: In-Use | AL43: 706 | AM43: 1 | AN43: 0.977 | AO43: 1 | AP43: 1 | AQ43: 0.5 | AU43: 5580.42425 | AV43: 230904.36 | AW43: 4246.575072 | AX43: 1461.42 | AY43: 1104.184 | AZ43: 18864496.5 | BA43: 5543.325851 | BB43: 537.1439778 | BC43: 19163148.55 | BD43: 2148.575911 | BE43: 59.83906708 | BF43: 3530 | BG43: 1 | BH43: 1673
A44: BL-0240 | B44: Belt Loader | C44: Belt Loader | D44: Tug | E44: 660E | F44: 24765 | I44: No | J44: No | M44: Electric | N44: 0 | O44: NA | P44: ORD | Q44: Off-Road | R44: 0 | S44: Belt Loader | T44: Off-Road | U44: -- | V44: Electric | W44: -- | X44: 64 | Y44: -- | Z44: 2013 | AA44: -- | AB44: -- | AC44: -- | AD44: -- | AE44: -- | AF44: -- | AG44: -- | AH44: -- | AI44: -- | AJ44: -- | AK44: In-Use | AL44: 706 | AM44: -- | AN44: -- | AO44: -- | AP44: -- | AQ44: -- | AU44: 0 | AV44: 0 | AW44: 0 | AX44: 0 | AY44: 0 | AZ44: 0 | BA44: 0 | BB44: 0 | BC44: 0 | BD44: 0 | BE44: 0 | BF44: -- | BG44: 1 | BH44: 2383
A45: BL-0245 | B45: Belt Loader | C45: Belt Loader | D45: Tug | E45: 660E | F45: 24770 | I45: No | J45: No | M45: Electric | N45: 0 | O45: NA | P45: ORD | Q45: Off-Road | R45: 0 | S45: Belt Loader | T45: Off-Road | U45: -- | V45: Electric | W45: -- | X45: 64 | Y45: -- | Z45: 2013 | AA45: -- | AB45: -- | AC45: -- | AD45: -- | AE45: -- | AF45: -- | AG45: -- | AH45: -- | AI45: -- | AJ45: -- | AK45: In-Use | AL45: 706 | AM45: -- | AN45: -- | AO45: -- | AP45: -- | AQ45: -- | AU45: 0 | AV45: 0 | AW45: 0 | AX45: 0 | AY45: 0 | AZ45: 0 | BA45: 0 | BB45: 0 | BC45: 0 | BD45: 0 | BE45: 0 | BF45: -- | BG45: 1 | BH45: 2383
A46: BL-0235 | B46: Belt Loader | C46: Belt Loader | D46: Tug | E46: 660E | F46: 24760 | I46: No | J46: No | M46: Electric | N46: 0 | O46: NA | P46: ORD | Q46: Off-Road | R46: 0 | S46: Belt Loader | T46: Off-Road | U46: -- | V46: Electric | W46: -- | X46: 64 | Y46: -- | Z46: 2013 | AA46: -- | AB46: -- | AC46: -- | AD46: -- | AE46: -- | AF46: -- | AG46: -- | AH46: -- | AI46: -- | AJ46: -- | AK46: In-Use | AL46: 706 | AM46: -- | AN46: -- | AO46: -- | AP46: -- | AQ46: -- | AU46: 0 | AV46: 0 | AW46: 0 | AX46: 0 | AY46: 0 | AZ46: 0 | BA46: 0 | BB46: 0 | BC46: 0 | BD46: 0 | BE46: 0 | BF46: -- | BG46: 1 | BH46: 2383
A47: BL-0236 | B47: Belt Loader | C47: Belt Loader | D47: Tug | E47: 660E | F47: 24761 | I47: No | J47: No | M47: Electric | N47: 0 | O47: NA | P47: ORD | Q47: Off-Road | R47: 0 | S47: Belt Loader | T47: Off-Road | U47: -- | V47: Electric | W47: -- | X47: 64 | Y47: -- | Z47: 2013 | AA47: -- | AB47: -- | AC47: -- | AD47: -- | AE47: -- | AF47: -- | AG47: -- | AH47: -- | AI47: -- | AJ47: -- | AK47: In-Use | AL47: 706 | AM47: -- | AN47: -- | AO47: -- | AP47: -- | AQ47: -- | AU47: 0 | AV47: 0 | AW47: 0 | AX47: 0 | AY47: 0 | AZ47: 0 | BA47: 0 | BB47: 0 | BC47: 0 | BD47: 0 | BE47: 0 | BF47: -- | BG47: 1 | BH47: 2383
A48: BL-0234 | B48: Belt Loader | C48: Belt Loader | D48: Tug | E48: 660E | F48: 24759 | I48: No | J48: No | M48: Electric | N48: 0 | O48: NA | P48: ORD | Q48: Off-Road | R48: 0 | S48: Belt Loader | T48: Off-Road | U48: -- | V48: Electric | W48: -- | X48: 64 | Y48: -- | Z48: 2013 | AA48: -- | AB48: -- | AC48: -- | AD48: -- | AE48: -- | AF48: -- | AG48: -- | AH48: -- | AI48: -- | AJ48: -- | AK48: In-Use | AL48: 706 | AM48: -- | AN48: -- | AO48: -- | AP48: -- | AQ48: -- | AU48: 0 | AV48: 0 | AW48: 0 | AX48: 0 | AY48: 0 | AZ48: 0 | BA48: 0 | BB48: 0 | BC48: 0 | BD48: 0 | BE48: 0 | BF48: -- | BG48: 1 | BH48: 2383
A49: BL-0233 | B49: Belt Loader | C49: Belt Loader | D49: Tug | E49: 660E | F49: 24758 | I49: No | J49: No | M49: Electric | N49: 0 | O49: NA | P49: ORD | Q49: Off-Road | R49: 0 | S49: Belt Loader | T49: Off-Road | U49: -- | V49: Electric | W49: -- | X49: 64 | Y49: -- | Z49: 2013 | AA49: -- | AB49: -- | AC49: -- | AD49: -- | AE49: -- | AF49: -- | AG49: -- | AH49: -- | AI49: -- | AJ49: -- | AK49: In-Use | AL49: 706 | AM49: -- | AN49: -- | AO49: -- | AP49: -- | AQ49: -- | AU49: 0 | AV49: 0 | AW49: 0 | AX49: 0 | AY49: 0 | AZ49: 0 | BA49: 0 | BB49: 0 | BC49: 0 | BD49: 0 | BE49: 0 | BF49: -- | BG49: 1 | BH49: 2383
A50: BL-0238 | B50: Belt Loader | C50: Belt Loader | D50: Tug | E50: 660E | F50: 24763 | I50: No | J50: No | M50: Electric | N50: 0 | O50: NA | P50: ORD | Q50: Off-Road | R50: 0 | S50: Belt Loader | T50: Off-Road | U50: -- | V50: Electric | W50: -- | X50: 64 | Y50: -- | Z50: 2013 | AA50: -- | AB50: -- | AC50: -- | AD50: -- | AE50: -- | AF50: -- | AG50: -- | AH50: -- | AI50: -- | AJ50: -- | AK50: In-Use | AL50: 706 | AM50: -- | AN50: -- | AO50: -- | AP50: -- | AQ50: -- | AU50: 0 | AV50: 0 | AW50: 0 | AX50: 0 | AY50: 0 | AZ50: 0 | BA50: 0 | BB50: 0 | BC50: 0 | BD50: 0 | BE50: 0 | BF50: -- | BG50: 1 | BH50: 2383
A51: BL-0241 | B51: Belt Loader | C51: Belt Loader | D51: Tug | E51: 660E | F51: 24766 | I51: No | J51: No | M51: Electric | N51: 0 | O51: NA | P51: ORD | Q51: Off-Road | R51: 0 | S51: Belt Loader | T51: Off-Road | U51: -- | V51: Electric | W51: -- | X51: 64 | Y51: -- | Z51: 2013 | AA51: -- | AB51: -- | AC51: -- | AD51: -- | AE51: -- | AF51: -- | AG51: -- | AH51: -- | AI51: -- | AJ51: -- | AK51: In-Use | AL51: 706 | AM51: -- | AN51: -- | AO51: -- | AP51: -- | AQ51: -- | AU51: 0 | AV51: 0 | AW51: 0 | AX51: 0 | AY51: 0 | AZ51: 0 | BA51: 0 | BB51: 0 | BC51: 0 | BD51: 0 | BE51: 0 | BF51: -- | BG51: 1 | BH51: 2383
A52: BL-0232 | B52: Belt Loader | C52: Belt Loader | D52: Tug | E52: 660E | F52: 24757 | I52: No | J52: No | M52: Electric | N52: 0 | O52: NA | P52: ORD | Q52: Off-Road | R52: 0 | S52: Belt Loader | T52: Off-Road | U52: -- | V52: Electric | W52: -- | X52: 64 | Y52: -- | Z52: 2013 | AA52: -- | AB52: -- | AC52: -- | AD52: -- | AE52: -- | AF52: -- | AG52: -- | AH52: -- | AI52: -- | AJ52: -- | AK52: In-Use | AL52: 706 | AM52: -- | AN52: -- | AO52: -- | AP52: -- | AQ52: -- | AU52: 0 | AV52: 0 | AW52: 0 | AX52: 0 | AY52: 0 | AZ52: 0 | BA52: 0 | BB52: 0 | BC52: 0 | BD52: 0 | BE52: 0 | BF52: -- | BG52: 1 | BH52: 2383
A53: BL-0242 | B53: Belt Loader | C53: Belt Loader | D53: Tug | E53: 660E | F53: 24767 | I53: No | J53: No | M53: Electric | N53: 0 | O53: NA | P53: ORD | Q53: Off-Road | R53: 0 | S53: Belt Loader | T53: Off-Road | U53: -- | V53: Electric | W53: -- | X53: 64 | Y53: -- | Z53: 2013 | AA53: -- | AB53: -- | AC53: -- | AD53: -- | AE53: -- | AF53: -- | AG53: -- | AH53: -- | AI53: -- | AJ53: -- | AK53: In-Use | AL53: 706 | AM53: -- | AN53: -- | AO53: -- | AP53: -- | AQ53: -- | AU53: 0 | AV53: 0 | AW53: 0 | AX53: 0 | AY53: 0 | AZ53: 0 | BA53: 0 | BB53: 0 | BC53: 0 | BD53: 0 | BE53: 0 | BF53: -- | BG53: 1 | BH53: 2383
A54: BL-0237 | B54: Belt Loader | C54: Belt Loader | D54: Tug | E54: 660E | F54: 24762 | I54: No | J54: No | M54: Electric | N54: 0 | O54: NA | P54: ORD | Q54: Off-Road | R54: 0 | S54: Belt Loader | T54: Off-Road | U54: -- | V54: Electric | W54: -- | X54: 64 | Y54: -- | Z54: 2013 | AA54: -- | AB54: -- | AC54: -- | AD54: -- | AE54: -- | AF54: -- | AG54: -- | AH54: -- | AI54: -- | AJ54: -- | AK54: In-Use | AL54: 706 | AM54: -- | AN54: -- | AO54: -- | AP54: -- | AQ54: -- | AU54: 0 | AV54: 0 | AW54: 0 | AX54: 0 | AY54: 0 | AZ54: 0 | BA54: 0 | BB54: 0 | BC54: 0 | BD54: 0 | BE54: 0 | BF54: -- | BG54: 1 | BH54: 2383
A55: BL-0229 | B55: Belt Loader | C55: Belt Loader | D55: PowerStow | E55: RT450E | F55: 24540 | I55: No | J55: No | M55: Electric | N55: 0 | O55: NA | P55: ORD | Q55: Off-Road | R55: 0 | S55: Belt Loader | T55: Off-Road | U55: -- | V55: Electric | W55: -- | X55: 64 | Y55: -- | Z55: 2013 | AA55: -- | AB55: -- | AC55: -- | AD55: -- | AE55: -- | AF55: -- | AG55: -- | AH55: -- | AI55: -- | AJ55: -- | AK55: In-Use | AL55: 706 | AM55: -- | AN55: -- | AO55: -- | AP55: -- | AQ55: -- | AU55: 0 | AV55: 0 | AW55: 0 | AX55: 0 | AY55: 0 | AZ55: 0 | BA55: 0 | BB55: 0 | BC55: 0 | BD55: 0 | BE55: 0 | BF55: -- | BG55: 1 | BH55: 2383
A56: BL-0179 | B56: Belt Loader | C56: Belt Loader | D56: PowerStow | E56: RT450E | F56: 24532 | I56: No | J56: No | M56: Electric | N56: 0 | O56: NA | P56: ORD | Q56: Off-Road | R56: 0 | S56: Belt Loader | T56: Off-Road | U56: -- | V56: Electric | W56: -- | X56: 64 | Y56: -- | Z56: 2013 | AA56: -- | AB56: -- | AC56: -- | AD56: -- | AE56: -- | AF56: -- | AG56: -- | AH56: -- | AI56: -- | AJ56: -- | AK56: In-Use | AL56: 706 | AM56: -- | AN56: -- | AO56: -- | AP56: -- | AQ56: -- | AU56: 0 | AV56: 0 | AW56: 0 | AX56: 0 | AY56: 0 | AZ56: 0 | BA56: 0 | BB56: 0 | BC56: 0 | BD56: 0 | BE56: 0 | BF56: -- | BG56: 1 | BH56: 2383
A57: BL-0222 | B57: Belt Loader | C57: Belt Loader | D57: PowerStow | E57: RT450E | F57: 24533 | I57: No | J57: No | M57: Electric | N57: 0 | O57: NA | P57: ORD | Q57: Off-Road | R57: 0 | S57: Belt Loader | T57: Off-Road | U57: -- | V57: Electric | W57: -- | X57: 64 | Y57: -- | Z57: 2013 | AA57: -- | AB57: -- | AC57: -- | AD57: -- | AE57: -- | AF57: -- | AG57: -- | AH57: -- | AI57: -- | AJ57: -- | AK57: In-Use | AL57: 706 | AM57: -- | AN57: -- | AO57: -- | AP57: -- | AQ57: -- | AU57: 0 | AV57: 0 | AW57: 0 | AX57: 0 | AY57: 0 | AZ57: 0 | BA57: 0 | BB57: 0 | BC57: 0 | BD57: 0 | BE57: 0 | BF57: -- | BG57: 1 | BH57: 2383
A58: BL-0180 | B58: Belt Loader | C58: Belt Loader | D58: PowerStow | E58: RT450E | F58: 24535 | I58: No | J58: No | M58: Electric | N58: 0 | O58: NA | P58: ORD | Q58: Off-Road | R58: 0 | S58: Belt Loader | T58: Off-Road | U58: -- | V58: Electric | W58: -- | X58: 64 | Y58: -- | Z58: 2013 | AA58: -- | AB58: -- | AC58: -- | AD58: -- | AE58: -- | AF58: -- | AG58: -- | AH58: -- | AI58: -- | AJ58: -- | AK58: In-Use | AL58: 706 | AM58: -- | AN58: -- | AO58: -- | AP58: -- | AQ58: -- | AU58: 0 | AV58: 0 | AW58: 0 | AX58: 0 | AY58: 0 | AZ58: 0 | BA58: 0 | BB58: 0 | BC58: 0 | BD58: 0 | BE58: 0 | BF58: -- | BG58: 1 | BH58: 2383
A59: BL-0230 | B59: Belt Loader | C59: Belt Loader | D59: PowerStow | E59: RT450E | F59: 24541 | I59: No | J59: No | M59: Electric | N59: 0 | O59: NA | P59: ORD | Q59: Off-Road | R59: 0 | S59: Belt Loader | T59: Off-Road | U59: -- | V59: Electric | W59: -- | X59: 64 | Y59: -- | Z59: 2013 | AA59: -- | AB59: -- | AC59: -- | AD59: -- | AE59: -- | AF59: -- | AG59: -- | AH59: -- | AI59: -- | AJ59: -- | AK59: In-Use | AL59: 706 | AM59: -- | AN59: -- | AO59: -- | AP59: -- | AQ59: -- | AU59: 0 | AV59: 0 | AW59: 0 | AX59: 0 | AY59: 0 | AZ59: 0 | BA59: 0 | BB59: 0 | BC59: 0 | BD59: 0 | BE59: 0 | BF59: -- | BG59: 1 | BH59: 2383
A60: BL-0223 | B60: Belt Loader | C60: Belt Loader | D60: PowerStow | E60: RT450E | F60: 24534 | I60: No | J60: No | M60: Electric | N60: 0 | O60: NA | P60: ORD | Q60: Off-Road | R60: 0 | S60: Belt Loader | T60: Off-Road | U60: -- | V60: Electric | W60: -- | X60: 64 | Y60: -- | Z60: 2013 | AA60: -- | AB60: -- | AC60: -- | AD60: -- | AE60: -- | AF60: -- | AG60: -- | AH60: -- | AI60: -- | AJ60: -- | AK60: In-Use | AL60: 706 | AM60: -- | AN60: -- | AO60: -- | AP60: -- | AQ60: -- | AU60: 0 | AV60: 0 | AW60: 0 | AX60: 0 | AY60: 0 | AZ60: 0 | BA60: 0 | BB60: 0 | BC60: 0 | BD60: 0 | BE60: 0 | BF60: -- | BG60: 1 | BH60: 2383
A61: BL-0184 | B61: Belt Loader | C61: Belt Loader | D61: PowerStow | E61: RT450E | F61: 24539 | I61: No | J61: No | M61: Electric | N61: 0 | O61: NA | P61: ORD | Q61: Off-Road | R61: 0 | S61: Belt Loader | T61: Off-Road | U61: -- | V61: Electric | W61: -- | X61: 64 | Y61: -- | Z61: 2013 | AA61: -- | AB61: -- | AC61: -- | AD61: -- | AE61: -- | AF61: -- | AG61: -- | AH61: -- | AI61: -- | AJ61: -- | AK61: In-Use | AL61: 706 | AM61: -- | AN61: -- | AO61: -- | AP61: -- | AQ61: -- | AU61: 0 | AV61: 0 | AW61: 0 | AX61: 0 | AY61: 0 | AZ61: 0 | BA61: 0 | BB61: 0 | BC61: 0 | BD61: 0 | BE61: 0 | BF61: -- | BG61: 1 | BH61: 2383
A62: BL-0181 | B62: Belt Loader | C62: Belt Loader | D62: PowerStow | E62: RT450E | F62: 24536 | I62: No | J62: No | M62: Electric | N62: 0 | O62: NA | P62: ORD | Q62: Off-Road | R62: 0 | S62: Belt Loader | T62: Off-Road | U62: -- | V62: Electric | W62: -- | X62: 64 | Y62: -- | Z62: 2013 | AA62: -- | AB62: -- | AC62: -- | AD62: -- | AE62: -- | AF62: -- | AG62: -- | AH62: -- | AI62: -- | AJ62: -- | AK62: In-Use | AL62: 706 | AM62: -- | AN62: -- | AO62: -- | AP62: -- | AQ62: -- | AU62: 0 | AV62: 0 | AW62: 0 | AX62: 0 | AY62: 0 | AZ62: 0 | BA62: 0 | BB62: 0 | BC62: 0 | BD62: 0 | BE62: 0 | BF62: -- | BG62: 1 | BH62: 2383
A63: BL-0231 | B63: Belt Loader | C63: Belt Loader | D63: PowerStow | E63: RT450E | F63: 24542 | I63: No | J63: No | M63: Electric | N63: 0 | O63: NA | P63: ORD | Q63: Off-Road | R63: 0 | S63: Belt Loader | T63: Off-Road | U63: -- | V63: Electric | W63: -- | X63: 64 | Y63: -- | Z63: 2013 | AA63: -- | AB63: -- | AC63: -- | AD63: -- | AE63: -- | AF63: -- | AG63: -- | AH63: -- | AI63: -- | AJ63: -- | AK63: In-Use | AL63: 706 | AM63: -- | AN63: -- | AO63: -- | AP63: -- | AQ63: -- | AU63: 0 | AV63: 0 | AW63: 0 | AX63: 0 | AY63: 0 | AZ63: 0 | BA63: 0 | BB63: 0 | BC63: 0 | BD63: 0 | BE63: 0 | BF63: -- | BG63: 1 | BH63: 2383
A64: BL-0220 | B64: Belt Loader | C64: Belt Loader | D64: PowerStow | E64: RT450E | F64: 23090 | I64: No | J64: No | M64: Electric | N64: 0 | O64: NA | P64: ORD | Q64: Off-Road | R64: 0 | S64: Belt Loader | T64: Off-Road | U64: -- | V64: Electric | W64: -- | X64: 64 | Y64: -- | Z64: 2013 | AA64: -- | AB64: -- | AC64: -- | AD64: -- | AE64: -- | AF64: -- | AG64: -- | AH64: -- | AI64: -- | AJ64: -- | AK64: In-Use | AL64: 706 | AM64: -- | AN64: -- | AO64: -- | AP64: -- | AQ64: -- | AU64: 0 | AV64: 0 | AW64: 0 | AX64: 0 | AY64: 0 | AZ64: 0 | BA64: 0 | BB64: 0 | BC64: 0 | BD64: 0 | BE64: 0 | BF64: -- | BG64: 1 | BH64: 2383
A65: BL-0183 | B65: Belt Loader | C65: Belt Loader | D65: PowerStow | E65: RT450E | F65: 24538 | I65: No | J65: No | M65: Electric | N65: 0 | O65: NA | P65: ORD | Q65: Off-Road | R65: 0 | S65: Belt Loader | T65: Off-Road | U65: -- | V65: Electric | W65: -- | X65: 64 | Y65: -- | Z65: 2013 | AA65: -- | AB65: -- | AC65: -- | AD65: -- | AE65: -- | AF65: -- | AG65: -- | AH65: -- | AI65: -- | AJ65: -- | AK65: In-Use | AL65: 706 | AM65: -- | AN65: -- | AO65: -- | AP65: -- | AQ65: -- | AU65: 0 | AV65: 0 | AW65: 0 | AX65: 0 | AY65: 0 | AZ65: 0 | BA65: 0 | BB65: 0 | BC65: 0 | BD65: 0 | BE65: 0 | BF65: -- | BG65: 1 | BH65: 2383
A66: BL-0182 | B66: Belt Loader | C66: Belt Loader | D66: PowerStow | E66: RT450E | F66: 24537 | I66: No | J66: No | M66: Electric | N66: 0 | O66: NA | P66: ORD | Q66: Off-Road | R66: 0 | S66: Belt Loader | T66: Off-Road | U66: -- | V66: Electric | W66: -- | X66: 64 | Y66: -- | Z66: 2013 | AA66: -- | AB66: -- | AC66: -- | AD66: -- | AE66: -- | AF66: -- | AG66: -- | AH66: -- | AI66: -- | AJ66: -- | AK66: In-Use | AL66: 706 | AM66: -- | AN66: -- | AO66: -- | AP66: -- | AQ66: -- | AU66: 0 | AV66: 0 | AW66: 0 | AX66: 0 | AY66: 0 | AZ66: 0 | BA66: 0 | BB66: 0 | BC66: 0 | BD66: 0 | BE66: 0 | BF66: -- | BG66: 1 | BH66: 2383
A67: B-0029 | B67: Bobtail | C67: Bobtail | D67: Phoenix Metals | E67: HS-5K | F67: 25086 | G67: 2017 | H67: 385 | I67: No | J67: Yes | M67: Gasoline | N67: 385 | O67: 300 | P67: LSI | Q67: On-Road | R67: 0.7 | S67: Bobtail | T67: On-Road | U67: LHD2 | V67: Gasoline | W67: -- | X67: 385 | Y67: -- | Z67: 2017 | AA67: 0.002236247052 | AB67: 0 | AC67: 0.0448503274 | AD67: 0 | AE67: 0.01302968863 | AF67: 0 | AG67: 0.00697476299 | AH67: 0 | AI67: 66.14902223 | AJ67: 0 | AK67: In-Use | AL67: 765 | AM67: 1 | AN67: 1 | AO67: 1 | AP67: 1 | AQ67: 0.55 | AU67: 362.2468646 | AV67: 7265.248473 | AW67: 2110.662975 | AX67: 1129.833138 | AY67: 853.6517045 | AZ67: 10715397.42 | BA67: 3148.715872 | BB67: 305.1081271 | BC67: 10885037.54 | BD67: 1220.432508 | BE67: 33.98974286 | BF67: 3060 | BG67: 1 | BH67: 2046
A68: B-0030 | B68: Bobtail | C68: Bobtail | D68: Phoenix Metals | E68: HS-5K | F68: 25087 | G68: 2017 | H68: 385 | I68: No | J68: Yes | M68: Gasoline | N68: 385 | O68: 300 | P68: LSI | Q68: On-Road | R68: 0.7 | S68: Bobtail | T68: On-Road | U68: LHD2 | V68: Gasoline | W68: -- | X68: 385 | Y68: -- | Z68: 2017 | AA68: 0.002236247052 | AB68: 0 | AC68: 0.0448503274 | AD68: 0 | AE68: 0.01302968863 | AF68: 0 | AG68: 0.00697476299 | AH68: 0 | AI68: 66.14902223 | AJ68: 0 | AK68: In-Use | AL68: 765 | AM68: 1 | AN68: 1 | AO68: 1 | AP68: 1 | AQ68: 0.55 | AU68: 362.2468646 | AV68: 7265.248473 | AW68: 2110.662975 | AX68: 1129.833138 | AY68: 853.6517045 | AZ68: 10715397.42 | BA68: 3148.715872 | BB68: 305.1081271 | BC68: 10885037.54 | BD68: 1220.432508 | BE68: 33.98974286 | BF68: 3060 | BG68: 1 | BH68: 2046
A69: B-0031 | B69: Bobtail | C69: Bobtail | D69: Phoenix Metals | E69: HS-5K | F69: 25088 | G69: 2017 | H69: 385 | I69: No | J69: Yes | M69: Gasoline | N69: 385 | O69: 300 | P69: LSI | Q69: On-Road | R69: 0.7 | S69: Bobtail | T69: On-Road | U69: LHD2 | V69: Gasoline | W69: -- | X69: 385 | Y69: -- | Z69: 2017 | AA69: 0.002236247052 | AB69: 0 | AC69: 0.0448503274 | AD69: 0 | AE69: 0.01302968863 | AF69: 0 | AG69: 0.00697476299 | AH69: 0 | AI69: 66.14902223 | AJ69: 0 | AK69: In-Use | AL69: 765 | AM69: 1 | AN69: 1 | AO69: 1 | AP69: 1 | AQ69: 0.55 | AU69: 362.2468646 | AV69: 7265.248473 | AW69: 2110.662975 | AX69: 1129.833138 | AY69: 853.6517045 | AZ69: 10715397.42 | BA69: 3148.715872 | BB69: 305.1081271 | BC69: 10885037.54 | BD69: 1220.432508 | BE69: 33.98974286 | BF69: 3060 | BG69: 1 | BH69: 2046
A70: B-0032 | B70: Bobtail | C70: Bobtail | D70: Phoenix Metals | E70: HS-5K | F70: 25089 | G70: 2017 | H70: 385 | I70: No | J70: Yes | M70: Gasoline | N70: 385 | O70: 300 | P70: LSI | Q70: On-Road | R70: 0.7 | S70: Bobtail | T70: On-Road | U70: LHD2 | V70: Gasoline | W70: -- | X70: 385 | Y70: -- | Z70: 2017 | AA70: 0.002236247052 | AB70: 0 | AC70: 0.0448503274 | AD70: 0 | AE70: 0.01302968863 | AF70: 0 | AG70: 0.00697476299 | AH70: 0 | AI70: 66.14902223 | AJ70: 0 | AK70: In-Use | AL70: 765 | AM70: 1 | AN70: 1 | AO70: 1 | AP70: 1 | AQ70: 0.55 | AU70: 362.2468646 | AV70: 7265.248473 | AW70: 2110.662975 | AX70: 1129.833138 | AY70: 853.6517045 | AZ70: 10715397.42 | BA70: 3148.715872 | BB70: 305.1081271 | BC70: 10885037.54 | BD70: 1220.432508 | BE70: 33.98974286 | BF70: 3060 | BG70: 1 | BH70: 2046
A71: B-0033 | B71: Bobtail | C71: Bobtail | D71: Phoenix Metals | E71: HS-5K | F71: 25090 | G71: 2017 | H71: 385 | I71: No | J71: Yes | M71: Gasoline | N71: 385 | O71: 300 | P71: LSI | Q71: On-Road | R71: 0.7 | S71: Bobtail | T71: On-Road | U71: LHD2 | V71: Gasoline | W71: -- | X71: 385 | Y71: -- | Z71: 2017 | AA71: 0.002236247052 | AB71: 0 | AC71: 0.0448503274 | AD71: 0 | AE71: 0.01302968863 | AF71: 0 | AG71: 0.00697476299 | AH71: 0 | AI71: 66.14902223 | AJ71: 0 | AK71: In-Use | AL71: 765 | AM71: 1 | AN71: 1 | AO71: 1 | AP71: 1 | AQ71: 0.55 | AU71: 362.2468646 | AV71: 7265.248473 | AW71: 2110.662975 | AX71: 1129.833138 | AY71: 853.6517045 | AZ71: 10715397.42 | BA71: 3148.715872 | BB71: 305.1081271 | BC71: 10885037.54 | BD71: 1220.432508 | BE71: 33.98974286 | BF71: 3060 | BG71: 1 | BH71: =RANK(AW71,_xlfn.ANCHORARRAY(AW$6),0) -> 2046
A72: B-0034 | B72: Bobtail | C72: Bobtail | D72: Phoenix Metals | E72: HS-5K | F72: 25091 | G72: 2017 | H72: 385 | I72: No | J72: Yes | M72: Gasoline | N72: 385 | O72: 300 | P72: LSI | Q72: On-Road | R72: 0.7 | S72: Bobtail | T72: On-Road | U72: LHD2 | V72: Gasoline | W72: -- | X72: 385 | Y72: -- | Z72: 2017 | AA72: 0.002236247052 | AB72: 0 | AC72: 0.0448503274 | AD72: 0 | AE72: 0.01302968863 | AF72: 0 | AG72: 0.00697476299 | AH72: 0 | AI72: 66.14902223 | AJ72: 0 | AK72: In-Use | AL72: 765 | AM72: 1 | AN72: 1 | AO72: 1 | AP72: 1 | AQ72: 0.55 | AU72: 362.2468646 | AV72: 7265.248473 | AW72: 2110.662975 | AX72: 1129.833138 | AY72: 853.6517045 | AZ72: 10715397.42 | BA72: 3148.715872 | BB72: 305.1081271 | BC72: 10885037.54 | BD72: 1220.432508 | BE72: 33.98974286 | BF72: 3060 | BG72: 1 | BH72: 2046
A73: B-0035 | B73: Bobtail | C73: Bobtail | D73: Phoenix Metals | E73: HS-5K | F73: 25092 | G73: 2017 | H73: 385 | I73: No | J73: Yes | M73: Gasoline | N73: 385 | O73: 300 | P73: LSI | Q73: On-Road | R73: 0.7 | S73: Bobtail | T73: On-Road | U73: LHD2 | V73: Gasoline | W73: -- | X73: 385 | Y73: -- | Z73: 2017 | AA73: 0.002236247052 | AB73: 0 | AC73: 0.0448503274 | AD73: 0 | AE73: 0.01302968863 | AF73: 0 | AG73: 0.00697476299 | AH73: 0 | AI73: 66.14902223 | AJ73: 0 | AK73: In-Use | AL73: 765 | AM73: 1 | AN73: 1 | AO73: 1 | AP73: 1 | AQ73: 0.55 | AU73: 362.2468646 | AV73: 7265.248473 | AW73: 2110.662975 | AX73: 1129.833138 | AY73: 853.6517045 | AZ73: 10715397.42 | BA73: 3148.715872 | BB73: 305.1081271 | BC73: 10885037.54 | BD73: 1220.432508 | BE73: 33.98974286 | BF73: 3060 | BG73: 1 | BH73: 2046
A74: B-0036 | B74: Bobtail | C74: Bobtail | D74: Phoenix Metals | E74: HS-5K | F74: 25093 | G74: 2017 | H74: 385 | I74: No | J74: Yes | M74: Gasoline | N74: 385 | O74: 300 | P74: LSI | Q74: On-Road | R74: 0.7 | S74: Bobtail | T74: On-Road | U74: LHD2 | V74: Gasoline | W74: -- | X74: 385 | Y74: -- | Z74: 2017 | AA74: 0.002236247052 | AB74: 0 | AC74: 0.0448503274 | AD74: 0 | AE74: 0.01302968863 | AF74: 0 | AG74: 0.00697476299 | AH74: 0 | AI74: 66.14902223 | AJ74: 0 | AK74: In-Use | AL74: 765 | AM74: 1 | AN74: 1 | AO74: 1 | AP74: 1 | AQ74: 0.55 | AU74: 362.2468646 | AV74: 7265.248473 | AW74: 2110.662975 | AX74: 1129.833138 | AY74: 853.6517045 | AZ74: 10715397.42 | BA74: 3148.715872 | BB74: 305.1081271 | BC74: 10885037.54 | BD74: 1220.432508 | BE74: 33.98974286 | BF74: 3060 | BG74: 1 | BH74: 2046
A75: B-0037 | B75: Bobtail | C75: Bobtail | D75: Phoenix Metals | E75: HS-5K | F75: 25094 | G75: 2017 | H75: 385 | I75: No | J75: Yes | M75: Gasoline | N75: 385 | O75: 300 | P75: LSI | Q75: On-Road | R75: 0.7 | S75: Bobtail | T75: On-Road | U75: LHD2 | V75: Gasoline | W75: -- | X75: 385 | Y75: -- | Z75: 2017 | AA75: 0.002236247052 | AB75: 0 | AC75: 0.0448503274 | AD75: 0 | AE75: 0.01302968863 | AF75: 0 | AG75: 0.00697476299 | AH75: 0 | AI75: 66.14902223 | AJ75: 0 | AK75: In-Use | AL75: 765 | AM75: 1 | AN75: 1 | AO75: 1 | AP75: 1 | AQ75: 0.55 | AU75: 362.2468646 | AV75: 7265.248473 | AW75: 2110.662975 | AX75: 1129.833138 | AY75: 853.6517045 | AZ75: 10715397.42 | BA75: 3148.715872 | BB75: 305.1081271 | BC75: 10885037.54 | BD75: 1220.432508 | BE75: 33.98974286 | BF75: 3060 | BG75: 1 | BH75: 2046
A76: B-0038 | B76: Bobtail | C76: Bobtail | D76: Phoenix Metals | E76: HS-5K | F76: 25360 | G76: 2017 | H76: 385 | I76: No | J76: Yes | M76: Gasoline | N76: 385 | O76: 300 | P76: LSI | Q76: On-Road | R76: 0.7 | S76: Bobtail | T76: On-Road | U76: LHD2 | V76: Gasoline | W76: -- | X76: 385 | Y76: -- | Z76: 2017 | AA76: 0.002236247052 | AB76: 0 | AC76: 0.0448503274 | AD76: 0 | AE76: 0.01302968863 | AF76: 0 | AG76: 0.00697476299 | AH76: 0 | AI76: 66.14902223 | AJ76: 0 | AK76: In-Use | AL76: 765 | AM76: 1 | AN76: 1 | AO76: 1 | AP76: 1 | AQ76: 0.55 | AU76: 362.2468646 | AV76: 7265.248473 | AW76: 2110.662975 | AX76: 1129.833138 | AY76: 853.6517045 | AZ76: 10715397.42 | BA76: 3148.715872 | BB76: 305.1081271 | BC76: 10885037.54 | BD76: 1220.432508 | BE76: 33.98974286 | BF76: 3060 | BG76: 1 | BH76: 2046
A77: B-0039 | B77: Bobtail | C77: Bobtail | D77: Phoenix Metals | E77: HS-5K | F77: 25361 | G77: 2017 | H77: 385 | I77: No | J77: Yes | M77: Gasoline | N77: 385 | O77: 300 | P77: LSI | Q77: On-Road | R77: 0.7 | S77: Bobtail | T77: On-Road | U77: LHD2 | V77: Gasoline | W77: -- | X77: 385 | Y77: -- | Z77: 2017 | AA77: 0.002236247052 | AB77: 0 | AC77: 0.0448503274 | AD77: 0 | AE77: 0.01302968863 | AF77: 0 | AG77: 0.00697476299 | AH77: 0 | AI77: 66.14902223 | AJ77: 0 | AK77: In-Use | AL77: 765 | AM77: 1 | AN77: 1 | AO77: 1 | AP77: 1 | AQ77: 0.55 | AU77: 362.2468646 | AV77: 7265.248473 | AW77: 2110.662975 | AX77: 1129.833138 | AY77: 853.6517045 | AZ77: 10715397.42 | BA77: 3148.715872 | BB77: 305.1081271 | BC77: 10885037.54 | BD77: 1220.432508 | BE77: 33.98974286 | BF77: 3060 | BG77: 1 | BH77: 2046
A78: B-0018 | B78: Bobtail | C78: Bobtail | D78: Eagle | E78: EB2-5G | F78: 23536 | G78: 2016 | H78: 385 | I78: No | J78: Yes | M78: Gasoline | N78: 385 | O78: 300 | P78: LSI | Q78: On-Road | R78: 0.7 | S78: Bobtail | T78: On-Road | U78: LHD2 | V78: Gasoline | W78: -- | X78: 385 | Y78: -- | Z78: 2016 | AA78: 0.002482786018 | AB78: 0 | AC78: 0.04639500222 | AD78: 0 | AE78: 0.0144465592 | AF78: 0 | AG78: 0.006968851586 | AH78: 0 | AI78: 67.59687551 | AJ78: 0 | AK78: In-Use | AL78: 765 | AM78: 1 | AN78: 1 | AO78: 1 | AP78: 1 | AQ78: 0.55 | AU78: 402.1834035 | AV78: 7515.468416 | AW78: 2340.180066 | AX78: 1128.875557 | AY78: 852.9281989 | AZ78: 10949933.37 | BA78: 3217.634179 | BB78: 311.7862576 | BC78: 11123286.53 | BD78: 1247.14503 | BE78: 34.73370187 | BF78: 3825 | BG78: 1 | BH78: 1966
A79: CTr-0047 | B79: Cargo Tractor | C79: Cargo Tractor | D79: Toyota | E79: CBT6 | F79: 11075 | I79: No | J79: No | M79: Electric | N79: 0 | O79: NA | P79: ORD | Q79: Off-Road | R79: 0 | S79: Cargo Tractor | T79: Off-Road | U79: -- | V79: Electric | W79: -- | X79: 99 | Y79: -- | Z79: 2012 | AA79: -- | AB79: -- | AC79: -- | AD79: -- | AE79: -- | AF79: -- | AG79: -- | AH79: -- | AI79: -- | AJ79: -- | AK79: In-Use | AL79: 1114 | AM79: -- | AN79: -- | AO79: -- | AP79: -- | AQ79: -- | AU79: 0 | AV79: 0 | AW79: 0 | AX79: 0 | AY79: 0 | AZ79: 0 | BA79: 0 | BB79: 0 | BC79: 0 | BD79: 0 | BE79: 0 | BF79: -- | BG79: 1 | BH79: 2383
A80: CTr-0255 | B80: Cargo Tractor | C80: Cargo Tractor | D80: Charlatte | E80: TE 208 | F80: 28959 | I80: No | J80: No | M80: Electric | N80: 0 | O80: NA | P80: ORD | Q80: Off-Road | R80: 0 | S80: Cargo Tractor | T80: Off-Road | U80: -- | V80: Electric | W80: -- | X80: 99 | Y80: -- | Z80: 2012 | AA80: -- | AB80: -- | AC80: -- | AD80: -- | AE80: -- | AF80: -- | AG80: -- | AH80: -- | AI80: -- | AJ80: -- | AK80: In-Use | AL80: 1114 | AM80: -- | AN80: -- | AO80: -- | AP80: -- | AQ80: -- | AU80: 0 | AV80: 0 | AW80: 0 | AX80: 0 | AY80: 0 | AZ80: 0 | BA80: 0 | BB80: 0 | BC80: 0 | BD80: 0 | BE80: 0 | BF80: -- | BG80: 1 | BH80: 2383
A81: F-0360 | B81: Forklift | C81: Forklift | D81: Toyota | E81: 8FGU18 | F81: 26668 | G81: 2018 | H81: 54 | I81: No | J81: No | M81: LPG/Propane | N81: 54 | O81: 50 | P81: LSI | Q81: Off-Road | R81: 0.6 | S81: Forklift | T81: Off-Road | U81: -- | V81: LPG | W81: -- | X81: 54 | Y81: 75 | Z81: 2018 | AA81: 0.123 | AB81: 4.948e-05 | AC81: 1.546 | AD81: 0.0026 | AE81: 0.075 | AF81: 2.972e-05 | AG81: 0.06 | AH81: 0 | AI81: 674.66 | AJ81: 0 | AK81: In-Use | AL81: 591 | AM81: 1 | AN81: 1 | AO81: 1 | AP81: 1 | AQ81: 0.3 | AU81: 2017.552401 | AV81: 58936.86036 | AW81: 1222.563682 | AX81: 574.452 | AY81: 574.452 | AZ81: 6459329.772 | BA81: 375.2779621 | BB81: 466.2544378 | BC81: 6607655.544 | BD81: 1137.205946 | BE81: 0 | BF81: 1773 | BG81: 1 | BH81: 2259
A82: F-0361 | B82: Forklift | C82: Forklift | D82: Toyota | E82: 8FGU18 | F82: 26669 | G82: 2018 | H82: 54 | I82: No | J82: No | M82: LPG/Propane | N82: 54 | O82: 50 | P82: LSI | Q82: Off-Road | R82: 0.6 | S82: Forklift | T82: Off-Road | U82: -- | V82: LPG | W82: -- | X82: 54 | Y82: 75 | Z82: 2018 | AA82: 0.123 | AB82: 4.948e-05 | AC82: 1.546 | AD82: 0.0026 | AE82: 0.075 | AF82: 2.972e-05 | AG82: 0.06 | AH82: 0 | AI82: 674.66 | AJ82: 0 | AK82: In-Use | AL82: 591 | AM82: 1 | AN82: 1 | AO82: 1 | AP82: 1 | AQ82: 0.3 | AU82: 2017.552401 | AV82: 58936.86036 | AW82: 1222.563682 | AX82: 574.452 | AY82: 574.452 | AZ82: 6459329.772 | BA82: 375.2779621 | BB82: 466.2544378 | BC82: 6607655.544 | BD82: 1137.205946 | BE82: 0 | BF82: 1773 | BG82: 1 | BH82: 2259
A83: F-0362 | B83: Forklift | C83: Forklift | D83: Toyota | E83: 8FGU18 | F83: 26670 | G83: 2018 | H83: 54 | I83: No | J83: No | M83: LPG/Propane | N83: 54 | O83: 50 | P83: LSI | Q83: Off-Road | R83: 0.6 | S83: Forklift | T83: Off-Road | U83: -- | V83: LPG | W83: -- | X83: 54 | Y83: 75 | Z83: 2018 | AA83: 0.123 | AB83: 4.948e-05 | AC83: 1.546 | AD83: 0.0026 | AE83: 0.075 | AF83: 2.972e-05 | AG83: 0.06 | AH83: 0 | AI83: 674.66 | AJ83: 0 | AK83: In-Use | AL83: 591 | AM83: 1 | AN83: 1 | AO83: 1 | AP83: 1 | AQ83: 0.3 | AU83: 2017.552401 | AV83: 58936.86036 | AW83: 1222.563682 | AX83: 574.452 | AY83: 574.452 | AZ83: 6459329.772 | BA83: 375.2779621 | BB83: 466.2544378 | BC83: 6607655.544 | BD83: 1137.205946 | BE83: 0 | BF83: 1773 | BG83: 1 | BH83: 2259
A84: F-0363 | B84: Forklift | C84: Forklift | D84: Toyota | E84: 8FGU18 | F84: 26671 | G84: 2018 | H84: 54 | I84: No | J84: No | M84: LPG/Propane | N84: 54 | O84: 50 | P84: LSI | Q84: Off-Road | R84: 0.6 | S84: Forklift | T84: Off-Road | U84: -- | V84: LPG | W84: -- | X84: 54 | Y84: 75 | Z84: 2018 | AA84: 0.123 | AB84: 4.948e-05 | AC84: 1.546 | AD84: 0.0026 | AE84: 0.075 | AF84: 2.972e-05 | AG84: 0.06 | AH84: 0 | AI84: 674.66 | AJ84: 0 | AK84: In-Use | AL84: 591 | AM84: 1 | AN84: 1 | AO84: 1 | AP84: 1 | AQ84: 0.3 | AU84: 2017.552401 | AV84: 58936.86036 | AW84: 1222.563682 | AX84: 574.452 | AY84: 574.452 | AZ84: 6459329.772 | BA84: 375.2779621 | BB84: 466.2544378 | BC84: 6607655.544 | BD84: 1137.205946 | BE84: 0 | BF84: 1773 | BG84: 1 | BH84: 2259
A85: F-0364 | B85: Forklift | C85: Forklift | D85: Toyota | E85: 8FGU18 | F85: 26672 | G85: 2018 | H85: 54 | I85: No | J85: No | M85: LPG/Propane | N85: 54 | O85: 50 | P85: LSI | Q85: Off-Road | R85: 0.6 | S85: Forklift | T85: Off-Road | U85: -- | V85: LPG | W85: -- | X85: 54 | Y85: 75 | Z85: 2018 | AA85: 0.123 | AB85: 4.948e-05 | AC85: 1.546 | AD85: 0.0026 | AE85: 0.075 | AF85: 2.972e-05 | AG85: 0.06 | AH85: 0 | AI85: 674.66 | AJ85: 0 | AK85: In-Use | AL85: 591 | AM85: 1 | AN85: 1 | AO85: 1 | AP85: 1 | AQ85: 0.3 | AU85: 2017.552401 | AV85: 58936.86036 | AW85: 1222.563682 | AX85: 574.452 | AY85: 574.452 | AZ85: 6459329.772 | BA85: 375.2779621 | BB85: 466.2544378 | BC85: 6607655.544 | BD85: 1137.205946 | BE85: 0 | BF85: 1773 | BG85: 1 | BH85: 2259
A86: F-0365 | B86: Forklift | C86: Forklift | D86: Toyota | E86: 8FGU18 | F86: 26673 | G86: 2018 | H86: 54 | I86: No | J86: No | M86: LPG/Propane | N86: 54 | O86: 50 | P86: LSI | Q86: Off-Road | R86: 0.6 | S86: Forklift | T86: Off-Road | U86: -- | V86: LPG | W86: -- | X86: 54 | Y86: 75 | Z86: 2018 | AA86: 0.123 | AB86: 4.948e-05 | AC86: 1.546 | AD86: 0.0026 | AE86: 0.075 | AF86: 2.972e-05 | AG86: 0.06 | AH86: 0 | AI86: 674.66 | AJ86: 0 | AK86: In-Use | AL86: 591 | AM86: 1 | AN86: 1 | AO86: 1 | AP86: 1 | AQ86: 0.3 | AU86: 2017.552401 | AV86: 58936.86036 | AW86: 1222.563682 | AX86: 574.452 | AY86: 574.452 | AZ86: 6459329.772 | BA86: 375.2779621 | BB86: 466.2544378 | BC86: 6607655.544 | BD86: 1137.205946 | BE86: 0 | BF86: 1773 | BG86: 1 | BH86: 2259
A87: F-0366 | B87: Forklift | C87: Forklift | D87: Toyota | E87: 8FGU18 | F87: 26674 | G87: 2018 | H87: 54 | I87: No | J87: No | M87: LPG/Propane | N87: 54 | O87: 50 | P87: LSI | Q87: Off-Road | R87: 0.6 | S87: Forklift | T87: Off-Road | U87: -- | V87: LPG | W87: -- | X87: 54 | Y87: 75 | Z87: 2018 | AA87: 0.123 | AB87: 4.948e-05 | AC87: 1.546 | AD87: 0.0026 | AE87: 0.075 | AF87: 2.972e-05 | AG87: 0.06 | AH87: 0 | AI87: 674.66 | AJ87: 0 | AK87: In-Use | AL87: 591 | AM87: 1 | AN87: 1 | AO87: 1 | AP87: 1 | AQ87: 0.3 | AU87: 2017.552401 | AV87: 58936.86036 | AW87: 1222.563682 | AX87: 574.452 | AY87: 574.452 | AZ87: 6459329.772 | BA87: 375.2779621 | BB87: 466.2544378 | BC87: 6607655.544 | BD87: 1137.205946 | BE87: 0 | BF87: 1773 | BG87: 1 | BH87: 2259
A88: F-0367 | B88: Forklift | C88: Forklift | D88: Toyota | E88: 8FGU18 | F88: 26675 | G88: 2018 | H88: 54 | I88: No | J88: No | M88: LPG/Propane | N88: 54 | O88: 50 | P88: LSI | Q88: Off-Road | R88: 0.6 | S88: Forklift | T88: Off-Road | U88: -- | V88: LPG | W88: -- | X88: 54 | Y88: 75 | Z88: 2018 | AA88: 0.123 | AB88: 4.948e-05 | AC88: 1.546 | AD88: 0.0026 | AE88: 0.075 | AF88: 2.972e-05 | AG88: 0.06 | AH88: 0 | AI88: 674.66 | AJ88: 0 | AK88: In-Use | AL88: 591 | AM88: 1 | AN88: 1 | AO88: 1 | AP88: 1 | AQ88: 0.3 | AU88: 2017.552401 | AV88: 58936.86036 | AW88: 1222.563682 | AX88: 574.452 | AY88: 574.452 | AZ88: 6459329.772 | BA88: 375.2779621 | BB88: 466.2544378 | BC88: 6607655.544 | BD88: 1137.205946 | BE88: 0 | BF88: 1773 | BG88: 1 | BH88: 2259
A89: F-0075 | B89: Forklift | C89: Forklift | D89: Toyota | E89: 8FGU18 | F89: 13445 | G89: 2008 | H89: 54 | I89: No | J89: No | M89: LPG/Propane | N89: 54 | O89: 50 | P89: LSI | Q89: Off-Road | R89: 1.6 | S89: Forklift | T89: Off-Road | U89: -- | V89: LPG | W89: -- | X89: 54 | Y89: 75 | Z89: 2008 | AA89: 0.153 | AB89: 0.0002236 | AC89: 1.444 | AD89: 1.86e-05 | AE89: 0.088 | AF89: 0.000128 | AG89: 0.06 | AH89: 0 | AI89: 674.66 | AJ89: 0 | AK89: In-Use | AL89: 591 | AM89: 1 | AN89: 1 | AO89: 1 | AP89: 1 | AQ89: 0.3 | AU89: 17912.55077 | AV89: 15193.33436 | AW89: 10258.02766 | AX89: 574.452 | AY89: 574.452 | AZ89: 6459329.772 | BA89: 375.2779621 | BB89: 466.2544378 | BC89: 6607655.544 | BD89: 1137.205946 | BE89: 0 | BF89: 7683 | BG89: 1 | BH89: 1310
A90: F-0076 | B90: Forklift | C90: Forklift | D90: Toyota | E90: 7FBCU30 | F90: 13460 | G90: 2008 | H90: 54 | I90: No | J90: No | M90: LPG/Propane | N90: 54 | O90: 50 | P90: LSI | Q90: Off-Road | R90: 1.6 | S90: Forklift | T90: Off-Road | U90: -- | V90: LPG | W90: -- | X90: 54 | Y90: 75 | Z90: 2008 | AA90: 0.153 | AB90: 0.0002236 | AC90: 1.444 | AD90: 1.86e-05 | AE90: 0.088 | AF90: 0.000128 | AG90: 0.06 | AH90: 0 | AI90: 674.66 | AJ90: 0 | AK90: In-Use | AL90: 591 | AM90: 1 | AN90: 1 | AO90: 1 | AP90: 1 | AQ90: 0.3 | AU90: 17912.55077 | AV90: 15193.33436 | AW90: 10258.02766 | AX90: 574.452 | AY90: 574.452 | AZ90: 6459329.772 | BA90: 375.2779621 | BB90: 466.2544378 | BC90: 6607655.544 | BD90: 1137.205946 | BE90: 0 | BF90: 7683 | BG90: 1 | BH90: 1310
A91: F-0077 | B91: Forklift | C91: Forklift | D91: Toyota | E91: 8FGU18 | F91: 14032 | G91: 2008 | H91: 54 | I91: No | J91: No | M91: LPG/Propane | N91: 54 | O91: 50 | P91: LSI | Q91: Off-Road | R91: 1.6 | S91: Forklift | T91: Off-Road | U91: -- | V91: LPG | W91: -- | X91: 54 | Y91: 75 | Z91: 2008 | AA91: 0.153 | AB91: 0.0002236 | AC91: 1.444 | AD91: 1.86e-05 | AE91: 0.088 | AF91: 0.000128 | AG91: 0.06 | AH91: 0 | AI91: 674.66 | AJ91: 0 | AK91: In-Use | AL91: 591 | AM91: 1 | AN91: 1 | AO91: 1 | AP91: 1 | AQ91: 0.3 | AU91: 17912.55077 | AV91: 15193.33436 | AW91: 10258.02766 | AX91: 574.452 | AY91: 574.452 | AZ91: 6459329.772 | BA91: 375.2779621 | BB91: 466.2544378 | BC91: 6607655.544 | BD91: 1137.205946 | BE91: 0 | BF91: 7683 | BG91: 1 | BH91: 1310
A92: LT-0007 | B92: Lavatory Truck | C92: Lavatory Truck | D92: Phoenix Metals | E92: Ford,F-350 | F92: 4769 | G92: 2002 | H92: 120 | I92: No | J92: Yes | M92: Gasoline | N92: 120 | O92: 100 | P92: LSI | Q92: On-Road | R92: 0.7 | S92: Lav Truck | T92: On-Road | U92: LDT1 | V92: Gasoline | W92: -- | X92: 120 | Y92: -- | Z92: 2002 | AA92: 0.06722516158 | AB92: 0 | AC92: 1.540312745 | AD92: 0 | AE92: 0.1349070291 | AF92: 0 | AG92: 0.02457168194 | AH92: 0 | AI92: 218.5842706 | AJ92: 0 | AK92: In-Use | AL92: 1158 | AM92: 1 | AN92: 1 | AO92: 1 | AP92: 1 | AQ92: 0.25 | AU92: 2335.402113 | AV92: 53510.46478 | AW92: 4686.670191 | AX92: 853.6202306 | AY92: 644.9575076 | AZ92: 7593617.561 | BA92: 2231.381926 | BB92: 216.2191788 | BC92: 7713835.424 | BD92: 864.8767153 | BE92: 24.08731081 | BF92: 7000 | BG92: 1 | BH92: 1651
A93: LT-0025 | B93: Lavatory Truck | C93: Lavatory Truck | D93: Phoenix Metals | E93: PNX-TL600 | F93: 23554 | G93: 2016 | H93: 120 | I93: No | J93: Yes | M93: Gasoline | N93: 120 | O93: 100 | P93: LSI | Q93: On-Road | R93: 0.7 | S93: Lav Truck | T93: On-Road | U93: LDT1 | V93: Gasoline | W93: -- | X93: 120 | Y93: -- | Z93: 2016 | AA93: 0.01195893091 | AB93: 0 | AC93: 0.3711195756 | AD93: 0 | AE93: 0.01993498806 | AF93: 0 | AG93: 0.02370620465 | AH93: 0 | AI93: 162.10784 | AJ93: 0 | AK93: In-Use | AL93: 1158 | AM93: 1 | AN93: 1 | AO93: 1 | AP93: 1 | AQ93: 0.25 | AU93: 415.4532599 | AV93: 12892.69406 | AW93: 692.5414851 | AX93: 823.5535497 | AY93: 622.2404598 | AZ93: 5631626.362 | BA93: 1654.851482 | BB93: 160.3538258 | BC93: 5720783.089 | BD93: 641.4153032 | BE93: 17.86378278 | BF93: 5790 | BG93: 1 | BH93: 2328
A94: LT-0026 | B94: Lavatory Truck | C94: Lavatory Truck | D94: Phoenix Metals | E94: PNX-TL600 | F94: 24161 | G94: 2016 | H94: 120 | I94: No | J94: Yes | M94: Gasoline | N94: 120 | O94: 100 | P94: LSI | Q94: On-Road | R94: 0.7 | S94: Lav Truck | T94: On-Road | U94: LDT1 | V94: Gasoline | W94: -- | X94: 120 | Y94: -- | Z94: 2016 | AA94: 0.01195893091 | AB94: 0 | AC94: 0.3711195756 | AD94: 0 | AE94: 0.01993498806 | AF94: 0 | AG94: 0.02370620465 | AH94: 0 | AI94: 162.10784 | AJ94: 0 | AK94: In-Use | AL94: 1158 | AM94: 1 | AN94: 1 | AO94: 1 | AP94: 1 | AQ94: 0.25 | AU94: 415.4532599 | AV94: 12892.69406 | AW94: 692.5414851 | AX94: 823.5535497 | AY94: 622.2404598 | AZ94: 5631626.362 | BA94: 1654.851482 | BB94: 160.3538258 | BC94: 5720783.089 | BD94: 641.4153032 | BE94: 17.86378278 | BF94: 5790 | BG94: 1 | BH94: 2328
A95: CTk-0090 | B95: Catering Truck | C95: Catering Truck | D95: Charlatte | E95: GC20 | F95: 19634 | G95: 2014 | H95: 139 | I95: No | J95: Yes | M95: Gasoline | N95: 139 | O95: 100 | P95: LSI | Q95: On-Road | R95: 0.7 | S95: Catering Truck | T95: On-Road | U95: LHD2 | V95: Gasoline | W95: -- | X95: 139 | Y95: -- | Z95: 2014 | AA95: 0.00867861252 | AB95: 0 | AC95: 0.1495653012 | AD95: 0 | AE95: 0.05071816437 | AF95: 0 | AG95: 0.02033921369 | AH95: 0 | AI95: 203.422619 | AJ95: 0 | AK95: In-Use | AL95: 928 | AM95: 1 | AN95: 1 | AO95: 1 | AP95: 1 | AQ95: 0.52 | AU95: 582.1252248 | AV95: 10032.21821 | AW95: 3401.963478 | AX95: 1364.269843 | AY95: 1030.781659 | AZ95: 13644743.05 | BA95: 4009.503082 | BB95: 388.5177405 | BC95: 13860758.91 | BD95: 1554.070962 | BE95: 43.28176447 | BF95: 6496 | BG95: 1 | BH95: 1745
A96: CTk-0066 | B96: Catering Truck | C96: Catering Truck | D96: Global | E96: Ford,F-650 | F96: 28898 | G96: 2019 | H96: 362 | I96: No | J96: Yes | M96: Gasoline | N96: 362 | O96: 300 | P96: LSI | Q96: On-Road | R96: 0.7 | S96: Catering Truck | T96: On-Road | U96: LHD2 | V96: Gasoline | W96: -- | X96: 362 | Y96: -- | Z96: 2019 | AA96: 0.002065852115 | AB96: 0 | AC96: 0.04985413895 | AD96: 0 | AE96: 0.01300376067 | AF96: 0 | AG96: 0.00785177708 | AH96: 0 | AI96: 71.15188853 | AJ96: 0 | AK96: In-Use | AL96: 928 | AM96: 1 | AN96: 1 | AO96: 1 | AP96: 1 | AQ96: 0.52 | AU96: 360.87693 | AV96: 8708.856012 | AW96: 2271.5843 | AX96: 1371.601184 | AY96: 1036.320895 | AZ96: 12429290.03 | BA96: 3652.342628 | BB96: 353.9091694 | BC96: 12626063.53 | BD96: 1415.636678 | BE96: 39.42629053 | BF96: 1856 | BG96: 1 | BH96: 2014
A97: CTk-0067 | B97: Catering Truck | C97: Catering Truck | D97: Global | E97: Ford,F-650 | F97: 28899 | G97: 2019 | H97: 362 | I97: No | J97: Yes | M97: Gasoline | N97: 362 | O97: 300 | P97: LSI | Q97: On-Road | R97: 0.7 | S97: Catering Truck | T97: On-Road | U97: LHD2 | V97: Gasoline | W97: -- | X97: 362 | Y97: -- | Z97: 2019 | AA97: 0.002065852115 | AB97: 0 | AC97: 0.04985413895 | AD97: 0 | AE97: 0.01300376067 | AF97: 0 | AG97: 0.00785177708 | AH97: 0 | AI97: 71.15188853 | AJ97: 0 | AK97: In-Use | AL97: 928 | AM97: 1 | AN97: 1 | AO97: 1 | AP97: 1 | AQ97: 0.52 | AU97: 360.87693 | AV97: 8708.856012 | AW97: 2271.5843 | AX97: 1371.601184 | AY97: 1036.320895 | AZ97: 12429290.03 | BA97: 3652.342628 | BB97: 353.9091694 | BC97: 12626063.53 | BD97: 1415.636678 | BE97: 39.42629053 | BF97: 1856 | BG97: 1 | BH97: 2014
A98: CTk-0068 | B98: Catering Truck | C98: Catering Truck | D98: Global | E98: Ford,F-650 | F98: 28900 | G98: 2019 | H98: 362 | I98: No | J98: Yes | M98: Gasoline | N98: 362 | O98: 300 | P98: LSI | Q98: On-Road | R98: 0.7 | S98: Catering Truck | T98: On-Road | U98: LHD2 | V98: Gasoline | W98: -- | X98: 362 | Y98: -- | Z98: 2019 | AA98: 0.002065852115 | AB98: 0 | AC98: 0.04985413895 | AD98: 0 | AE98: 0.01300376067 | AF98: 0 | AG98: 0.00785177708 | AH98: 0 | AI98: 71.15188853 | AJ98: 0 | AK98: In-Use | AL98: 928 | AM98: 1 | AN98: 1 | AO98: 1 | AP98: 1 | AQ98: 0.52 | AU98: 360.87693 | AV98: 8708.856012 | AW98: 2271.5843 | AX98: 1371.601184 | AY98: 1036.320895 | AZ98: 12429290.03 | BA98: 3652.342628 | BB98: 353.9091694 | BC98: 12626063.53 | BD98: 1415.636678 | BE98: 39.42629053 | BF98: 1856 | BG98: 1 | BH98: 2014
A99: CTk-0069 | B99: Catering Truck | C99: Catering Truck | D99: Global | E99: Ford,F-650 | F99: 28901 | G99: 2019 | H99: 362 | I99: No | J99: Yes | M99: Gasoline | N99: 362 | O99: 300 | P99: LSI | Q99: On-Road | R99: 0.7 | S99: Catering Truck | T99: On-Road | U99: LHD2 | V99: Gasoline | W99: -- | X99: 362 | Y99: -- | Z99: 2019 | AA99: 0.002065852115 | AB99: 0 | AC99: 0.04985413895 | AD99: 0 | AE99: 0.01300376067 | AF99: 0 | AG99: 0.00785177708 | AH99: 0 | AI99: 71.15188853 | AJ99: 0 | AK99: In-Use | AL99: 928 | AM99: 1 | AN99: 1 | AO99: 1 | AP99: 1 | AQ99: 0.52 | AU99: 360.87693 | AV99: 8708.856012 | AW99: 2271.5843 | AX99: 1371.601184 | AY99: 1036.320895 | AZ99: 12429290.03 | BA99: 3652.342628 | BB99: 353.9091694 | BC99: 12626063.53 | BD99: 1415.636678 | BE99: 39.42629053 | BF99: 1856 | BG99: 1 | BH99: 2014
A100: CTk-0070 | B100: Catering Truck | C100: Catering Truck | D100: Global | E100: Ford,F-650 | F100: 28902 | G100: 2019 | H100: 362 | I100: No | J100: Yes | M100: Gasoline | N100: 362 | O100: 300 | P100: LSI | Q100: On-Road | R100: 0.7 | S100: Catering Truck | T100: On-Road | U100: LHD2 | V100: Gasoline | W100: -- | X100: 362 | Y100: -- | Z100: 2019 | AA100: 0.002065852115 | AB100: 0 | AC100: 0.04985413895 | AD100: 0 | AE100: 0.01300376067 | AF100: 0 | AG100: 0.00785177708 | AH100: 0 | AI100: 71.15188853 | AJ100: 0 | AK100: In-Use | AL100: 928 | AM100: 1 | AN100: 1 | AO100: 1 | AP100: 1 | AQ100: 0.52 | AU100: 360.87693 | AV100: 8708.856012 | AW100: 2271.5843 | AX100: 1371.601184 | AY100: 1036.320895 | AZ100: 12429290.03 | BA100: 3652.342628 | BB100: 353.9091694 | BC100: 12626063.53 | BD100: 1415.636678 | BE100: 39.42629053 | BF100: 1856 | BG100: 1 | BH100: 2014
A101: CTk-0071 | B101: Catering Truck | C101: Catering Truck | D101: Global | E101: Ford,F-650 | F101: 28903 | G101: 2019 | H101: 362 | I101: No | J101: Yes | M101: Gasoline | N101: 362 | O101: 300 | P101: LSI | Q101: On-Road | R101: 0.7 | S101: Catering Truck | T101: On-Road | U101: LHD2 | V101: Gasoline | W101: -- | X101: 362 | Y101: -- | Z101: 2019 | AA101: 0.002065852115 | AB101: 0 | AC101: 0.04985413895 | AD101: 0 | AE101: 0.01300376067 | AF101: 0 | AG101: 0.00785177708 | AH101: 0 | AI101: 71.15188853 | AJ101: 0 | AK101: In-Use | AL101: 928 | AM101: 1 | AN101: 1 | AO101: 1 | AP101: 1 | AQ101: 0.52 | AU101: 360.87693 | AV101: 8708.856012 | AW101: 2271.5843 | AX101: 1371.601184 | AY101: 1036.320895 | AZ101: 12429290.03 | BA101: 3652.342628 | BB101: 353.9091694 | BC101: 12626063.53 | BD101: 1415.636678 | BE101: 39.42629053 | BF101: 1856 | BG101: 1 | BH101: 2014
A102: CTk-0072 | B102: Catering Truck | C102: Catering Truck | D102: Global | E102: Ford,F-650 | F102: 28904 | G102: 2019 | H102: 362 | I102: No | J102: Yes | M102: Gasoline | N102: 362 | O102: 300 | P102: LSI | Q102: On-Road | R102: 0.7 | S102: Catering Truck | T102: On-Road | U102: LHD2 | V102: Gasoline | W102: -- | X102: 362 | Y102: -- | Z102: 2019 | AA102: 0.002065852115 | AB102: 0 | AC102: 0.04985413895 | AD102: 0 | AE102: 0.01300376067 | AF102: 0 | AG102: 0.00785177708 | AH102: 0 | AI102: 71.15188853 | AJ102: 0 | AK102: In-Use | AL102: 928 | AM102: 1 | AN102: 1 | AO102: 1 | AP102: 1 | AQ102: 0.52 | AU102: 360.87693 | AV102: 8708.856012 | AW102: 2271.5843 | AX102: 1371.601184 | AY102: 1036.320895 | AZ102: 12429290.03 | BA102: 3652.342628 | BB102: 353.9091694 | BC102: 12626063.53 | BD102: 1415.636678 | BE102: 39.42629053 | BF102: 1856 | BG102: 1 | BH102: 2014
A103: CTk-0073 | B103: Catering Truck | C103: Catering Truck | D103: Global | E103: Ford,F-650 | F103: 28905 | G103: 2019 | H103: 362 | I103: No | J103: Yes | M103: Gasoline | N103: 362 | O103: 300 | P103: LSI | Q103: On-Road | R103: 0.7 | S103: Catering Truck | T103: On-Road | U103: LHD2 | V103: Gasoline | W103: -- | X103: 362 | Y103: -- | Z103: 2019 | AA103: 0.002065852115 | AB103: 0 | AC103: 0.04985413895 | AD103: 0 | AE103: 0.01300376067 | AF103: 0 | AG103: 0.00785177708 | AH103: 0 | AI103: 71.15188853 | AJ103: 0 | AK103: In-Use | AL103: 928 | AM103: 1 | AN103: 1 | AO103: 1 | AP103: 1 | AQ103: 0.52 | AU103: 360.87693 | AV103: 8708.856012 | AW103: 2271.5843 | AX103: 1371.601184 | AY103: 1036.320895 | AZ103: 12429290.03 | BA103: 3652.342628 | BB103: 353.9091694 | BC103: 12626063.53 | BD103: 1415.636678 | BE103: 39.42629053 | BF103: 1856 | BG103: 1 | BH103: 2014
A104: CTk-0074 | B104: Catering Truck | C104: Catering Truck | D104: Global | E104: Ford,F-650 | F104: 28906 | G104: 2019 | H104: 362 | I104: No | J104: Yes | M104: Gasoline | N104: 362 | O104: 300 | P104: LSI | Q104: On-Road | R104: 0.7 | S104: Catering Truck | T104: On-Road | U104: LHD2 | V104: Gasoline | W104: -- | X104: 362 | Y104: -- | Z104: 2019 | AA104: 0.002065852115 | AB104: 0 | AC104: 0.04985413895 | AD104: 0 | AE104: 0.01300376067 | AF104: 0 | AG104: 0.00785177708 | AH104: 0 | AI104: 71.15188853 | AJ104: 0 | AK104: In-Use | AL104: 928 | AM104: 1 | AN104: 1 | AO104: 1 | AP104: 1 | AQ104: 0.52 | AU104: 360.87693 | AV104: 8708.856012 | AW104: 2271.5843 | AX104: 1371.601184 | AY104: 1036.320895 | AZ104: 12429290.03 | BA104: 3652.342628 | BB104: 353.9091694 | BC104: 12626063.53 | BD104: 1415.636678 | BE104: 39.42629053 | BF104: 1856 | BG104: 1 | BH104: 2014
A105: CTk-0075 | B105: Catering Truck | C105: Catering Truck | D105: Global | E105: Ford,F-650 | F105: 28907 | G105: 2019 | H105: 362 | I105: No | J105: Yes | M105: Gasoline | N105: 362 | O105: 300 | P105: LSI | Q105: On-Road | R105: 0.7 | S105: Catering Truck | T105: On-Road | U105: LHD2 | V105: Gasoline | W105: -- | X105: 362 | Y105: -- | Z105: 2019 | AA105: 0.002065852115 | AB105: 0 | AC105: 0.04985413895 | AD105: 0 | AE105: 0.01300376067 | AF105: 0 | AG105: 0.00785177708 | AH105: 0 | AI105: 71.15188853 | AJ105: 0 | AK105: In-Use | AL105: 928 | AM105: 1 | AN105: 1 | AO105: 1 | AP105: 1 | AQ105: 0.52 | AU105: 360.87693 | AV105: 8708.856012 | AW105: 2271.5843 | AX105: 1371.601184 | AY105: 1036.320895 | AZ105: 12429290.03 | BA105: 3652.342628 | BB105: 353.9091694 | BC105: 12626063.53 | BD105: 1415.636678 | BE105: 39.42629053 | BF105: 1856 | BG105: 1 | BH105: 2014
A106: CTk-0076 | B106: Catering Truck | C106: Catering Truck | D106: Global | E106: Ford,F-650 | F106: 28908 | G106: 2019 | H106: 362 | I106: No | J106: Yes | M106: Gasoline | N106: 362 | O106: 300 | P106: LSI | Q106: On-Road | R106: 0.7 | S106: Catering Truck | T106: On-Road | U106: LHD2 | V106: Gasoline | W106: -- | X106: 362 | Y106: -- | Z106: 2019 | AA106: 0.002065852115 | AB106: 0 | AC106: 0.04985413895 | AD106: 0 | AE106: 0.01300376067 | AF106: 0 | AG106: 0.00785177708 | AH106: 0 | AI106: 71.15188853 | AJ106: 0 | AK106: In-Use | AL106: 928 | AM106: 1 | AN106: 1 | AO106: 1 | AP106: 1 | AQ106: 0.52 | AU106: 360.87693 | AV106: 8708.856012 | AW106: 2271.5843 | AX106: 1371.601184 | AY106: 1036.320895 | AZ106: 12429290.03 | BA106: 3652.342628 | BB106: 353.9091694 | BC106: 12626063.53 | BD106: 1415.636678 | BE106: 39.42629053 | BF106: 1856 | BG106: 1 | BH106: 2014
A107: CTk-0053 | B107: Catering Truck | C107: Catering Truck | D107: Global | E107: Ford,F-650 | F107: 24190 | G107: 2017 | H107: 362 | I107: No | J107: Yes | M107: Gasoline | N107: 362 | O107: 300 | P107: LSI | Q107: On-Road | R107: 0.7 | S107: Catering Truck | T107: On-Road | U107: LHD2 | V107: Gasoline | W107: -- | X107: 362 | Y107: -- | Z107: 2017 | AA107: 0.002515540338 | AB107: 0 | AC107: 0.0504518531 | AD107: 0 | AE107: 0.01465701534 | AF107: 0 | AG107: 0.007845867314 | AH107: 0 | AI107: 74.41062185 | AJ107: 0 | AK107: In-Use | AL107: 928 | AM107: 1 | AN107: 1 | AO107: 1 | AP107: 1 | AQ107: 0.52 | AU107: 439.4314906 | AV107: 8813.268735 | AW107: 2560.385935 | AX107: 1370.568827 | AY107: 1035.540891 | AZ107: 12998547.46 | BA107: 3819.618731 | BB107: 370.1180941 | BC107: 13204333.12 | BD107: 1480.472376 | BE107: 41.2320018 | BF107: 3712 | BG107: 1 | BH107: 1938
A108: CTk-0052 | B108: Catering Truck | C108: Catering Truck | D108: Global | E108: Ford,F-650 | F108: 24189 | G108: 2017 | H108: 362 | I108: No | J108: Yes | M108: Gasoline | N108: 362 | O108: 300 | P108: LSI | Q108: On-Road | R108: 0.7 | S108: Catering Truck | T108: On-Road | U108: LHD2 | V108: Gasoline | W108: -- | X108: 362 | Y108: -- | Z108: 2017 | AA108: 0.002515540338 | AB108: 0 | AC108: 0.0504518531 | AD108: 0 | AE108: 0.01465701534 | AF108: 0 | AG108: 0.007845867314 | AH108: 0 | AI108: 74.41062185 | AJ108: 0 | AK108: In-Use | AL108: 928 | AM108: 1 | AN108: 1 | AO108: 1 | AP108: 1 | AQ108: 0.52 | AU108: 439.4314906 | AV108: 8813.268735 | AW108: 2560.385935 | AX108: 1370.568827 | AY108: 1035.540891 | AZ108: 12998547.46 | BA108: 3819.618731 | BB108: 370.1180941 | BC108: 13204333.12 | BD108: 1480.472376 | BE108: 41.2320018 | BF108: 3712 | BG108: 1 | BH108: 1938
A109: CTk-0055 | B109: Catering Truck | C109: Catering Truck | D109: Global | E109: Ford,F-650 | F109: 24563 | G109: 2017 | H109: 362 | I109: No | J109: Yes | M109: Gasoline | N109: 362 | O109: 300 | P109: LSI | Q109: On-Road | R109: 0.7 | S109: Catering Truck | T109: On-Road | U109: LHD2 | V109: Gasoline | W109: -- | X109: 362 | Y109: -- | Z109: 2017 | AA109: 0.002515540338 | AB109: 0 | AC109: 0.0504518531 | AD109: 0 | AE109: 0.01465701534 | AF109: 0 | AG109: 0.007845867314 | AH109: 0 | AI109: 74.41062185 | AJ109: 0 | AK109: In-Use | AL109: 928 | AM109: 1 | AN109: 1 | AO109: 1 | AP109: 1 | AQ109: 0.52 | AU109: 439.4314906 | AV109: 8813.268735 | AW109: 2560.385935 | AX109: 1370.568827 | AY109: 1035.540891 | AZ109: 12998547.46 | BA109: 3819.618731 | BB109: 370.1180941 | BC109: 13204333.12 | BD109: 1480.472376 | BE109: 41.2320018 | BF109: 3712 | BG109: 1 | BH109: 1938
A110: CTk-0056 | B110: Catering Truck | C110: Catering Truck | D110: Global | E110: Ford,F-650 | F110: 24564 | G110: 2017 | H110: 362 | I110: No | J110: Yes | M110: Gasoline | N110: 362 | O110: 300 | P110: LSI | Q110: On-Road | R110: 0.7 | S110: Catering Truck | T110: On-Road | U110: LHD2 | V110: Gasoline | W110: -- | X110: 362 | Y110: -- | Z110: 2017 | AA110: 0.002515540338 | AB110: 0 | AC110: 0.0504518531 | AD110: 0 | AE110: 0.01465701534 | AF110: 0 | AG110: 0.007845867314 | AH110: 0 | AI110: 74.41062185 | AJ110: 0 | AK110: In-Use | AL110: 928 | AM110: 1 | AN110: 1 | AO110: 1 | AP110: 1 | AQ110: 0.52 | AU110: 439.4314906 | AV110: 8813.268735 | AW110: 2560.385935 | AX110: 1370.568827 | AY110: 1035.540891 | AZ110: 12998547.46 | BA110: 3819.618731 | BB110: 370.1180941 | BC110: 13204333.12 | BD110: 1480.472376 | BE110: 41.2320018 | BF110: 3712 | BG110: 1 | BH110: 1938
A111: CTk-0057 | B111: Catering Truck | C111: Catering Truck | D111: Global | E111: Ford,F-650 | F111: 24567 | G111: 2017 | H111: 362 | I111: No | J111: Yes | M111: Gasoline | N111: 362 | O111: 300 | P111: LSI | Q111: On-Road | R111: 0.7 | S111: Catering Truck | T111: On-Road | U111: LHD2 | V111: Gasoline | W111: -- | X111: 362 | Y111: -- | Z111: 2017 | AA111: 0.002515540338 | AB111: 0 | AC111: 0.0504518531 | AD111: 0 | AE111: 0.01465701534 | AF111: 0 | AG111: 0.007845867314 | AH111: 0 | AI111: 74.41062185 | AJ111: 0 | AK111: In-Use | AL111: 928 | AM111: 1 | AN111: 1 | AO111: 1 | AP111: 1 | AQ111: 0.52 | AU111: 439.4314906 | AV111: 8813.268735 | AW111: 2560.385935 | AX111: 1370.568827 | AY111: 1035.540891 | AZ111: 12998547.46 | BA111: 3819.618731 | BB111: 370.1180941 | BC111: 13204333.12 | BD111: 1480.472376 | BE111: 41.2320018 | BF111: 3712 | BG111: 1 | BH111: 1938
A112: CTk-0054 | B112: Catering Truck | C112: Catering Truck | D112: Global | E112: Ford,F-650 | F112: 24562 | G112: 2017 | H112: 362 | I112: No | J112: Yes | M112: Gasoline | N112: 362 | O112: 300 | P112: LSI | Q112: On-Road | R112: 0.7 | S112: Catering Truck | T112: On-Road | U112: LHD2 | V112: Gasoline | W112: -- | X112: 362 | Y112: -- | Z112: 2017 | AA112: 0.002515540338 | AB112: 0 | AC112: 0.0504518531 | AD112: 0 | AE112: 0.01465701534 | AF112: 0 | AG112: 0.007845867314 | AH112: 0 | AI112: 74.41062185 | AJ112: 0 | AK112: In-Use | AL112: 928 | AM112: 1 | AN112: 1 | AO112: 1 | AP112: 1 | AQ112: 0.52 | AU112: 439.4314906 | AV112: 8813.268735 | AW112: 2560.385935 | AX112: 1370.568827 | AY112: 1035.540891 | AZ112: 12998547.46 | BA112: 3819.618731 | BB112: 370.1180941 | BC112: 13204333.12 | BD112: 1480.472376 | BE112: 41.2320018 | BF112: 3712 | BG112: 1 | BH112: 1938
A113: AT-0064 | B113: Aircraft Tractor (Pushback) | C113: Aircraft Tractor (Pushback) | D113: Tug | E113: GT35A | F113: 18549 | G113: 2011 | H113: 89 | I113: No | J113: No | M113: Diesel | N113: 89 | O113: 75 | P113: ORD | Q113: Off-Road | R113: 3.5 | S113: A/C Tug Narrow Body | T113: Off-Road | U113: -- | V113: Diesel | W113: Tier 3 | X113: 89 | Y113: 100 | Z113: 2011 | AA113: 0.1 | AB113: 2.5e-05 | AC113: 3.05 | AD113: 8.1e-05 | AE113: 2.785615136 | AF113: 3.66e-05 | AG113: 0.1875050301 | AH113: 1.380000001e-05 | AI113: 585.9809535 | AJ113: 0 | AK113: In-Use | AL113: 385 | AM113: 0.9 | AN113: 0.95 | AO113: 0.9 | AP113: 1 | AQ113: 0.536 | AU113: 3925.121196 | AV113: 61743.87157 | AW113: 51061.24382 | AX113: 3977.56133 | AY113: 3659.356423 | AZ113: 10762149.63 | BA113: 179.1934806 | BB113: 516.4988559 | BC113: 10920546.13 | BD113: 1054.079298 | BE113: 52.85642323 | BF113: 3850 | BG113: 1 | BH113: 568
A114: AT-0120 | B114: Aircraft Tractor (Pushback) | C114: Aircraft Tractor (Pushback) | D114: JBT | E114: B250 | F114: 22989 | G114: 2016 | H114: 74 | I114: No | J114: No | M114: Diesel | N114: 74 | O114: 50 | P114: ORD | Q114: Off-Road | R114: 3.5 | S114: A/C Tug Narrow Body | T114: Off-Road | U114: -- | V114: Diesel | W114: Tier 4 | X114: 74 | Y114: 75 | Z114: 2016 | AA114: 0.1 | AB114: 2.5e-05 | AC114: 3.05 | AD114: 8.1e-05 | AE114: 2.757452624 | AF114: 3.63e-05 | AG114: 0.05534491219 | AH114: 5.160000017e-06 | AI114: 585.9809535 | AJ114: 0 | AK114: In-Use | AL114: 385 | AM114: 0.9 | AN114: 0.95 | AO114: 0.9 | AP114: 1 | AQ114: 0.536 | AU114: 2463.278306 | AV114: 48956.52654 | AW114: 41016.38346 | AX114: 897.1519477 | AY114: 825.3797919 | AZ114: 8948304.187 | BA114: 148.9923322 | BB114: 429.4484869 | BC114: 9080004.644 | BD114: 876.4254835 | BE114: 43.94803729 | BF114: 1925 | BG114: 1 | BH114: 665
A115: AT-0121 | B115: Aircraft Tractor (Pushback) | C115: Aircraft Tractor (Pushback) | D115: JBT | E115: B250 | F115: 22990 | G115: 2016 | H115: 74 | I115: No | J115: No | M115: Diesel | N115: 74 | O115: 50 | P115: ORD | Q115: Off-Road | R115: 3.5 | S115: A/C Tug Narrow Body | T115: Off-Road | U115: -- | V115: Diesel | W115: Tier 4 | X115: 74 | Y115: 75 | Z115: 2016 | AA115: 0.1 | AB115: 2.5e-05 | AC115: 3.05 | AD115: 8.1e-05 | AE115: 2.757452624 | AF115: 3.63e-05 | AG115: 0.05534491219 | AH115: 5.160000017e-06 | AI115: 585.9809535 | AJ115: 0 | AK115: In-Use | AL115: 385 | AM115: 0.9 | AN115: 0.95 | AO115: 0.9 | AP115: 1 | AQ115: 0.536 | AU115: 2463.278306 | AV115: 48956.52654 | AW115: 41016.38346 | AX115: 897.1519477 | AY115: 825.3797919 | AZ115: 8948304.187 | BA115: 148.9923322 | BB115: 429.4484869 | BC115: 9080004.644 | BD115: 876.4254835 | BE115: 43.94803729 | BF115: 1925 | BG115: 1 | BH115: 665
A116: AT-0099 | B116: Aircraft Tractor (Pushback) | C116: Aircraft Tractor (Pushback) | D116: TLD | E116: TPX200MT-T34717 | F116: 21564 | G116: 2015 | H116: 300 | I116: No | J116: No | M116: Diesel | N116: 300 | O116: 300 | P116: ORD | Q116: Off-Road | R116: 0.44 | S116: A/C Tug Narrow Body | T116: Off-Road | U116: -- | V116: Diesel | W116: Tier 4 | X116: 300 | Y116: 600 | Z116: 2015 | AA116: 0.05 | AB116: 1.17e-05 | AC116: 0.92 | AD116: 1.82e-05 | AE116: 0.8126166237 | AF116: 1.07e-05 | AG116: 0.03536060687 | AH116: 1.309999995e-06 | AI116: 527.0956125 | AJ116: 0 | AK116: In-Use | AL116: 385 | AM116: 0.9 | AN116: 0.95 | AO116: 0.9 | AP116: 1 | AQ116: 0.536 | AU116: 5192.991805 | AV116: 59558.09614 | AW116: 49245.76747 | AX116: 2138.799823 | AY116: 1967.695838 | AZ116: 32631435.18 | BA116: 543.3245819 | BB116: 1566.053207 | BC116: 33111702.15 | BD116: 3196.026952 | BE116: 160.2636098 | BF116: 2310 | BG116: 1 | BH116: 584
A117: AT-0122 | B117: Aircraft Tractor (Pushback) | C117: Aircraft Tractor (Pushback) | D117: Lektro | E117: AP8950SDB-AL-200 | F117: 24089 | G117: 2016 | I117: No | J117: No | M117: Electric | N117: 0 | O117: NA | P117: ORD | Q117: Off-Road | R117: 0 | S117: A/C Tug Narrow Body | T117: Off-Road | U117: -- | V117: Electric | W117: -- | X117: 132 | Y117: -- | Z117: 2016 | AA117: -- | AB117: -- | AC117: -- | AD117: -- | AE117: -- | AF117: -- | AG117: -- | AH117: -- | AI117: -- | AJ117: -- | AK117: In-Use | AL117: 385 | AM117: -- | AN117: -- | AO117: -- | AP117: -- | AQ117: -- | AU117: 0 | AV117: 0 | AW117: 0 | AX117: 0 | AY117: 0 | AZ117: 0 | BA117: 0 | BB117: 0 | BC117: 0 | BD117: 0 | BE117: 0 | BF117: -- | BG117: 1 | BH117: 2383
A118: AT-0123 | B118: Aircraft Tractor (Pushback) | C118: Aircraft Tractor (Pushback) | D118: Lektro | E118: AP8950SDB-AL-200 | F118: 24090 | G118: 2016 | I118: No | J118: No | M118: Electric | N118: 0 | O118: NA | P118: ORD | Q118: Off-Road | R118: 0 | S118: A/C Tug Narrow Body | T118: Off-Road | U118: -- | V118: Electric | W118: -- | X118: 132 | Y118: -- | Z118: 2016 | AA118: -- | AB118: -- | AC118: -- | AD118: -- | AE118: -- | AF118: -- | AG118: -- | AH118: -- | AI118: -- | AJ118: -- | AK118: In-Use | AL118: 385 | AM118: -- | AN118: -- | AO118: -- | AP118: -- | AQ118: -- | AU118: 0 | AV118: 0 | AW118: 0 | AX118: 0 | AY118: 0 | AZ118: 0 | BA118: 0 | BB118: 0 | BC118: 0 | BD118: 0 | BE118: 0 | BF118: -- | BG118: 1 | BH118: 2383
A119: AT-0124 | B119: Aircraft Tractor (Pushback) | C119: Aircraft Tractor (Pushback) | D119: Lektro | E119: AP8950SDB-AL-200 | F119: 24091 | G119: 2016 | I119: No | J119: No | M119: Electric | N119: 0 | O119: NA | P119: ORD | Q119: Off-Road | R119: 0 | S119: A/C Tug Narrow Body | T119: Off-Road | U119: -- | V119: Electric | W119: -- | X119: 132 | Y119: -- | Z119: 2016 | AA119: -- | AB119: -- | AC119: -- | AD119: -- | AE119: -- | AF119: -- | AG119: -- | AH119: -- | AI119: -- | AJ119: -- | AK119: In-Use | AL119: 385 | AM119: -- | AN119: -- | AO119: -- | AP119: -- | AQ119: -- | AU119: 0 | AV119: 0 | AW119: 0 | AX119: 0 | AY119: 0 | AZ119: 0 | BA119: 0 | BB119: 0 | BC119: 0 | BD119: 0 | BE119: 0 | BF119: -- | BG119: 1 | BH119: 2383
A120: AT-0128 | B120: Aircraft Tractor (Pushback) | C120: Aircraft Tractor (Pushback) | D120: Lektro | E120: AP8950SDB-AL-200 | F120: 24095 | G120: 2016 | I120: No | J120: No | M120: Electric | N120: 0 | O120: NA | P120: ORD | Q120: Off-Road | R120: 0 | S120: A/C Tug Narrow Body | T120: Off-Road | U120: -- | V120: Electric | W120: -- | X120: 132 | Y120: -- | Z120: 2016 | AA120: -- | AB120: -- | AC120: -- | AD120: -- | AE120: -- | AF120: -- | AG120: -- | AH120: -- | AI120: -- | AJ120: -- | AK120: In-Use | AL120: 385 | AM120: -- | AN120: -- | AO120: -- | AP120: -- | AQ120: -- | AU120: 0 | AV120: 0 | AW120: 0 | AX120: 0 | AY120: 0 | AZ120: 0 | BA120: 0 | BB120: 0 | BC120: 0 | BD120: 0 | BE120: 0 | BF120: -- | BG120: 1 | BH120: 2383
A121: AT-0126 | B121: Aircraft Tractor (Pushback) | C121: Aircraft Tractor (Pushback) | D121: Lektro | E121: AP8950SDB-AL-200 | F121: 24093 | G121: 2016 | I121: No | J121: No | M121: Electric | N121: 0 | O121: NA | P121: ORD | Q121: Off-Road | R121: 0 | S121: A/C Tug Narrow Body | T121: Off-Road | U121: -- | V121: Electric | W121: -- | X121: 132 | Y121: -- | Z121: 2016 | AA121: -- | AB121: -- | AC121: -- | AD121: -- | AE121: -- | AF121: -- | AG121: -- | AH121: -- | AI121: -- | AJ121: -- | AK121: In-Use | AL121: 385 | AM121: -- | AN121: -- | AO121: -- | AP121: -- | AQ121: -- | AU121: 0 | AV121: 0 | AW121: 0 | AX121: 0 | AY121: 0 | AZ121: 0 | BA121: 0 | BB121: 0 | BC121: 0 | BD121: 0 | BE121: 0 | BF121: -- | BG121: 1 | BH121: 2383
A122: AT-0146 | B122: Aircraft Tractor (Pushback) | C122: Aircraft Tractor (Pushback) | D122: TLD | E122: TPX200MT-T39398 | F122: 23021 | G122: 2016 | H122: 300 | I122: No | J122: No | M122: Diesel | N122: 300 | O122: 300 | P122: ORD | Q122: Off-Road | R122: 0.44 | S122: A/C Tug Narrow Body | T122: Off-Road | U122: -- | V122: Diesel | W122: Tier 4 | X122: 300 | Y122: 600 | Z122: 2016 | AA122: 0.05 | AB122: 1.17e-05 | AC122: 0.92 | AD122: 1.82e-05 | AE122: 0.9041283887 | AF122: 1.19e-05 | AG122: 0.03847133434 | AH122: 1.420000013e-06 | AI122: 527.0956125 | AJ122: 0 | AK122: In-Use | AL122: 385 | AM122: 0.9 | AN122: 0.95 | AO122: 0.9 | AP122: 1 | AQ122: 0.536 | AU122: 4889.308271 | AV122: 59124.30678 | AW122: 54521.39091 | AX122: 2295.817997 | AY122: 2112.152558 | AZ122: 32631435.18 | BA122: 543.3245819 | BB122: 1566.053207 | BC122: 33111702.15 | BD122: 3196.026952 | BE122: 160.2636098 | BF122: 1925 | BG122: 1 | BH122: 544
A123: AT-0129 | B123: Aircraft Tractor (Pushback) | C123: Aircraft Tractor (Pushback) | D123: Lektro | E123: AP8950SDB-AL-200 | F123: 24096 | G123: 2016 | I123: No | J123: No | M123: Electric | N123: 0 | O123: NA | P123: ORD | Q123: Off-Road | R123: 0 | S123: A/C Tug Narrow Body | T123: Off-Road | U123: -- | V123: Electric | W123: -- | X123: 132 | Y123: -- | Z123: 2016 | AA123: -- | AB123: -- | AC123: -- | AD123: -- | AE123: -- | AF123: -- | AG123: -- | AH123: -- | AI123: -- | AJ123: -- | AK123: In-Use | AL123: 385 | AM123: -- | AN123: -- | AO123: -- | AP123: -- | AQ123: -- | AU123: 0 | AV123: 0 | AW123: 0 | AX123: 0 | AY123: 0 | AZ123: 0 | BA123: 0 | BB123: 0 | BC123: 0 | BD123: 0 | BE123: 0 | BF123: -- | BG123: 1 | BH123: 2383
A124: AT-0127 | B124: Aircraft Tractor (Pushback) | C124: Aircraft Tractor (Pushback) | D124: Lektro | E124: AP8950SDB-AL-200 | F124: 24094 | G124: 2016 | I124: No | J124: No | M124: Electric | N124: 0 | O124: NA | P124: ORD | Q124: Off-Road | R124: 0 | S124: A/C Tug Narrow Body | T124: Off-Road | U124: -- | V124: Electric | W124: -- | X124: 132 | Y124: -- | Z124: 2016 | AA124: -- | AB124: -- | AC124: -- | AD124: -- | AE124: -- | AF124: -- | AG124: -- | AH124: -- | AI124: -- | AJ124: -- | AK124: In-Use | AL124: 385 | AM124: -- | AN124: -- | AO124: -- | AP124: -- | AQ124: -- | AU124: 0 | AV124: 0 | AW124: 0 | AX124: 0 | AY124: 0 | AZ124: 0 | BA124: 0 | BB124: 0 | BC124: 0 | BD124: 0 | BE124: 0 | BF124: -- | BG124: 1 | BH124: 2383
A125: AT-0131 | B125: Aircraft Tractor (Pushback) | C125: Aircraft Tractor (Pushback) | D125: Lektro | E125: AP8950SDB-AL-200 | F125: 24098 | G125: 2016 | I125: No | J125: No | M125: Electric | N125: 0 | O125: NA | P125: ORD | Q125: Off-Road | R125: 0 | S125: A/C Tug Narrow Body | T125: Off-Road | U125: -- | V125: Electric | W125: -- | X125: 132 | Y125: -- | Z125: 2016 | AA125: -- | AB125: -- | AC125: -- | AD125: -- | AE125: -- | AF125: -- | AG125: -- | AH125: -- | AI125: -- | AJ125: -- | AK125: In-Use | AL125: 385 | AM125: -- | AN125: -- | AO125: -- | AP125: -- | AQ125: -- | AU125: 0 | AV125: 0 | AW125: 0 | AX125: 0 | AY125: 0 | AZ125: 0 | BA125: 0 | BB125: 0 | BC125: 0 | BD125: 0 | BE125: 0 | BF125: -- | BG125: 1 | BH125: 2383
A126: AT-0130 | B126: Aircraft Tractor (Pushback) | C126: Aircraft Tractor (Pushback) | D126: Lektro | E126: AP8950SDB-AL-200 | F126: 24097 | G126: 2016 | I126: No | J126: No | M126: Electric | N126: 0 | O126: NA | P126: ORD | Q126: Off-Road | R126: 0 | S126: A/C Tug Narrow Body | T126: Off-Road | U126: -- | V126: Electric | W126: -- | X126: 132 | Y126: -- | Z126: 2016 | AA126: -- | AB126: -- | AC126: -- | AD126: -- | AE126: -- | AF126: -- | AG126: -- | AH126: -- | AI126: -- | AJ126: -- | AK126: In-Use | AL126: 385 | AM126: -- | AN126: -- | AO126: -- | AP126: -- | AQ126: -- | AU126: 0 | AV126: 0 | AW126: 0 | AX126: 0 | AY126: 0 | AZ126: 0 | BA126: 0 | BB126: 0 | BC126: 0 | BD126: 0 | BE126: 0 | BF126: -- | BG126: 1 | BH126: 2383
A127: AT-0125 | B127: Aircraft Tractor (Pushback) | C127: Aircraft Tractor (Pushback) | D127: Lektro | E127: AP8950SDB-AL-200 | F127: 24092 | G127: 2016 | I127: No | J127: No | M127: Electric | N127: 0 | O127: NA | P127: ORD | Q127: Off-Road | R127: 0 | S127: A/C Tug Narrow Body | T127: Off-Road | U127: -- | V127: Electric | W127: -- | X127: 132 | Y127: -- | Z127: 2016 | AA127: -- | AB127: -- | AC127: -- | AD127: -- | AE127: -- | AF127: -- | AG127: -- | AH127: -- | AI127: -- | AJ127: -- | AK127: In-Use | AL127: 385 | AM127: -- | AN127: -- | AO127: -- | AP127: -- | AQ127: -- | AU127: 0 | AV127: 0 | AW127: 0 | AX127: 0 | AY127: 0 | AZ127: 0 | BA127: 0 | BB127: 0 | BC127: 0 | BD127: 0 | BE127: 0 | BF127: -- | BG127: 1 | BH127: 2383
A128: AT-0169 | B128: Aircraft Tractor (Pushback) | C128: Aircraft Tractor (Pushback) | D128: Lektro | E128: AP8950SDB-AL-200 | F128: 24581 | G128: 2017 | I128: No | J128: No | M128: Electric | N128: 0 | O128: NA | P128: ORD | Q128: Off-Road | R128: 0 | S128: A/C Tug Narrow Body | T128: Off-Road | U128: -- | V128: Electric | W128: -- | X128: 132 | Y128: -- | Z128: 2017 | AA128: -- | AB128: -- | AC128: -- | AD128: -- | AE128: -- | AF128: -- | AG128: -- | AH128: -- | AI128: -- | AJ128: -- | AK128: In-Use | AL128: 385 | AM128: -- | AN128: -- | AO128: -- | AP128: -- | AQ128: -- | AU128: 0 | AV128: 0 | AW128: 0 | AX128: 0 | AY128: 0 | AZ128: 0 | BA128: 0 | BB128: 0 | BC128: 0 | BD128: 0 | BE128: 0 | BF128: -- | BG128: 1 | BH128: 2383
A129: AT-0170 | B129: Aircraft Tractor (Pushback) | C129: Aircraft Tractor (Pushback) | D129: Lektro | E129: AP8950SDB-AL-200 | F129: 24582 | G129: 2017 | I129: No | J129: No | M129: Electric | N129: 0 | O129: NA | P129: ORD | Q129: Off-Road | R129: 0 | S129: A/C Tug Narrow Body | T129: Off-Road | U129: -- | V129: Electric | W129: -- | X129: 132 | Y129: -- | Z129: 2017 | AA129: -- | AB129: -- | AC129: -- | AD129: -- | AE129: -- | AF129: -- | AG129: -- | AH129: -- | AI129: -- | AJ129: -- | AK129: In-Use | AL129: 385 | AM129: -- | AN129: -- | AO129: -- | AP129: -- | AQ129: -- | AU129: 0 | AV129: 0 | AW129: 0 | AX129: 0 | AY129: 0 | AZ129: 0 | BA129: 0 | BB129: 0 | BC129: 0 | BD129: 0 | BE129: 0 | BF129: -- | BG129: 1 | BH129: 2383
A130: AS-0024 | B130: Air Start | C130: Air Start | D130: TLD | E130: ASU-600-150-CUP | F130: 23009 | G130: 2016 | H130: 333 | I130: Yes | J130: No | M130: Diesel | N130: 333 | O130: 300 | P130: ORD | Q130: Off-Road | R130: NA | S130: Air Start Unit | T130: Off-Road | U130: -- | V130: Diesel | W130: Tier 4 | X130: 333 | Y130: 600 | Z130: 2016 | AA130: 0.05 | AB130: 1.17e-05 | AC130: 0.92 | AD130: 1.82e-05 | AE130: 0.9041283887 | AF130: 1.19e-05 | AG130: 0.03847133434 | AH130: 1.420000013e-06 | AI130: 527.0956125 | AJ130: 0 | AK130: Low-Use | AL130: 79 | AM130: 0.9 | AN130: 0.95 | AO130: 0.9 | AP130: 1 | AQ130: 0.335 | AU130: 524.2128155 | AV130: 8171.172943 | AW130: 7608.899721 | AX130: 309.5865282 | AY130: 284.8196059 | AZ130: 4645211.934 | BA130: 77.34437108 | BB130: 222.9337755 | BC130: 4713579.808 | BD130: 454.9668887 | BE130: 22.81414925 | BF130: 395 | BG130: 1 | BH130: 1435
A131: AS-0025 | B131: Air Start | C131: Air Start | D131: TLD | E131: ASU-600-150-CUP | F131: 23010 | G131: 2016 | H131: 333 | I131: Yes | J131: No | M131: Diesel | N131: 333 | O131: 300 | P131: ORD | Q131: Off-Road | R131: NA | S131: Air Start Unit | T131: Off-Road | U131: -- | V131: Diesel | W131: Tier 4 | X131: 333 | Y131: 600 | Z131: 2016 | AA131: 0.05 | AB131: 1.17e-05 | AC131: 0.92 | AD131: 1.82e-05 | AE131: 0.9041283887 | AF131: 1.19e-05 | AG131: 0.03847133434 | AH131: 1.420000013e-06 | AI131: 527.0956125 | AJ131: 0 | AK131: Low-Use | AL131: 79 | AM131: 0.9 | AN131: 0.95 | AO131: 0.9 | AP131: 1 | AQ131: 0.335 | AU131: 524.2128155 | AV131: 8171.172943 | AW131: 7608.899721 | AX131: 309.5865282 | AY131: 284.8196059 | AZ131: 4645211.934 | BA131: 77.34437108 | BB131: 222.9337755 | BC131: 4713579.808 | BD131: 454.9668887 | BE131: 22.81414925 | BF131: 395 | BG131: 1 | BH131: 1435
A132: GPU-0051 | B132: Ground Power Unit (GPU) | C132: Ground Power Unit (GPU) | D132: TLD | E132: GPU-409-E-CUP | F132: 21388 | G132: 2014 | H132: 155 | I132: No | J132: No | M132: Diesel | N132: 155 | O132: 100 | P132: ORD | Q132: Off-Road | R132: 2.7 | S132: Ground Power Unit | T132: Off-Road | U132: -- | V132: Diesel | W132: Tier 4i | X132: 155 | Y132: 175 | Z132: 2014 | AA132: 0.09 | AB132: 2.17e-05 | AC132: 2.7 | AD132: 7.14e-05 | AE132: 1.874130203 | AF132: 2.44e-05 | AG132: 0.04422771666 | AH132: 2.069999984e-06 | AI132: 527.0956125 | AJ132: 0 | AK132: In-Use | AL132: 798 | AM132: 0.9 | AN132: 0.95 | AO132: 0.9 | AP132: 1 | AQ132: 0.335 | AU132: 9530.912913 | AV132: 128404.0156 | AW132: 79139.20012 | AX132: 2080.577996 | AY132: 1914.131756 | AZ132: 21840812.87 | BA132: 363.6570213 | BB132: 1048.187885 | BC132: 22162264.28 | BD132: 2139.158949 | BE132: 107.2673479 | BF132: 5586 | BG132: 1 | BH132: 445
A133: GPU-0056 | B133: Ground Power Unit (GPU) | C133: Ground Power Unit (GPU) | D133: TLD | E133: GPU-409-E-CUP | F133: 22086 | G133: 2015 | H133: 155 | I133: No | J133: No | M133: Diesel | N133: 155 | O133: 100 | P133: ORD | Q133: Off-Road | R133: 0.44 | S133: Ground Power Unit | T133: Off-Road | U133: -- | V133: Diesel | W133: Tier 4 | X133: 155 | Y133: 175 | Z133: 2015 | AA133: 0.05 | AB133: 1.17e-05 | AC133: 2.7 | AD133: 7.14e-05 | AE133: 1.126006807 | AF133: 1.48e-05 | AG133: 0.04451602276 | AH133: 2.079999989e-06 | AI133: 527.0956125 | AJ133: 0 | AK133: In-Use | AL133: 798 | AM133: 0.9 | AN133: 0.95 | AO133: 0.9 | AP133: 1 | AQ133: 0.335 | AU133: 4784.024969 | AV133: 126043.0998 | AW133: 47113.96938 | AX133: 2031.513182 | AY133: 1868.992128 | AZ133: 21840812.87 | BA133: 363.6570213 | BB133: 1048.187885 | BC133: 22162264.28 | BD133: 2139.158949 | BE133: 107.2673479 | BF133: 4788 | BG133: 1 | BH133: 617
A134: GPU-0057 | B134: Ground Power Unit (GPU) | C134: Ground Power Unit (GPU) | D134: TLD | E134: GPU-409-E-CUP | F134: 22087 | G134: 2015 | H134: 155 | I134: No | J134: No | M134: Diesel | N134: 155 | O134: 100 | P134: ORD | Q134: Off-Road | R134: 0.44 | S134: Ground Power Unit | T134: Off-Road | U134: -- | V134: Diesel | W134: Tier 4 | X134: 155 | Y134: 175 | Z134: 2015 | AA134: 0.05 | AB134: 1.17e-05 | AC134: 2.7 | AD134: 7.14e-05 | AE134: 1.126006807 | AF134: 1.48e-05 | AG134: 0.04451602276 | AH134: 2.079999989e-06 | AI134: 527.0956125 | AJ134: 0 | AK134: In-Use | AL134: 798 | AM134: 0.9 | AN134: 0.95 | AO134: 0.9 | AP134: 1 | AQ134: 0.335 | AU134: 4784.024969 | AV134: 126043.0998 | AW134: 47113.96938 | AX134: 2031.513182 | AY134: 1868.992128 | AZ134: 21840812.87 | BA134: 363.6570213 | BB134: 1048.187885 | BC134: 22162264.28 | BD134: 2139.158949 | BE134: 107.2673479 | BF134: 4788 | BG134: 1 | BH134: 617
A135: GPU-0075 | B135: Ground Power Unit (GPU) | C135: Ground Power Unit (GPU) | D135: TLD | E135: GPU-409-E-CUP | F135: 23017 | G135: 2016 | H135: 155 | I135: No | J135: No | M135: Diesel | N135: 155 | O135: 100 | P135: ORD | Q135: Off-Road | R135: 0.44 | S135: Ground Power Unit | T135: Off-Road | U135: -- | V135: Diesel | W135: Tier 4 | X135: 155 | Y135: 175 | Z135: 2016 | AA135: 0.05 | AB135: 1.17e-05 | AC135: 2.7 | AD135: 7.14e-05 | AE135: 0.8956684019 | AF135: 1.18e-05 | AG135: 0.03589764509 | AH135: 1.680000004e-06 | AI135: 527.0956125 | AJ135: 0 | AK135: In-Use | AL135: 798 | AM135: 0.9 | AN135: 0.95 | AO135: 0.9 | AP135: 1 | AQ135: 0.335 | AU135: 4362.720535 | AV135: 123682.184 | AW135: 37110.74971 | AX135: 1588.693507 | AY135: 1461.598027 | AZ135: 21840812.87 | BA135: 363.6570213 | BB135: 1048.187885 | BC135: 22162264.28 | BD135: 2139.158949 | BE135: 107.2673479 | BF135: 3990 | BG135: 1 | BH135: =RANK(AW135,_xlfn.ANCHORARRAY(AW$6),0) -> 753
A136: GPU-0092 | B136: Ground Power Unit (GPU) | C136: Ground Power Unit (GPU) | D136: TLD | E136: GPU-409-E-CUP | F136: 24865 | G136: 2017 | H136: 155 | I136: No | J136: No | M136: Diesel | N136: 155 | O136: 100 | P136: ORD | Q136: Off-Road | R136: 0.44 | S136: Ground Power Unit | T136: Off-Road | U136: -- | V136: Diesel | W136: Tier 4 | X136: 155 | Y136: 175 | Z136: 2017 | AA136: 0.05 | AB136: 1.17e-05 | AC136: 2.7 | AD136: 7.14e-05 | AE136: 1.152 | AF136: 1.52e-05 | AG136: 0.026 | AH136: 1.21e-06 | AI136: 527.0956125 | AJ136: 0 | AK136: In-Use | AL136: 798 | AM136: 0.9 | AN136: 0.95 | AO136: 0.9 | AP136: 1 | AQ136: 0.335 | AU136: 3941.416102 | AV136: 121321.2682 | AW136: 47257.61748 | AX136: 1113.641614 | AY136: 1024.550285 | AZ136: 21840812.87 | BA136: 363.6570213 | BB136: 1048.187885 | BC136: 22162264.28 | BD136: 2139.158949 | BE136: 107.2673479 | BF136: 3192 | BG136: 1 | BH136: 605
A137: GPU-0091 | B137: Ground Power Unit (GPU) | C137: Ground Power Unit (GPU) | D137: TLD | E137: GPU-409-E-CUP | F137: 24864 | G137: 2017 | H137: 155 | I137: No | J137: No | M137: Diesel | N137: 155 | O137: 100 | P137: ORD | Q137: Off-Road | R137: 0.44 | S137: Ground Power Unit | T137: Off-Road | U137: -- | V137: Diesel | W137: Tier 4 | X137: 155 | Y137: 175 | Z137: 2017 | AA137: 0.05 | AB137: 1.17e-05 | AC137: 2.7 | AD137: 7.14e-05 | AE137: 1.152 | AF137: 1.52e-05 | AG137: 0.026 | AH137: 1.21e-06 | AI137: 527.0956125 | AJ137: 0 | AK137: In-Use | AL137: 798 | AM137: 0.9 | AN137: 0.95 | AO137: 0.9 | AP137: 1 | AQ137: 0.335 | AU137: 3941.416102 | AV137: 121321.2682 | AW137: 47257.61748 | AX137: 1113.641614 | AY137: 1024.550285 | AZ137: 21840812.87 | BA137: 363.6570213 | BB137: 1048.187885 | BC137: 22162264.28 | BD137: 2139.158949 | BE137: 107.2673479 | BF137: 3192 | BG137: 1 | BH137: 605
A138: GPU-0074 | B138: Ground Power Unit (GPU) | C138: Ground Power Unit (GPU) | D138: TLD | E138: GPU-409-E-CUP | F138: 23016 | G138: 2016 | H138: 155 | I138: No | J138: No | M138: Diesel | N138: 155 | O138: 100 | P138: ORD | Q138: Off-Road | R138: 0.44 | S138: Ground Power Unit | T138: Off-Road | U138: -- | V138: Diesel | W138: Tier 4 | X138: 155 | Y138: 175 | Z138: 2016 | AA138: 0.05 | AB138: 1.17e-05 | AC138: 2.7 | AD138: 7.14e-05 | AE138: 0.8956684019 | AF138: 1.18e-05 | AG138: 0.03589764509 | AH138: 1.680000004e-06 | AI138: 527.0956125 | AJ138: 0 | AK138: In-Use | AL138: 798 | AM138: 0.9 | AN138: 0.95 | AO138: 0.9 | AP138: 1 | AQ138: 0.335 | AU138: 4362.720535 | AV138: 123682.184 | AW138: 37110.74971 | AX138: 1588.693507 | AY138: 1461.598027 | AZ138: 21840812.87 | BA138: 363.6570213 | BB138: 1048.187885 | BC138: 22162264.28 | BD138: 2139.158949 | BE138: 107.2673479 | BF138: 3990 | BG138: 1 | BH138: 753
A139: AC-0033 | B139: Air Conditioner | C139: Air Conditioner | D139: TLD | E139: ACU-302-H-CUP | F139: 24898 | G139: 2017 | H139: 131 | I139: No | J139: No | M139: Diesel | N139: 131 | O139: 100 | P139: ORD | Q139: Off-Road | R139: 0.44 | S139: Air Conditioner | T139: Off-Road | U139: -- | V139: Diesel | W139: Tier 4 | X139: 131 | Y139: 175 | Z139: 2017 | AA139: 0.05 | AB139: 1.17e-05 | AC139: 2.7 | AD139: 7.14e-05 | AE139: 1.152 | AF139: 1.52e-05 | AG139: 0.026 | AH139: 1.21e-06 | AI139: 527.0956125 | AJ139: 0 | AK139: In-Use | AL139: 391 | AM139: 0.9 | AN139: 0.95 | AO139: 0.9 | AP139: 1 | AQ139: 0.335 | AU139: 1276.244293 | AV139: 48245.53707 | AW139: 19166.3703 | AX139: 430.7466188 | AY139: 396.2868893 | AZ139: 9044452.064 | BA139: 150.5932273 | BB139: 434.0628317 | BC139: 9177567.618 | BD139: 885.8425136 | BE139: 44.42025084 | BF139: 1564 | BG139: 1 | BH139: 1075
A140: L-0072 | B140: Lift | C140: Lift | D140: JLG | E140: 450 AS II | F140: 10858 | G140: 2005 | H140: 113 | I140: No | J140: No | M140: Gasoline | N140: 113 | O140: 100 | P140: LSI | Q140: Off-Road | R140: 3 | S140: Lift | T140: Off-Road | U140: -- | V140: Gasoline | W140: -- | X140: 113 | Y140: 175 | Z140: 2005 | AA140: 0.129 | AB140: 0.0003746 | AC140: 3.916 | AD140: 0.000815 | AE140: 0.137 | AF140: 0.0004066 | AG140: 0.06 | AH140: 0 | AI140: 753.25 | AJ140: 0 | AK140: In-Use | AL140: 391 | AM140: 1 | AN140: 0.977 | AO140: 1 | AP140: 1 | AQ140: 0.5 | AU140: 50240.56204 | AV140: 199146.9196 | AW140: 57858.38385 | AX140: 1325.49 | AY140: 1001.481333 | AZ140: 16640422.38 | BA140: 4889.782429 | BB140: 473.8161269 | BC140: 16903864.14 | BD140: 1895.264507 | BE140: 52.78419971 | BF140: 6256 | BG140: 1 | BH140: 529
A141: PS-0012 | B141: Passenger Stand (Stair Truck) | C141: Passenger Stand (Stair Truck) | D141: Phoenix Metals | E141: CMPPS94/118 | F141: 8880 | G141: 2002 | H141: 49 | I141: No | J141: No | M141: Diesel | N141: 49 | O141: 25 | P141: ORD | Q141: Off-Road | R141: 7.1 | S141: Passenger Stand | T141: Off-Road | U141: -- | V141: Diesel | W141: Tier 1 | X141: 49 | Y141: 50 | Z141: 2002 | AA141: 1.45 | AB141: 0.000185 | AC141: 4.1 | AD141: 0.00042 | AE141: 5.078087848 | AF141: 9.419999999e-05 | AG141: 0.3236156939 | AH141: 2.509999999e-05 | AI141: 585.9809535 | AJ141: 0 | AK141: In-Use | AL141: 137 | AM141: 0.9 | AN141: 0.93 | AO141: 0.71 | AP141: 1 | AQ141: 0.3953 | AU141: 5581.853324 | AV141: 13781.08869 | AW141: 13137.31377 | AX141: 732.8189576 | AY141: 674.193441 | AZ141: 1554987.713 | BA141: 25.89107847 | BB141: 74.62722617 | BC141: 1577873.903 | BD141: 152.3004616 | BE141: 7.637051284 | BF141: 2603 | BG141: 1 | BH141: 1212
A142: PS-0021 | B142: Passenger Stand (Stair Truck) | C142: Passenger Stand (Stair Truck) | D142: Phoenix Metals | E142: CMPPS87/137 | F142: 23666 | G142: 2016 | H142: 49 | I142: No | J142: No | M142: Gasoline | N142: 49 | O142: 25 | P142: LSI | Q142: Off-Road | R142: 0.6 | S142: Passenger Stand | T142: Off-Road | U142: -- | V142: Gasoline | W142: -- | X142: 49 | Y142: 50 | Z142: 2016 | AA142: 2.66 | AB142: 0.00076 | AC142: 11.978 | AD142: 0.00278 | AE142: 2.0354 | AF142: 0.0005446 | AG142: 0.06 | AH142: 0 | AI142: 783.3 | AJ142: 0 | AK142: In-Use | AL142: 137 | AM142: 1 | AN142: 0.977 | AO142: 1 | AP142: 1 | AQ142: 0.59 | AU142: 11587.00298 | AV142: 54983.20914 | AW142: 9319.680791 | AX142: 237.6402 | AY142: 179.5503733 | AZ142: 3102392.811 | BA142: 911.6370675 | BB142: 88.33692514 | BC142: 3151508.141 | BD142: 353.3477006 | BE142: 9.840935405 | BF142: 685 | BG142: 1 | BH142: 1385
A143: PS-0022 | B143: Passenger Stand (Stair Truck) | C143: Passenger Stand (Stair Truck) | D143: Phoenix Metals | E143: CMPPS87/137 | F143: 23667 | G143: 2016 | H143: 49 | I143: No | J143: No | M143: Gasoline | N143: 49 | O143: 25 | P143: LSI | Q143: Off-Road | R143: 0.6 | S143: Passenger Stand | T143: Off-Road | U143: -- | V143: Gasoline | W143: -- | X143: 49 | Y143: 50 | Z143: 2016 | AA143: 2.66 | AB143: 0.00076 | AC143: 11.978 | AD143: 0.00278 | AE143: 2.0354 | AF143: 0.0005446 | AG143: 0.06 | AH143: 0 | AI143: 783.3 | AJ143: 0 | AK143: In-Use | AL143: 137 | AM143: 1 | AN143: 0.977 | AO143: 1 | AP143: 1 | AQ143: 0.59 | AU143: 11587.00298 | AV143: 54983.20914 | AW143: 9319.680791 | AX143: 237.6402 | AY143: 179.5503733 | AZ143: 3102392.811 | BA143: 911.6370675 | BB143: 88.33692514 | BC143: 3151508.141 | BD143: 353.3477006 | BE143: 9.840935405 | BF143: 685 | BG143: 1 | BH143: 1385
A144: L-0088 | B144: Lift | C144: Lift | D144: Wollard | E144: TML-704 | F144: 18373 | G144: 2011 | H144: 113 | I144: No | J144: No | M144: Gasoline | N144: 113 | O144: 100 | P144: LSI | Q144: Off-Road | R144: 0.6 | S144: Lift | T144: Off-Road | U144: -- | V144: Gasoline | W144: -- | X144: 113 | Y144: 175 | Z144: 2011 | AA144: 0.129 | AB144: 1.02e-05 | AC144: 3.916 | AD144: 0.000815 | AE144: 0.137 | AF144: 5.66e-05 | AG144: 0.06 | AH144: 0 | AI144: 753.25 | AJ144: 0 | AK144: In-Use | AL144: 391 | AM144: 1 | AN144: 0.977 | AO144: 1 | AP144: 1 | AQ144: 0.5 | AU144: 3431.641995 | AV144: 156908.1925 | AW144: 7733.460108 | AX144: 1325.49 | AY144: 1001.481333 | AZ144: 16640422.38 | BA144: 4889.782429 | BB144: 473.8161269 | BC144: 16903864.14 | BD144: 1895.264507 | BE144: 52.78419971 | BF144: 3910 | BG144: 1 | BH144: 1431
A145: L-0067 | B145: Lift | C145: Lift | D145: FORD LIFT TRUCK | F145: 15 | G145: 2004 | H145: 35 | I145: Yes | J145: No | M145: Gasoline | N145: 35 | O145: 25 | P145: LSI | Q145: Off-Road | R145: NA | S145: Lift | T145: Off-Road | U145: -- | V145: Gasoline | W145: -- | X145: 35 | Y145: 50 | Z145: 2004 | AA145: 3.385 | AB145: 0.002465 | AC145: 38.19 | AD145: 0.019 | AE145: 2.098 | AF145: 0.001412 | AG145: 0.06 | AH145: 0 | AI145: 783.3 | AJ145: 0 | AK145: Low-Use | AL145: 200 | AM145: 1 | AN145: 0.977 | AO145: 1 | AP145: 1 | AQ145: 0.5 | AU145: 63645.0942 | AV145: 575690.5 | AW145: 39268.0471 | AX145: 210 | AY145: 158.6666667 | AZ145: 2741550 | BA145: 805.6035308 | BB145: 78.06235763 | BC145: 2784952.671 | BD145: 312.2494305 | BE145: 8.696325096 | BF145: 6647 | BG145: 1 | BH145: 699
A146: L-0018 | B146: Lift | C146: Lift | D146: FORD F-350 LIFT TRUCK | F146: 0 | G146: 1989 | H146: 35 | I146: Yes | J146: No | M146: Gasoline | N146: 35 | O146: 25 | P146: LSI | Q146: Off-Road | R146: NA | S146: Lift | T146: Off-Road | U146: -- | V146: Gasoline | W146: -- | X146: 35 | Y146: 50 | Z146: 1989 | AA146: 3.76 | AB146: 0.000412 | AC146: 89.9 | AD146: 0.00555 | AE146: 8.01 | AF146: 4.06e-05 | AG146: 0.06 | AH146: 0 | AI146: 783.3 | AJ146: 0 | AK146: Low-Use | AL146: 200 | AM146: 0.85 | AN146: 0.867 | AO146: 1 | AP146: 0.795 | AQ146: 0.5 | AU146: 18180.67482 | AV146: 358246.875 | AW146: 25168.7499 | AX146: 210 | AY146: 158.6666667 | AZ146: 2741550 | BA146: 805.6035308 | BB146: 78.06235763 | BC146: 2784952.671 | BD146: 312.2494305 | BE146: 8.696325096 | BF146: 7000 | BG146: 1 | BH146: 974
A147: L-0074 | B147: Lift | C147: Lift | D147: FORD F-250 LIFT TRUCK | F147: 25 | G147: 2007 | H147: 35 | I147: Yes | J147: No | M147: Gasoline | N147: 35 | O147: 25 | P147: LSI | Q147: Off-Road | R147: NA | S147: Lift | T147: Off-Road | U147: -- | V147: Gasoline | W147: -- | X147: 35 | Y147: 50 | Z147: 2007 | AA147: 3.385 | AB147: 0.002465 | AC147: 11.978 | AD147: 0.00278 | AE147: 2.098 | AF147: 0.001412 | AG147: 0.06 | AH147: 0 | AI147: 783.3 | AJ147: 0 | AK147: Low-Use | AL147: 200 | AM147: 1 | AN147: 0.977 | AO147: 1 | AP147: 1 | AQ147: 0.5 | AU147: 54336.66531 | AV147: 95185.02 | AW147: 33604.41132 | AX147: 210 | AY147: 158.6666667 | AZ147: 2741550 | BA147: 805.6035308 | BB147: 78.06235763 | BC147: 2784952.671 | BD147: 312.2494305 | BE147: 8.696325096 | BF147: 5474 | BG147: 1 | BH147: 865
A148: L-0020 | B148: Lift | C148: Lift | D148: HIGHLIFT | F148: 18 | G148: 1979 | H148: 35 | I148: Yes | J148: No | M148: Diesel | N148: 35 | O148: 25 | P148: ORD | Q148: Off-Road | R148: NA | S148: Lift | T148: Off-Road | U148: -- | V148: Diesel | W148: Tier 0 | X148: 35 | Y148: 50 | Z148: 1979 | AA148: 1.84 | AB148: 0.000235 | AC148: 5 | AD148: 0.000513 | AE148: 7 | AF148: 0.000105 | AG148: 0.76 | AH148: 5.89e-05 | AI148: 585.9809535 | AJ148: 0 | AK148: Low-Use | AL148: 200 | AM148: 0.9 | AN148: 0.93 | AO148: 0.71 | AP148: 1 | AQ148: 0.335 | AU148: 7699.420575 | AV148: 17739.925 | AW148: 16410.89625 | AX148: 1755.689775 | AY148: 1615.234593 | AZ148: 1374125.336 | BA148: 22.87965789 | BB148: 65.94724922 | BC148: 1394349.608 | BD148: 134.5862229 | BE148: 6.748777226 | BF148: 5000 | BG148: 1 | BH148: 1128
A149: L-0019 | B149: Lift | C149: Lift | D149: HIGHLIFT | F149: 13 | G149: 1987 | H149: 35 | I149: Yes | J149: No | M149: LPG/Propane | N149: 35 | O149: 25 | P149: LSI | Q149: Off-Road | R149: NA | S149: Lift | T149: Off-Road | U149: -- | V149: LPG | W149: -- | X149: 35 | Y149: 50 | Z149: 1987 | AA149: 1.38 | AB149: 0.000151 | AC149: 7.02 | AD149: 0.000475 | AE149: 13 | AF149: 6.62e-05 | AG149: 0.06 | AH149: 0 | AI149: 674.66 | AJ149: 0 | AK149: Low-Use | AL149: 200 | AM149: 1 | AN149: 1 | AO149: 1 | AP149: 1 | AQ149: 0.5 | AU149: 8529.5 | AV149: 36207.5 | AW149: 47121.9 | AX149: 210 | AY149: 210 | AZ149: 2361310 | BA149: 137.1887852 | BB149: 170.4466725 | BC149: 2415532.828 | BD149: 415.7235915 | BE149: 0 | BF149: 7000 | BG149: 1 | BH149: 616
A150: L-0065 | B150: Lift | C150: Lift | D150: 60' GL Boom Lift | F150: 30 | G150: 2015 | H150: 25 | I150: Yes | J150: No | M150: Diesel | N150: 25 | O150: 25 | P150: ORD | Q150: Off-Road | R150: NA | S150: Lift | T150: Off-Road | U150: -- | V150: Diesel | W150: Tier 4 | X150: 25 | Y150: 50 | Z150: 2015 | AA150: 0.1 | AB150: 4e-05 | AC150: 2.72 | AD150: 0.000276 | AE150: 3.116021638 | AF150: 6.49e-05 | AG150: 0.07229145975 | AH150: 8.019999972e-06 | AI150: 585.9809535 | AJ150: 0 | AK150: Low-Use | AL150: 200 | AM150: 0.9 | AN150: 0.95 | AO150: 0.9 | AP150: 1 | AQ150: 0.335 | AU150: 353.578698 | AV150: 5640.5558 | AW150: 5200.645837 | AX150: 137.3428674 | AY150: 126.355438 | AZ150: 981518.097 | BA150: 16.34261278 | BB150: 47.10517802 | BC150: 995964.0054 | BD150: 96.13301636 | BE150: 4.820555161 | BF150: 2346 | BG150: 1 | BH150: 1598
A151: F-0043 | B151: Forklift | C151: Forklift | D151: FORK LIFT | F151: 27 | G151: 2007 | H151: 20 | I151: Yes | J151: No | M151: LPG/Propane | N151: 20 | O151: NA | P151: LSI | Q151: Off-Road | R151: NA | S151: Forklift | T151: Off-Road | U151: -- | V151: LPG | W151: -- | X151: 20 | Y151: 50 | Z151: 2007 | AA151: 3.295 | AB151: 0.002195 | AC151: 0.219 | AD151: 1.86e-05 | AE151: 2.64 | AF151: 0.001412 | AG151: 0.06 | AH151: 0 | AI151: 674.66 | AJ151: 0 | AK151: Low-Use | AL151: 200 | AM151: 1 | AN151: 1 | AO151: 1 | AP151: 1 | AQ151: 0.3 | AU151: 22392 | AV151: 419.04 | AW151: 15028.8 | AX151: 72 | AY151: 72 | AZ151: 809592 | BA151: 47.03615493 | BB151: 58.43885915 | BC151: 828182.6839 | BD151: 142.5338028 | BE151: 0 | BF151: 7000 | BG151: 1 | BH151: 1164
A152: AS-0015 | B152: Air Start | C152: Air Start | D152: TLD AMERICA | E152: ASU-600-180-DDP | F152: 6218 | G152: 2016 | H152: 380 | I152: No | J152: No | M152: Diesel | N152: 380 | O152: 300 | P152: ORD | Q152: Off-Road | R152: 0.44 | S152: Air Start Unit | T152: Off-Road | U152: -- | V152: Diesel | W152: Tier 4 | X152: 380 | Y152: 600 | Z152: 2016 | AA152: 0.05 | AB152: 1.17e-05 | AC152: 0.92 | AD152: 1.82e-05 | AE152: 0.9041283887 | AF152: 1.19e-05 | AG152: 0.03847133434 | AH152: 1.420000013e-06 | AI152: 527.0956125 | AJ152: 0 | AK152: In-Use | AL152: 79 | AM152: 0.9 | AN152: 0.95 | AO152: 0.9 | AP152: 1 | AQ152: 0.335 | AU152: 598.2008105 | AV152: 9324.461616 | AW152: 8682.82851 | AX152: 353.281924 | AY152: 325.0193701 | AZ152: 5300842.447 | BA152: 88.26084387 | BB152: 254.3989029 | BC152: 5378859.841 | BD152: 519.1814345 | BE152: 26.03416431 | BF152: 395 | BG152: 1 | BH152: 1407
A153: AS-0033 | B153: Air Start | C153: Air Start | D153: TLD AMERICA | E153: ASU-600-180-CUP | F153: 9052 | G153: 2020 | H153: 380 | I153: No | J153: No | M153: Diesel | N153: 380 | O153: 300 | P153: ORD | Q153: Off-Road | R153: 0.44 | S153: Air Start Unit | T153: Off-Road | U153: -- | V153: Diesel | W153: Tier 4 | X153: 380 | Y153: 600 | Z153: 2020 | AA153: 0.05 | AB153: 1.17e-05 | AC153: 0.92 | AD153: 1.82e-05 | AE153: 0.1326468479 | AF153: 1.749999998e-06 | AG153: 0.009292567738 | AH153: 3.439999903e-07 | AI153: 527.0956125 | AJ153: 0 | AK153: In-Use | AL153: 79 | AM153: 0.9 | AN153: 0.95 | AO153: 0.9 | AP153: 1 | AQ153: 0.335 | AU153: 557.7100141 | AV153: 9266.623523 | AW153: 1268.610899 | AX153: 84.35328016 | AY153: 77.60501775 | AZ153: 5300842.447 | BA153: 88.26084387 | BB153: 254.3989029 | BC153: 5378859.841 | BD153: 519.1814345 | BE153: 26.03416431 | BF153: 79 | BG153: 1 | BH153: 2256
A154: BT-0268 | B154: Baggage Tractor (Tug) | C154: Baggage Tractor (Tug) | D154: CHARLATTE AMERICA | E154: T137 | F154: 6378 | G154: 2007 | H154: 16 | I154: No | J154: No | M154: Electric | N154: 16 | O154: NA | P154: ORD | Q154: Off-Road | R154: 0 | S154: Baggage Tug | T154: Off-Road | U154: -- | V154: Electric | W154: -- | X154: 16 | Y154: -- | Z154: 2007 | AA154: -- | AB154: -- | AC154: -- | AD154: -- | AE154: -- | AF154: -- | AG154: -- | AH154: -- | AI154: -- | AJ154: -- | AK154: In-Use | AL154: 846 | AM154: -- | AN154: -- | AO154: -- | AP154: -- | AQ154: -- | AU154: 0 | AV154: 0 | AW154: 0 | AX154: 0 | AY154: 0 | AZ154: 0 | BA154: 0 | BB154: 0 | BC154: 0 | BD154: 0 | BE154: 0 | BF154: -- | BG154: 1 | BH154: 2383
A155: BT-0269 | B155: Baggage Tractor (Tug) | C155: Baggage Tractor (Tug) | D155: CHARLATTE AMERICA | E155: T137 | F155: 6379 | G155: 2007 | H155: 16 | I155: No | J155: No | M155: Electric | N155: 16 | O155: NA | P155: ORD | Q155: Off-Road | R155: 0 | S155: Baggage Tug | T155: Off-Road | U155: -- | V155: Electric | W155: -- | X155: 16 | Y155: -- | Z155: 2007 | AA155: -- | AB155: -- | AC155: -- | AD155: -- | AE155: -- | AF155: -- | AG155: -- | AH155: -- | AI155: -- | AJ155: -- | AK155: In-Use | AL155: 846 | AM155: -- | AN155: -- | AO155: -- | AP155: -- | AQ155: -- | AU155: 0 | AV155: 0 | AW155: 0 | AX155: 0 | AY155: 0 | AZ155: 0 | BA155: 0 | BB155: 0 | BC155: 0 | BD155: 0 | BE155: 0 | BF155: -- | BG155: 1 | BH155: 2383
A156: BT-0270 | B156: Baggage Tractor (Tug) | C156: Baggage Tractor (Tug) | D156: CHARLATTE AMERICA | E156: T137 | F156: 6380 | G156: 2007 | H156: 16 | I156: No | J156: No | M156: Electric | N156: 16 | O156: NA | P156: ORD | Q156: Off-Road | R156: 0 | S156: Baggage Tug | T156: Off-Road | U156: -- | V156: Electric | W156: -- | X156: 16 | Y156: -- | Z156: 2007 | AA156: -- | AB156: -- | AC156: -- | AD156: -- | AE156: -- | AF156: -- | AG156: -- | AH156: -- | AI156: -- | AJ156: -- | AK156: In-Use | AL156: 846 | AM156: -- | AN156: -- | AO156: -- | AP156: -- | AQ156: -- | AU156: 0 | AV156: 0 | AW156: 0 | AX156: 0 | AY156: 0 | AZ156: 0 | BA156: 0 | BB156: 0 | BC156: 0 | BD156: 0 | BE156: 0 | BF156: -- | BG156: 1 | BH156: 2383
A157: BT-0271 | B157: Baggage Tractor (Tug) | C157: Baggage Tractor (Tug) | D157: CHARLATTE AMERICA | E157: T137 | F157: 6381 | G157: 2007 | H157: 16 | I157: No | J157: No | M157: Electric | N157: 16 | O157: NA | P157: ORD | Q157: Off-Road | R157: 0 | S157: Baggage Tug | T157: Off-Road | U157: -- | V157: Electric | W157: -- | X157: 16 | Y157: -- | Z157: 2007 | AA157: -- | AB157: -- | AC157: -- | AD157: -- | AE157: -- | AF157: -- | AG157: -- | AH157: -- | AI157: -- | AJ157: -- | AK157: In-Use | AL157: 846 | AM157: -- | AN157: -- | AO157: -- | AP157: -- | AQ157: -- | AU157: 0 | AV157: 0 | AW157: 0 | AX157: 0 | AY157: 0 | AZ157: 0 | BA157: 0 | BB157: 0 | BC157: 0 | BD157: 0 | BE157: 0 | BF157: -- | BG157: 1 | BH157: 2383
A158: BT-0272 | B158: Baggage Tractor (Tug) | C158: Baggage Tractor (Tug) | D158: CHARLATTE AMERICA | E158: T137 | F158: 6382 | G158: 2007 | H158: 16 | I158: No | J158: No | M158: Electric | N158: 16 | O158: NA | P158: ORD | Q158: Off-Road | R158: 0 | S158: Baggage Tug | T158: Off-Road | U158: -- | V158: Electric | W158: -- | X158: 16 | Y158: -- | Z158: 2007 | AA158: -- | AB158: -- | AC158: -- | AD158: -- | AE158: -- | AF158: -- | AG158: -- | AH158: -- | AI158: -- | AJ158: -- | AK158: In-Use | AL158: 846 | AM158: -- | AN158: -- | AO158: -- | AP158: -- | AQ158: -- | AU158: 0 | AV158: 0 | AW158: 0 | AX158: 0 | AY158: 0 | AZ158: 0 | BA158: 0 | BB158: 0 | BC158: 0 | BD158: 0 | BE158: 0 | BF158: -- | BG158: 1 | BH158: 2383
A159: BT-0273 | B159: Baggage Tractor (Tug) | C159: Baggage Tractor (Tug) | D159: CHARLATTE AMERICA | E159: T137 | F159: 6383 | G159: 2007 | H159: 16 | I159: No | J159: No | M159: Electric | N159: 16 | O159: NA | P159: ORD | Q159: Off-Road | R159: 0 | S159: Baggage Tug | T159: Off-Road | U159: -- | V159: Electric | W159: -- | X159: 16 | Y159: -- | Z159: 2007 | AA159: -- | AB159: -- | AC159: -- | AD159: -- | AE159: -- | AF159: -- | AG159: -- | AH159: -- | AI159: -- | AJ159: -- | AK159: In-Use | AL159: 846 | AM159: -- | AN159: -- | AO159: -- | AP159: -- | AQ159: -- | AU159: 0 | AV159: 0 | AW159: 0 | AX159: 0 | AY159: 0 | AZ159: 0 | BA159: 0 | BB159: 0 | BC159: 0 | BD159: 0 | BE159: 0 | BF159: -- | BG159: 1 | BH159: 2383
A160: BT-0389 | B160: Baggage Tractor (Tug) | C160: Baggage Tractor (Tug) | D160: CHARLATTE AMERICA | E160: T137 | F160: 6384 | G160: 2011 | H160: 16 | I160: No | J160: No | M160: Electric | N160: 16 | O160: NA | P160: ORD | Q160: Off-Road | R160: 0 | S160: Baggage Tug | T160: Off-Road | U160: -- | V160: Electric | W160: -- | X160: 16 | Y160: -- | Z160: 2011 | AA160: -- | AB160: -- | AC160: -- | AD160: -- | AE160: -- | AF160: -- | AG160: -- | AH160: -- | AI160: -- | AJ160: -- | AK160: In-Use | AL160: 846 | AM160: -- | AN160: -- | AO160: -- | AP160: -- | AQ160: -- | AU160: 0 | AV160: 0 | AW160: 0 | AX160: 0 | AY160: 0 | AZ160: 0 | BA160: 0 | BB160: 0 | BC160: 0 | BD160: 0 | BE160: 0 | BF160: -- | BG160: 1 | BH160: 2383
A161: BT-0390 | B161: Baggage Tractor (Tug) | C161: Baggage Tractor (Tug) | D161: CHARLATTE AMERICA | E161: T137 | F161: 6385 | G161: 2011 | H161: 16 | I161: No | J161: No | M161: Electric | N161: 16 | O161: NA | P161: ORD | Q161: Off-Road | R161: 0 | S161: Baggage Tug | T161: Off-Road | U161: -- | V161: Electric | W161: -- | X161: 16 | Y161: -- | Z161: 2011 | AA161: -- | AB161: -- | AC161: -- | AD161: -- | AE161: -- | AF161: -- | AG161: -- | AH161: -- | AI161: -- | AJ161: -- | AK161: In-Use | AL161: 846 | AM161: -- | AN161: -- | AO161: -- | AP161: -- | AQ161: -- | AU161: 0 | AV161: 0 | AW161: 0 | AX161: 0 | AY161: 0 | AZ161: 0 | BA161: 0 | BB161: 0 | BC161: 0 | BD161: 0 | BE161: 0 | BF161: -- | BG161: 1 | BH161: 2383
A162: BT-0391 | B162: Baggage Tractor (Tug) | C162: Baggage Tractor (Tug) | D162: CHARLATTE AMERICA | E162: T137 | F162: 6386 | G162: 2011 | H162: 16 | I162: No | J162: No | M162: Electric | N162: 16 | O162: NA | P162: ORD | Q162: Off-Road | R162: 0 | S162: Baggage Tug | T162: Off-Road | U162: -- | V162: Electric | W162: -- | X162: 16 | Y162: -- | Z162: 2011 | AA162: -- | AB162: -- | AC162: -- | AD162: -- | AE162: -- | AF162: -- | AG162: -- | AH162: -- | AI162: -- | AJ162: -- | AK162: In-Use | AL162: 846 | AM162: -- | AN162: -- | AO162: -- | AP162: -- | AQ162: -- | AU162: 0 | AV162: 0 | AW162: 0 | AX162: 0 | AY162: 0 | AZ162: 0 | BA162: 0 | BB162: 0 | BC162: 0 | BD162: 0 | BE162: 0 | BF162: -- | BG162: 1 | BH162: 2383
A163: BT-0392 | B163: Baggage Tractor (Tug) | C163: Baggage Tractor (Tug) | D163: CHARLATTE AMERICA | E163: T137 | F163: 6387 | G163: 2011 | H163: 16 | I163: No | J163: No | M163: Electric | N163: 16 | O163: NA | P163: ORD | Q163: Off-Road | R163: 0 | S163: Baggage Tug | T163: Off-Road | U163: -- | V163: Electric | W163: -- | X163: 16 | Y163: -- | Z163: 2011 | AA163: -- | AB163: -- | AC163: -- | AD163: -- | AE163: -- | AF163: -- | AG163: -- | AH163: -- | AI163: -- | AJ163: -- | AK163: In-Use | AL163: 846 | AM163: -- | AN163: -- | AO163: -- | AP163: -- | AQ163: -- | AU163: 0 | AV163: 0 | AW163: 0 | AX163: 0 | AY163: 0 | AZ163: 0 | BA163: 0 | BB163: 0 | BC163: 0 | BD163: 0 | BE163: 0 | BF163: -- | BG163: 1 | BH163: 2383
A164: BT-0422 | B164: Baggage Tractor (Tug) | C164: Baggage Tractor (Tug) | D164: CHARLATTE AMERICA | E164: T137 | F164: 5645 | G164: 2013 | H164: 40 | I164: No | J164: No | M164: Electric | N164: 40 | O164: 25 | P164: ORD | Q164: Off-Road | R164: 0 | S164: Baggage Tug | T164: Off-Road | U164: -- | V164: Electric | W164: -- | X164: 40 | Y164: -- | Z164: 2013 | AA164: -- | AB164: -- | AC164: -- | AD164: -- | AE164: -- | AF164: -- | AG164: -- | AH164: -- | AI164: -- | AJ164: -- | AK164: In-Use | AL164: 846 | AM164: -- | AN164: -- | AO164: -- | AP164: -- | AQ164: -- | AU164: 0 | AV164: 0 | AW164: 0 | AX164: 0 | AY164: 0 | AZ164: 0 | BA164: 0 | BB164: 0 | BC164: 0 | BD164: 0 | BE164: 0 | BF164: -- | BG164: 1 | BH164: 2383
A165: BT-0423 | B165: Baggage Tractor (Tug) | C165: Baggage Tractor (Tug) | D165: CHARLATTE AMERICA | E165: T137 | F165: 5659 | G165: 2013 | H165: 40 | I165: No | J165: No | M165: Electric | N165: 40 | O165: 25 | P165: ORD | Q165: Off-Road | R165: 0 | S165: Baggage Tug | T165: Off-Road | U165: -- | V165: Electric | W165: -- | X165: 40 | Y165: -- | Z165: 2013 | AA165: -- | AB165: -- | AC165: -- | AD165: -- | AE165: -- | AF165: -- | AG165: -- | AH165: -- | AI165: -- | AJ165: -- | AK165: In-Use | AL165: 846 | AM165: -- | AN165: -- | AO165: -- | AP165: -- | AQ165: -- | AU165: 0 | AV165: 0 | AW165: 0 | AX165: 0 | AY165: 0 | AZ165: 0 | BA165: 0 | BB165: 0 | BC165: 0 | BD165: 0 | BE165: 0 | BF165: -- | BG165: 1 | BH165: 2383
A166: BT-0424 | B166: Baggage Tractor (Tug) | C166: Baggage Tractor (Tug) | D166: CHARLATTE AMERICA | E166: T137 | F166: 5666 | G166: 2013 | H166: 40 | I166: No | J166: No | M166: Electric | N166: 40 | O166: 25 | P166: ORD | Q166: Off-Road | R166: 0 | S166: Baggage Tug | T166: Off-Road | U166: -- | V166: Electric | W166: -- | X166: 40 | Y166: -- | Z166: 2013 | AA166: -- | AB166: -- | AC166: -- | AD166: -- | AE166: -- | AF166: -- | AG166: -- | AH166: -- | AI166: -- | AJ166: -- | AK166: In-Use | AL166: 846 | AM166: -- | AN166: -- | AO166: -- | AP166: -- | AQ166: -- | AU166: 0 | AV166: 0 | AW166: 0 | AX166: 0 | AY166: 0 | AZ166: 0 | BA166: 0 | BB166: 0 | BC166: 0 | BD166: 0 | BE166: 0 | BF166: -- | BG166: 1 | BH166: 2383
A167: BT-0486 | B167: Baggage Tractor (Tug) | C167: Baggage Tractor (Tug) | D167: TUG | E167: MA50 | F167: 8900 | G167: 2016 | H167: 64 | I167: No | J167: No | M167: LPG/Propane | N167: 64 | O167: 50 | P167: LSI | Q167: Off-Road | R167: 0.6 | S167: Baggage Tug | T167: Off-Road | U167: -- | V167: LPG | W167: -- | X167: 64 | Y167: 75 | Z167: 2016 | AA167: 0.123 | AB167: 4.948e-05 | AC167: 1.546 | AD167: 0.0026 | AE167: 0.075 | AF167: 2.972e-05 | AG167: 0.06 | AH167: 0 | AI167: 674.66 | AJ167: 0 | AK167: In-Use | AL167: 846 | AM167: 1 | AN167: 1 | AO167: 1 | AP167: 1 | AQ167: 0.55 | AU167: 9895.640072 | AV167: 373550.2848 | AW167: 5977.149996 | AX167: 1786.752 | AY167: 1786.752 | AZ167: 20090835.07 | BA167: 1167.249221 | BB167: 1450.218729 | BC167: 20552181.48 | BD167: 3537.118851 | BE167: 0 | BF167: 4230 | BG167: 1 | BH167: 1535
A168: BT-0487 | B168: Baggage Tractor (Tug) | C168: Baggage Tractor (Tug) | D168: TUG | E168: MA50 | F168: 8901 | G168: 2016 | H168: 64 | I168: No | J168: No | M168: LPG/Propane | N168: 64 | O168: 50 | P168: LSI | Q168: Off-Road | R168: 0.6 | S168: Baggage Tug | T168: Off-Road | U168: -- | V168: LPG | W168: -- | X168: 64 | Y168: 75 | Z168: 2016 | AA168: 0.123 | AB168: 4.948e-05 | AC168: 1.546 | AD168: 0.0026 | AE168: 0.075 | AF168: 2.972e-05 | AG168: 0.06 | AH168: 0 | AI168: 674.66 | AJ168: 0 | AK168: In-Use | AL168: 846 | AM168: 1 | AN168: 1 | AO168: 1 | AP168: 1 | AQ168: 0.55 | AU168: 9895.640072 | AV168: 373550.2848 | AW168: 5977.149996 | AX168: 1786.752 | AY168: 1786.752 | AZ168: 20090835.07 | BA168: 1167.249221 | BB168: 1450.218729 | BC168: 20552181.48 | BD168: 3537.118851 | BE168: 0 | BF168: 4230 | BG168: 1 | BH168: 1535
A169: BT-0488 | B169: Baggage Tractor (Tug) | C169: Baggage Tractor (Tug) | D169: TUG | E169: MA50 | F169: 8902 | G169: 2016 | H169: 64 | I169: No | J169: No | M169: LPG/Propane | N169: 64 | O169: 50 | P169: LSI | Q169: Off-Road | R169: 0.6 | S169: Baggage Tug | T169: Off-Road | U169: -- | V169: LPG | W169: -- | X169: 64 | Y169: 75 | Z169: 2016 | AA169: 0.123 | AB169: 4.948e-05 | AC169: 1.546 | AD169: 0.0026 | AE169: 0.075 | AF169: 2.972e-05 | AG169: 0.06 | AH169: 0 | AI169: 674.66 | AJ169: 0 | AK169: In-Use | AL169: 846 | AM169: 1 | AN169: 1 | AO169: 1 | AP169: 1 | AQ169: 0.55 | AU169: 9895.640072 | AV169: 373550.2848 | AW169: 5977.149996 | AX169: 1786.752 | AY169: 1786.752 | AZ169: 20090835.07 | BA169: 1167.249221 | BB169: 1450.218729 | BC169: 20552181.48 | BD169: 3537.118851 | BE169: 0 | BF169: 4230 | BG169: 1 | BH169: 1535
A170: BT-0489 | B170: Baggage Tractor (Tug) | C170: Baggage Tractor (Tug) | D170: TUG | E170: MA50 | F170: 8903 | G170: 2016 | H170: 64 | I170: No | J170: No | M170: LPG/Propane | N170: 64 | O170: 50 | P170: LSI | Q170: Off-Road | R170: 0.6 | S170: Baggage Tug | T170: Off-Road | U170: -- | V170: LPG | W170: -- | X170: 64 | Y170: 75 | Z170: 2016 | AA170: 0.123 | AB170: 4.948e-05 | AC170: 1.546 | AD170: 0.0026 | AE170: 0.075 | AF170: 2.972e-05 | AG170: 0.06 | AH170: 0 | AI170: 674.66 | AJ170: 0 | AK170: In-Use | AL170: 846 | AM170: 1 | AN170: 1 | AO170: 1 | AP170: 1 | AQ170: 0.55 | AU170: 9895.640072 | AV170: 373550.2848 | AW170: 5977.149996 | AX170: 1786.752 | AY170: 1786.752 | AZ170: 20090835.07 | BA170: 1167.249221 | BB170: 1450.218729 | BC170: 20552181.48 | BD170: 3537.118851 | BE170: 0 | BF170: 4230 | BG170: 1 | BH170: 1535
A171: BT-0490 | B171: Baggage Tractor (Tug) | C171: Baggage Tractor (Tug) | D171: TUG | E171: MA50 | F171: 8904 | G171: 2016 | H171: 64 | I171: No | J171: No | M171: LPG/Propane | N171: 64 | O171: 50 | P171: LSI | Q171: Off-Road | R171: 0.6 | S171: Baggage Tug | T171: Off-Road | U171: -- | V171: LPG | W171: -- | X171: 64 | Y171: 75 | Z171: 2016 | AA171: 0.123 | AB171: 4.948e-05 | AC171: 1.546 | AD171: 0.0026 | AE171: 0.075 | AF171: 2.972e-05 | AG171: 0.06 | AH171: 0 | AI171: 674.66 | AJ171: 0 | AK171: In-Use | AL171: 846 | AM171: 1 | AN171: 1 | AO171: 1 | AP171: 1 | AQ171: 0.55 | AU171: 9895.640072 | AV171: 373550.2848 | AW171: 5977.149996 | AX171: 1786.752 | AY171: 1786.752 | AZ171: 20090835.07 | BA171: 1167.249221 | BB171: 1450.218729 | BC171: 20552181.48 | BD171: 3537.118851 | BE171: 0 | BF171: 4230 | BG171: 1 | BH171: 1535
A172: BT-0491 | B172: Baggage Tractor (Tug) | C172: Baggage Tractor (Tug) | D172: TUG | E172: MA50 | F172: 8905 | G172: 2016 | H172: 64 | I172: No | J172: No | M172: LPG/Propane | N172: 64 | O172: 50 | P172: LSI | Q172: Off-Road | R172: 0.6 | S172: Baggage Tug | T172: Off-Road | U172: -- | V172: LPG | W172: -- | X172: 64 | Y172: 75 | Z172: 2016 | AA172: 0.123 | AB172: 4.948e-05 | AC172: 1.546 | AD172: 0.0026 | AE172: 0.075 | AF172: 2.972e-05 | AG172: 0.06 | AH172: 0 | AI172: 674.66 | AJ172: 0 | AK172: In-Use | AL172: 846 | AM172: 1 | AN172: 1 | AO172: 1 | AP172: 1 | AQ172: 0.55 | AU172: 9895.640072 | AV172: 373550.2848 | AW172: 5977.149996 | AX172: 1786.752 | AY172: 1786.752 | AZ172: 20090835.07 | BA172: 1167.249221 | BB172: 1450.218729 | BC172: 20552181.48 | BD172: 3537.118851 | BE172: 0 | BF172: 4230 | BG172: 1 | BH172: 1535
A173: BT-0492 | B173: Baggage Tractor (Tug) | C173: Baggage Tractor (Tug) | D173: TUG | E173: MA50 | F173: 8906 | G173: 2016 | H173: 64 | I173: No | J173: No | M173: LPG/Propane | N173: 64 | O173: 50 | P173: LSI | Q173: Off-Road | R173: 0.6 | S173: Baggage Tug | T173: Off-Road | U173: -- | V173: LPG | W173: -- | X173: 64 | Y173: 75 | Z173: 2016 | AA173: 0.123 | AB173: 4.948e-05 | AC173: 1.546 | AD173: 0.0026 | AE173: 0.075 | AF173: 2.972e-05 | AG173: 0.06 | AH173: 0 | AI173: 674.66 | AJ173: 0 | AK173: In-Use | AL173: 846 | AM173: 1 | AN173: 1 | AO173: 1 | AP173: 1 | AQ173: 0.55 | AU173: 9895.640072 | AV173: 373550.2848 | AW173: 5977.149996 | AX173: 1786.752 | AY173: 1786.752 | AZ173: 20090835.07 | BA173: 1167.249221 | BB173: 1450.218729 | BC173: 20552181.48 | BD173: 3537.118851 | BE173: 0 | BF173: 4230 | BG173: 1 | BH173: 1535
A174: BT-0493 | B174: Baggage Tractor (Tug) | C174: Baggage Tractor (Tug) | D174: TUG | E174: MA50 | F174: 8907 | G174: 2016 | H174: 64 | I174: No | J174: No | M174: LPG/Propane | N174: 64 | O174: 50 | P174: LSI | Q174: Off-Road | R174: 0.6 | S174: Baggage Tug | T174: Off-Road | U174: -- | V174: LPG | W174: -- | X174: 64 | Y174: 75 | Z174: 2016 | AA174: 0.123 | AB174: 4.948e-05 | AC174: 1.546 | AD174: 0.0026 | AE174: 0.075 | AF174: 2.972e-05 | AG174: 0.06 | AH174: 0 | AI174: 674.66 | AJ174: 0 | AK174: In-Use | AL174: 846 | AM174: 1 | AN174: 1 | AO174: 1 | AP174: 1 | AQ174: 0.55 | AU174: 9895.640072 | AV174: 373550.2848 | AW174: 5977.149996 | AX174: 1786.752 | AY174: 1786.752 | AZ174: 20090835.07 | BA174: 1167.249221 | BB174: 1450.218729 | BC174: 20552181.48 | BD174: 3537.118851 | BE174: 0 | BF174: 4230 | BG174: 1 | BH174: 1535
A175: BT-0494 | B175: Baggage Tractor (Tug) | C175: Baggage Tractor (Tug) | D175: TUG | E175: MA50 | F175: 8908 | G175: 2016 | H175: 64 | I175: No | J175: No | M175: LPG/Propane | N175: 64 | O175: 50 | P175: LSI | Q175: Off-Road | R175: 0.6 | S175: Baggage Tug | T175: Off-Road | U175: -- | V175: LPG | W175: -- | X175: 64 | Y175: 75 | Z175: 2016 | AA175: 0.123 | AB175: 4.948e-05 | AC175: 1.546 | AD175: 0.0026 | AE175: 0.075 | AF175: 2.972e-05 | AG175: 0.06 | AH175: 0 | AI175: 674.66 | AJ175: 0 | AK175: In-Use | AL175: 846 | AM175: 1 | AN175: 1 | AO175: 1 | AP175: 1 | AQ175: 0.55 | AU175: 9895.640072 | AV175: 373550.2848 | AW175: 5977.149996 | AX175: 1786.752 | AY175: 1786.752 | AZ175: 20090835.07 | BA175: 1167.249221 | BB175: 1450.218729 | BC175: 20552181.48 | BD175: 3537.118851 | BE175: 0 | BF175: 4230 | BG175: 1 | BH175: 1535
A176: BT-0495 | B176: Baggage Tractor (Tug) | C176: Baggage Tractor (Tug) | D176: TUG | E176: MA50 | F176: 8909 | G176: 2016 | H176: 64 | I176: No | J176: No | M176: LPG/Propane | N176: 64 | O176: 50 | P176: LSI | Q176: Off-Road | R176: 0.6 | S176: Baggage Tug | T176: Off-Road | U176: -- | V176: LPG | W176: -- | X176: 64 | Y176: 75 | Z176: 2016 | AA176: 0.123 | AB176: 4.948e-05 | AC176: 1.546 | AD176: 0.0026 | AE176: 0.075 | AF176: 2.972e-05 | AG176: 0.06 | AH176: 0 | AI176: 674.66 | AJ176: 0 | AK176: In-Use | AL176: 846 | AM176: 1 | AN176: 1 | AO176: 1 | AP176: 1 | AQ176: 0.55 | AU176: 9895.640072 | AV176: 373550.2848 | AW176: 5977.149996 | AX176: 1786.752 | AY176: 1786.752 | AZ176: 20090835.07 | BA176: 1167.249221 | BB176: 1450.218729 | BC176: 20552181.48 | BD176: 3537.118851 | BE176: 0 | BF176: 4230 | BG176: 1 | BH176: 1535
A177: BT-0496 | B177: Baggage Tractor (Tug) | C177: Baggage Tractor (Tug) | D177: TUG | E177: MA50 | F177: 8910 | G177: 2016 | H177: 64 | I177: No | J177: No | M177: LPG/Propane | N177: 64 | O177: 50 | P177: LSI | Q177: Off-Road | R177: 0.6 | S177: Baggage Tug | T177: Off-Road | U177: -- | V177: LPG | W177: -- | X177: 64 | Y177: 75 | Z177: 2016 | AA177: 0.123 | AB177: 4.948e-05 | AC177: 1.546 | AD177: 0.0026 | AE177: 0.075 | AF177: 2.972e-05 | AG177: 0.06 | AH177: 0 | AI177: 674.66 | AJ177: 0 | AK177: In-Use | AL177: 846 | AM177: 1 | AN177: 1 | AO177: 1 | AP177: 1 | AQ177: 0.55 | AU177: 9895.640072 | AV177: 373550.2848 | AW177: 5977.149996 | AX177: 1786.752 | AY177: 1786.752 | AZ177: 20090835.07 | BA177: 1167.249221 | BB177: 1450.218729 | BC177: 20552181.48 | BD177: 3537.118851 | BE177: 0 | BF177: 4230 | BG177: 1 | BH177: 1535
A178: BT-0497 | B178: Baggage Tractor (Tug) | C178: Baggage Tractor (Tug) | D178: TUG | E178: MA50 | F178: 8911 | G178: 2016 | H178: 64 | I178: No | J178: No | M178: LPG/Propane | N178: 64 | O178: 50 | P178: LSI | Q178: Off-Road | R178: 0.6 | S178: Baggage Tug | T178: Off-Road | U178: -- | V178: LPG | W178: -- | X178: 64 | Y178: 75 | Z178: 2016 | AA178: 0.123 | AB178: 4.948e-05 | AC178: 1.546 | AD178: 0.0026 | AE178: 0.075 | AF178: 2.972e-05 | AG178: 0.06 | AH178: 0 | AI178: 674.66 | AJ178: 0 | AK178: In-Use | AL178: 846 | AM178: 1 | AN178: 1 | AO178: 1 | AP178: 1 | AQ178: 0.55 | AU178: 9895.640072 | AV178: 373550.2848 | AW178: 5977.149996 | AX178: 1786.752 | AY178: 1786.752 | AZ178: 20090835.07 | BA178: 1167.249221 | BB178: 1450.218729 | BC178: 20552181.48 | BD178: 3537.118851 | BE178: 0 | BF178: 4230 | BG178: 1 | BH178: 1535
A179: BT-0498 | B179: Baggage Tractor (Tug) | C179: Baggage Tractor (Tug) | D179: TUG | E179: MA50 | F179: 8912 | G179: 2016 | H179: 64 | I179: No | J179: No | M179: LPG/Propane | N179: 64 | O179: 50 | P179: LSI | Q179: Off-Road | R179: 0.6 | S179: Baggage Tug | T179: Off-Road | U179: -- | V179: LPG | W179: -- | X179: 64 | Y179: 75 | Z179: 2016 | AA179: 0.123 | AB179: 4.948e-05 | AC179: 1.546 | AD179: 0.0026 | AE179: 0.075 | AF179: 2.972e-05 | AG179: 0.06 | AH179: 0 | AI179: 674.66 | AJ179: 0 | AK179: In-Use | AL179: 846 | AM179: 1 | AN179: 1 | AO179: 1 | AP179: 1 | AQ179: 0.55 | AU179: 9895.640072 | AV179: 373550.2848 | AW179: 5977.149996 | AX179: 1786.752 | AY179: 1786.752 | AZ179: 20090835.07 | BA179: 1167.249221 | BB179: 1450.218729 | BC179: 20552181.48 | BD179: 3537.118851 | BE179: 0 | BF179: 4230 | BG179: 1 | BH179: 1535
A180: BT-0499 | B180: Baggage Tractor (Tug) | C180: Baggage Tractor (Tug) | D180: TUG | E180: MA50 | F180: 8913 | G180: 2016 | H180: 64 | I180: No | J180: No | M180: LPG/Propane | N180: 64 | O180: 50 | P180: LSI | Q180: Off-Road | R180: 0.6 | S180: Baggage Tug | T180: Off-Road | U180: -- | V180: LPG | W180: -- | X180: 64 | Y180: 75 | Z180: 2016 | AA180: 0.123 | AB180: 4.948e-05 | AC180: 1.546 | AD180: 0.0026 | AE180: 0.075 | AF180: 2.972e-05 | AG180: 0.06 | AH180: 0 | AI180: 674.66 | AJ180: 0 | AK180: In-Use | AL180: 846 | AM180: 1 | AN180: 1 | AO180: 1 | AP180: 1 | AQ180: 0.55 | AU180: 9895.640072 | AV180: 373550.2848 | AW180: 5977.149996 | AX180: 1786.752 | AY180: 1786.752 | AZ180: 20090835.07 | BA180: 1167.249221 | BB180: 1450.218729 | BC180: 20552181.48 | BD180: 3537.118851 | BE180: 0 | BF180: 4230 | BG180: 1 | BH180: 1535
A181: BT-0653 | B181: Baggage Tractor (Tug) | C181: Baggage Tractor (Tug) | D181: HARLAN | E181: HTGF50-LPG | F181: 8127 | G181: 2018 | H181: 72 | I181: No | J181: No | M181: LPG/Propane | N181: 72 | O181: 50 | P181: LSI | Q181: Off-Road | R181: 0.6 | S181: Baggage Tug | T181: Off-Road | U181: -- | V181: LPG | W181: -- | X181: 72 | Y181: 75 | Z181: 2018 | AA181: 0.123 | AB181: 4.948e-05 | AC181: 1.546 | AD181: 0.0026 | AE181: 0.075 | AF181: 2.972e-05 | AG181: 0.06 | AH181: 0 | AI181: 674.66 | AJ181: 0 | AK181: In-Use | AL181: 846 | AM181: 1 | AN181: 1 | AO181: 1 | AP181: 1 | AQ181: 0.55 | AU181: 8327.835768 | AV181: 272863.8317 | AW181: 5039.624247 | AX181: 2010.096 | AY181: 2010.096 | AZ181: 22602189.46 | BA181: 1313.155373 | BB181: 1631.49607 | BC181: 23121204.17 | BD181: 3979.258707 | BE181: 0 | BF181: 2538 | BG181: 1 | BH181: 1610
A182: BT-0654 | B182: Baggage Tractor (Tug) | C182: Baggage Tractor (Tug) | D182: HARLAN | E182: HTGF50-LPG | F182: 8128 | G182: 2018 | H182: 72 | I182: No | J182: No | M182: LPG/Propane | N182: 72 | O182: 50 | P182: LSI | Q182: Off-Road | R182: 0.6 | S182: Baggage Tug | T182: Off-Road | U182: -- | V182: LPG | W182: -- | X182: 72 | Y182: 75 | Z182: 2018 | AA182: 0.123 | AB182: 4.948e-05 | AC182: 1.546 | AD182: 0.0026 | AE182: 0.075 | AF182: 2.972e-05 | AG182: 0.06 | AH182: 0 | AI182: 674.66 | AJ182: 0 | AK182: In-Use | AL182: 846 | AM182: 1 | AN182: 1 | AO182: 1 | AP182: 1 | AQ182: 0.55 | AU182: 8327.835768 | AV182: 272863.8317 | AW182: 5039.624247 | AX182: 2010.096 | AY182: 2010.096 | AZ182: 22602189.46 | BA182: 1313.155373 | BB182: 1631.49607 | BC182: 23121204.17 | BD182: 3979.258707 | BE182: 0 | BF182: 2538 | BG182: 1 | BH182: 1610
A183: BT-0655 | B183: Baggage Tractor (Tug) | C183: Baggage Tractor (Tug) | D183: HARLAN | E183: HTGF50-LPG | F183: 8129 | G183: 2018 | H183: 72 | I183: No | J183: No | M183: LPG/Propane | N183: 72 | O183: 50 | P183: LSI | Q183: Off-Road | R183: 0.6 | S183: Baggage Tug | T183: Off-Road | U183: -- | V183: LPG | W183: -- | X183: 72 | Y183: 75 | Z183: 2018 | AA183: 0.123 | AB183: 4.948e-05 | AC183: 1.546 | AD183: 0.0026 | AE183: 0.075 | AF183: 2.972e-05 | AG183: 0.06 | AH183: 0 | AI183: 674.66 | AJ183: 0 | AK183: In-Use | AL183: 846 | AM183: 1 | AN183: 1 | AO183: 1 | AP183: 1 | AQ183: 0.55 | AU183: 8327.835768 | AV183: 272863.8317 | AW183: 5039.624247 | AX183: 2010.096 | AY183: 2010.096 | AZ183: 22602189.46 | BA183: 1313.155373 | BB183: 1631.49607 | BC183: 23121204.17 | BD183: 3979.258707 | BE183: 0 | BF183: 2538 | BG183: 1 | BH183: 1610
A184: BT-0656 | B184: Baggage Tractor (Tug) | C184: Baggage Tractor (Tug) | D184: HARLAN | E184: HTGF50-LPG | F184: 8130 | G184: 2018 | H184: 72 | I184: No | J184: No | M184: LPG/Propane | N184: 72 | O184: 50 | P184: LSI | Q184: Off-Road | R184: 0.6 | S184: Baggage Tug | T184: Off-Road | U184: -- | V184: LPG | W184: -- | X184: 72 | Y184: 75 | Z184: 2018 | AA184: 0.123 | AB184: 4.948e-05 | AC184: 1.546 | AD184: 0.0026 | AE184: 0.075 | AF184: 2.972e-05 | AG184: 0.06 | AH184: 0 | AI184: 674.66 | AJ184: 0 | AK184: In-Use | AL184: 846 | AM184: 1 | AN184: 1 | AO184: 1 | AP184: 1 | AQ184: 0.55 | AU184: 8327.835768 | AV184: 272863.8317 | AW184: 5039.624247 | AX184: 2010.096 | AY184: 2010.096 | AZ184: 22602189.46 | BA184: 1313.155373 | BB184: 1631.49607 | BC184: 23121204.17 | BD184: 3979.258707 | BE184: 0 | BF184: 2538 | BG184: 1 | BH184: 1610
A185: BT-0657 | B185: Baggage Tractor (Tug) | C185: Baggage Tractor (Tug) | D185: HARLAN | E185: HTGF50-LPG | F185: 8131 | G185: 2018 | H185: 72 | I185: No | J185: No | M185: LPG/Propane | N185: 72 | O185: 50 | P185: LSI | Q185: Off-Road | R185: 0.6 | S185: Baggage Tug | T185: Off-Road | U185: -- | V185: LPG | W185: -- | X185: 72 | Y185: 75 | Z185: 2018 | AA185: 0.123 | AB185: 4.948e-05 | AC185: 1.546 | AD185: 0.0026 | AE185: 0.075 | AF185: 2.972e-05 | AG185: 0.06 | AH185: 0 | AI185: 674.66 | AJ185: 0 | AK185: In-Use | AL185: 846 | AM185: 1 | AN185: 1 | AO185: 1 | AP185: 1 | AQ185: 0.55 | AU185: 8327.835768 | AV185: 272863.8317 | AW185: 5039.624247 | AX185: 2010.096 | AY185: 2010.096 | AZ185: 22602189.46 | BA185: 1313.155373 | BB185: 1631.49607 | BC185: 23121204.17 | BD185: 3979.258707 | BE185: 0 | BF185: 2538 | BG185: 1 | BH185: 1610
A186: BT-0652 | B186: Baggage Tractor (Tug) | C186: Baggage Tractor (Tug) | D186: HARLAN | E186: HTGF50-LPG | F186: 8126 | G186: 2018 | H186: 75 | I186: No | J186: No | M186: LPG/Propane | N186: 75 | O186: 75 | P186: LSI | Q186: Off-Road | R186: 0.6 | S186: Baggage Tug | T186: Off-Road | U186: -- | V186: LPG | W186: -- | X186: 75 | Y186: 100 | Z186: 2018 | AA186: 0.106 | AB186: 5.232e-05 | AC186: 1.614 | AD186: 0.0026 | AE186: 0.069 | AF186: 3.248e-05 | AG186: 0.06 | AH186: 0 | AI186: 674.66 | AJ186: 0 | AK186: In-Use | AL186: 846 | AM186: 1 | AN186: 1 | AO186: 1 | AP186: 1 | AQ186: 0.55 | AU186: 8333.109814 | AV186: 286606.188 | AW186: 5284.67639 | AX186: 2093.85 | AY186: 2093.85 | AZ186: 23543947.35 | BA186: 1367.870181 | BB186: 1699.475073 | BC186: 24084587.68 | BD186: 4145.061153 | BE186: 0 | BF186: 2538 | BG186: 1 | BH186: 1597
A187: BL-0338 | B187: Belt Loader | C187: Belt Loader | D187: TLD AMERICA | E187: NBL-FD | F187: 7789 | G187: 2017 | H187: 75 | I187: No | J187: No | M187: Gasoline | N187: 75 | O187: 75 | P187: LSI | Q187: Off-Road | R187: 0.6 | S187: Belt Loader | T187: Off-Road | U187: -- | V187: Gasoline | W187: -- | X187: 75 | Y187: 100 | Z187: 2017 | AA187: 0.017 | AB187: 3.264e-05 | AC187: 1.226 | AD187: 0.0026 | AE187: 0.038 | AF187: 7.556e-05 | AG187: 0.06 | AH187: 0 | AI187: 774.5 | AJ187: 0 | AK187: In-Use | AL187: 706 | AM187: 1 | AN187: 0.977 | AO187: 1 | AP187: 1 | AQ187: 0.5 | AU187: 2658.60616 | AV187: 226848.39 | AW187: 6502.251181 | AX187: 1588.5 | AY187: 1200.2 | AZ187: 20504887.5 | BA187: 6025.354186 | BB187: 583.8521498 | BC187: 20829509.3 | BD187: 2335.408599 | BE187: 65.04246421 | BF187: 2824 | BG187: 1 | BH187: 1491
A188: BL-0218 | B188: Belt Loader | C188: Belt Loader | D188: WOLLARD | E188: TC-888 | F188: 8033 | G188: 2018 | H188: 75 | I188: No | J188: No | M188: Gasoline | N188: 75 | O188: 75 | P188: LSI | Q188: Off-Road | R188: 0.6 | S188: Belt Loader | T188: Off-Road | U188: -- | V188: Gasoline | W188: -- | X188: 75 | Y188: 100 | Z188: 2018 | AA188: 0.017 | AB188: 3.264e-05 | AC188: 1.226 | AD188: 0.0026 | AE188: 0.038 | AF188: 7.556e-05 | AG188: 0.06 | AH188: 0 | AI188: 774.5 | AJ188: 0 | AK188: In-Use | AL188: 706 | AM188: 1 | AN188: 0.977 | AO188: 1 | AP188: 1 | AQ188: 0.5 | AU188: 2097.449366 | AV188: 178250.88 | AW188: 5122.416098 | AX188: 1588.5 | AY188: 1200.2 | AZ188: 20504887.5 | BA188: 6025.354186 | BB188: 583.8521498 | BC188: 20829509.3 | BD188: 2335.408599 | BE188: 65.04246421 | BF188: 2118 | BG188: 1 | BH188: 1599
A189: BL-0219 | B189: Belt Loader | C189: Belt Loader | D189: WOLLARD | E189: TC-888 | F189: 8034 | G189: 2018 | H189: 75 | I189: No | J189: No | M189: Gasoline | N189: 75 | O189: 75 | P189: LSI | Q189: Off-Road | R189: 0.6 | S189: Belt Loader | T189: Off-Road | U189: -- | V189: Gasoline | W189: -- | X189: 75 | Y189: 100 | Z189: 2018 | AA189: 0.017 | AB189: 3.264e-05 | AC189: 1.226 | AD189: 0.0026 | AE189: 0.038 | AF189: 7.556e-05 | AG189: 0.06 | AH189: 0 | AI189: 774.5 | AJ189: 0 | AK189: In-Use | AL189: 706 | AM189: 1 | AN189: 0.977 | AO189: 1 | AP189: 1 | AQ189: 0.5 | AU189: 2097.449366 | AV189: 178250.88 | AW189: 5122.416098 | AX189: 1588.5 | AY189: 1200.2 | AZ189: 20504887.5 | BA189: 6025.354186 | BB189: 583.8521498 | BC189: 20829509.3 | BD189: 2335.408599 | BE189: 65.04246421 | BF189: 2118 | BG189: 1 | BH189: 1599
A190: BL-0339 | B190: Belt Loader | C190: Belt Loader | D190: TLD AMERICA | E190: NBL-FD | F190: 7761 | G190: 2017 | H190: 86 | I190: No | J190: No | M190: Gasoline | N190: 86 | O190: 75 | P190: LSI | Q190: Off-Road | R190: 0.6 | S190: Belt Loader | T190: Off-Road | U190: -- | V190: Gasoline | W190: -- | X190: 86 | Y190: 100 | Z190: 2017 | AA190: 0.017 | AB190: 3.264e-05 | AC190: 1.226 | AD190: 0.0026 | AE190: 0.038 | AF190: 7.556e-05 | AG190: 0.06 | AH190: 0 | AI190: 774.5 | AJ190: 0 | AK190: In-Use | AL190: 706 | AM190: 1 | AN190: 0.977 | AO190: 1 | AP190: 1 | AQ190: 0.5 | AU190: 3048.535063 | AV190: 260119.4872 | AW190: 7455.914687 | AX190: 1821.48 | AY190: 1376.229333 | AZ190: 23512271 | BA190: 6909.0728 | BB190: 669.4837984 | BC190: 23884503.99 | BD190: 2677.935194 | BE190: 74.58202563 | BF190: 2824 | BG190: 1 | BH190: 1439
A191: BL-0340 | B191: Belt Loader | C191: Belt Loader | D191: TLD AMERICA | E191: NBL-FD | F191: 7765 | G191: 2017 | H191: 86 | I191: No | J191: No | M191: Gasoline | N191: 86 | O191: 75 | P191: LSI | Q191: Off-Road | R191: 0.6 | S191: Belt Loader | T191: Off-Road | U191: -- | V191: Gasoline | W191: -- | X191: 86 | Y191: 100 | Z191: 2017 | AA191: 0.017 | AB191: 3.264e-05 | AC191: 1.226 | AD191: 0.0026 | AE191: 0.038 | AF191: 7.556e-05 | AG191: 0.06 | AH191: 0 | AI191: 774.5 | AJ191: 0 | AK191: In-Use | AL191: 706 | AM191: 1 | AN191: 0.977 | AO191: 1 | AP191: 1 | AQ191: 0.5 | AU191: 3048.535063 | AV191: 260119.4872 | AW191: 7455.914687 | AX191: 1821.48 | AY191: 1376.229333 | AZ191: 23512271 | BA191: 6909.0728 | BB191: 669.4837984 | BC191: 23884503.99 | BD191: 2677.935194 | BE191: 74.58202563 | BF191: 2824 | BG191: 1 | BH191: 1439
A192: BL-0341 | B192: Belt Loader | C192: Belt Loader | D192: TLD AMERICA | E192: NBL-FD | F192: 7777 | G192: 2017 | H192: 86 | I192: No | J192: No | M192: Gasoline | N192: 86 | O192: 75 | P192: LSI | Q192: Off-Road | R192: 0.6 | S192: Belt Loader | T192: Off-Road | U192: -- | V192: Gasoline | W192: -- | X192: 86 | Y192: 100 | Z192: 2017 | AA192: 0.017 | AB192: 3.264e-05 | AC192: 1.226 | AD192: 0.0026 | AE192: 0.038 | AF192: 7.556e-05 | AG192: 0.06 | AH192: 0 | AI192: 774.5 | AJ192: 0 | AK192: In-Use | AL192: 706 | AM192: 1 | AN192: 0.977 | AO192: 1 | AP192: 1 | AQ192: 0.5 | AU192: 3048.535063 | AV192: 260119.4872 | AW192: 7455.914687 | AX192: 1821.48 | AY192: 1376.229333 | AZ192: 23512271 | BA192: 6909.0728 | BB192: 669.4837984 | BC192: 23884503.99 | BD192: 2677.935194 | BE192: 74.58202563 | BF192: 2824 | BG192: 1 | BH192: 1439
A193: BL-0342 | B193: Belt Loader | C193: Belt Loader | D193: TLD AMERICA | E193: NBL-FD | F193: 9457 | G193: 2021 | H193: 86 | I193: No | J193: No | M193: LPG/Propane | N193: 86 | O193: 75 | P193: LSI | Q193: Off-Road | R193: 0.6 | S193: Belt Loader | T193: Off-Road | U193: -- | V193: LPG | W193: -- | X193: 86 | Y193: 100 | Z193: 2021 | AA193: 0.106 | AB193: 5.232e-05 | AC193: 1.614 | AD193: 0.0026 | AE193: 0.069 | AF193: 3.248e-05 | AG193: 0.06 | AH193: 0 | AI193: 674.66 | AJ193: 0 | AK193: In-Use | AL193: 706 | AM193: 1 | AN193: 1 | AO193: 1 | AP193: 1 | AQ193: 0.5 | AU193: 4339.309375 | AV193: 104722.9568 | AW193: 2790.837655 | AX193: 1821.48 | AY193: 1821.48 | AZ193: 20481328.28 | BA193: 1189.936326 | BB193: 1478.405739 | BC193: 20951641.6 | BD193: 3605.867655 | BE193: 0 | BF193: 706 | BG193: 1 | BH193: 1880
A194: BL-0343 | B194: Belt Loader | C194: Belt Loader | D194: TLD AMERICA | E194: NBL-FD | F194: 9458 | G194: 2021 | H194: 86 | I194: No | J194: No | M194: LPG/Propane | N194: 86 | O194: 75 | P194: LSI | Q194: Off-Road | R194: 0.6 | S194: Belt Loader | T194: Off-Road | U194: -- | V194: LPG | W194: -- | X194: 86 | Y194: 100 | Z194: 2021 | AA194: 0.106 | AB194: 5.232e-05 | AC194: 1.614 | AD194: 0.0026 | AE194: 0.069 | AF194: 3.248e-05 | AG194: 0.06 | AH194: 0 | AI194: 674.66 | AJ194: 0 | AK194: In-Use | AL194: 706 | AM194: 1 | AN194: 1 | AO194: 1 | AP194: 1 | AQ194: 0.5 | AU194: 4339.309375 | AV194: 104722.9568 | AW194: 2790.837655 | AX194: 1821.48 | AY194: 1821.48 | AZ194: 20481328.28 | BA194: 1189.936326 | BB194: 1478.405739 | BC194: 20951641.6 | BD194: 3605.867655 | BE194: 0 | BF194: 706 | BG194: 1 | BH194: 1880
A195: BL-0344 | B195: Belt Loader | C195: Belt Loader | D195: WASP | E195: A234710D | F195: 8914 | G195: 2016 | H195: 16 | I195: No | J195: No | M195: Diesel | N195: 16 | O195: NA | P195: ORD | Q195: Off-Road | R195: NA | S195: Belt Loader | T195: Off-Road | U195: -- | V195: Diesel | W195: Tier 4 | X195: 16 | Y195: 25 | Z195: 2016 | AA195: 0.1 | AB195: 4e-05 | AC195: 2.72 | AD195: 0.000276 | AE195: 3.855182626 | AF195: 0 | AG195: 0.1387687462 | AH195: 0 | AI195: 585.9809535 | AJ195: 0 | AK195: In-Use | AL195: 706 | AM195: 0.9 | AN195: 0.95 | AO195: 0.9 | AP195: 1 | AQ195: 0.335 | AU195: 993.9731979 | AV195: 13979.7466 | AW195: 13859.19649 | AX195: 472.6108249 | AY195: 434.8019589 | AZ195: 2217445.685 | BA195: 36.9212308 | BB195: 106.4200182 | BC195: 2250081.881 | BD195: 217.1837106 | BE195: 10.89059822 | BF195: 3530 | BG195: 1 | BH195: 1194
A196: BL-0345 | B196: Belt Loader | C196: Belt Loader | D196: WASP | E196: A234710D | F196: 8915 | G196: 2016 | H196: 16 | I196: No | J196: No | M196: Diesel | N196: 16 | O196: NA | P196: ORD | Q196: Off-Road | R196: NA | S196: Belt Loader | T196: Off-Road | U196: -- | V196: Diesel | W196: Tier 4 | X196: 16 | Y196: 25 | Z196: 2016 | AA196: 0.1 | AB196: 4e-05 | AC196: 2.72 | AD196: 0.000276 | AE196: 3.855182626 | AF196: 0 | AG196: 0.1387687462 | AH196: 0 | AI196: 585.9809535 | AJ196: 0 | AK196: In-Use | AL196: 706 | AM196: 0.9 | AN196: 0.95 | AO196: 0.9 | AP196: 1 | AQ196: 0.335 | AU196: 993.9731979 | AV196: 13979.7466 | AW196: 13859.19649 | AX196: 472.6108249 | AY196: 434.8019589 | AZ196: 2217445.685 | BA196: 36.9212308 | BB196: 106.4200182 | BC196: 2250081.881 | BD196: 217.1837106 | BE196: 10.89059822 | BF196: 3530 | BG196: 1 | BH196: 1194
A197: BL-0346 | B197: Belt Loader | C197: Belt Loader | D197: WASP | E197: A234710D | F197: 8916 | G197: 2016 | H197: 16 | I197: No | J197: No | M197: Diesel | N197: 16 | O197: NA | P197: ORD | Q197: Off-Road | R197: NA | S197: Belt Loader | T197: Off-Road | U197: -- | V197: Diesel | W197: Tier 4 | X197: 16 | Y197: 25 | Z197: 2016 | AA197: 0.1 | AB197: 4e-05 | AC197: 2.72 | AD197: 0.000276 | AE197: 3.855182626 | AF197: 0 | AG197: 0.1387687462 | AH197: 0 | AI197: 585.9809535 | AJ197: 0 | AK197: In-Use | AL197: 706 | AM197: 0.9 | AN197: 0.95 | AO197: 0.9 | AP197: 1 | AQ197: 0.335 | AU197: 993.9731979 | AV197: 13979.7466 | AW197: 13859.19649 | AX197: 472.6108249 | AY197: 434.8019589 | AZ197: 2217445.685 | BA197: 36.9212308 | BB197: 106.4200182 | BC197: 2250081.881 | BD197: 217.1837106 | BE197: 10.89059822 | BF197: 3530 | BG197: 1 | BH197: 1194
A198: BL-0347 | B198: Belt Loader | C198: Belt Loader | D198: WASP | E198: A234710D | F198: 8917 | G198: 2016 | H198: 16 | I198: No | J198: No | M198: Diesel | N198: 16 | O198: NA | P198: ORD | Q198: Off-Road | R198: NA | S198: Belt Loader | T198: Off-Road | U198: -- | V198: Diesel | W198: Tier 4 | X198: 16 | Y198: 25 | Z198: 2016 | AA198: 0.1 | AB198: 4e-05 | AC198: 2.72 | AD198: 0.000276 | AE198: 3.855182626 | AF198: 0 | AG198: 0.1387687462 | AH198: 0 | AI198: 585.9809535 | AJ198: 0 | AK198: In-Use | AL198: 706 | AM198: 0.9 | AN198: 0.95 | AO198: 0.9 | AP198: 1 | AQ198: 0.335 | AU198: 993.9731979 | AV198: 13979.7466 | AW198: 13859.19649 | AX198: 472.6108249 | AY198: 434.8019589 | AZ198: 2217445.685 | BA198: 36.9212308 | BB198: 106.4200182 | BC198: 2250081.881 | BD198: 217.1837106 | BE198: 10.89059822 | BF198: 3530 | BG198: 1 | BH198: 1194
A199: BL-0348 | B199: Belt Loader | C199: Belt Loader | D199: WASP | E199: A234710D | F199: 8918 | G199: 2016 | H199: 16 | I199: No | J199: No | M199: Diesel | N199: 16 | O199: NA | P199: ORD | Q199: Off-Road | R199: NA | S199: Belt Loader | T199: Off-Road | U199: -- | V199: Diesel | W199: Tier 4 | X199: 16 | Y199: 25 | Z199: 2016 | AA199: 0.1 | AB199: 4e-05 | AC199: 2.72 | AD199: 0.000276 | AE199: 3.855182626 | AF199: 0 | AG199: 0.1387687462 | AH199: 0 | AI199: 585.9809535 | AJ199: 0 | AK199: In-Use | AL199: 706 | AM199: 0.9 | AN199: 0.95 | AO199: 0.9 | AP199: 1 | AQ199: 0.335 | AU199: 993.9731979 | AV199: 13979.7466 | AW199: 13859.19649 | AX199: 472.6108249 | AY199: 434.8019589 | AZ199: 2217445.685 | BA199: 36.9212308 | BB199: 106.4200182 | BC199: 2250081.881 | BD199: 217.1837106 | BE199: 10.89059822 | BF199: 3530 | BG199: 1 | BH199: =RANK(AW199,_xlfn.ANCHORARRAY(AW$6),0) -> 1194
A200: BL-0349 | B200: Belt Loader | C200: Belt Loader | D200: WASP | E200: A234710D | F200: 8919 | G200: 2016 | H200: 16 | I200: No | J200: No | M200: Diesel | N200: 16 | O200: NA | P200: ORD | Q200: Off-Road | R200: NA | S200: Belt Loader | T200: Off-Road | U200: -- | V200: Diesel | W200: Tier 4 | X200: 16 | Y200: 25 | Z200: 2016 | AA200: 0.1 | AB200: 4e-05 | AC200: 2.72 | AD200: 0.000276 | AE200: 3.855182626 | AF200: 0 | AG200: 0.1387687462 | AH200: 0 | AI200: 585.9809535 | AJ200: 0 | AK200: In-Use | AL200: 706 | AM200: 0.9 | AN200: 0.95 | AO200: 0.9 | AP200: 1 | AQ200: 0.335 | AU200: 993.9731979 | AV200: 13979.7466 | AW200: 13859.19649 | AX200: 472.6108249 | AY200: 434.8019589 | AZ200: 2217445.685 | BA200: 36.9212308 | BB200: 106.4200182 | BC200: 2250081.881 | BD200: 217.1837106 | BE200: 10.89059822 | BF200: 3530 | BG200: 1 | BH200: 1194
A201: BL-0350 | B201: Belt Loader | C201: Belt Loader | D201: WASP | E201: A234710D | F201: 8920 | G201: 2016 | H201: 16 | I201: No | J201: No | M201: Diesel | N201: 16 | O201: NA | P201: ORD | Q201: Off-Road | R201: NA | S201: Belt Loader | T201: Off-Road | U201: -- | V201: Diesel | W201: Tier 4 | X201: 16 | Y201: 25 | Z201: 2016 | AA201: 0.1 | AB201: 4e-05 | AC201: 2.72 | AD201: 0.000276 | AE201: 3.855182626 | AF201: 0 | AG201: 0.1387687462 | AH201: 0 | AI201: 585.9809535 | AJ201: 0 | AK201: In-Use | AL201: 706 | AM201: 0.9 | AN201: 0.95 | AO201: 0.9 | AP201: 1 | AQ201: 0.335 | AU201: 993.9731979 | AV201: 13979.7466 | AW201: 13859.19649 | AX201: 472.6108249 | AY201: 434.8019589 | AZ201: 2217445.685 | BA201: 36.9212308 | BB201: 106.4200182 | BC201: 2250081.881 | BD201: 217.1837106 | BE201: 10.89059822 | BF201: 3530 | BG201: 1 | BH201: 1194
A202: BL-0351 | B202: Belt Loader | C202: Belt Loader | D202: WASP | E202: A234710D | F202: 8921 | G202: 2016 | H202: 16 | I202: No | J202: No | M202: Diesel | N202: 16 | O202: NA | P202: ORD | Q202: Off-Road | R202: NA | S202: Belt Loader | T202: Off-Road | U202: -- | V202: Diesel | W202: Tier 4 | X202: 16 | Y202: 25 | Z202: 2016 | AA202: 0.1 | AB202: 4e-05 | AC202: 2.72 | AD202: 0.000276 | AE202: 3.855182626 | AF202: 0 | AG202: 0.1387687462 | AH202: 0 | AI202: 585.9809535 | AJ202: 0 | AK202: In-Use | AL202: 706 | AM202: 0.9 | AN202: 0.95 | AO202: 0.9 | AP202: 1 | AQ202: 0.335 | AU202: 993.9731979 | AV202: 13979.7466 | AW202: 13859.19649 | AX202: 472.6108249 | AY202: 434.8019589 | AZ202: 2217445.685 | BA202: 36.9212308 | BB202: 106.4200182 | BC202: 2250081.881 | BD202: 217.1837106 | BE202: 10.89059822 | BF202: 3530 | BG202: 1 | BH202: 1194
... 579 more rows

Sheet hours-override
A1: Targetted operation tracking for older/higher emitting equipment.
B2: Low Use hour override for Tier 0 or Tier 1 diesel, or pre-2010 gasoline engines.
A4: AQMD ID | B4: Activity (hours per year) | C4: Year Monitored | D4: Is This Operation Typical? | E4: Verified By | F4: Does this need to be updated? | G4: Notes
A5: EX-AMPLE-ID | B5: 20 | C5: 2023 | D5: Yes | E5: gilbridej@cdmsmith.com | F5: No | G5: This is an example.
A6: L-0151 | B6: 1.3 | C6: 2022
A7: BT-0802 | B7: 0.5 | C7: 2022
A8: FT-0001 | B8: 10 | C8: 2022
A9: BT-0011 | B9: 150 | C9: 2022
A10: BT-0034 | B10: 135 | C10: 2022
A11: PS-0002 | B11: 42 | C11: 2022
A12: BL-0016 | B12: 26 | C12: 2022
A13: BL-0028 | B13: 102 | C13: 2022
A14: AT-0009 | B14: 1 | C14: 2022
A15: BL-0056 | B15: 166 | C15: 2022
A16: CTr-0035 | B16: 49 | C16: 2022
A17: F-0038 | B17: 0 | C17: 2022
A18: BT-0247 | B18: 157 | C18: 2022
A19: F-0033 | B19: 10 | C19: 2022
A20: F-0050 | B20: 21 | C20: 2022
A21: L-0135 | B21: 5 | C21: 2022
A22: F-0011 | B22: 14 | C22: 2022
A23: AS-0002 | B23: 15 | C23: 2022
A24: AS-0005 | B24: 27.46 | C24: 2022
A25: CTk-0091 | B25: 16.67 | C25: 2022 | D25: No | F25: 16.67 - Put into service 12/2022, cannot confirm 2022 hours, so 200/12 = 16.67 for cy2022 since low use
B26: 0.42 prorate (col BG) | C26: 2022 | D26: No | F26: Company began at LAX in August 2022 | G26: BT-0944 BT-0945 BT-0946 BT-0947 BT-0948 BT-0949 BT-0950 BT-0951 AT-0268 AT-0269 AT-0270 CL-0211 CL-0212 CL-0213 CL-0214 CL-0215 FT-0085 FT-0086 FT-0087 FT-0088 BL-0408 BL-0409 AS-0047 LT-0043 GPU-0173 GPU-0174 PS-0038 BT-0952 BT-0953 BT-0954 BT-0955

Sheet NOx&HC_EFs
A1: Notes:
A2: 1. Yellow Highlights = default values proposed by CDM Smith. Actual values would need to be obtained from each GSE owner/operator.
A3: 2. Light Blue Highlight = corrected value for NOx/0.87 to obtain NOx+HC emission factor.
A5: Lookup Table 1: Off-Road Diesel Emission Factors by Horsepower and Year, NOx+ HC (g/bhp-hr) | L5: Lookup Table 2: On-Road Diesel Emission Factors | P5: Lookup Table 3: Emission Factors (HC+NOx) for Off-Road LSI Engines by Model Year (g/bhp-hr) | U5: Lookup Table 4: Emission Factors (HC+NOx) for On-Road LSI Engines by Model Year (g/bhp-hr)
B7: Horsepower Group
A8: Engine Model Year | B8: 25-49 | C8: 50-74 | D8: 75-99 | E8: 100-174 | F8: 175-299 | G8: 300-599 | H8: 600-750 | I8: 750+ | L8: Engine Model Year | M8: NOx+HC EF (g/bhp-hr) | P8: Engine Model Year | R8: NOx+HC EF (g/bhp-hr) | U8: Engine Model Year | V8: Engine Horsepower | W8: NOx+HC EF (g/bhp-hr)
A9: HP Bin --> | B9: 25 | C9: 50 | D9: 75 | E9: 100 | F9: 175 | G9: 300 | H9: 600 | I9: 750 | U9: All | V9: All | W9: 0.7
A10: 1900-1959 | B10: 8.3 | C10: 17 | D10: 17 | E10: 18.3 | F10: 18.3 | G10: 17.5 | H10: 17.5 | I10: 17.5 | L10: Pre–1979 | M10: Use Table 1 | Q10: Pre‐2001 | R10: 12
A11: 1960 | B11: 8.3 | C11: 17 | D11: 17 | E11: 18.3 | F11: 18.3 | G11: 17.5 | H11: 17.5 | I11: 17.5 | L11: 1979 | M11: 8.6 | P11: Uncontrolled | Q11: 2001 | R11: 12
A12: 1961 | B12: 8.3 | C12: 17 | D12: 17 | E12: 18.3 | F12: 18.3 | G12: 17.5 | H12: 17.5 | I12: 17.5 | L12: 1980 | M12: 6 | Q12: 2002 | R12: 12
A13: 1962 | B13: 8.3 | C13: 17 | D13: 17 | E13: 18.3 | F13: 18.3 | G13: 17.5 | H13: 17.5 | I13: 17.5 | L13: 1981 | M13: 6 | Q13: 2003 | R13: 12
A14: 1963 | B14: 8.3 | C14: 17 | D14: 17 | E14: 18.3 | F14: 18.3 | G14: 17.5 | H14: 17.5 | I14: 17.5 | L14: 1982 | M14: 6 | P14: Controlled | Q14: 2001 | R14: 3
A15: 1964 | B15: 8.3 | C15: 17 | D15: 17 | E15: 18.3 | F15: 18.3 | G15: 17.5 | H15: 17.5 | I15: 17.5 | L15: 1983 | M15: 6 | Q15: 2002 | R15: 3
A16: 1965 | B16: 8.3 | C16: 17 | D16: 17 | E16: 18.3 | F16: 18.3 | G16: 17.5 | H16: 17.5 | I16: 17.5 | L16: 1984 | M16: 5.9 | Q16: 2003 | R16: 3
A17: 1966 | B17: 8.3 | C17: 17 | D17: 17 | E17: 18.3 | F17: 18.3 | G17: 17.5 | H17: 17.5 | I17: 17.5 | L17: 1985 | M17: 5.9 | Q17: 2004 | R17: 3
A18: 1967 | B18: 8.3 | C18: 17 | D18: 17 | E18: 18.3 | F18: 18.3 | G18: 17.5 | H18: 17.5 | I18: 17.5 | L18: 1986 | M18: 5.9 | Q18: 2005 | R18: 3
A19: 1968 | B19: 8.3 | C19: 17 | D19: 17 | E19: 18.3 | F19: 18.3 | G19: 17.5 | H19: 17.5 | I19: 17.5 | L19: 1987 | M19: 6.9 | Q19: 2006 | R19: 3
A20: 1969 | B20: 8.3 | C20: 17 | D20: 17 | E20: 18.3 | F20: 18.3 | G20: 17.5 | H20: 17.5 | I20: 17.5 | L20: 1988 | M20: 6.9 | Q20: 2007 | R20: 2 | S20: 0.6 to 2.0 per Eng. Cert. level from Owner, using 2.0 as default
A21: 1970 | B21: 8.3 | C21: 17 | D21: 17 | E21: 17 | F21: 17 | G21: 16.2 | H21: 16.2 | I21: 16.2 | L21: 1989 | M21: 6.9 | Q21: 2008 | R21: 1.6 | S21: 0.6 to 2.0 per Eng. Cert. level from Owner, using 1.6 as default
A22: 1971 | B22: 8.3 | C22: 17 | D22: 17 | E22: 17 | F22: 17 | G22: 16.2 | H22: 16.2 | I22: 16.2 | L22: 1990 | M22: 6.9 | Q22: 2009 | R22: 1.1 | S22: 0.6 to 2.0 per Eng. Cert. level from Owner, using 1.1 as default
A23: 1972 | B23: 8.3 | C23: 17 | D23: 17 | E23: 15.6 | F23: 15.6 | G23: 14.9 | H23: 14.9 | I23: 14.9 | L23: 1991 | M23: 5.7 | Q23: 2010 | R23: 0.6
A24: 1973 | B24: 8.3 | C24: 17 | D24: 17 | E24: 15.6 | F24: 15.6 | G24: 14.9 | H24: 14.9 | I24: 14.9 | L24: 1992 | M24: 5.7 | Q24: 2011 | R24: 0.6
A25: 1974 | B25: 8.3 | C25: 17 | D25: 17 | E25: 15.6 | F25: 15.6 | G25: 14.9 | H25: 14.9 | I25: 14.9 | L25: 1993 | M25: 5.7 | Q25: 2012 | R25: 0.6
A26: 1975 | B26: 8.3 | C26: 17 | D26: 17 | E26: 15.6 | F26: 15.6 | G26: 14.9 | H26: 14.9 | I26: 14.9 | L26: 1994 | M26: 5.7 | Q26: 2013 | R26: 0.6
A27: 1976 | B27: 8.3 | C27: 17 | D27: 17 | E27: 15.6 | F27: 15.6 | G27: 14.9 | H27: 14.9 | I27: 14.9 | L27: 1995 | M27: 5.7 | Q27: 2014 | R27: 0.6
A28: 1977 | B28: 8.3 | C28: 17 | D28: 17 | E28: 15.6 | F28: 15.6 | G28: 14.9 | H28: 14.9 | I28: 14.9 | L28: 1996 | M28: 5.7 | Q28: 2015 | R28: 0.6
A29: 1978 | B29: 8.3 | C29: 17 | D29: 17 | E29: 15.6 | F29: 15.6 | G29: 14.9 | H29: 14.9 | I29: 14.9 | L29: 1997 | M29: 5.7 | Q29: 2016 | R29: 0.6
A30: 1979 | B30: 8.3 | C30: 17 | D30: 17 | E30: 15.6 | F30: 15.6 | G30: 14.9 | H30: 14.9 | I30: 14.9 | L30: 1998 | M30: 4.6 | Q30: 2017 | R30: 0.6
A31: 1980 | B31: 8.3 | C31: 17 | D31: 17 | E31: 14.4 | F31: 14.4 | G31: 13.7 | H31: 13.7 | I31: 13.7 | L31: 1999 | M31: 4.6 | Q31: 2018 | R31: 0.6
A32: 1981 | B32: 8.3 | C32: 17 | D32: 17 | E32: 14.4 | F32: 14.4 | G32: 13.7 | H32: 13.7 | I32: 13.7 | L32: 2000 | M32: 4.6 | Q32: 2019 | R32: 0.6
A33: 1982 | B33: 8.3 | C33: 17 | D33: 17 | E33: 14.4 | F33: 14.4 | G33: 13.7 | H33: 13.7 | I33: 13.7 | L33: 2001 | M33: 4.6 | Q33: 2020 | R33: 0.6
A34: 1983 | B34: 8.3 | C34: 17 | D34: 17 | E34: 14.4 | F34: 14.4 | G34: 13.7 | H34: 13.7 | I34: 13.7 | L34: 2002 | M34: 4.6 | Q34: 2021 | R34: 0.6
A35: 1984 | B35: 8.3 | C35: 17 | D35: 17 | E35: 14.4 | F35: 14.4 | G35: 13.7 | H35: 13.7 | I35: 13.7 | L35: 2003 | M35: 4.6 | Q35: 2022 | R35: 0.6
A36: 1985 | B36: 8.3 | C36: 17 | D36: 17 | E36: 14.4 | F36: 14.4 | G36: 13.7 | H36: 13.7 | I36: 13.7 | L36: 2004 | M36: 2.5 | N36: Use Actual NOx+HC Cert per referenced EO in DOORS database | Q36: 2023 | R36: 0.6
A37: 1986 | B37: 8.3 | C37: 17 | D37: 17 | E37: 14.4 | F37: 14.4 | G37: 13.7 | H37: 13.7 | I37: 13.7 | L37: 2005 | M37: 2.5 | N37: Use Actual NOx+HC Cert per referenced EO in DOORS database
A38: 1987 | B38: 8.3 | C38: 17 | D38: 17 | E38: 14.4 | F38: 14.4 | G38: 13.7 | H38: 13.7 | I38: 13.7 | L38: 2006 | M38: 2.5 | N38: Use Actual NOx+HC Cert per referenced EO in DOORS database | P38: Assumes Displacement > 1 liter (1000 cc)
A39: 1988 | B39: 8.2 | C39: 11.4 | D39: 11.4 | E39: 10.7 | F39: 10.7 | G39: 10.2 | H39: 10.2 | I39: 10.2 | L39: 2007 | M39: 1.2 | N39: Use Actual NOx+HC Cert per referenced EO in DOORS database
A40: 1989 | B40: 8.2 | C40: 11.4 | D40: 11.4 | E40: 10.7 | F40: 10.7 | G40: 10.2 | H40: 10.2 | I40: 10.2 | L40: 2008 | M40: 1.2 | N40: Use Actual NOx+HC Cert per referenced EO in DOORS database
A41: 1990 | B41: 8.2 | C41: 11.4 | D41: 11.4 | E41: 10.7 | F41: 10.7 | G41: 10.2 | H41: 10.2 | I41: 10.2 | L41: 2009 | M41: 1.2 | N41: Use Actual NOx+HC Cert per referenced EO in DOORS database
A42: 1991 | B42: 8.2 | C42: 11.4 | D42: 11.4 | E42: 10.7 | F42: 10.7 | G42: 10.2 | H42: 10.2 | I42: 10.2 | L42: 2010 | M42: 0.2 | N42: Use Actual NOx+HC Cert per referenced EO in DOORS database
A43: 1992 | B43: 8.2 | C43: 11.4 | D43: 11.4 | E43: 10.7 | F43: 10.7 | G43: 10.2 | H43: 10.2 | I43: 10.2 | L43: 2011 | M43: 0.2 | N43: Use Actual NOx+HC Cert per referenced EO in DOORS database
A44: 1993 | B44: 8.2 | C44: 11.4 | D44: 11.4 | E44: 10.7 | F44: 10.7 | G44: 10.2 | H44: 10.2 | I44: 10.2 | L44: 2012 | M44: 0.2 | N44: Use Actual NOx+HC Cert per referenced EO in DOORS database
A45: 1994 | B45: 8.2 | C45: 11.4 | D45: 11.4 | E45: 10.7 | F45: 10.7 | G45: 10.2 | H45: 10.2 | I45: 10.2 | L45: 2013 | M45: 0.2 | N45: Use Actual NOx+HC Cert per referenced EO in DOORS database
A46: 1995 | B46: 8.2 | C46: 11.4 | D46: 11.4 | E46: 10.7 | F46: 10.7 | G46: 10.2 | H46: 10.2 | I46: 10.2 | L46: 2014 | M46: 0.2 | N46: Use Actual NOx+HC Cert per referenced EO in DOORS database
A47: 1996 | B47: 8.2 | C47: 11.4 | D47: 11.4 | E47: 10.7 | F47: 7.9 | G47: 7.9 | H47: 7.9 | I47: 10.2 | L47: 2015 | M47: 0.1 | N47: Use Actual NOx+HC Cert per referenced EO in DOORS database
A48: 1997 | B48: 8.2 | C48: 11.4 | D48: 11.4 | E48: 7.9 | F48: 7.9 | G48: 7.9 | H48: 7.9 | I48: 10.2 | L48: 2016 | M48: 0.1 | N48: Use Actual NOx+HC Cert per referenced EO in DOORS database
A49: 1998 | B49: 8.2 | C49: 7.9 | D49: 7.9 | E49: 7.9 | F49: 7.9 | G49: 7.9 | H49: 7.9 | I49: 10.2 | L49: 2017 | M49: 0.1 | N49: Use Actual NOx+HC Cert per referenced EO in DOORS database
A50: 1999 | B50: 7.1 | C50: 7.9 | D50: 7.9 | E50: 7.9 | F50: 7.9 | G50: 7.9 | H50: 7.9 | I50: 10.2 | L50: 2018 | M50: 0.1 | N50: Use Actual NOx+HC Cert per referenced EO in DOORS database
A51: 2000 | B51: 7.1 | C51: 7.9 | D51: 7.9 | E51: 7.9 | F51: 7.9 | G51: 7.9 | H51: 7.9 | I51: 7.9 | L51: 2019 | M51: 0.1 | N51: Use Actual NOx+HC Cert per referenced EO in DOORS database
A52: 2001 | B52: 7.1 | C52: 7.9 | D52: 7.9 | E52: 7.9 | F52: 7.9 | G52: 4.8 | H52: 7.9 | I52: 7.9 | L52: 2020 | M52: 0.1 | N52: Use Actual NOx+HC Cert per referenced EO in DOORS database
A53: 2002 | B53: 7.1 | C53: 7.9 | D53: 7.9 | E53: 7.9 | F53: 7.9 | G53: 4.8 | H53: 4.8 | I53: 7.9 | L53: 2021 | M53: 0.1 | N53: Use Actual NOx+HC Cert per referenced EO in DOORS database
A54: 2003 | B54: 7.1 | C54: 7.9 | D54: 7.9 | E54: 4.9 | F54: 4.9 | G54: 4.8 | H54: 4.8 | I54: 7.9 | L54: 2022 | M54: 0.1 | N54: Use Actual NOx+HC Cert per referenced EO in DOORS database
A55: 2004 | B55: 5.6 | C55: 5.6 | D55: 5.6 | E55: 4.9 | F55: 4.9 | G55: 4.8 | H55: 4.8 | I55: 7.9 | L55: 2023 | M55: 0.1 | N55: Use Actual NOx+HC Cert per referenced EO in DOORS database
A56: 2005 | B56: 5.6 | C56: 5.6 | D56: 5.6 | E56: 4.9 | F56: 4.9 | G56: 4.8 | H56: 4.8 | I56: 7.9
A57: 2006 | B57: 5.6 | C57: 5.6 | D57: 5.6 | E57: 4.9 | F57: 3 | G57: 3 | H57: 3 | I57: 4.8 | L57: 1979-2003: (ARB on-road heavy duty NOx value)/0.87
A58: 2007 | B58: 5.6 | C58: 5.6 | D58: 5.6 | E58: 3 | F58: 3 | G58: 3 | H58: 3 | I58: 4.8 | L58: 2004-2007: Use referenced Executive Order in DOORS from fleet operator
A59: 2008 | B59: 5.6 | C59: 3.5 | D59: 3.5 | E59: 3 | F59: 3 | G59: 3 | H59: 3 | I59: 4.8
A60: 2009 | B60: 5.6 | C60: 3.5 | D60: 3.5 | E60: 3 | F60: 3 | G60: 3 | H60: 3 | I60: 4.8
A61: 2010 | B61: 5.6 | C61: 3.5 | D61: 3.5 | E61: 3 | F61: 3 | G61: 3 | H61: 3 | I61: 4.8
A62: 2011 | B62: 5.6 | C62: 3.5 | D62: 3.5 | E62: 3 | F62: 1.7 | G62: 1.7 | H62: 1.7 | I62: 2.9
A63: 2012 | B63: 5.6 | C63: 3.5 | D63: 2.7 | E63: 2.7 | F63: 1.7 | G63: 1.7 | H63: 1.7 | I63: 2.9
A64: 2013 | B64: 3.5 | C64: 3.5 | D64: 2.7 | E64: 2.7 | F64: 1.7 | G64: 1.7 | H64: 1.7 | I64: 2.9
A65: 2014 | B65: 3.5 | C65: 3.5 | D65: 2.7 | E65: 2.7 | F65: 0.44 | G65: 0.44 | H65: 0.44 | I65: 2.9
A66: 2015 | B66: 3.5 | C66: 3.5 | D66: 0.44 | E66: 0.44 | F66: 0.44 | G66: 0.44 | H66: 0.44 | I66: 2.6
A67: 2016 | B67: 3.5 | C67: 3.5 | D67: 0.44 | E67: 0.44 | F67: 0.44 | G67: 0.44 | H67: 0.44 | I67: 2.6
A68: 2017 | B68: 3.5 | C68: 3.5 | D68: 0.44 | E68: 0.44 | F68: 0.44 | G68: 0.44 | H68: 0.44 | I68: 2.6
A69: 2018 | B69: 3.5 | C69: 3.5 | D69: 0.44 | E69: 0.44 | F69: 0.44 | G69: 0.44 | H69: 0.44 | I69: 2.6
A70: 2019 | B70: 3.5 | C70: 3.5 | D70: 0.44 | E70: 0.44 | F70: 0.44 | G70: 0.44 | H70: 0.44 | I70: 2.6
A71: 2020 | B71: 3.5 | C71: 3.5 | D71: 0.44 | E71: 0.44 | F71: 0.44 | G71: 0.44 | H71: 0.44 | I71: 2.6
A72: 2021 | B72: 3.5 | C72: 3.5 | D72: 0.44 | E72: 0.44 | F72: 0.44 | G72: 0.44 | H72: 0.44 | I72: 2.6
A73: 2022 | B73: 3.5 | C73: 3.5 | D73: 0.44 | E73: 0.44 | F73: 0.44 | G73: 0.44 | H73: 0.44 | I73: 2.6
A74: 2023 | B74: 3.5 | C74: 3.5 | D74: 0.44 | E74: 0.44 | F74: 0.44 | G74: 0.44 | H74: 0.44 | I74: 2.6
A76: Unshaded: (LFAC NOx factor)/0.87; Shaded: ARB Off-Road emission standard, NOx+HC, except Tier 1 for 50-175HP:( NOx Std)/0.87
B78: Tier 0 | C78: Tier 1 | D78: Tier 2 | E78: Tier 3 | F78: Tier 4int | G78: Tier 4

Sheet pm-thc-split
A1: https://arb.ca.gov/emfac/emissions-inventory/cf684f9745f7da3a4b375471e6c70a98ff292508 | H1: DO NOT UPDATE THIS TAB | N1: LPG | O1: 1 | P1: 1
N2: Diesel | O2: =AVERAGEIFS(O6:O57,N6:N57,N2) -> 0.92 | P2: =AVERAGEIFS(P6:P57,N6:N57,N2) -> 1.21
A3: *Per Jeremy 4/14/22: do not update A-I with newer years (leave as 2020); AQMD has reviewed these default averages (K-N) and given okay. | N3: Gasoline | O3: =AVERAGEIFS(O6:O57,N6:N57,N3) -> 0.7555555556 | P3: =AVERAGEIFS(P6:P57,N6:N57,N3) -> 0.9198
A5: Calendar Year | B5: Vehicle Category | C5: Fuel | D5: HC_tpd | E5: ROG_tpd | F5: PM10_tpd | G5: PM2.5_tpd | H5: =SUBSTITUTE(SUBSTITUTE(SUBSTITUTE(B5:B57,"OFF - ",""),"AirGrSupp - ","")," "," ") -> Vehicle Category | I5: =OFFSET(_xlfn.ANCHORARRAY(H5),0,-5) -> Fuel | M5: =_xlfn.UNIQUE(_xlfn.ANCHORARRAY(H5):_xlfn.ANCHORARRAY(I5)) -> Vehicle Category | N5: Fuel | O5: PM2.5/PM10 | P5: ROG/THC
A6: 2020 | B6: AirGrSupp - A/C Tug Narrow Body | C6: Diesel | D6: 0.003172727126 | E6: 0.003838999822 | F6: 0.002273090297 | G6: 0.002091243073 | H6: A/C Tug Narrow Body | I6: Diesel | M6: A/C Tug Narrow Body | N6: Diesel | O6: =IFERROR(SUMIFS($G$6:$G$57,$H$6:$H$57,$M6,$I$6:$I$57,$N6)/SUMIFS($F$6:$F$57,$H$6:$H$57,$M6,$I$6:$I$57,$N6),0) -> 0.92 | P6: =IFERROR(SUMIFS($E$6:$E$57,$H$6:$H$57,$M6,$I$6:$I$57,$N6)/SUMIFS($D$6:$D$57,$H$6:$H$57,$M6,$I$6:$I$57,$N6),0) -> 1.21
A7: 2020 | B7: AirGrSupp - A/C Tug Wide Body | C7: Diesel | D7: 0.002148252544 | E7: 0.002599385578 | F7: 0.001282017204 | G7: 0.001179455828 | H7: A/C Tug Wide Body | I7: Diesel | M7: A/C Tug Wide Body | N7: Diesel | O7: 0.92 | P7: =IFERROR(SUMIFS($E$6:$E$57,$H$6:$H$57,$M7,$I$6:$I$57,$N7)/SUMIFS($D$6:$D$57,$H$6:$H$57,$M7,$I$6:$I$57,$N7),0) -> 1.21
A8: 2020 | B8: AirGrSupp - Baggage Tug | C8: Diesel | D8: 0.003477467616 | E8: 0.004207735815 | F8: 0.002318847513 | G8: 0.002133339712 | H8: Baggage Tug | I8: Diesel | M8: Baggage Tug | N8: Diesel | O8: 0.92 | P8: 1.21
A9: 2020 | B9: AirGrSupp - Belt Loader | C9: Diesel | D9: 0.001675091655 | E9: 0.002026860903 | F9: 0.001291363973 | G9: 0.001188054855 | H9: Belt Loader | I9: Diesel | M9: Belt Loader | N9: Diesel | O9: 0.92 | P9: 1.21
A10: 2020 | B10: AirGrSupp - Bobtail | C10: Diesel | D10: 0.0003061578629 | E10: 0.0003704510141 | F10: 0.0001840972174 | G10: 0.00016936944 | H10: Bobtail | I10: Diesel | M10: Bobtail | N10: Diesel | O10: 0.92 | P10: 1.21
A11: 2020 | B11: AirGrSupp - Cargo Loader | C11: Diesel | D11: 0.001441553794 | E11: 0.001744280091 | F11: 0.0008200029022 | G11: 0.00075440267 | H11: Cargo Loader | I11: Diesel | M11: Cargo Loader | N11: Diesel | O11: 0.92 | P11: 1.21
A12: 2020 | B12: AirGrSupp - Cargo Tractor | C12: Diesel | D12: 0.004466347573 | E12: 0.005404280564 | F12: 0.003408154993 | G12: 0.003135502593 | H12: Cargo Tractor | I12: Diesel | M12: Cargo Tractor | N12: Diesel | O12: 0.92 | P12: 1.21
A13: 2020 | B13: AirGrSupp - Forklift | C13: Diesel | D13: 0.001531969454 | E13: 0.001853683039 | F13: 0.00110746318 | G13: 0.001018866126 | H13: Forklift | I13: Diesel | M13: Forklift | N13: Diesel | O13: 0.92 | P13: 1.21
A14: 2020 | B14: AirGrSupp - Lift | C14: Diesel | D14: 0.0008342041291 | E14: 0.001009386996 | F14: 0.0006008407934 | G14: 0.0005527735299 | H14: Lift | I14: Diesel | M14: Lift | N14: Diesel | O14: 0.92 | P14: 1.21
A15: 2020 | B15: AirGrSupp - Other GSE | C15: Diesel | D15: 0.005874519417 | E15: 0.007108168495 | F15: 0.003284099329 | G15: 0.003021371383 | H15: Other GSE | I15: Diesel | M15: Other GSE | N15: Diesel | O15: 0.92 | P15: 1.21
A16: 2020 | B16: AirGrSupp - Passenger Stand | C16: Diesel | D16: 2.403278604e-05 | E16: 2.907967111e-05 | F16: 1.543775935e-05 | G16: 1.42027386e-05 | H16: Passenger Stand | I16: Diesel | M16: Passenger Stand | N16: Diesel | O16: 0.92 | P16: 1.21
A17: 2020 | B17: OFF - AirGrSupp - A/C Tug Narrow Body | C17: Gasoline | D17: 0.003596275651 | E17: 0.003307854344 | F17: 0.0003219390848 | G17: 0.0002432428641 | H17: A/C Tug Narrow Body | I17: Gasoline | M17: A/C Tug Narrow Body | N17: Gasoline | O17: 0.7555555556 | P17: 0.9198
A18: 2020 | B18: OFF - AirGrSupp - A/C Tug Wide Body | C18: Gasoline | D18: 0.002040868117 | E18: 0.001877190494 | F18: 0.000452070569 | G18: 0.0003415644299 | H18: A/C Tug Wide Body | I18: Gasoline | M18: A/C Tug Wide Body | N18: Gasoline | O18: 0.7555555556 | P18: 0.9198
A19: 2020 | B19: OFF - AirGrSupp - Air Conditioner | C19: Gasoline | D19: 5.861787993e-08 | E19: 5.391672596e-08 | F19: 1.159161538e-08 | G19: 8.758109401e-09 | H19: Air Conditioner | I19: Gasoline | M19: Air Conditioner | N19: Gasoline | O19: 0.7555555556 | P19: 0.9198
A20: 2020 | B20: OFF - AirGrSupp - Air Conditioner | C20: Nat Gas | D20: 0 | E20: 0 | F20: 0 | G20: 0 | H20: Air Conditioner | I20: Nat Gas | M20: Air Conditioner | N20: Nat Gas | O20: 0 | P20: 0
A21: 2020 | B21: OFF - AirGrSupp - Air Start Unit | C21: Gasoline | D21: 6.053034904e-06 | E21: 5.567581505e-06 | F21: 1.096482516e-06 | G21: 8.284534563e-07 | H21: Air Start Unit | I21: Gasoline | M21: Air Start Unit | N21: Gasoline | O21: 0.7555555556 | P21: 0.9198
A22: 2020 | B22: OFF - AirGrSupp - Baggage Tug | C22: Gasoline | D22: 0.02764497332 | E22: 0.02542784646 | F22: 0.003463520366 | G22: 0.002616882054 | H22: Baggage Tug | I22: Gasoline | M22: Baggage Tug | N22: Gasoline | O22: 0.7555555556 | P22: 0.9198
A23: 2020 | B23: OFF - AirGrSupp - Baggage Tug | C23: Nat Gas | D23: 0 | E23: 0 | F23: 0 | G23: 0 | H23: Baggage Tug | I23: Nat Gas | M23: Baggage Tug | N23: Nat Gas | O23: 0 | P23: 0
A24: 2020 | B24: OFF - AirGrSupp - Belt Loader | C24: Gasoline | D24: 0.006689688061 | E24: 0.006153175078 | F24: 0.0008208985869 | G24: 0.0006202344879 | H24: Belt Loader | I24: Gasoline | M24: Belt Loader | N24: Gasoline | O24: 0.7555555556 | P24: 0.9198
A25: 2020 | B25: OFF - AirGrSupp - Belt Loader | C25: Nat Gas | D25: 0 | E25: 0 | F25: 0 | G25: 0 | H25: Belt Loader | I25: Nat Gas | M25: Belt Loader | N25: Nat Gas | O25: 0 | P25: 0
A26: 2020 | B26: OFF - AirGrSupp - Bobtail | C26: Gasoline | D26: 0.003359042309 | E26: 0.003089647116 | F26: 0.0004208414751 | G26: 0.0003179691145 | H26: Bobtail | I26: Gasoline | M26: Bobtail | N26: Gasoline | O26: 0.7555555556 | P26: 0.9198
A27: 2020 | B27: OFF - AirGrSupp - Bobtail | C27: Nat Gas | D27: 0 | E27: 0 | F27: 0 | G27: 0 | H27: Bobtail | I27: Nat Gas | M27: Bobtail | N27: Nat Gas | O27: 0 | P27: 0
A28: 2020 | B28: OFF - AirGrSupp - Cargo Loader | C28: Gasoline | D28: 0.002462316223 | E28: 0.002264838462 | F28: 0.0003012472625 | G28: 0.0002276090428 | H28: Cargo Loader | I28: Gasoline | M28: Cargo Loader | N28: Gasoline | O28: 0.7555555556 | P28: 0.9198
A29: 2020 | B29: OFF - AirGrSupp - Cargo Loader | C29: Nat Gas | D29: 0 | E29: 0 | F29: 0 | G29: 0 | H29: Cargo Loader | I29: Nat Gas | M29: Cargo Loader | N29: Nat Gas | O29: 0 | P29: 0
A30: 2020 | B30: OFF - AirGrSupp - Cargo Tractor | C30: Gasoline | D30: 0.08014654524 | E30: 0.07371879231 | F30: 0.005118309929 | G30: 0.003867167502 | H30: Cargo Tractor | I30: Gasoline | M30: Cargo Tractor | N30: Gasoline | O30: 0.7555555556 | P30: 0.9198
A31: 2020 | B31: OFF - AirGrSupp - Cargo Tractor | C31: Nat Gas | D31: 0 | E31: 0 | F31: 0 | G31: 0 | H31: Cargo Tractor | I31: Nat Gas | M31: Cargo Tractor | N31: Nat Gas | O31: 0 | P31: 0
